Workbook

Sheet Controllo_UPLOAD
A1: ID_ATO | B1: ID_Aeeg_Gestore | D1: SONO PRESENTI ATO E GESTORE ? | E1: il file può essere caricato ?
A2: =idato -> 0 | B2: =Codice_ARERA -> 0 | D2: =IF(A2*B2>0,"SI","NO") -> NO | E2: SI
D3: PRECOMPILATO
D4: 0
D5: 1 = precompilato; 0 = deve fornire tutti i dati
D7: Tipo_file
D8: RDT
D10: SI
D13: Versione_file
D14: Tool

Sheet Menu
B1: RACCOLTA DATI TARIFFARI | F1: Per la compilazione seguire l'ordine dei fogli | K1: RACCOLTA DATI "Qualità tecnica e contrattuale, PdI e POS"
B2: ATO | E2: GESTORE
B3: ID_ATO | C3: ATO | D3: campo_vuoto | E3: ID_Aeeg_Gestore | F3: Gestore | H3: DATA CALCOLO
H4: Preview_RDT2022
F6: Indicare la natura dei dati forniti per l'anno 2021
F7: dati consuntivi
B8: Sono presenti Errori | C8: elenco schede: | G8: foglio | I8: nomi delle tabelle | K8: Sono presenti Errori | L8: elenco schede: | P8: foglio | R8: nomi delle tabelle
C9: Dati tecnici | G9: Dati_tecnici | H9: scrittura | L9: QT-Acquedotto | P9: QT-Acquedotto | Q9: lettura/scrittura
C10: Dati di conto economico | G10: Dati_conto_economico | H10: scrittura | L10: QT-Fognatura | P10: QT-Fognatura | Q10: lettura/scrittura
C11: Altri dati economico finanziari | G11: Altri_dati_eco_fin | H11: scrittura | L11: QT-Depurazione | P11: QT-Depurazione | Q11: lettura/scrittura
C12: Finanziamenti | G12: finanziamenti | H12: scrittura | I12: finanziamenti | L12: QT-Altri dati | P12: QT-Altri dati | Q12: lettura/scrittura
C13: Elenco soggetti proprietari | G13: soggetti_proprietari | H13: lettura/scrittura | I13: Elenco_Proprietari | L13: Riepilogo RQTI | P13: Riepilogo_RQTI | Q13: lettura/scrittura
C14: Corrispettivi su infrastrutture di terzi | G14: Corrispettivi_proprietari | H14: lettura/scrittura | I14: Corrispettivi_Proprietari | L14: Programma degli Interventi: legenda | P14: PdI-legenda | Q14: lettura
C15: Servizi all'ingrosso: soggetti | G15: Soggetti_Scambio | H15: scrittura | I15: Soggetti_Elenco | L15: Programma degli Interventi: cronoprogramma_investimenti | P15: PdI-crono_inv | Q15: lettura/scrittura | R15: crono_investimenti
C16: Servizi all'ingrosso: vendita | G16: Vendita_Servizi_ingrosso | H16: scrittura | I16: Vendita_Servizi | L16: Programma degli Interventi: POS - Piano Opere Strategiche | P16: POS-Piano_Opere_Strategiche | Q16: lettura/scrittura | R16: crono_pos
C17: Servizi all'ingrosso: acquisto | G17: Acquisto_Servizi_ingrosso | H17: scrittura | I17: Acquisto_Servizi | L17: Programma degli Interventi: cronoprogramma_gestionale | P17: PdI-crono_ges | Q17: lettura/scrittura | R17: crono_gestionale
C18: Nuovi investimenti | G18: Nuovi_Investimenti | H18: scrittura | I18: Nuovi_Investimenti | L18: Programma degli Interventi: riepilogo | P18: PdI-riepilogo | Q18: lettura
C19: Dismissioni | G19: Dismissioni | H19: scrittura | I19: Dismissioni | L19: Riepilogo RQSII | P19: Riepilogo_RQSII | Q19: lettura/scrittura
C20: Ammortamento finanziario | G20: Ammortamento_Finanziario | H20: lettura/scrittura
C21: Informazioni su aggregazioni (anche ai fini dello schema di convergenza) | G21: Info_eventuali_aggregazioni | H21: scrittura | I21: Info_Soggetti_Aggregati
C22: Elenco Bacini Tariffari | G22: Elenco_Bacini_Tariffari | H22: scrittura | I22: BaciniTariffariElenco
C23: Bacini Tariffari e Comuni per Bacino Tariffario | G23: Bacini_Tariffari_Comuni | H23: scrittura | I23: Bacini_Tariffari_Comuni
C24: Struttura dei corrispettivi | G24: Struttura_corrispettivi | H24: scrittura
C25: Ricavi tariffari - Collettamento e depurazione reflui industriali | G25: Ricavi_Coll_Dep | H25: lettura/scrittura
C26: Ricavi tariffari totali per Bacino Tariffario | G26: Ricavi_bacini_tariffari | H26: lettura/scrittura | I26: Bacini_Tariffari_Ricavi
C28: Informazioni per completamento proposta tariffaria | G28: Input_per_calcoli_finali | H28: lettura/scrittura
C29: Ulteriori specificazioni del VRG | G29: VRG_ult_spec | H29: lettura/scrittura
C30: Dati anni precedenti | G30: Dati_Anni_precedenti | H30: lettura
C31: Vite utili anni precedenti | G31: vite_utili_precedenti
C32: Immobilizzazioni ante 2019 | G32: IMN_cespiti_ante2019 | H32: lettura | I32: IMN_cespiti_ante2019
C33: Conferma investimenti 2019 | G33: Conferma_investimenti_2019 | H33: lettura/scrittura | I33: Investimenti2019
C34: Immobilizzazioni dei proprietari | G34: IMN_Proprietari | H34: lettura | I34: cespiti_proprietari
C35: DCUIT | G35: dcuit | H35: calcolo
C36: Storico Piano Tariffario | G36: Storico_Piano_tariffario | H36: lettura
G37: Storico_Ambiti_Tariffari_Comuni | H37: lettura/scrittura | I37: Storico_Ambiti_Tariffari_Comuni
G38: Storico_Articolaz tariff QV | H38: lettura/scrittura
G39: Storico_Articolaz tariff QF | H39: lettura/scrittura
G40: Storico_Ricavi_ambiti_tariffari | H40: lettura/scrittura | I40: Storico_Ambiti_Tariffari_Ricavi
G41: Storico_Piano_Tariffario | H41: lettura
C42: Ricostruzione immobilizzazioni del gestore | G42: IMN_consolidamento | H42: lettura
C43: Calcolo IMN gestore | G43: IMN_gestore | H43: lettura
C44: Riepilogo valore delle immobilizzazioni del gestore | G44: IMN_riepilogo | H44: lettura
C45: FRAMEWORK SCHEMI | G45: framework_schemi | H45: calcolo
C46: VRG TETA | G46: vrg_teta | H46: calcolo
C47: CAPEX | G47: capex | H47: calcolo
C48: FoNI | G48: FoNI | H48: calcolo
C49: OPEX | G49: opex | H49: calcolo
C50: ERC | G50: erc | H50: calcolo
C51: RC | G51: rc | H51: calcolo
C52: Schema di convergenza | G52: Schema di convergenza | H52: calcolo
C53: PEF - Piano tariffario | G53: piano_tariffario | H53: lettura/scrittura
C54: PEF - Conto economico | G54: conto_economico | H54: scrittura
C55: PEF - Stato patrimoniale | G55: Stato_patrimoniale | H55: scrittura
C56: PEF - Rendiconto finanziario | G56: rendiconto_finanziario | H56: scrittura
C57: Elenco Gestori | G57: TT_Gestori | H57: fogli di supporto
C58: Tabelle di supporto anagrafica territorio | G58: TT_Comuni_ATO | H58: fogli di supporto
C59: Tabelle di riferimento (per i menu) | G59: TT_Tabelle_Riferimento | H59: fogli di supporto
C60: Parametri | G60: TT_parametri | H60: sola lettura
C61: QT-Acquedotto | G61: QT-Acquedotto | H61: lettura/scrittura
C62: QT-Fognatura | G62: QT-Fognatura | H62: lettura/scrittura
C63: QT-Depurazione | G63: QT-Depurazione | H63: lettura/scrittura
C64: QT-Altri dati | G64: QT-Altri dati | H64: lettura/scrittura
C65: Riepilogo RQTI | G65: Riepilogo_RQTI | H65: lettura/scrittura
C66: Programma degli Interventi: legenda | G66: PdI-legenda | H66: lettura
C67: Programma degli Interventi: cronoprogramma_investimenti | G67: PdI-crono_inv | H67: lettura/scrittura | I67: crono_investimenti
C68: Programma degli Interventi: POS - Piano Opere Strategiche | G68: POS-Piano_Opere_Strategiche | H68: lettura/scrittura | I68: crono_pos
C69: Programma degli Interventi: cronoprogramma_gestionale | G69: PdI-crono_ges | H69: lettura/scrittura | I69: crono_gestionale
C70: Programma degli Interventi: riepilogo | G70: PdI-riepilogo | H70: lettura
C71: Riepilogo RQSII | G71: Riepilogo_RQSII | H71: lettura/scrittura

Sheet Dati_tecnici
B1: DATI TECNICI
B2: FORNITURA ELETTRICA | E2: ANNO 2020 | F2: ANNO 2021 | G2: ANNO 2019 | M2: Errore compilazione | N2: Errore dati EE | O2: Errore dati pop | P2: Sono presenti errori
C3: Consumo di energia elettrica | D3: kWh | M3: =+COUNTA(E3:F3,E5:F5,E7:F7,E9:F9,E32,E33,E34,E35,E36,E37,G3,G5,G9)<>17 -> TRUE | N3: =+MIN(E3:F3,E5:F5,E7:F7,G3,G5)<=0 -> TRUE | O3: =+OR(COUNT(E12,E20,E26)=0,COUNT(F12,F20,F26)=0) -> TRUE | P3: =+OR(M3:O3) -> TRUE
C4: di cui, in salvaguardia | D4: kWh
C5: Costo energia elettrica a bilancio | D5: Euro
C6: di cui, in salvaguardia | D6: Euro
C7: Costo medio della fornitura elettrica | D7: Euro/kWh
C8: Costo medio della fornitura elettrica per l'acquisto in regime di salvaguardia | D8: Euro/kWh
C9: Si esclude di avere acquistato energia elettrica in regime di salvaguardia per almeno 4 mesi | D9: SI/NO
B10: SERVIZIO ACQUEDOTTO
C11: Numero di comuni serviti (ComA) | D11: N
C12: Popolazione residente servita (PRA) | D12: N
C13: Volume di acqua fatturato (A20) | D13: m3
C14: Utenze totali (UtT) | D14: N
C15: Popolazione fluttuante (PFA) | D15: N
C16: Superficie (SUA) | D16: km2
C17: Lunghezza rete (L) | D17: km
B18: SERVIZIO FOGNATURA
C19: Numero di comuni serviti (ComF) | D19: N
C20: Popolazione residente servita (PRF) | D20: N
C21: Lunghezza rete fognaria (LL) | D21: km
C22: Popolazione fluttuante (PFF) | D22: N
C23: Superficie (SUF) | D23: km2
B24: SERVIZIO DEPURAZIONE
C25: Numero di comuni serviti (ComD) | D25: N
C26: Popolazione residente servita (PRD) | D26: N
C27: Popolazione fluttuante (PFD) | D27: N
C28: Superficie (SUD) | D28: km2
C29: Abitanti Equivalenti serviti da depurazione | D29: A.E.
B31: TERRITORIO GESTITO E AFFIDAMENTO
C32: Tipo affidamento | D32: -
C33: Data inizio affidamento | D33: gg/mm/aaaa
C34: Data fine affidamento | D34: gg/mm/aaaa
C35: Presenza Carta dei servizi | D35: SI/NO
C36: Presenza di un consumo minimo impegnato per la fatturazione delle utenze | D36: SI/NO
C37: Versamento delle componenti perequative a CSEA | D37: SI/NO

Sheet Dati_conto_economico
B1: DATI DI CONTO ECONOMICO | Q1: Sono presenti errori | R1: errore_voci_di_cui | S1: mancata_compilazione
C2: ANNO 2020 | I2: ANNO 2021 | Q2: =+OR(R2:S2) -> TRUE | R2: =+OR(P:P) -> FALSE | S2: =SUM(C:M)=0 -> TRUE
C3: Totale SII | D3: di cui ERC | E3: SII escluso ERC | F3: Altre attività idriche (c.d. Attività b) | G3: Attività diverse | I3: Totale SII | J3: di cui ERC | K3: SII escluso ERC | L3: Altre attività idriche (c.d. Attività b) | M3: Attività diverse | O3: n_riga | P3: errore compilazione
A4: VALORE DELLA PRODUZIONE (Euro) | C4: =C5+C7+C8+C9+C11 -> 0 | E4: =+C4-D4 -> 0 | F4: =F5+F7+F8+F9+F11 -> 0 | G4: =G5+G7+G8+G9+G11 -> 0 | I4: =I5+I7+I8+I9+I11 -> 0 | K4: =+I4-J4 -> 0 | L4: =L5+L7+L8+L9+L11 -> 0 | M4: =M5+M7+M8+M9+M11 -> 0 | O4: 0 | P4: =OR(C13>C4,F13>F4,G13>G4,I13>I4,L13>L4,M13>M4) -> FALSE
B5: A1) Ricavi delle vendite e delle prestazioni | E5: =+C5-D5 -> 0 | K5: =+I5-J5 -> 0 | O5: 1
B6: di cui da altre imprese del gruppo | E6: =+C6-D6 -> 0 | K6: =+I6-J6 -> 0 | O6: 2 | P6: =OR(C6>C5,F6>F5,G6>G5,I6>I5,L6>L5,M6>M5) -> FALSE
B7: A2) Variazioni rimanenze di prodotti in corso di lavorazione, semilavorati e finiti | E7: 0 | K7: 0 | O7: 3
B8: A3) Variazioni dei lavori in corso su ordinazione | E8: 0 | K8: 0 | O8: 4
B9: A4) Incrementi di immobilizzazioni per lavori interni (inclusi costi del personale) | E9: 0 | K9: 0 | O9: 5
B10: di cui per realizzazione allacciamenti idrici e fognari | E10: 0 | K10: 0 | O10: 6 | P10: =OR(C10>C9,F10>F9,G10>G9,I10>I9,L10>L9,M10>M9) -> FALSE
B11: A5) Altri ricavi e proventi | E11: 0 | K11: 0 | O11: 7
B12: di cui da altre imprese del gruppo | E12: 0 | K12: 0 | O12: 8 | P12: =OR(C12>C11,F12>F11,G12>G11,I12>I11,L12>L11,M12>M11) -> FALSE
A13: ULTERIORI SPECIFICAZIONI DEI RICAVI (Euro) | C13: =SUM(C14:C40) -> 0 | E13: =+C13-D13 -> 0 | F13: =SUM(F14:F40) -> 0 | G13: =SUM(G14:G40) -> 0 | I13: =SUM(I14:I40) -> 0 | K13: =+I13-J13 -> 0 | L13: =SUM(L14:L40) -> 0 | M13: =SUM(M14:M40) -> 0 | O13: 9
B14: Ricavi da articolazione tariffaria | E14: =+C14-D14 -> 0 | K14: =+I14-J14 -> 0 | O14: 10
B15: Vendita di acqua all’ingrosso | E15: 0 | K15: 0 | O15: 11
B16: Acquedotto (utenti non allacciati alla pubblica fognatura) | E16: 0 | K16: 0 | O16: 13
B17: Vendita di acqua non potabile o ad uso industriale | E17: 0 | K17: 0 | O17: 14
B18: Vendita di acqua forfetaria | E18: 0 | K18: 0 | O18: 15
B19: Fornitura bocche antincendio | E19: 0 | K19: 0 | O19: 16
B20: Fognatura e depurazione civile (approvvigionamento autonomo) | E20: 0 | K20: 0 | O20: 17
B21: Fognatura e depurazione di acque reflue industriali | E21: 0 | K21: 0 | O21: 18
B22: Contributi di allacciamento | E22: 0 | K22: 0 | O22: 19
B23: Prestazioni e servizi accessori (v. comma 1.1 All. A del. 580/2019/R/IDR) | E23: 0 | K23: =+I23-J23 -> 0 | O23: 20
B24: Vendita di acqua con autobotte (v. comma 1.1 All. A del. 580/2019/R/IDR) | E24: 0 | K24: =+I24-J24 -> 0 | O24: 22
B25: Trattamento percolati | O25: 23
B26: Trattamento bottini | O26: 24
B27: Gestione fognature bianche (v. comma 1.1 All. A del. 580/2019/R/IDR) | E27: 0 | K27: 0 | O27: 25
B28: Pulizia e manutenzione caditoie stradali (v. comma 1.1 All. A del. 580/2019/R/IDR) | E28: 0 | K28: 0 | O28: 26
B29: Installazione/gestione bocche antincendio | O29: 27
B30: Vendita di servizi a terzi | O30: 28
B31: Lavori conto terzi | E31: 0 | K31: 0 | O31: 29
B32: Spurgo pozzi neri | O32: 30
B33: Rilascio autorizzazioni allo scarico | O33: 31
B34: Lottizzazioni | O34: 32
B35: Riuso delle acque di depurazione | O35: 33
B36: Case dell’acqua | O36: 34
B37: Proventi straordinari | E37: 0 | K37: 0 | O37: 35
B38: Contributi in conto esercizio | E38: 0 | K38: 0 | O38: 36
B39: Rimborsi e indennizzi | E39: 0 | K39: 0 | O39: 37
B40: Ricavi da altre attività (non inclusi nelle suddette voci) | O40: 38
O41: 39
A42: COSTI DELLA PRODUZIONE (Euro) | C42: =C43+C46++C59+C62+C65+SUM(C69:C72) -> 0 | D42: =D43+D46++D59+D62+D65+SUM(D69:D72) -> 0 | E42: =+C42-D42 -> 0 | F42: =F43+F46++F59+F62+F65+SUM(F69:F72) -> 0 | G42: =G43+G46++G59+G62+G65+SUM(G69:G72) -> 0 | I42: =I43+I46++I59+I62+I65+SUM(I69:I72) -> 0 | J42: =J43+J46++J59+J62+J65+SUM(J69:J72) -> 0 | K42: =+I42-J42 -> 0 | L42: =L43+L46++L59+L62+L65+SUM(L69:L72) -> 0 | M42: =M43+M46++M59+M62+M65+SUM(M69:M72) -> 0 | O42: 40 | P42: =+OR(C42<(C43+C46+C59+C62+C65+SUM(C69:C72)),D42<(D43+D46+D59+D62+D65+SUM(D69:D72)),F42<(F43+F46+F59+F62+F65+SUM(F69:F72)),G42<(G43+G46+G59+G62+G65+SUM(G69:G72)),I42<(I43+I46+I59+I62+I65+SUM(I69:I72)),J42<(J43+J46+J59+J62+J65+SUM(J69:J72)),L42<(L43+L46+L59+L62+L65+SUM(L69:L72)),M42<(M43+M46+M59+M62+M65+SUM(M69:M72))) -> FALSE
B43: B6) Per materie prime, sussidiarie, di consumo e merci | E43: =+C43-D43 -> 0 | K43: =+I43-J43 -> 0 | O43: 41
B44: di cui per materiali per manutenzioni | E44: =+C44-D44 -> 0 | K44: =+I44-J44 -> 0 | O44: 44
B45: di cui per reagenti | E45: =+C45-D45 -> 0 | K45: =+I45-J45 -> 0 | O45: 45
B46: B7) Per servizi | C46: =+SUM(C47:C58) -> 0 | D46: =+SUM(D47:D58) -> 0 | E46: =+C46-D46 -> 0 | F46: =+SUM(F47:F58) -> 0 | G46: =+SUM(G47:G58) -> 0 | I46: =+SUM(I47:I58) -> 0 | J46: =+SUM(J47:J58) -> 0 | K46: =+I46-J46 -> 0 | L46: =+SUM(L47:L58) -> 0 | M46: =+SUM(M47:M58) -> 0 | O46: 46
B47: energia elettrica da altre imprese del gruppo | E47: =+C47-D47 -> 0 | K47: =+I47-J47 -> 0 | O47: 47
B48: energia elettrica da altre imprese | E48: 0 | K48: 0 | O48: 48
B49: ricerca perdite (da terzi) | E49: 0 | K49: 0 | O49: 49
B50: ricerca perdite (da altre imprese del gruppo) | E50: 0 | K50: 0 | O50: 50
B51: smaltimento rifiuti (da terzi) | E51: 0 | K51: 0 | O51: 51
B52: smaltimento rifiuti (da altre imprese del gruppo) | E52: 0 | K52: 0 | O52: 52
B53: trasporto e smaltimento fanghi (da terzi) | E53: 0 | K53: 0 | O53: 53
B54: trasporto e smaltimento fanghi (da altre imprese del gruppo) | E54: 0 | K54: 0 | O54: 54
B55: manutenzioni ordinarie (da terzi) | E55: 0 | K55: 0 | O55: 55
B56: manutenzioni ordinarie (da altre imprese del gruppo) | E56: 0 | K56: 0 | O56: 56
B57: altri servizi da altre imprese del gruppo | E57: 0 | K57: 0 | O57: 57
B58: altri servizi da altre imprese | E58: 0 | K58: 0 | O58: 58
B59: B8) Per godimento beni di terzi | E59: 0 | K59: 0 | O59: 59 | P59: =OR(C59<SUM(C60:C61),D59<SUM(D60:D61),F59<SUM(F60:F61),G59<SUM(G60:G61),I59<SUM(I60:I61),J59<SUM(J60:J61),L59<SUM(L60:L61),M59<SUM(M60:M61)) -> FALSE
B60: di cui per uso impianti di altre imprese del gruppo | E60: 0 | K60: 0
B61: di cui altre spese verso altre imprese del gruppo | E61: 0 | K61: 0
B62: B9) Per il personale | E62: 0 | K62: 0 | O62: 74 | P62: =+OR(C62<(C63+C64),D62<(D63+D64),F62<(F63+F64),G62<(G63+G64),I62<(I63+I64),J62<(J63+J64),L62<(L63+L64),M62<(M63+M64)) -> FALSE
B63: di cui per salari e stipendi | E63: 0 | K63: 0 | O63: 75
B64: di cui per trattamento di fine rapporto (inclusa rivalutazione) | E64: 0 | K64: 0 | O64: 76
B65: B10) Ammortamenti e svalutazioni | E65: 0 | K65: 0 | O65: 77 | P65: =OR(C65<SUM(C66:C68),D65<SUM(D66:D68),F65<SUM(F66:F68),G65<SUM(G66:G68),I65<SUM(I66:I68),J65<SUM(J66:J68),L65<SUM(L66:L68),M65<SUM(M66:M68)) -> FALSE
B66: di cui per altre svalutazioni delle immobilizzazioni | E66: 0 | K66: 0 | O66: 78
B67: di cui per svalutazione dei crediti compresi nell'attivo circolante e delle disponibilità liquide | E67: 0 | K67: 0 | O67: 79
B68: di cui per Immobilizzazioni immateriali: avviamenti, capitalizzazione concessione, etc. | E68: 0 | K68: 0 | O68: 80
B69: B11) Variazione delle rimanenze di materie prime, sussidiarie, di consumo e merci | E69: 0 | K69: 0 | O69: 81
B70: B12) Accantonamenti per rischi | E70: 0 | K70: 0 | O70: 82
B71: B13) Altri accantonamenti | E71: 0 | K71: 0 | O71: 83
B72: B14) Oneri diversi di gestione | E72: 0 | K72: 0 | O72: 84
A73: ULTERIORI SPECIFICAZIONI DEI COSTI (Euro) | C73: =SUM(C74:C91)+C92+C96 -> 0 | D73: =SUM(D74:D91)+D92+D96 -> 0 | E73: 0 | F73: =SUM(F74:F91)+F92+F96 -> 0 | G73: =SUM(G74:G91)+G92+G96 -> 0 | I73: =SUM(I74:I91)+I92+I96 -> 0 | J73: =SUM(J74:J91)+J92+J96 -> 0 | K73: 0 | L73: =SUM(L74:L91)+L92+L96 -> 0 | M73: =SUM(M74:M91)+M92+M96 -> 0 | O73: 85
B74: Accantonamenti e rettifiche in eccesso rispetto all'applicazione di norme tributarie | E74: 0 | K74: 0 | O74: 86
B75: Rettifiche di valori di attività finanziarie | E75: 0 | K75: 0 | O75: 87
B76: Costi connessi all'erogazione di liberalità | E76: 0 | K76: 0 | O76: 88
B77: Costi pubblicitari e di marketing (incluse le imposte connesse) | E77: 0 | K77: 0 | O77: 89
B78: Oneri per sanzioni, penalità, risarcimenti automatici e simili | E78: 0 | K78: 0 | O78: 90
B79: Oneri straordinari | E79: 0 | K79: 0 | O79: 91
B80: Spese processuali in cui la parte è risultata soccombente | E80: 0 | K80: 0 | O80: 92
B81: Contributi associativi | E81: 0 | K81: 0 | O81: 93
B82: Spese di viaggio e di rappresentanza | E82: 0 | K82: 0 | O82: 94
B83: Spese di funzionamento Ente di governo dell'ambito | E83: 0 | K83: 0 | O83: 95
B84: Canoni di affitto immobili non industriali | E84: 0 | K84: 0 | O84: 96
B85: Costi di realizzazione degli allacciamenti idrici e fognari | E85: 0 | K85: 0 | O85: 97
B86: Gestione fognature bianche (* solo se già incluse nel SII; v. v. comma 1.1 All. A del. 580/2019/R/IDR) | E86: 0 | K86: 0 | O86: 98
B87: Pulizia e manutenzione caditoie stradali (* solo se già incluse nel SII; v. v. comma 1.1 All. A del. 580/2019/R/IDR) | E87: 0 | K87: 0 | O87: 99
B88: Perdite su crediti per la sola quota parte eccedente l'utilizzo del fondo | E88: 0 | K88: 0 | O88: 100
B89: Costi di strutturazione dei progetti di finanziamento (non capitalizzati) | E89: 0 | K89: 0 | O89: 101
B90: di cui della voce B7): lavorazioni eseguite da terzi di tipo labour intensive (ad esempio gestione call center) e consulenze | E90: 0 | K90: 0 | O90: 102 | P90: =OR(C90>C46,F90>F46,G90>G46,I90>I46,L90>L46,M90>M46) -> FALSE
B91: Trasporto e smaltimento fanghi non già inclusi nella voce B7) | E91: 0 | K91: 0 | O91: 103
B92: Uso infrastrutture di terzi | C92: =+SUM(C93:C95) -> 0 | D92: =+SUM(D93:D95) -> 0 | E92: 0 | F92: =+SUM(F93:F95) -> 0 | G92: =+SUM(G93:G95) -> 0 | I92: =+SUM(I93:I95) -> 0 | J92: =+SUM(J93:J95) -> 0 | K92: 0 | L92: =+SUM(L93:L95) -> 0 | M92: =+SUM(M93:M95) -> 0 | O92: 104
B93: rimborso mutui di comuni, aziende speciali, società patrimoniali | E93: 0 | K93: =+I93-J93 -> 0 | O93: 105
B94: altri corrispettivi a comuni, aziende speciali, società patrimoniali | E94: 0 | K94: =+I94-J94 -> 0 | O94: 106
B95: corrispettivi a gestori preesistenti, altri proprietari | E95: 0 | K95: =+I95-J95 -> 0 | O95: 107
B96: Oneri locali | C96: =+SUM(C97:C102) -> 0 | D96: =+SUM(D97:D102) -> 0 | E96: 0 | F96: =+SUM(F97:F102) -> 0 | G96: =+SUM(G97:G102) -> 0 | I96: =+SUM(I97:I102) -> 0 | J96: =+SUM(J97:J102) -> 0 | K96: =+I96-J96 -> 0 | L96: =+SUM(L97:L102) -> 0 | M96: =+SUM(M97:M102) -> 0 | O96: 108
B97: canoni di derivazione/sottensione idrica | E97: 0 | K97: =+I97-J97 -> 0 | O97: 109
B98: contributi per consorzi di bonifica | E98: 0 | K98: 0 | O98: 110
B99: contributi a comunità montane | E99: 0 | K99: 0 | O99: 111
B100: canoni per restituzione acque | E100: 0 | K100: 0 | O100: 112
B101: oneri per la gestione di aree di salvaguardia | E101: 0 | K101: 0 | O101: 113
B102: altri oneri locali (TOSAP, COSAP, TARSU) | E102: 0 | K102: 0 | O102: 114
A106: ULTERIORI SPECIFICAZIONI DELLE ALTRE ATTIVITÀ IDRICHE (Euro) | D106: ANNO 2020 | J106: ANNO 2021
A108: Altre attività idriche relative ai seguenti obiettivi di sostenibilità energetica ed ambientale | D108: Ricavi | F108: Costi | J108: Ricavi | L108: Costi
B110: a) efficienza energetica nelle attività e nelle infrastrutture qualora non riconducibile al servizio idrico integrato
B111: b) riduzione dell’utilizzo della plastica mediante la promozione del consumo di acqua potabile anche tramite l’installazione di fontanelle
B112: c) recupero di energia - elettrica e termica - e di materie prime mediante impianti o specifici trattamenti integrati nelle infrastrutture idriche, nonché diffusione di energia da fonti rinnovabili per l’alimentazione degli impianti del servizio idrico integrato
B113: d) riuso dell’acqua trattata (ad esempio ai fini agricoli e industriali) al fine di promuovere una maggiore razionalizzazione della risorsa in particolare in contesti caratterizzati da fenomeni di siccità
O114: 115 | P114: =+OR(SUM(D110:D113)>F4,SUM(J110:J113)>L4,SUM(F110:F113)>F42,SUM(L110:L113)>L42) -> FALSE

Sheet Altri_dati_eco_fin
B1: FONTI DI FINANZIAMENTO
E2: ANNO 2020 | F2: ANNO 2021 | M2: errore nei dati per morosità | N2: errore nei dati in valore assoluto | O2: errore nelle voci "di cui" | P2: Sono presenti errori
C3: Mezzi Propri | D3: Euro | M3: =+OR(E31*F31=0,E31="",F31="") -> TRUE | N3: =+OR(E17:F19="",E24:F26="",E27:F27="",E31:F32="",E48:F52="",E56:F57="",E68:F72="",E65="",F74="",E73="") -> TRUE | O3: =OR(E6>E5,F6>F5,E12>E11,F12>F11,ABS(E50)>ABS(E49),ABS(F50)>ABS(F49)) -> FALSE | P3: =+OR(M3:O3) -> TRUE
B4: MEZZI DI TERZI
C5: Finanziamenti a medio-lungo termine | D5: Euro
C6: di cui verso società controllate e collegate e verso controllanti | D6: Euro
C7: Tasso medio finanziamenti a medio-lungo termine | D7: %
C8: Prestiti obbligazionari | D8: Euro
C9: Tasso medio Prestiti obbligazionari | D9: %
C10: Altre passitivtà consolidate | D10: Euro
C11: Finanziamenti a breve termine | D11: Euro
C12: di cui verso società controllate e collegate e verso controllanti | D12: Euro
C13: Tasso medio Finanziamenti a breve termine | D13: %
C14: Altre passività correnti | D14: Euro
C15: Debiti tributari | D15: Euro
B16: TFR, FONDO RISCHI E ALTRI
C17: TFR | D17: Euro
C18: Fondo di quiescenza | D18: Euro
C19: Fondo rischi e oneri | D19: Euro
C20: Fondo rischi su crediti | D20: Euro
C21: Fondo svalutazione crediti | D21: Euro
C22: Valore Deposito cauzionale | D22: Euro
C23: Fondo imposte e tasse (anche differite) | D23: Euro
C24: Fondo sentenza Corte Costituzionale 335/2008 | D24: Euro
C25: Fondo per il ripristino di beni di terzi | D25: Euro
C26: Fondo vincolato al finanziamento della spesa per investimenti comma 9.1 lett. f) MTI-3 | D26: Euro
C27: Fondo per il finanziamento di tariffe sociali o di solidarietà | D27: Euro
B29: ALTRI DATI ECONOMICO FINANZIARI
B30: MOROSITA' | E30: ANNO 2020 | F30: ANNO 2021
C31: Unpaid Ratio (UR) a 24 mesi effettivamente rilevato | D31: %
C32: Rimborsi dagli utenti finali relativi alla gestione della morosità | D32: Euro
C33: Percentuale al fatturato per COdil (comma 28.4 MTI-3) | D33: %
B34: IMPOSTE
C35: IRES | D35: Euro
C36: IRAP | D36: Euro
C37: Imposte differite | D37: Euro
C38: Imposte anticipate | D38: Euro
C39: Aliquota media di tassazione, IRAP inclusa | D39: %
B40: ALTRI IMPORTI IN BOLLETTA
C41: Ui1 (importo fatturato componente Ui1) | D41: Euro
C42: Ui2 (importo fatturato componente Ui2) | D42: Euro
C43: Ui3 (importo fatturato componente Ui3) | D43: Euro
C44: Ui4 (importo fatturato componente Ui4) | D44: Euro
C45: Componente [(1+γOPi,j)*max{0;ΔOpex}] (importo fatturato) | D45: Euro
C46: Altre componenti perequative | D46: Euro
B47: ALTRI DATI PER CALCOLO RC
C48: Contributo versato ad ARERA | D48: Euro
C49: Costi per variazioni sistemiche o per eventi eccezionali | D49: Euro
C50: di cui: per eventi eccezionali | D50: Euro
C51: Costo delle forniture all’ingrosso transfrontaliere | D51: Euro
C52: Rimborsi effettuati ai sensi sentenza CC 335/2008 ed eccedenti la quota riconosciuta in tariffa | D52: Euro
C53: RCARC - comma 27-bis.1 MTI-3 | D53: Euro
C54: Fattore correttivo del Cong - comma 27-bis.2 MTI-3 | D54: Euro
C55: Σtarifnew,a*vscalnew,a-2 (ai fini del calcolo del ΔTG,TOT) | D55: Euro
C56: FONInoninv - riportare il dato in eccedenza rispetto alle componenti DCUITFoNI e AMMFoNI - comma 27.1 lett. e) MTI-3 | D56: Euro
C57: FoNIspesa ai sensi del comma 35.3 MTI-3 | D57: Euro
E59: ANNO 2020 | F59: ANNO 2021 | G59: ANNO 2022 | H59: ANNO 2023
C60: COVID: Rinvio di quota parte degli oneri ammissibili a riconoscimento tariffario nel 2020 e successivo recupero entro il 2023 | D60: Euro | E60: =+Dati_Anni_precedenti!E74 -> 0 | F60: =+Dati_Anni_precedenti!F75 -> 0 | J60: ATTENZIONE: la somma dei quattro anni deve essere nulla
B63: ALTRI DATI PER IL CALCOLO DELLA COMPONENTE CAPEX
C64: DCUIT capex (dettagliare nella relazione le motivazioni della collocazione tra i capex) | D64: Euro
C65: Ammortamento finanziario ammissibile ai sensi del comma 10.7 lettera a) MTI-3 | D65: SI/NO
B66: ALTRI DATI PER IL CALCOLO DELLA COMPONENTE OPEX
C67: OpexQT effettivamente sostenuti dal gestore (al lordo degli ERC) (commi 18.8, 26.1 e 27.1 MTI-3) | D67: Euro | E67: ='PdI-riepilogo'!D39+'PdI-riepilogo'!E39+'PdI-riepilogo'!F39 -> 0 | F67: ='PdI-riepilogo'!I39+'PdI-riepilogo'!G39+'PdI-riepilogo'!H39 -> 0
C68: OpexQC effettivamente sostenuti dal gestore (commi 18.9 lett. a) e 27.1 MTI-3) | D68: Euro
C69: OpexQC effettivamente sostenuti dal gestore (commi 18.9 lett. b) e 27.1 MTI-3) | D69: Euro
C70: Opsocial effettivamente sostenuti dal gestore (commi 18.10 e 27.1 MTI-3) | D70: Euro
C71: Opsocial effettivamente sostenuti dal gestore (comma 7.3 lett. a) REMSI e 27.1 MTI-3) | D71: Euro
C72: Opmis effettivamente sostenuti dal gestore (commi 18.11 e 27.1 MTI-3) | D72: Euro
C73: Opcovid effettivamente sostenuti dal gestore (commi 18.12 e 27.1 MTI-3) | D73: Euro | F73: .
C74: COΔfanghi (rispetto condizionalità comma 22.2 MTI-3) | D74: SI/NO
E76: ANNO 2020 | F76: ANNO 2021 | G76: ANNO 2022 | H76: ANNO 2023
C77: Opexqc - comma 18.9 lettera b) MTI-3 | D77: Euro
C78: Opsocial - scostamento da destinare all'emergenza COVID (comma 27.1 MTI-3) | D78: Euro
C79: Opsocial per il mantenimento o l'introduzione di eventuali agevolazioni migliorative | D79: Euro
C80: Opsocial - comma 7.3 lett. a) REMSI | D80: Euro
C81: Opmis - comma 18.11 MTI-3 | D81: Euro
C82: Opmis - comma 18.11 MTI-3 - incentivi all'utenza | D82: Euro
C83: OpCOVID - comma 18.12 MTI-3 | D83: Euro
C84: OpexpEE - comma 20.2 MTI-3 | D84: Euro
B86: ALTRI DATI RELATIVI ALLA GESTIONE
B87: CONSISTENZA DEL PERSONALE | E87: ANNO 2020 | F87: ANNO 2021
C88: Dirigenti | D88: N.
C89: Quadri | D89: N.
C90: Impiegati | D90: N.
C91: Operai | D91: N.
C92: Collaboratori | D92: N.
B93: COSTI DEL PERSONALE | E93: ANNO 2020 | F93: ANNO 2021
C94: Dirigenti | D94: Euro
C95: Quadri | D95: Euro
C96: Impiegati | D96: Euro
C97: Operai | D97: Euro
C98: Collaboratori | D98: Euro
B99: SPESA IN RICERCA E SVILUPPO | E99: ANNO 2020 | F99: ANNO 2021
C100: Totale spesa in ricerca e sviluppo | D100: Euro

Sheet Finanziamenti
B1: Finanziamenti (capitale di terzi)
A7: n_riga | B7: Importo finanziato (€) | C7: Soggetto finanziatore | D7: Data di sottoscrizione del finanziamento (gg/mm/aaaa) | E7: Data di scadenza del finanziamento (gg/mm/aaaa) | F7: Garanzie richieste | G7: Quota capitale 2020 (€) | H7: Tasso medio d'interesse 2020 (€) | I7: Quota interessi 2020 (€) | J7: Debito residuo (€) 2020 | K7: Quota capitale 2021 (€) | L7: Tasso medio d'interesse 2021 (€) | M7: Quota interessi 2021 (€) | N7: Debito residuo (€) 2021
A8: =+ROW()-7 -> 1

Sheet Soggetti_proprietari
B1: ELENCO SOGGETTI PROPRIETARI
C3: Elenco proprietari infrastrutture per calcolo Mutui/Altri corrispettivi ed eventuale Stratificazione di terzi | O3: Sono presenti Errori
O4: =+OR(O5:Q5) -> FALSE
O5: =OR(INDEX(Elenco_Proprietari,0,15)=TRUE) -> FALSE | P5: =OR(INDEX(Elenco_Proprietari,0,16)) -> FALSE | Q5: =OR(INDEX(Elenco_Proprietari,0,17)) -> FALSE
A7: N_riga | B7: Key_Prop | C7: Soggetto Proprietario | D7: Tipologia di proprietario | E7: P. IVA Proprietario | F7: Codice Istat Comune proprietario | G7: Proprietario ai fini dei corrispettivi AC/MT | H7: Proprietario non più presente ai fini della RAB di terzi | I7: Fusione | J7: Numero Cespiti | K7: Key_Prop_bis | L7: New_Key_prop | M7: Proprietario risultante dalla fusione | N7: per costruzione | O7: Errore Proprietari duplicati | P7: Errore PIVA o CodiceISTAT | Q7: Errore tipologia
A8: =+ROW(A8)-7 -> 1 | B8: =idato & "_" & idgestore & "-" & IF($D8="Comune",$F8,"") & "-" &IF($D8="Comune","",$E8) -> _-- | K8: =B8 -> _-- | L8: =IF(I8="SI",VLOOKUP(M8,C:K,9,0),K8) -> _-- | M8: Nuovo comune | N8: =+IF(H8="SI",L8,0) -> 0 | O8: =IF(COUNTIF(B:B,B8)>1,IF(COUNTA(C8:H8)=0,FALSE,TRUE),FALSE) -> FALSE | P8: =IF(COUNTA(E8:F8)<1,IF(COUNTA(C8:H8)=0,FALSE,TRUE),FALSE) -> FALSE | Q8: =IF(COUNTA(D8)<1,IF(COUNTA(C8:H8)=0,FALSE,TRUE),FALSE) -> FALSE

Sheet Corrispettivi_proprietari
B1: COSTI ASSOCIATI AI SOGGETTI PROPRIETARI
C3: Imputare per ciascun soggetto proprietario il valore dei Mutui MT e altri corrispettivi AC
U4: Sono presenti errori
U5: =OR(INDEX(Corrispettivi_Proprietari,0,COLUMN($U$8)-COLUMN($A$8)+1)) -> FALSE
G6: Rimborso della rata dei mutui (MT) | J6: Altri corrispettivi (AC) | O6: MT - controllo Anno deliberazione e Tipologia Proprietario | R6: AC - controllo Anno deliberazione e Tipologia Proprietario
A7: N_riga | B7: Key_Prop | C7: Soggetto Proprietario | D7: Tipologia di proprietario | E7: P. IVA Proprietario | F7: Codice Istat Comune proprietario | G7: Anno di deliberazione | H7: previsto 2022 (€) | I7: previsto 2023 (€) | J7: Anno di deliberazione | K7: Canoni connessi alla stipula di ulteriori contratti di finanziamento (tipo contratti di locazione finanziaria di opere di pubblica utilità) | L7: previsto 2022 (€) | M7: previsto 2023 (€) | O7: MT 2022 | P7: MT 2023 | R7: AC 2022 | S7: AC 2023 | U7: Errore duplicazione soggetto
A8: =+ROW(A8)-7 -> 1 | B8: =IFERROR(IF(VLOOKUP(C8,Soggetti_proprietari!C:K,9,0)=0,"",VLOOKUP(C8,Soggetti_proprietari!C:K,9,0)),"") ->  | D8: =IFERROR(IF(VLOOKUP(C8,Soggetti_proprietari!C:K,2,0)=0,"",VLOOKUP(C8,Soggetti_proprietari!C:K,2,0)),"") ->  | E8: =IFERROR(IF(VLOOKUP(C8,Soggetti_proprietari!C:K,3,0)=0,"",VLOOKUP(C8,Soggetti_proprietari!C:K,3,0)),"") ->  | F8: =IFERROR(IF(VLOOKUP(C8,Soggetti_proprietari!C:K,4,0)=0,"",VLOOKUP(C8,Soggetti_proprietari!C:K,4,0)),"") ->  | O8: =+IF(AND($G8<=2019,$G8<>"",$D8<>"Altra società privata",$B8<>""),H8,0) -> 0 | P8: =+IF(AND($G8<=2019,$G8<>"",$D8<>"Altra società privata",$B8<>""),I8,0) -> 0 | R8: =+IF(AND($J8<=2006,$J8<>"",$D8<>"Altra società privata",$B8<>""),L8,IF($K8="SI",L8,0)) -> 0 | S8: =+IF(AND($J8<=2006,$J8<>"",$D8<>"Altra società privata",$B8<>""),M8,IF($K8="SI",M8,0)) -> 0 | U8: =IF(COUNTIF(B:B,B8)>1,IF(AND(G8="",H8="",I8="",J8="",L8="",M8="",C8=""),FALSE,TRUE),FALSE) -> FALSE

Sheet Soggetti_Scambio
B1: SCAMBI ALL'INGROSSO
Q2: Sono presenti errori
B3: per ciascun soggetto indicare almeno l'ID gestore oppure la Partita IVA | Q3: =+OR(INDEX(Soggetti_Elenco,0,13)) -> FALSE
B5: 1. Soggetti con cui si hanno scambi di Servizi all'ingrosso (Vendita e/o Acquisto)
B7: IDGestore | C7: Nome soggetto | D7: Partita Iva | H7: nome_soggetto | I7: id_gestore | J7: P.IVA | K7: errore idgestore | L7: errore P.IVA | M7: errore idgestore o Partita Iva
A8: =+ROW(A8)-7 -> 1 | H8: =+IFERROR(VLOOKUP(I8,TT_Gestori!A:C,3,FALSE),IFERROR(VLOOKUP(D8,TT_Gestori!B:C,2,FALSE),+C8)) -> 0 | I8: =IFERROR(VLOOKUP(B8,TT_Gestori!A:C,1,FALSE),IFERROR(VLOOKUP(D8,TT_Gestori!B:D,3,FALSE),B8)) -> 0 | J8: =IFERROR(VLOOKUP(D8,TT_Gestori!C:C,1,FALSE),IFERROR(VLOOKUP(I8,TT_Gestori!A:C,2,FALSE),D8)) -> 0 | K8: =+OR(I8="",I8=0) -> TRUE | L8: =+OR(J8="",J8=0) -> TRUE | M8: =+IF(AND(B8="",C8="",D8="",ROW(B8)=8),FALSE,IF(OR(H8="",H8=0,K8=TRUE,L8=TRUE),TRUE,FALSE)) -> FALSE

Sheet Vendita_Servizi_ingrosso
B1: SCAMBI ALL'INGROSSO
B3: 2. Ricavi da tariffe applicate nella Vendita all'ingrosso
F4: ANNO 2019 | L4: ANNO 2020 | R4: ANNO 2021 | Z4: J ANNO 2020 | AE4: J ANNO 2021
A5: N_riga | B5: Idgestore | C5: Soggetto a cui si vende | D5: ATO | E5: Servizio | F5: Volumi erogati / trattati (m3/anno) | G5: QV (Euro/m3) | H5: - | I5: Utenze (numero) | J5: QF (Euro/utente/anno) | K5: Importo (Euro/anno) | L5: Volumi erogati / trattati (m3/anno) | M5: QV (Euro/m3) | N5: - | O5: Utenze (numero) | P5: QF (Euro/utente/anno) | Q5: Importo (Euro/anno) | R5: Volumi erogati / trattati (m3/anno) | S5: QV (Euro/m3) | T5: - | U5: Utenze (numero) | V5: QF (Euro/utente/anno) | W5: Importo (Euro/anno) | X5: Le tariffe riportate per il 2020 includono l'applicazione del Teta? | Y5: Teta medio applicato nella fatturazione dell'anno 2020 | Z5: Teta approvato dal soggetto competente per l'anno 2020 | AA5: Teta approvato dall'Autorità per l'anno 2020 | AB5: delibera Autorità | AC5: Le tariffe riportate per il 2021 includono l'applicazione del Teta? | AD5: Teta medio applicato nella fatturazione dell'anno 2021 | AE5: Teta approvato dal soggetto competente per l'anno 2021 | AF5: Teta approvato dall'Autorità per l'anno 2021 | AG5: delibera Autorità | AI5: tar2019*vol2020 | AJ5: tar2019*vol2021 | AK5: tar2020*vol2020 | AL5: tar2021*vol2021
A6: =+ROW(A6)-5 -> 1 | B6: =+IF(ISNA(VLOOKUP(C6,soggetto_j,2,FALSE)),0,VLOOKUP(C6,soggetto_j,2,FALSE)) -> 0 | K6: =+F6*G6+I6*J6 -> 0 | Q6: =+L6*M6+O6*P6 -> 0 | W6: =+U6*V6+R6*S6 -> 0 | AA6: =+Dati_Anni_precedenti!$E$5 -> 0 | AB6: =+Dati_Anni_precedenti!$G$4 -> 0 | AF6: =+Dati_Anni_precedenti!$F$5 -> 0 | AG6: =+Dati_Anni_precedenti!$G$4 -> 0 | AI6: =+O6*$J6+L6*$G6 -> 0 | AJ6: =+U6*$J6+R6*$G6 -> 0 | AK6: =+Q6 -> 0 | AL6: =+W6 -> 0

Sheet Acquisto_Servizi_ingrosso
B1: SCAMBI ALL'INGROSSO
B3: 3. Costi per acquisto all'ingrosso | F3: costi sostenuti di fornitura all'ingrosso, criterio di competenza | Q3: costi a seguito dell'applicazione del J al grossista | W3: costi sostenuti di fornitura all'ingrosso, criterio di competenza | AH3: costi a seguito dell'applicazione del J al grossista
F4: ANNO 2020 - COeffettivo,2020 ai fini del COws comma 21.1 MTI-3 | L4: informazione sui J ANNO 2020 | Q4: ANNO 2020 - COeffettivo,2020 ai fini del RCws comma 27.1 MTI-3 | W4: ANNO 2021 - COeffettivo,2021 ai fini del COws comma 21.1 MTI-3 | AC4: informazione sui J ANNO 2021 | AH4: ANNO 2021 - COeffettivo,2021 ai fini del RCws comma 27.1 MTI-3
A5: N_riga | B5: Idgestore | C5: Soggetto da cui si acquista | D5: ATO | E5: Servizio | F5: Volumi erogati / trattati (m3/anno) | G5: QV (Euro/m3) | H5: - | I5: Utenze (numero) | J5: QF (Euro/utente/anno) | K5: Importo (Euro/anno) | L5: Le tariffe applicate per la fatturazione 2020 includono l'applicazione del Teta? | M5: Teta medio applicato dal grossista nella fatturazione dell'anno 2020 | N5: Teta approvato dal soggetto competente per l'anno 2020 | O5: Teta approvato dall'Autorità per l'anno 2020 | P5: delibera Autorità | Q5: Volumi erogati / trattati (m3/anno) | R5: QV (Euro/m3) | S5: - | T5: Utenze (numero) | U5: QF (Euro/utente/anno) | V5: Importo (Euro/anno) | W5: Volumi erogati / trattati (m3/anno) | X5: QV (Euro/m3) | Y5: - | Z5: Utenze (numero) | AA5: QF (Euro/utente/anno) | AB5: Importo (Euro/anno) | AC5: Le tariffe applicate per la fatturazione 2021 includono l'applicazione del Teta? | AD5: Teta medio applicato dal grossista nella fatturazione dell'anno 2021 | AE5: Teta approvato dal soggetto competente per l'anno 2021 | AF5: Teta approvato dall'Autorità per l'anno 2021 | AG5: delibera Autorità | AH5: Volumi erogati / trattati (m3/anno) | AI5: QV (Euro/m3) | AJ5: - | AK5: Utenze (numero) | AL5: QF (Euro/utente/anno) | AM5: Importo (Euro/anno) | AP5: check per RCws 2020 | AQ5: check per RCws 2021
A6: =+ROW(A6)-5 -> 1 | B6: =+IFERROR(VLOOKUP(C6,soggetto_j,2,FALSE),"") -> 0 | K6: =+F6*G6+I6*J6 -> 0 | V6: =+Q6*R6+T6*U6 -> 0 | AB6: =+W6*X6+Z6*AA6 -> 0 | AM6: =+AH6*AI6+AK6*AL6 -> 0 | AP6: =IF(OR(K6=0,V6=0),0,1) -> 0 | AQ6: =IF(OR(AB6=0,AM6=0),0,1) -> 0

Sheet Nuovi_Investimenti
B1: IMMOBILIZZAZIONI DEL GESTORE | G1: Tutti i valori si intendono a moneta dell'anno del cespite (2020-2021)
A2: 1. LAVORI IN CORSO | M2: errori_compilazione | N2: errore_PdI | O2: Sono_presenti_errori
D3: 2020 | E3: 2021 | M3: =+OR(INDEX(Nuovi_Investimenti,0,29)) -> TRUE | N3: =+(D10+E10-'PdI-riepilogo'!F4-'PdI-riepilogo'!G4)<>0 -> FALSE | O3: =++OR(M3:N3) -> TRUE
C4: Saldo LICord (al netto dei saldi che risultino invariati da più di 4 anni)
C5: Saldo LICpos (al netto dei saldi che risultino invariati da più di 5 anni)
A7: 2. NUOVI INVESTIMENTI (2020-2021)
D8: 2020 | E8: 2021 | AA8: =+IF(OR(D8="Acquedotto",D8="Fognatura",D8="Depurazione",D8="Comune"),D8,"") -> 
C9: FoNIa-2 da riportare a CFP | D9: =Altri_dati_eco_fin!E57 -> 0 | E9: =Altri_dati_eco_fin!F57 -> 0
C10: Totale nuovi investimenti | D10: =+SUMIF($T:$T,D$8,$U:$U) -> 0 | E10: =+SUMIF($T:$T,E$8,$U:$U) -> 0 | K10: Valore | L10: Spazio per eventuale compilazione manuale del valore di incidenza
C11: incidenza ENV (%) | D11: =IF(K11="",IFERROR((SUMIFS($U:$U,$Z:$Z,"Env",$T:$T,D$8))/D10,0),K11) -> 0 | E11: =IF(K11="",IFERROR((SUMIFS($U:$U,$Z:$Z,"Env",$T:$T,E$8))/E10,0),K11) -> 0 | L11: incidenza ENV (%)
C12: incidenza RES (%) | D12: =IF(K12="",IFERROR((SUMIFS($U:$U,$Z:$Z,"Res",$T:$T,D$8))/D10,0),K12) -> 0 | E12: =IF(K12="",IFERROR((SUMIFS($U:$U,$Z:$Z,"Res",$T:$T,E$8))/E10,0),K12) -> 0 | L12: incidenza RES (%)
C13: incidenza FoNI (%) | D13: =IFERROR(D9/D10,0) -> 0 | E13: =IFERROR(E9/E10,0) -> 0
A15: N_riga | B15: Categoria del cespite | C15: Categoria di Immobilizzazione | D15: Attività | E15: Tipologia di costo sotteso ("Env", "Res", "Non ERC") | F15: Anno cespite | G15: IP (Euro) | H15: CFP (Euro) | I15: CFP da FoNI | J15: CFP Totale | K15: IDATO | L15: IDGestore | M15: Gestore_Proprietario | N15: N_prop | O15: Fonte | P15: ID_Categoria_Cespite | Q15: CategoriaCespite | R15: ID_Immobilizzazione | S15: IMMOBILIZZAZIONE | T15: AnnoCespite | U15: IP | V15: FAIP | W15: CFP | X15: FACP | Y15: - | Z15: ERC | AA15: Attività | AB15: foglio di origine | AC15: controllo_errori
A16: =+ROW(A16)-15 -> 1 | D16: =+IFERROR(VLOOKUP(B16,TT_Tabelle_Riferimento!$G$125:$I$160,3,FALSE),"") ->  | I16: =+IFERROR(HLOOKUP(F16,$D$8:$E$13,6,FALSE)*G16,0) -> 0 | J16: =+I16+H16 -> 0 | K16: =idato -> 0 | L16: =idgestore -> 0 | M16: Gestore | N16: 0 | O16: IP | P16: =+IFERROR(VLOOKUP(Q16,TT_Tabelle_Riferimento!$G$125:$K$160,5,0),0) -> 0 | Q16: =+IFERROR(VLOOKUP(B16,TT_Tabelle_Riferimento!$G$125:$K$160,1,0),0) -> 0 | R16: =+IFERROR(VLOOKUP(S16,cat_imm_new,2,0),0) -> 0 | S16: =+IFERROR(VLOOKUP(C16,cat_imm_new,1,0),0) -> 0 | T16: =F16 -> 0 | U16: =G16 -> 0 | V16: 0 | W16: =J16 -> 0 | X16: 0 | Z16: =+IF(OR(E16="Res",E16="Env",E16="Non ERC"),E16,"") ->  | AA16: =+IF(OR(D16="Acquedotto",D16="Fognatura",D16="Depurazione",D16="Comune"),D16,"") ->  | AB16: Nuovi_Investimenti | AC16: =+IF(OR(K16:L16=0,P16=0,R16=0),TRUE,FALSE) -> TRUE

Sheet Dismissioni
B1: IMMOBILIZZAZIONI DEL GESTORE | G1: Tutti i valori si intendono a moneta dell'anno del cespite
A2: 3. DISMISSIONI
M3: Sono presenti errori
M4: =+OR(INDEX(Dismissioni,0,32)) -> FALSE
A7: N_riga | B7: Categoria del cespite | C7: Categoria di Immobilizzazione | D7: Attività | E7: Tipologia di costo sotteso ("Env", "Res", "Non ERC") | F7: Anno dismissione | G7: Anno cespite | H7: IP (Euro) | I7: FA (Euro) | J7: CFP (Euro) | K7: FA cfp (Euro) | M7: IDATO | N7: IDGESTORE | O7: Gestore_Proprietario | P7: N_prop | Q7: Fonte | R7: ID_Categoria_Cespite | S7: CategoriaCespite | T7: ID_Immobilizzazione | U7: IMMOBILIZZAZIONE | V7: AnnoDismissione | W7: IP | X7: FAIP | Y7: CFP | Z7: FACFP | AA7: - | AB7: ERC | AC7: Attività | AD7: foglio di origine | AE7: AnnoCespite | AF7: controllo_errori
A8: =+ROW(A8)-8 -> 0 | D8: =+IFERROR(IF(G8>=2020,VLOOKUP(B8,TT_Tabelle_Riferimento!$G$125:$I$160,3,FALSE),""),"") ->  | M8: =idato -> 0 | N8: =idgestore -> 0 | O8: Gestore | P8: 0 | Q8: IP | R8: =+IFERROR(IF(G8<2020,VLOOKUP(B8,id_cat_ces,2,FALSE),VLOOKUP(B8,TT_Tabelle_Riferimento!$G$125:$K$160,5,FALSE)),0) -> 0 | S8: =+IFERROR(IF(G8<2020,VLOOKUP(B8,id_cat_ces,1,FALSE),VLOOKUP(B8,TT_Tabelle_Riferimento!$G$125:$K$160,1,FALSE)),0) -> 0 | T8: =+IFERROR(VLOOKUP(U8,cat_imm_new,2,0),0) -> 0 | U8: =+IFERROR(VLOOKUP(C8,cat_imm_new,1,0),0) -> 0 | V8: =+F8 -> 0 | W8: =+IFERROR(IP(ABS($H8),$R8,$T8,$G8,V8+2,ifl),0)*-1 -> 0 | X8: =+IFERROR(FondoAmm(ABS($H8),ABS($I8),$G8,$R8,$T8,V8+2,vite_regolatorie,ifl),0)*-1 -> 0 | Y8: =+IFERROR(CFP_A(ABS($J8),$R8,$T8,$G8,V8+2,ifl),0)*-1 -> 0 | Z8: =+IFERROR(FACFP(ABS($J8),ABS($K8),$G8,$R8,$T8,V8+2,vite_regolatorie,ifl),0)*-1 -> 0 | AB8: =+IF(OR(E8="Res",E8="Env",E8="Non ERC"),E8,"") ->  | AC8: =+IF(OR(D8="Acquedotto",D8="Fognatura",D8="Depurazione",D8="Comune"),D8,"") ->  | AD8: Dismissioni | AE8: =+G8 -> 0 | AF8: =+IF(OR(M8:N8=0,R8=0,T8=0),IF(COUNTA(A:A)>3,TRUE,FALSE),FALSE) -> FALSE

Sheet Ammortamento_Finanziario
B1: IMMOBILIZZAZIONI DEL GESTORE
A2: 4. VITE UTILI PER LO SVILUPPO DELLA RAB | E2: area dati storici MTT - MTI | N2: area dati storici MTI-2 - MTI-2 aggiornamento | Z2: area MTI-3 | AK2: area MTI-3 aggiornamento
D3: Anno del Cespite | E3: ANNI 1967 - 2011 | H3: ANNO 2012 | K3: ANNO 2013 | N3: ANNO 2014 | Q3: ANNO 2015 | T3: ANNO 2016 | W3: ANNO 2017 | Z3: ANNO 2018 | AC3: ANNO 2019 | AK3: ANNO 2020 | AN3: ANNO 2021
E4: =+IF(iAF="SI","SI","NO") -> NO | H4: =+IF(OR(iAF="SI",Dati_Anni_precedenti!E110="SI"),"SI","NO") -> NO | K4: =+IF(OR(iAF="SI",Dati_Anni_precedenti!F110="SI"),"SI","NO") -> NO | N4: =+IF(OR(iAF="SI",Dati_Anni_precedenti!E102="SI"),"SI","NO") -> NO | Q4: =+IF(OR(iAF="SI",Dati_Anni_precedenti!F102="SI"),"SI","NO") -> NO | T4: =+IF(OR(iAF="SI",Dati_Anni_precedenti!E93="SI"),"SI","NO") -> NO | W4: =+IF(OR(iAF="SI",Dati_Anni_precedenti!F93="SI"),"SI","NO") -> NO | Z4: =+IF(OR(iAF="SI",schema="IV",schema="V",schema="VI"),"SI","NO") -> NO | AC4: =+IF(OR(iAF="SI",schema="IV",schema="V",schema="VI"),"SI","NO") -> NO | AK4: =+IF(OR(iAF="SI",schema="IV",schema="V",schema="VI"),"SI","NO") -> NO | AN4: =+IF(OR(iAF="SI",schema="IV",schema="V",schema="VI"),"SI","NO") -> NO
D5: Anno di calcolo | F5: 2022 | G5: 2023 | I5: 2022 | J5: 2023 | L5: 2022 | M5: 2023 | O5: 2022 | P5: 2023 | R5: 2022 | S5: 2023 | U5: 2022 | V5: 2023 | X5: 2022 | Y5: 2023 | AA5: 2022 | AB5: 2023 | AD5: 2022 | AE5: 2023 | AL5: 2022 | AM5: 2023 | AO5: 2023
E6: Periodo di ammortamento: | H6: Periodo di ammortamento: | K6: Periodo di ammortamento: | N6: Periodo di ammortamento: | Q6: Periodo di ammortamento: | T6: Periodo di ammortamento: | W6: Periodo di ammortamento: | Z6: Periodo di ammortamento: | AC6: Periodo di ammortamento: | AK6: Periodo di ammortamento: | AN6: Periodo di ammortamento:
B7: ID | C7: Categoria Cespite | E7: vite utili regolatorie (MTT) | F7: durata ammortamento finanziario | G7: durata ammortamento finanziario | H7: vite utili regolatorie (MTI) | I7: durata ammortamento finanziario | J7: durata ammortamento finanziario | K7: vite utili regolatorie (MTI) | L7: durata ammortamento finanziario | M7: durata ammortamento finanziario | N7: vite utili regolatorie (MTI-2) | O7: durata ammortamento finanziario | P7: durata ammortamento finanziario | Q7: vite utili regolatorie (MTI-2) | R7: durata ammortamento finanziario | S7: durata ammortamento finanziario | T7: vite utili regolatorie (MTI-2) | U7: durata ammortamento finanziario | V7: durata ammortamento finanziario | W7: vite utili regolatorie (MTI-2) | X7: durata ammortamento finanziario | Y7: durata ammortamento finanziario | Z7: vite utili regolatorie (MTI-3) | AA7: durata ammortamento finanziario | AB7: durata ammortamento finanziario | AC7: vite utili regolatorie (MTI-3) | AD7: durata ammortamento finanziario | AE7: durata ammortamento finanziario | AG7: ID | AH7: Categoria Cespite | AI7: Macro-indicatore di riferimento* | AJ7: Categoria di immobilizzazioni | AK7: vite utili regolatorie (MTI-3) | AL7: durata ammortamento finanziario | AM7: durata ammortamento finanziario | AN7: vite utili regolatorie (MTI-3) | AO7: durata ammortamento finanziario
B8: 1 | C8: Terreni | AG8: 1 | AH8: Terreni | AI8: - | AJ8: Comune
B9: 2 | C9: Fabbricati non industriali | E9: 40 | H9: 40 | K9: 40 | N9: 40 | Q9: 40 | T9: 40 | W9: 40 | Z9: 40 | AC9: 40 | AG9: 2 | AH9: Condotte di acquedotto | AI9: M1-M2-MC1 | AJ9: Acquedotto | AK9: 40 | AN9: 40
B10: 3 | C10: Fabbricati industriali | E10: 40 | H10: 40 | K10: 40 | N10: 40 | Q10: 40 | T10: 40 | W10: 40 | Z10: 40 | AC10: 40 | AG10: 3 | AH10: Opere idrauliche fisse di acquedotto | AI10: M1-M2-M3 | AJ10: Acquedotto | AK10: 40 | AN10: 40
B11: 4 | C11: Costruzioni leggere | E11: 40 | H11: 40 | K11: 40 | N11: 40 | Q11: 40 | T11: 40 | W11: 40 | Z11: 40 | AC11: 40 | AG11: 4 | AH11: Serbatoi | AI11: M1-M2 | AJ11: Acquedotto | AK11: 40 | AN11: 40
B12: 5 | C12: Condutture e opere idrauliche fisse | E12: 40 | H12: 40 | K12: 40 | N12: 40 | Q12: 40 | T12: 40 | W12: 40 | Z12: 40 | AC12: 40 | AG12: 5 | AH12: Impianti di sollevamento e pompaggio di acquedotto | AI12: M1-M2-M3 | AJ12: Acquedotto | AK12: 8 | AN12: 8
B13: 6 | C13: Serbatoi | E13: 50 | H13: 50 | K13: 50 | N13: 50 | Q13: 50 | T13: 50 | W13: 50 | Z13: 50 | AC13: 50 | AG13: 6 | AH13: Impianti di potabilizzazione | AI13: M3 | AJ13: Acquedotto | AK13: 20 | AN13: 20
B14: 7 | C14: Impianti di trattamento | E14: 12 | H14: 12 | K14: 12 | N14: 12 | Q14: 12 | T14: 12 | W14: 12 | Z14: 12 | AC14: 12 | AG14: 7 | AH14: Altri trattamenti di potabilizzazione (tra cui dispositivi di disinfezione, stacciatura, filtrazione, addolcimento) | AI14: M3 | AJ14: Acquedotto | AK14: 12 | AN14: 12
B15: 8 | C15: Impianti di sollevamento e pompaggio | E15: 8 | H15: 8 | K15: 8 | N15: 8 | Q15: 8 | T15: 8 | W15: 8 | Z15: 8 | AC15: 8 | AG15: 8 | AH15: Gruppi di misura - altre attrezzature di acquedotto | AI15: M1-MC1-MC2 | AJ15: Acquedotto | AK15: 10 | AN15: 10
B16: 9 | C16: Gruppi di misura meccanici | E16: 15 | H16: 15 | K16: 15 | N16: 15 | Q16: 15 | T16: 15 | W16: 15 | Z16: 15 | AC16: 15 | AG16: 9 | AH16: Sistemi informativi di acquedotto | AI16: M1-M2-M3 | AJ16: Acquedotto | AK16: 5 | AN16: 5
B17: 10 | C17: Gruppi di misura elettronici | E17: 15 | H17: 15 | K17: 15 | N17: 15 | Q17: 15 | T17: 15 | W17: 15 | Z17: 15 | AC17: 15 | AG17: 10 | AH17: Telecontrollo e teletrasmissione di acquedotto | AI17: M1-M2-M3 | AJ17: Acquedotto | AK17: 8 | AN17: 8
B18: 11 | C18: Altri impianti | E18: 20 | H18: 20 | K18: 20 | N18: 20 | Q18: 20 | T18: 20 | W18: 20 | Z18: 20 | AC18: 20 | AG18: 11 | AH18: Condotte fognarie | AI18: M4 | AJ18: Fognatura | AK18: 50 | AN18: 50
B19: 12 | C19: Laboratori | E19: 10 | H19: 10 | K19: 10 | N19: 10 | Q19: 10 | T19: 10 | W19: 10 | Z19: 10 | AC19: 10 | AG19: 12 | AH19: Sifoni e scaricatori di piena e altre opere idrauliche fisse di fognatura | AI19: M4 | AJ19: Fognatura | AK19: 40 | AN19: 40
B20: 13 | C20: Telecontrollo | E20: 8 | H20: 8 | K20: 8 | N20: 8 | Q20: 8 | T20: 8 | W20: 8 | Z20: 8 | AC20: 8 | AG20: 13 | AH20: Vasche di laminazione e vasche di prima pioggia | AI20: M4 | AJ20: Fognatura | AK20: 40 | AN20: 40
B21: 14 | C21: Autoveicoli | E21: 5 | H21: 5 | K21: 5 | N21: 5 | Q21: 5 | T21: 5 | W21: 5 | Z21: 5 | AC21: 5 | AG21: 14 | AH21: Impianti di sollevamento e pompaggio di fognatura | AI21: M4 | AJ21: Fognatura | AK21: 8 | AN21: 8
B22: 15 | C22: Studi, ricerche, brevetti, diritti di utilizzazione | E22: 5 | H22: 5 | K22: 5 | N22: 5 | Q22: 5 | T22: 5 | W22: 5 | Z22: 5 | AC22: 5 | AG22: 15 | AH22: Gruppi di misura - altre attrezzature di fognatura | AI22: M4 | AJ22: Fognatura | AK22: 10 | AN22: 10
B23: 16 | C23: Altre immobilizzazioni materiali e immateriali | E23: 7 | H23: 7 | K23: 7 | N23: 7 | Q23: 7 | T23: 7 | W23: 7 | Z23: 7 | AC23: 7 | AG23: 16 | AH23: Sistemi informativi di fognatura | AI23: M4 | AJ23: Fognatura | AK23: 5 | AN23: 5
B24: 17 | C24: Immobilizzazioni immateriali: avviamenti, capitalizzazione concessione, etc. | AG24: 18 | AH24: Telecontrollo e teletrasmissione di fognatura | AI24: M4 | AJ24: Fognatura | AK24: 8 | AN24: 8
AG25: 19 | AH25: Impianti di sollevamento e pompaggio di depurazione | AI25: M5-M6 | AJ25: Depurazione | AK25: 8 | AN25: 8
AG26: 20 | AH26: Tecniche naturali di depurazione (tra cui fitodepurazione e lagunaggio) | AI26: M6 | AJ26: Depurazione | AK26: 40 | AN26: 40
AG27: 21 | AH27: Impianti di depurazione – trattamenti sino al preliminare, integrativo, primario - fosse settiche e fosse Imhoff | AI27: M6 | AJ27: Depurazione | AK27: 20 | AN27: 20
AG28: 22 | AH28: Impianti di depurazione – trattamenti sino al secondario | AI28: M5-M6 | AJ28: Depurazione | AK28: 20 | AN28: 20
AG29: 23 | AH29: Impianti di depurazione – trattamenti sino al terziario e terziario avanzato | AI29: M5-M6 | AJ29: Depurazione | AK29: 20 | AN29: 20
AG30: 24 | AH30: Impianti di essiccamento fanghi e di valorizzazione dei fanghi (tra cui mono-incenerimento, pirolisi, gassificazione) | AI30: M5 | AJ30: Depurazione | AK30: 20 | AN30: 20
AG31: 25 | AH31: Gruppi di misura - altre attrezzature di depurazione | AI31: M5-M6 | AJ31: Depurazione | AK31: 10 | AN31: 10
AG32: 26 | AH32: Sistemi informativi di depurazione | AI32: M5-M6 | AJ32: Depurazione | AK32: 5 | AN32: 5
AG33: 27 | AH33: Telecontrollo e teletrasmissione di depurazione | AI33: M6 | AJ33: Depurazione | AK33: 8 | AN33: 8
AG34: 28 | AH34: Altri impianti | AI34: M1-M2-M3-M4-M5-M6 | AJ34: Comune | AK34: 20 | AN34: 20
AG35: 29 | AH35: Laboratori e attrezzature | AI35: M3-M6 | AJ35: Comune | AK35: 10 | AN35: 10
AG36: 30 | AH36: Sistemi informativi | AI36: MC1-MC2-M1-M2-M3-M4-M5-M6 | AJ36: Comune | AK36: 5 | AN36: 5
AG37: 31 | AH37: Telecontrollo e teletrasmissione | AI37: M1-M2-M3-M4-M5-M6 | AJ37: Comune | AK37: 8 | AN37: 8
AG38: 32 | AH38: Autoveicoli - automezzi | AI38: MC1-MC2- M1-M2-M3-M4-M5-M6 | AJ38: Comune | AK38: 5 | AN38: 5
AG39: 33 | AH39: Fabbricati non industriali | AI39: MC1-MC2 | AJ39: Comune | AK39: 40 | AN39: 40
AG40: 34 | AH40: Fabbricati industriali | AI40: M1-M2-M3-M4-M5-M6 | AJ40: Comune | AK40: 40 | AN40: 40
AG41: 35 | AH41: Costruzioni leggere | AI41: - | AJ41: Comune | AK41: 20 | AN41: 20
AG42: 36 | AH42: Studi, ricerche, brevetti, diritti di utilizzazione | AI42: M1-M2-M3-M4-M5-M6 | AJ42: Comune | AK42: 5 | AN42: 5
AG43: 37 | AH43: Altre immobilizzazioni materiali e immateriali | AI43: M3-M6-MC1-MC2 | AJ43: Comune | AK43: 7 | AN43: 7

Sheet Info_eventuali_aggregazioni
B1: AGGREGAZIONI
M2: Sono presenti errori
M3: =+OR(R:R) -> FALSE
B4: In caso di compilazione, fornire tutte le informazioni richieste
B5: 1. INFORMAZIONI SUI SOGGETTI AGGREGATI
B9: Nome del soggetto | C9: IDGestore della gestione aggregata | D9: Tipologia di gestione | E9: P. IVA | F9: Codice Istat Comune | G9: gestore esercente il servizio di Acquedotto | H9: gestore esercente il servizio di Fognatura | I9: gestore esercente il servizio di Depurazione | J9: popolazione servita (la maggiore tra i servizi forniti in origine) | K9: grado di completezza dei dati | M9: Nome soggetto | N9: idgestore | O9: popolazione | P9: Regolazione tariffaria applicabile | R9: Sono presenti errori
A10: =+ROW(A10)-9 -> 1 | M10: =+IF(B10="","-",B10) -> - | N10: =+IF(C10="","-",C10) -> - | O10: =+IF(J10="","-",J10) -> - | P10: =+IF(Input_per_calcoli_finali!$K$24="","",Input_per_calcoli_finali!$K$24) ->  | R10: =+AND((COUNTA(B10:E10)+COUNTA(G10:K10))<>9,COUNTA(B10:K10)>0) -> FALSE

Sheet Elenco_Bacini_Tariffari
B1: RICAVI TARIFFARI
G2: Sono presenti errori
G3: =+OR(F:F) -> TRUE
B5: 1 - Bacini Tariffari
B7: N_Riga | C7: Bacino Tariffario | D7: N_Riga bis | F7: Errore denominazione Ambito
B8: =+ROW(A8)-7 -> 1 | D8: =+B8 -> 1 | F8: =+C8="" -> TRUE

Sheet Bacini_Tariffari_Comuni
B1: RICAVI TARIFFARI
H2: Sono presenti errori
H3: =+OR(F:G) -> TRUE
B5: 2 - Comuni per ciascun Bacino Tariffario
A7: N_Riga | B7: Ambito tariffario | C7: Comune | D7: Codice ISTAT | F7: Errore denominazione Ambito | G7: Errore Codice ISTAT
A8: =+ROW(A8)-7 -> 1 | D8: =IFERROR(VLOOKUP(C8,TT_Comuni_ATO!X:Y,2,0),"") ->  | F8: =+IF(ISNA(VLOOKUP(B8,Elenco_Bacini_Tariffari!C:C,1,FALSE)),TRUE,FALSE) -> TRUE | G8: =+IF(AND(B8="",C8="",D8=""),FALSE,IF(COUNTA(B8:D8)<>3,TRUE,FALSE)) -> FALSE

Sheet Struttura_corrispettivi
B1: RICAVI TARIFFARI
AK2: Sono presenti errori | AL2: eorri bacino_tariffario | AM2: errori_tipologia
AK3: =+OR(AL3:AM3) -> TRUE | AL3: =+IFERROR(OR(W:W),FALSE) -> TRUE | AM3: =+IFERROR(OR(X:X),FALSE) -> TRUE
B5: 3 - Articolazione Tariffaria
I8: vigente al 31/12/2015 | K8: vigente al 31/12/2015
B9: Bacino tariffario | C9: Tipologia d'uso | D9: Sottotipologia | E9: 1° scaglione a tariffa agevolata | F9: Servizio idrico | G9: Min di scaglione (m3/2019) | H9: Max di scaglione (m3/2019) | I9: Min di scaglione (m3/2020) | J9: Max di scaglione (m3/2020) | K9: Min di scaglione (m3/2021) | L9: Max di scaglione (m3/2021) | M9: QV (Euro/m3) 2019 | N9: QV (Euro/m3) 2020 | O9: QV (Euro/m3) 2021 | P9: Volumi (m3/anno) 2020 | Q9: Volumi (m3/anno) 2021 | R9: QF (Euro/utenti/anno) 2019 | S9: QF (Euro/utenti/anno) 2020 | T9: QF (Euro/utenti/anno) 2021 | U9: Utenze (numero/anno) 2020 | V9: Utenze (numero/anno) 2021 | W9: Bacino_Tariffario | X9: Tipologia | Y9: Sottotipologia | Z9: Servizio | AA9: tar2019*vscal2020 | AB9: tar2019*vscal2021 | AC9: tar2020*vscal2020 | AD9: tar2021*vscal2021 | AE9: num_scaglione | AF9: n_riga_blocco | AG9: blocco | AH9: agevolata
I10: Min_Scaglione | J10: Max_Scaglione | K10: Min_Scaglione | L10: Max_Scaglione | W10: Ambito_Tariffario
F11: Acquedotto | G11: 0 | I11: 0 | K11: 0 | W11: =+IFERROR(VLOOKUP(B11,Elenco_Bacini_Tariffari!C:C,1,FALSE),TRUE) -> TRUE | X11: =+IFERROR(VLOOKUP(C11,ticsi_tipol,1,FALSE),TRUE) -> TRUE | Y11: =+D11 -> 0 | Z11: Acquedotto | AA11: =+$M11*P11+$R11*U11 -> 0 | AB11: =+$M11*Q11+$R11*V11 -> 0 | AC11: =+N11*P11+S11*U11 -> 0 | AD11: =+O11*Q11+T11*V11 -> 0 | AE11: 1 | AF11: 1 | AG11: =+IF(ROW()=11,1,(ROW()+1)/12) -> 1 | AH11: =+IF(E11="SI",1,IF(E11="NO",0,"")) -> 
G12: =+IF(H11=0,"",H11+1) ->  | I12: =+IF(J11=0,"",J11+1) ->  | K12: =+IF(L11=0,"",L11+1) ->  | W12: =W11 -> TRUE | X12: =+X11 -> TRUE | Y12: =+Y11 -> 0 | Z12: Acquedotto | AA12: =+$M12*P12 -> 0 | AB12: =+$M12*Q12 -> 0 | AC12: =+N12*P12 -> 0 | AD12: =+O12*Q12 -> 0 | AE12: =+IF(OR(K12<>"",ISNUMBER(K12)=TRUE),AE11+1,0) -> 0 | AF12: 2 | AG12: =+AG11 -> 1 | AH12: =+AH11 -> 
G13: =+IF(H12=0,"",H12+1) ->  | K13: =+IF(L12=0,"",L12+1) ->  | W13: TRUE | X13: =+X12 -> TRUE | Y13: =+Y12 -> 0 | Z13: Acquedotto | AA13: =+$M13*P13 -> 0 | AB13: 0 | AC13: 0 | AD13: 0 | AE13: =+IF(OR(K13<>"",ISNUMBER(K13)=TRUE),AE12+1,0) -> 0 | AF13: 3 | AG13: =+AG12 -> 1
W14: TRUE | X14: TRUE | Y14: 0 | Z14: Acquedotto | AA14: 0 | AB14: 0 | AC14: 0 | AD14: 0 | AE14: 0 | AF14: 4 | AG14: 1
W15: TRUE | X15: TRUE | Y15: 0 | Z15: Acquedotto | AA15: 0 | AB15: 0 | AC15: 0 | AD15: 0 | AE15: 0 | AF15: 5 | AG15: 1
W16: TRUE | X16: TRUE | Y16: 0 | Z16: Acquedotto | AA16: 0 | AB16: 0 | AC16: 0 | AD16: 0 | AE16: 0 | AF16: 6 | AG16: 1
W17: TRUE | X17: TRUE | Y17: 0 | Z17: Acquedotto | AA17: 0 | AB17: 0 | AC17: 0 | AD17: 0 | AE17: 0 | AF17: 7 | AG17: 1
W18: TRUE | X18: TRUE | Y18: 0 | Z18: Acquedotto | AA18: 0 | AB18: 0 | AC18: 0 | AD18: 0 | AE18: 0 | AF18: 8 | AG18: 1
W19: TRUE | X19: TRUE | Y19: 0 | Z19: Acquedotto | AA19: 0 | AB19: 0 | AC19: 0 | AD19: 0 | AE19: 0 | AF19: 9 | AG19: 1
W20: TRUE | X20: TRUE | Y20: 0 | Z20: Acquedotto | AA20: 0 | AB20: 0 | AC20: 0 | AD20: 0 | AE20: 0 | AF20: 10 | AG20: 1
F21: Fognatura | W21: TRUE | X21: TRUE | Y21: 0 | Z21: Fognatura | AA21: =+$M21*P21+$R21*U21 -> 0 | AB21: =+$M21*Q21+$R21*V21 -> 0 | AC21: =+N21*P21+S21*U21 -> 0 | AD21: =+O21*Q21+T21*V21 -> 0 | AE21: 1 | AF21: 11 | AG21: 1
F22: Depurazione | W22: TRUE | X22: TRUE | Y22: 0 | Z22: Depurazione | AA22: =+$M22*P22+$R22*U22 -> 0 | AB22: =+$M22*Q22+$R22*V22 -> 0 | AC22: =+N22*P22+S22*U22 -> 0 | AD22: =+O22*Q22+T22*V22 -> 0 | AE22: 1 | AF22: 12 | AG22: 1

Sheet Ricavi_Coll_Dep
B1: RICAVI TARIFFARI
B5: 4 - Totale ricavi da Tariffe Industriali
B9: Ricavi Tariffe Industriali articolazione previgente | G9: Variabili di scala
B10: Notazione dato | C10: Descrizione dato | D10: tarifind2018 * (vscalind2016)T | E10: tarifind2019 * (vscalind2017)T | G10: Descrizione dato | H10: ΣVp (m3) Anno 2020 | I10: ΣVp (m3) Anno 2021
B11: [tarifaind,FOG * (vscala-2ind,FOG)T] | C11: Ricavo fognatura da articolazione previgente per reflui industriali (co. 18.1 TICSI) | G11: Fognatura
B12: [tarifaind,DEP * (vscala-2ind,DEP)T] | C12: Ricavo depurazione da articolazione previgente per reflui industriali (co. 19.1 TICSI) | G12: Depurazione
B13: [tarifaind,FOG * (vscala-2ind,FOG)T + tarifaind,DEP * (vscala-2ind,DEP)T] | C13: Ricavo fognatura e depurazione per reflui industriali da articolazione previgente
B17: Ricavi Tariffe Industriali da formula TICSI
B18: Notazione dato | C18: Descrizione dato | D18: tarifindnew,2018 * (vscalindnew,2016)T | E18: tarifindnew,2019 * (vscalindnew,2017)T | F18: tarifindnew,2020 * (vscalindnew,2020)T | G18: tarifindnew,2019 * (vscalindnew,2020)T | H18: tarifindnew,2019 * (vscalindnew,2021)T | I18: tarifindnew,2021 * (vscalindnew,2021)T
B19: ∑p Tp | C19: Ricavi complessivi da nuova struttura dei corrispettivi per collettamento e depurazione dei reflui industriali
B20: ∑p Tp cap 10% annuo | C20: Ricavi complessivi da nuova struttura dei corrispettivi per collettamento e trattamento dei reflui industriali - post applicazione condizione di sostenibilità su singolo utente p-esimo ex comma 21.2 TICSI
B25: Ricavi Tariffe Industriali per componente RCvol
B26: Notazione dato | C26: Descrizione dato | D26: J2018*tarifind2015 * (vscalind2016)T | E26: J2019*tarifind2015 * (vscalind2017)T | F26: tarifindnew,2020 * (vscalindnew,2020)T | G26: tarifindnew,2021 * (vscalindnew,2021)T
B27: per Rcvol,ind | C27: Ricavi per scostamento tra tariffe effettivamente applicate rispetto al VRG calcolato per l'anno (a-2) | F27: =+F20 -> 0 | G27: =+I20 -> 0
B28: Notazione dato | C28: Descrizione dato | D28: DTG,ind2018 in tariffa 2020 | E28: DTG,ind2019 in tariffa 2021 | F28: DTG,ind2020 in tariffa 2022 | G28: DTG,ind2021 in tariffa 2023
B29: DTG,indATO | C29: Variazione complessiva dei ricavi afferenti all'implementazione della nuova struttura dei corrispettivi per reflui industriali rispetto all'articolazione previgente (co. 21.3 TICSI) | D29: =Dati_Anni_precedenti!E32 -> 0 | E29: =Dati_Anni_precedenti!F32 -> 0

Sheet Ricavi_bacini_tariffari
B1: RICAVI TARIFFARI
B5: 5 - Totale ricavi per ciascun bacino tariffario
B9: N_riga | C9: Ambito_Tariffario | D9: tar2019*vscal2020 | E9: tar2019*vscal2021 | F9: tar2020*vscal2020 | G9: tar2021*vscal2021 | H9: tar2019*vscal2020 | I9: tar2019*vscal2021 | J9: tar2020*vscal2020 | K9: tar2021*vscal2021 | L9: SPIEGAZIONE EVENTUALE DIFFERENZA CON LA STRUTTURA TARIFFARIA | N9: tar2019*vscal2020 | O9: tar2019*vscal2021 | P9: tar2020*vscal2020 | Q9: tar2021*vscal2021
D10: per calcolo J 2022 | E10: per calcolo J 2023 | F10: per calcolo RCvol 2022 | G10: per calcolo RCvol2023 | H10: per calcolo J 2022 | I10: per calcolo J 2023 | J10: per calcolo RCvol 2022 | K10: per calcolo RCvol2023
B11: =+ROW(A11)-10 -> 1 | D11: =+SUMIF(Struttura_corrispettivi!$W:$W,$C11,Struttura_corrispettivi!AA:AA) -> 0 | E11: =+SUMIF(Struttura_corrispettivi!$W:$W,$C11,Struttura_corrispettivi!AB:AB) -> 0 | F11: =+SUMIF(Struttura_corrispettivi!$W:$W,$C11,Struttura_corrispettivi!AC:AC) -> 0 | G11: =+SUMIF(Struttura_corrispettivi!$W:$W,$C11,Struttura_corrispettivi!AD:AD) -> 0 | N11: =+IF(H11=0,D11,H11) -> 0 | O11: =+IF(I11=0,E11,I11) -> 0 | P11: =+IF(J11=0,F11,J11) -> 0 | Q11: =+IF(K11=0,G11,K11) -> 0

Sheet Dati_Bonus (hidden)
B1: DATI BONUS IDRICO
B5: BONUS IDRICO ANNI 2020, 2021
B7: Dati bonus sociale idrico di cui all'articolo 12, comma 3, del TIBSI
B9: a) Volumi fatturati in relazione al servizio di acquedotto (1) | C9: UdM | D9: ANNO 2020 | E9: ANNO 2021
B10: Uso Domestico | C10: m3
B11: - uso domestico residente | C11: m3
B12: di cui residente non disagiato | C12: m3
B13: - uso domestico non residente | C13: m3
B14: - uso condominiale | C14: m3
B15: - altre sotto - tiplogie | C15: m3
B16: Altri usi diversi dal domestico | C16: m3
B17: di cui uso industriale | C17: m3
B18: di cui uso artigianale e commerciale | C18: m3
B19: di cui uso agricolo e zootecnico | C19: m3
B20: di cui uso pubblico non disalimentabile | C20: m3
B21: di cui uso pubblico disalimentabile | C21: m3
B22: di cui altri usi | C22: m3
B23: Totale volumi fatturati in relazione al servizio di acquedotto | C23: m3
B24: b) Ammontare UI3 fatturata agli utenti e versata a CSEA | C24: euro
B25: c) Ammontare bonus sociale idrico erogato(2) | C25: euro
B26: d) Nuclei familiari agevolati | C26: numero
B27: e) Utenti agevolati(3) | C27: numero
B28: f) Tariffa agevolata applicata | C28: euro/mc
B29: (1) Indicare i volumi fatturati all'utenza dal 1 gennaio 2018 al 31 dicembre 2018 e dal 1 gennaio 2019 al 31 dicembre 2019
B30: (2) Riportare il totale della compensazione effettivamente erogata all'utenza dal 1 gennaio 2018 al 31 dicembre 2018 e dal 1 gennaio 2019 al 31 dicembre 2019 (in base al criterio di cassa)
B31: (3) Indicare il numero complessivo delle persone fisiche componenti i nuclei familiari agevolati
B34: Dati bonus idrico integrativo di cui all'articolo 12, comma 4, del TIBSI
C35: UdM | D35: ANNO 2020 | E35: ANNO 2021
B36: a) Ammontare bonus idrico integrativo erogato(4) | C36: euro
B37: b) Nuclei familiari agevolati | C37: numero
B38: c) Utenti agevolati(5) | C38: numero
B39: (4) Utilizzare il criterio di cassa per la quantificazione dell'importo totale erogato nell'anno
B40: (5) Indicare il numero complessivo delle persone fisiche componenti i nuclei familiari agevolati

Sheet Dati_Anni_precedenti
K2: sono presenti errori | L2: controllo compilazione | M2: controllo valori non negativi | V2: controlli di compilazione
B3: n_riga | C3: Sezione | D3: Voce | E3: 2020 | F3: 2021 | G3: 2020-2023 | K3: =+AND(L3=TRUE,M3=TRUE) -> TRUE | L3: =+OR(V:W) -> TRUE | M3: =+OR(Y:Z) -> TRUE
B4: 1 | C4: Delibera Autorità | D4: Delibera
B5: 2 | C5: Delibera Autorità | D5: J deliberato | V5: =+OR(E5<0,E5="") -> TRUE | W5: =+OR(F5<0,F5="") -> TRUE | Y5: =+E5=0 -> TRUE | Z5: =+F5=0 -> TRUE
B6: 3 | C6: Delibera Autorità | D6: J medio
B7: 4 | C7: Delibera Autorità | D7: RC post
B8: 5 | C8: Schema regolatorio | D8: (∑2020-2023 Ipaexp + CFPaexp )
B9: 6 | C9: Schema regolatorio | D9: ψ
B10: 7 | C10: Schema regolatorio | D10: RAB MTI-2
B11: 8 | C11: Schema regolatorio | D11: Schema regolatorio
B12: 9 | C12: Totale investimenti pianificati | D12: Iptexp + CFPexp
B13: 10 | C13: Totale investimenti pianificati | D13: CFPexp
B14: 11 | C14: Totale investimenti pianificati | D14: Iptexp
B15: 12 | C15: Moltiplicatore | D15: VRG approvato | V15: =+OR(E15<0,E15="") -> TRUE | W15: =+OR(F15<0,F15="") -> TRUE | Y15: =+E15=0 -> TRUE | Z15: =+F15=0 -> TRUE
B16: 13 | C16: Moltiplicatore | D16: ∑tarif2019 * vscala-2 | V16: TRUE | W16: TRUE | Y16: =+E16=0 -> TRUE | Z16: =+F16=0 -> TRUE
B17: 14 | C17: Moltiplicatore | D17: di cui: Ricavi ws | V17: TRUE | W17: TRUE
B18: 15 | C18: Moltiplicatore | D18: di cui: tarif*vscal | V18: TRUE | W18: TRUE
B19: 16 | C19: Moltiplicatore | D19: di cui: tarifindnew,2019vscalindnew,a-2 | V19: TRUE | W19: TRUE
B20: 17 | C20: Moltiplicatore | D20: Rba-2 | V20: TRUE | W20: TRUE
B21: 18 | C21: Moltiplicatore | D21: Cba-2 | V21: TRUE | W21: TRUE
B22: 19 | C22: Costi delle immobilizzazioni | D22: AMM | V22: TRUE | W22: TRUE
B23: 20 | C23: Costi delle immobilizzazioni | D23: OF | V23: TRUE | W23: TRUE
B24: 21 | C24: Costi delle immobilizzazioni | D24: OFisc | V24: TRUE | W24: TRUE
B25: 22 | C25: Costi delle immobilizzazioni | D25: ΔCUITcapex | V25: TRUE | W25: TRUE
B26: 23 | C26: Immobilizzazioni | D26: IML | V26: TRUE | W26: TRUE
B27: 24 | C27: Immobilizzazioni | D27: IMN | V27: TRUE | W27: TRUE
B28: 25 | C28: Immobilizzazioni | D28: FA | V28: TRUE | W28: TRUE
B29: 26 | C29: Fondo Nuovi Investimenti | D29: AMMfoni | V29: TRUE | W29: TRUE
B30: 27 | C30: Fondo Nuovi Investimenti | D30: ΔCUITfoni | V30: TRUE | W30: TRUE
B31: 28 | C31: Fondo Nuovi Investimenti | D31: FNIfoni | V31: TRUE | W31: TRUE
B32: 29 | C32: Fondo Nuovi Investimenti | D32: DTATOG,ind
B33: 30 | C33: Fondo Nuovi Investimenti | D33: DTG,tot
B34: 31 | C34: Costi Operativi | D34: Opnew,a | V34: =+OR(E34<0,E34="") -> TRUE | W34: TRUE
B35: 32 | C35: Costi Operativi | D35: OpexQT | V35: TRUE | W35: TRUE
B36: 33 | C36: Costi Operativi | D36: Opexqc | V36: TRUE | W36: TRUE
B37: 34 | C37: Costi Operativi | D37: Opsocial | V37: TRUE | W37: TRUE
B38: 35 | C38: Costi Operativi | D38: Opmis | V38: TRUE | W38: TRUE
B39: 36 | C39: Costi Operativi | D39: OpCOVID | V39: =+E39="" -> TRUE
B40: 37 | C40: Costi Operativi | D40: COee | V40: =+OR(E40<0,E40="") -> TRUE | W40: TRUE
B41: 38 | C41: Costi Operativi | D41: Cows | V41: TRUE | W41: TRUE
B42: 39 | C42: Costi Operativi | D42: CoΔfanghi | V42: TRUE | W42: TRUE
B43: 40 | C43: Costi Operativi | D43: MT | V43: TRUE | W43: TRUE
B44: 41 | C44: Costi Operativi | D44: AC | V44: TRUE | W44: TRUE
B45: 42 | C45: Costi Operativi | D45: COato | V45: TRUE | W45: TRUE
B46: 43 | C46: Costi Operativi | D46: COARERA | V46: TRUE | W46: TRUE
B47: 44 | C47: Costi Operativi | D47: COmor | V47: TRUE | W47: TRUE
B48: 45 | C48: Costi Operativi | D48: COres | V48: =+E48="" -> TRUE | W48: =+F48="" -> TRUE
B49: 46 | C49: Costi Operativi | D49: Contributi c/e | V49: =+OR(E49<0,E49="") -> TRUE | W49: =+OR(F49<0,F49="") -> TRUE
B50: 47 | C50: Costi Operativi | D50: Opexend | V50: =+OR(E84<0,E84="") -> TRUE
B51: 48 | C51: Costi ambientali e della risorsa | D51: ENVcapex
B52: 49 | C52: Costi ambientali e della risorsa | D52: REScapex
B53: 50 | C53: Costi ambientali e della risorsa | D53: ERCend | V53: =+OR(E53<0,E53="") -> TRUE | W53: TRUE
B54: 51 | C54: Costi ambientali e della risorsa | D54: ERCal | V54: TRUE | W54: TRUE
B55: 52 | C55: Costi ambientali e della risorsa | D55: ERCtel | V55: TRUE | W55: TRUE
B56: 53 | C56: Sezione Conguagli (include inflazione) | D56: RcVOL
B57: 54 | C57: Sezione Conguagli (include inflazione) | D57: RcEE
B58: 55 | C58: Sezione Conguagli (include inflazione) | D58: RcWS
B59: 56 | C59: Sezione Conguagli (include inflazione) | D59: RcERCa
B60: 57 | C60: Sezione Conguagli (include inflazione) | D60: RcaAttiv b
B61: 58 | C61: Sezione Conguagli (include inflazione) | D61: Rcares
B62: 59 | C62: Sezione Conguagli (include inflazione) | D62: RcaARERA
B63: 60 | C63: Sezione Conguagli (include inflazione) | D63: Costo forniture all’ingrosso transfrontaliere
B64: 61 | C64: Sezione Conguagli (include inflazione) | D64: RcIP (valori a moneta a-2, include eventuale FoNInoninv)
B65: 62 | C65: Sezione Conguagli (include inflazione) | D65: Costi per variazioni sistemiche / eventi eccezionali
B66: 63 | C66: Sezione Conguagli (include inflazione) | D66: Rimb335a
B67: 64 | C67: Sezione Conguagli (include inflazione) | D67: Rcaappr
B68: 65 | C68: Sezione Conguagli (include inflazione) | D68: DOpexQC | V68: =+E68>0 -> FALSE | W68: =+F68>0 -> FALSE
B69: 66 | C69: Sezione Conguagli (include inflazione) | D69: DOpexQT
B70: 67 | C70: Sezione Conguagli (include inflazione) | D70: DOpsocial
B71: 68 | C71: Sezione Conguagli (include inflazione) | D71: DOpmis
B72: 69 | C72: Sezione Conguagli (include inflazione) | D72: recupero volumi 2017
B73: 70 | C73: Sezione Conguagli (include inflazione) | D73: recupero energia elettrica 2017
B74: 71 | C74: Sezione Conguagli (include inflazione) | D74: Rinvio di quota parte degli oneri ammissibili a riconoscimento tariffario nel 2020
B75: 72 | C75: Sezione Conguagli (include inflazione) | D75: Rcappr2020,COVID
B76: 73 | C76: Sezione Conguagli (include inflazione) | D76: Rctot
B77: 74 | C77: Ammortamento finanziario MTI | D77: AF MTI-3
B78: 75 | C78: Costi Operativi | D78: COdil
B79: 76 | C79: Altri dati | D79: FoNInoninv
E83: 2018 | F83: 2019 | G83: 2016-2019
C84: Sezione altri dati | D84: Opexend (inclusivo di ERC) | Y84: =+E84=0 -> TRUE
C85: Sezione altri dati | D85: OpexaQC lett. a) co. 18.9 MTI-3
C86: Sezione altri dati | D86: OpexQT (al netto della componente ERCQT)
C87: Sezione altri dati | D87: ERCQT
C88: Sezione altri dati | D88: KWh
C89: Sezione altri dati | D89: COrealiEE (altre gruppo - SII)
C90: Sezione altri dati | D90: COrealiEE (altre imprese - SII)
C91: Sezione altri dati | D91: COrealiEE (altre gruppo - AAI)
C92: Sezione altri dati | D92: COrealiEE (altre imprese - AAI)
C93: Ammortamento finanziario | D93: AF MTI-2 agg.
C94: Sezione dati qualità tecnica | D94: WLTOT
C95: Sezione dati qualità tecnica | D95: Lp
C96: Sezione dati qualità tecnica | D96: Ld
C97: Conguagli rinviati MTI-2 aggiornamento (2016-2019) | D97: RCappr MTI-2 agg.
E99: 2016 | F99: 2017 | G99: anno base
C100: Sezione altri dati | D100: KWh
C101: Sezione altri dati | D101: CO𝑓𝑎𝑛𝑔ℎ𝑖𝑒𝑓𝑓𝑒𝑡𝑡𝑖𝑣𝑜
C102: Ammortamento finanziario | D102: AF MTI-2
C103: Sezione dati qualità tecnica | D103: WLTOT (compilato per anno base)
C104: Sezione dati qualità tecnica | D104: Lp (compilato per anno base)
C105: Sezione dati qualità tecnica | D105: Ld (compilato per anno base)
E109: 2014 | F109: 2015
C110: Ammortamento finanziario | D110: AF MTI
E114: 2013
C115: Sezione altri dati | D115: PopATO

Sheet Vite_utili_precedenti
D3: Anno del Cespite | E3: ANNI 1967 - 2011 | P3: ANNO 2012 | Y3: ANNO 2013 | AG3: ANNO 2014 | AN3: ANNO 2015 | AT3: ANNO 2016 | AY3: ANNO 2017 | BC3: ANNO 2018 | BF3: ANNO 2019
E4: =+IF(iAF="SI","SI","NO") -> NO | P4: =+IF(OR(iAF="SI",Dati_Anni_precedenti!E110="SI"),"SI","NO") -> NO | Y4: =+IF(OR(iAF="SI",Dati_Anni_precedenti!F110="SI"),"SI","NO") -> NO | AG4: =+IF(OR(iAF="SI",Dati_Anni_precedenti!E102="SI"),"SI","NO") -> NO | AN4: =+IF(OR(iAF="SI",Dati_Anni_precedenti!F102="SI"),"SI","NO") -> NO | AT4: =+IF(OR(iAF="SI",Dati_Anni_precedenti!E93="SI"),"SI","NO") -> NO | AY4: =+IF(OR(iAF="SI",Dati_Anni_precedenti!F93="SI"),"SI","NO") -> NO | BC4: =+IF(OR(iAF="SI",Dati_Anni_precedenti!G77="SI"),"SI","NO") -> NO | BF4: =+IF(OR(iAF="SI",Dati_Anni_precedenti!G77="SI"),"SI","NO") -> NO
D5: Anno di calcolo | F5: 2012 | G5: 2013 | H5: 2014 | I5: 2015 | J5: 2016 | K5: 2017 | L5: 2018 | M5: 2019 | N5: 2020 | O5: 2021 | Q5: 2014 | R5: 2015 | S5: 2016 | T5: 2017 | U5: 2018 | V5: 2019 | W5: 2020 | X5: 2021 | Z5: 2015 | AA5: 2016 | AB5: 2017 | AC5: 2018 | AD5: 2019 | AE5: 2020 | AF5: 2021 | AH5: 2016 | AI5: 2017 | AJ5: 2018 | AK5: 2019 | AL5: 2020 | AM5: 2021 | AO5: 2017 | AP5: 2018 | AQ5: 2019 | AR5: 2020 | AS5: 2021 | AU5: 2018 | AV5: 2019 | AW5: 2020 | AX5: 2021 | AZ5: 2019 | BA5: 2020 | BB5: 2021 | BD5: 2020 | BE5: 2021 | BG5: 2021
E6: Periodo di ammortamento: | P6: Periodo di ammortamento: | Y6: Periodo di ammortamento: | AG6: Periodo di ammortamento: | AN6: Periodo di ammortamento: | AT6: Periodo di ammortamento: | AY6: Periodo di ammortamento:
B7: ID | C7: Categoria Cespite | E7: vite utili regolatorie (MTT) | F7: durata ammortamento finanziario | G7: durata ammortamento finanziario | H7: durata ammortamento finanziario | I7: durata ammortamento finanziario | J7: durata ammortamento finanziario | K7: durata ammortamento finanziario | L7: durata ammortamento finanziario | M7: durata ammortamento finanziario | N7: durata ammortamento finanziario | O7: durata ammortamento finanziario | P7: vite utili regolatorie (MTI) | Q7: durata ammortamento finanziario | R7: durata ammortamento finanziario | S7: durata ammortamento finanziario | T7: durata ammortamento finanziario | U7: durata ammortamento finanziario | V7: durata ammortamento finanziario | W7: durata ammortamento finanziario | X7: durata ammortamento finanziario | Y7: vite utili regolatorie (MTI) | Z7: durata ammortamento finanziario | AA7: durata ammortamento finanziario | AB7: durata ammortamento finanziario | AC7: durata ammortamento finanziario | AD7: durata ammortamento finanziario | AE7: durata ammortamento finanziario | AF7: durata ammortamento finanziario | AG7: vite utili regolatorie (MTI-2) | AH7: durata ammortamento finanziario | AI7: durata ammortamento finanziario | AJ7: durata ammortamento finanziario | AK7: durata ammortamento finanziario | AL7: durata ammortamento finanziario | AM7: durata ammortamento finanziario | AN7: vite utili regolatorie (MTI-2) | AO7: durata ammortamento finanziario | AP7: durata ammortamento finanziario | AQ7: durata ammortamento finanziario | AR7: durata ammortamento finanziario | AS7: durata ammortamento finanziario | AT7: vite utili regolatorie (MTI-2) | AU7: durata ammortamento finanziario | AV7: durata ammortamento finanziario | AW7: durata ammortamento finanziario | AX7: durata ammortamento finanziario | AY7: vite utili regolatorie (MTI-2) | AZ7: durata ammortamento finanziario | BA7: durata ammortamento finanziario | BB7: durata ammortamento finanziario | BC7: vite utili regolatorie (MTI-2) | BD7: durata ammortamento finanziario | BE7: durata ammortamento finanziario | BF7: vite utili regolatorie (MTI-2) | BG7: durata ammortamento finanziario
B8: 1 | C8: Terreni
B9: 2 | C9: Fabbricati non industriali | E9: 40 | P9: 40 | Y9: 40 | AG9: 40 | AN9: 40 | AT9: 40 | AY9: 40
B10: 3 | C10: Fabbricati industriali | E10: 40 | P10: 40 | Y10: 40 | AG10: 40 | AN10: 40 | AT10: 40 | AY10: 40
B11: 4 | C11: Costruzioni leggere | E11: 40 | P11: 40 | Y11: 40 | AG11: 40 | AN11: 40 | AT11: 40 | AY11: 40
B12: 5 | C12: Condutture e opere idrauliche fisse | E12: 40 | P12: 40 | Y12: 40 | AG12: 40 | AN12: 40 | AT12: 40 | AY12: 40
B13: 6 | C13: Serbatoi | E13: 50 | P13: 50 | Y13: 50 | AG13: 50 | AN13: 50 | AT13: 50 | AY13: 50
B14: 7 | C14: Impianti di trattamento | E14: 12 | P14: 12 | Y14: 12 | AG14: 12 | AN14: 12 | AT14: 12 | AY14: 12
B15: 8 | C15: Impianti di sollevamento e pompaggio | E15: 8 | P15: 8 | Y15: 8 | AG15: 8 | AN15: 8 | AT15: 8 | AY15: 8
B16: 9 | C16: Gruppi di misura meccanici | E16: 15 | P16: 15 | Y16: 15 | AG16: 15 | AN16: 15 | AT16: 15 | AY16: 15
B17: 10 | C17: Gruppi di misura elettronici | E17: 15 | P17: 15 | Y17: 15 | AG17: 15 | AN17: 15 | AT17: 15 | AY17: 15
B18: 11 | C18: Altri impianti | E18: 20 | P18: 20 | Y18: 20 | AG18: 20 | AN18: 20 | AT18: 20 | AY18: 20
B19: 12 | C19: Laboratori | E19: 10 | P19: 10 | Y19: 10 | AG19: 10 | AN19: 10 | AT19: 10 | AY19: 10
B20: 13 | C20: Telecontrollo | E20: 8 | P20: 8 | Y20: 8 | AG20: 8 | AN20: 8 | AT20: 8 | AY20: 8
B21: 14 | C21: Autoveicoli | E21: 5 | P21: 5 | Y21: 5 | AG21: 5 | AN21: 5 | AT21: 5 | AY21: 5
B22: 15 | C22: Studi, ricerche, brevetti, diritti di utilizzazione | E22: 5 | P22: 5 | Y22: 5 | AG22: 5 | AN22: 5 | AT22: 5 | AY22: 5
B23: 16 | C23: Altre immobilizzazioni materiali e immateriali | E23: 7 | P23: 7 | Y23: 7 | AG23: 7 | AN23: 7 | AT23: 7 | AY23: 7
B24: 17 | C24: Immobilizzazioni immateriali: avviamenti, capitalizzazione concessione, etc.

Sheet IMN_cespiti_ante2019
L1: ATTENZIONE: verificare la correttezza dei dati presenti nell'eventuale file precompilato formito
H2: Immobilizzazioni del gestore (solo immobilizzazioni al 2018 incluso) | S2: Sono presenti errori | T2: errore id categoria cespite | U2: errore id immobilizzazione | V2: errore id anno cespite | W2: errore valori non negativi
S3: =+OR(T3:W3) -> TRUE | T3: =+OR(INDEX(IMN_ante2019,0,20)) -> TRUE | U3: =+OR(INDEX(IMN_ante2019,0,21)) -> TRUE | V3: =+OR(INDEX(IMN_ante2019,0,22)) -> TRUE | W3: =+OR(INDEX(IMN_ante2019,0,23)) -> FALSE
A4: IMN gestore ante 2019
A5: IDATO | B5: IDGestore | C5: Gestore_Proprietario | D5: N_prop | E5: Fonte | F5: ID_Categoria_Cespite | G5: CategoriaCespite | H5: ID_Immobilizzazione | I5: IMMOBILIZZAZIONE | J5: AnnoCespite | K5: IP | L5: FAIP | M5: CFP | N5: FACP | O5: - | P5: Tipologia di costo sotteso ("Env", "Res", "Non ERC") | Q5: Attività | R5: foglio di origine | S5: n_riga | T5: errore id categoria cespite | U5: errore id immobilizzazione | V5: errore id anno cespite | W5: errore valori non negativi
A6: =+idato -> 0 | B6: =+idgestore -> 0 | C6: Gestore | D6: 0 | E6: IP | F6: =+IFERROR(VLOOKUP(G6,id_cat_ces,2,FALSE),"") ->  | H6: =+IFERROR(VLOOKUP(I6,id_cat_imm,2,FALSE),"") ->  | R6: =+"RAB_cespiti_ante2019" -> RAB_cespiti_ante2019 | S6: =+ROW(A6)-5 -> 1 | T6: =++IF(S6=0,FALSE,IFERROR(VLOOKUP(G6,id_cat_ces,2,FALSE),FALSE)<>F6) -> TRUE | U6: =++IF(S6=0,FALSE,IFERROR(VLOOKUP(I6,id_cat_imm,2,FALSE),FALSE)<>H6) -> TRUE | V6: =+IF(S6=0,FALSE,J6<1967) -> TRUE | W6: =+IF(S6=0,FALSE,OR(K6<0,L6<0,M6<0,N6<0)) -> FALSE

Sheet Conferma_investimenti_2019
R1: sono presenti errori | U1: errore id categoria cespite | W1: errore id immobilizzazione | Z1: errore valori non negativi | AC1: check PdI
R2: =+OR(U2,W2,Z2,AC2) -> FALSE | U2: =+OR(VALUE(INDEX(Investimenti2019,0,21)))=0 -> FALSE | W2: =+OR(INDEX(Investimenti2019,0,23))=0 -> FALSE | Z2: =+OR(VALUE(INDEX(Investimenti2019,0,26)))<0 -> FALSE | AC2: =+SUM(Z:Z)-'PdI-riepilogo'!F4<>0 -> FALSE
D3: Investimenti 2019 Le colonne da D a M devono mostrare gli investimenti relativi al 2019 come da predisposizione tariffaria MTI-3. Indicare nelle colonne N e O eventuali variazioni motivandole in relazione di accompagnamento, altrimenti ricopiare i valori dalle adiacenti colonne. La mancata compilazione delle colonne N e O escluderà tali cespiti dal calcolo. | N3: spazio per la compilazione manuale nessuna rivalutazione monetaria va effettuata
N4: Investimenti EFFETTIVI del 2019 (non lasciare campi vuoti) | AH4: zona per il calcolo RcIP2021
A6: N_riga | B6: IDATO | C6: IDGESTORE | D6: ID_Categoria_Cespite | E6: CategoriaCespite | F6: ID_Immobilizzazione | G6: IMMOBILIZZAZIONE | H6: Tipologia di costo sotteso ("Env", "Res", "Non ERC") | I6: Attività | J6: AnnoCespite | K6: IP (come da approvazione tariffaria) | L6: CFP (come da approvazione tariffaria) | M6: di cui, CFP da FoNI (come da approvazione tariffaria) | N6: IP | O6: CFP | P6: IDATO | Q6: Idgestore | R6: Gestore_Proprietario | S6: N_prop | T6: Fonte | U6: ID_Categoria_Cespite | V6: CategoriaCespite | W6: ID_Immobilizzazione | X6: IMMOBILIZZAZIONE | Y6: AnnoCespite | Z6: IP | AB6: CFP | AD6: - | AE6: ERC | AF6: Attività | AG6: foglio di origine | AH6: ΔIP | AI6: ΔFA | AJ6: ΔAMM | AK6: ΔCFP | AL6: ΔFACFP | AM6: ΔAMM CFP | AO6: ΔIMN2019 | AP6: ΔCINcfp2019 | AQ6: 1 - CINfp / CIN | AR6: Km + α (ex del. 580/2019) | AS6: Rai rate (ex del. 580/2019) | AU6: ΔAMM - ΔAMM CFP | AV6: ΔOF | AW6: ΔOFisc | AY6: DRCIP
A7: =+ROW(A7)-ROW(A6) -> 1 | B7: =+idato -> 0 | C7: =+idgestore -> 0 | D7: =+IFERROR(VLOOKUP(E7,id_cat_ces,2,FALSE),0) -> 0 | F7: =+IFERROR(VLOOKUP(G7,id_cat_imm,2,FALSE),0) -> 0 | J7: 2019 | P7: =idato -> 0 | Q7: =idgestore -> 0 | R7: Gestore | S7: 0 | T7: IP | U7: =IFERROR(VLOOKUP(V7,TT_Tabelle_Riferimento!$G$32:$H$48,2,0),0) -> 0 | V7: =IFERROR(VLOOKUP(E7,TT_Tabelle_Riferimento!$G$32:$H$48,1,0),0) -> 0 | W7: =+IFERROR(VLOOKUP(X7,TT_Tabelle_Riferimento!$G$2:$H$6,2,0),0) -> 0 | X7: =+IFERROR(VLOOKUP(G7,TT_Tabelle_Riferimento!$G$2:$H$6,1,0),0) -> 0 | Y7: =J7 -> 2019 | Z7: =N7 -> 0 | AB7: =IFERROR(O7+(SUM(M:M)/SUM(Z:Z))*Z7,0) -> 0 | AE7: =+H7 -> 0 | AF7: =+I7 -> 0 | AG7: Conferma_investimenti_2019 | AH7: =+IFERROR(IP(Z7,U7,W7,2019,2021,ifl)-IP(K7,U7,W7,2019,2021,ifl),0) -> 0 | AI7: =+IFERROR(FondoAmm(Z7,0,2019,U7,W7,2021,vite_regolatorie,ifl)-FondoAmm(K7,0,2019,U7,W7,2021,vite_regolatorie,ifl),0) -> 0 | AJ7: =+IFERROR(QA(Z7,0,2019,U7,W7,2021,vite_regolatorie,ifl)-QA(K7,0,2019,U7,W7,2021,vite_regolatorie,ifl),0) -> 0 | AK7: =+IFERROR(CFP_A(AB7,U7,W7,2019,2021,ifl)-CFP_A(L7,U7,W7,2019,2021,ifl),0) -> 0 | AL7: =+IFERROR(FACFP(AB7,0,2019,U7,W7,2021,vite_regolatorie,ifl)-FACFP(L7,0,2019,U7,W7,2021,vite_regolatorie,ifl),0) -> 0 | AM7: =+IFERROR(QA_CFP(AB7,0,2019,W7,U7,2021,vite_regolatorie,ifl)-QA_CFP(L7,0,2019,W7,U7,2021,vite_regolatorie,ifl),0) -> 0 | AO7: =+IFERROR(IP(Z7,U7,W7,2019,2021,ifl)-FondoAmm(Z7,0,2019,U7,W7,2021,vite_regolatorie,ifl)-(IP(K7,U7,W7,2019,2021,ifl)-FondoAmm(K7,0,2019,U7,W7,2021,vite_regolatorie,ifl)),0) -> 0 | AP7: =+IFERROR(CFP_A(AB7,U7,W7,2019,2021,ifl)-FACFP(AB7,0,2019,U7,W7,2021,vite_regolatorie,ifl)-(CFP_A(L7,U7,W7,2019,2021,ifl)-FACFP(L7,0,2019,U7,W7,2021,vite_regolatorie,ifl)),0) -> 0 | AQ7: =IFERROR(1-AP7/AO7,0) -> 0 | AR7: =+Capex!$C$59+Capex!$C$60 -> 0.037326 | AS7: =+Capex!$C$72 -> 0.06264074897 | AU7: =+AJ7-AM7 -> 0 | AV7: =+AR7*AQ7*AO7 -> 0 | AW7: =+AS7*0.275*AQ7*AO7 -> 0 | AY7: =+AU7+AV7+AW7 -> 0

Sheet IMN_Proprietari
C1: IMNProprietari - Sviluppo dei costi di capitale associati alle infrastrutture di terzi | H1: ATTENZIONE: verificare la correttezza dei dati presenti nell'eventuale file precompilato fornito
A2: scarico dati
A3: IMN P.
A5: idato associato al gestore | B5: idarera associato al gestore | C5: Tipologia di Proprietario | D5: Key_Prop | E5: ID_Categoria_Cespite | F5: CategoriaCespite | G5: ID_Immobilizzazione | H5: IMMOBILIZZAZIONE | I5: AnnoCespite | J5: IP | K5: FAIP | L5: CFP | M5: FACP | N5: New_Key_prop | O5: dati da non valorizzare | P5: VU 2020 | Q5: IP 2020 | R5: FAIP 2020 | S5: IP netto 2020 | T5: AMM 2020 | U5: CFP 2020 | V5: FA CFP 2020 | W5: CFP netto 2020 | X5: AMM CFP 2020 | Y5: Nriga | Z5: VU 2021 | AA5: IP 2021 | AB5: FAIP 2021 | AC5: IP netto 2021 | AD5: AMM 2021 | AE5: CFP 2021 | AF5: FA CFP 2021 | AG5: CFP netto 2021 | AH5: AMM CFP 2021 | AI5: aaa | AJ5: VU 2022 | AK5: IP 2022 | AL5: FAIP 2022 | AM5: IP netto 2022 | AN5: AMM 2022 | AO5: CFP 2022 | AP5: FA CFP 2022 | AQ5: CFP netto 2022 | AR5: AMM CFP 2022 | AS5: aaaa | AT5: VU 2023 | AU5: IP 2023 | AV5: FAIP 2023 | AW5: IP netto 2023 | AX5: AMM 2023 | AY5: CFP 2023 | AZ5: FA CFP 2023 | BA5: CFP netto 2023 | BB5: AMM CFP 2023
A6: =+idato -> 0 | B6: =+idgestore -> 0 | E6: =+IFERROR(VLOOKUP(F6,id_cat_ces,2,FALSE),"") ->  | G6: =+IFERROR(VLOOKUP(H6,id_cat_imm,2,FALSE),"") ->  | N6: =+IF(D6="","",IFERROR(VLOOKUP(D6,Soggetti_proprietari!K:L,2,0),"")) ->  | O6: =IF(ISNA(VLOOKUP(N6,Soggetti_proprietari!N:N,1,FALSE)),IF(OR(I6=1961,I6=1962),TRUE,FALSE),TRUE) -> FALSE | P6: =+IF(OR($O6,$E6=""),0,VLOOKUP($E6,ViteRegolatorieProp,VALUE(RIGHT(P$5,4))-2011)) -> 0 | Q6: =IF(OR($O6,$E6=""),0,IFERROR(IP_PROP($J6,R6,T6,$E6,$G6,$I6,$P6,VALUE(RIGHT(Q$5,4)),ifl),0)) -> 0 | R6: =IF(OR($O6,$E6=""),0,IFERROR(FondoAmm_prop($J6,$K6,$I6,$E6,$G6,VALUE(RIGHT(R$5,4)),ViteRegolatorieProp,ifl),0)) -> 0 | S6: =+Q6-R6 -> 0 | T6: =IF(OR($O6,$E6=""),0,IFERROR(QA_PROP($J6,$K6,$I6,$E6,$G6,VALUE(RIGHT(T$5,4)),ViteRegolatorieProp,ifl),0)) -> 0 | U6: =IF(OR($O6,$E6=""),0,IFERROR(IP_PROP($L6,V6,X6,$E6,$G6,$I6,$P6,VALUE(RIGHT(U$5,4)),ifl),0)) -> 0 | V6: =IF(OR($O6,$E6=""),0,IFERROR(FondoAmm_prop($L6,$M6,$I6,$E6,$G6,VALUE(RIGHT(V$5,4)),ViteRegolatorieProp,ifl),0)) -> 0 | W6: =+U6-V6 -> 0 | X6: =IF(OR($O6,$E6=""),0,IFERROR(QA_PROP($L6,$M6,$I6,$E6,$G6,VALUE(RIGHT(X$5,4)),ViteRegolatorieProp,ifl),0)) -> 0 | Y6: =+ROW(A6)-5 -> 1 | Z6: =+IF(OR($O6,$E6=""),0,VLOOKUP($E6,ViteRegolatorieProp,VALUE(RIGHT(Z$5,4))-2011)) -> 0 | AA6: =IF(OR($O6,$E6=""),0,IFERROR(IP_PROP($J6,AB6,AD6,$E6,$G6,$I6,$P6,VALUE(RIGHT(AA$5,4)),ifl),0)) -> 0 | AB6: =IF(OR($O6,$E6=""),0,IFERROR(FondoAmm_prop($J6,$K6,$I6,$E6,$G6,VALUE(RIGHT(AB$5,4)),ViteRegolatorieProp,ifl),0)) -> 0 | AC6: =+AA6-AB6 -> 0 | AD6: =IF(OR($O6,$E6=""),0,IFERROR(QA_PROP($J6,$K6,$I6,$E6,$G6,VALUE(RIGHT(AD$5,4)),ViteRegolatorieProp,ifl),0)) -> 0 | AE6: =IF(OR($O6,$E6=""),0,IFERROR(IP_PROP($L6,AF6,AH6,$E6,$G6,$I6,$P6,VALUE(RIGHT(AE$5,4)),ifl),0)) -> 0 | AF6: =IF(OR($O6,$E6=""),0,IFERROR(FondoAmm_prop($L6,$M6,$I6,$E6,$G6,VALUE(RIGHT(AF$5,4)),ViteRegolatorieProp,ifl),0)) -> 0 | AG6: =+AE6-AF6 -> 0 | AH6: =IF(OR($O6,$E6=""),0,IFERROR(QA_PROP($L6,$M6,$I6,$E6,$G6,VALUE(RIGHT(AH$5,4)),ViteRegolatorieProp,ifl),0)) -> 0 | AJ6: =+IF(OR($O6,$E6=""),0,VLOOKUP($E6,ViteRegolatorieProp,VALUE(RIGHT(AJ$5,4))-2011)) -> 0 | AK6: =IF(OR($O6,$E6=""),0,IFERROR(IP_PROP($J6,AL6,AN6,$E6,$G6,$I6,$P6,VALUE(RIGHT(AK$5,4)),ifl),0)) -> 0 | AL6: =IF(OR($O6,$E6=""),0,IFERROR(FondoAmm_prop($J6,$K6,$I6,$E6,$G6,VALUE(RIGHT(AL$5,4)),ViteRegolatorieProp,ifl),0)) -> 0 | AM6: =+AK6-AL6 -> 0 | AN6: =IF(OR($O6,$E6=""),0,IFERROR(QA_PROP($J6,$K6,$I6,$E6,$G6,VALUE(RIGHT(AN$5,4)),ViteRegolatorieProp,ifl),0)) -> 0 | AO6: =IF(OR($O6,$E6=""),0,IFERROR(IP_PROP($L6,AP6,AR6,$E6,$G6,$I6,$P6,VALUE(RIGHT(AO$5,4)),ifl),0)) -> 0 | AP6: =IF(OR($O6,$E6=""),0,IFERROR(FondoAmm_prop($L6,$M6,$I6,$E6,$G6,VALUE(RIGHT(AP$5,4)),ViteRegolatorieProp,ifl),0)) -> 0 | AQ6: =+AO6-AP6 -> 0 | AR6: =IF(OR($O6,$E6=""),0,IFERROR(QA_PROP($L6,$M6,$I6,$E6,$G6,VALUE(RIGHT(AR$5,4)),ViteRegolatorieProp,ifl),0)) -> 0 | AT6: =+IF(OR($O6,$E6=""),0,VLOOKUP($E6,ViteRegolatorieProp,VALUE(RIGHT(AT$5,4))-2011)) -> 0 | AU6: =IF(OR($O6,$E6=""),0,IFERROR(IP_PROP($J6,AV6,AX6,$E6,$G6,$I6,$P6,VALUE(RIGHT(AU$5,4)),ifl),0)) -> 0 | AV6: =IF(OR($O6,$E6=""),0,IFERROR(FondoAmm_prop($J6,$K6,$I6,$E6,$G6,VALUE(RIGHT(AV$5,4)),ViteRegolatorieProp,ifl),0)) -> 0 | AW6: =+AU6-AV6 -> 0 | AX6: =IF(OR($O6,$E6=""),0,IFERROR(QA_PROP($J6,$K6,$I6,$E6,$G6,VALUE(RIGHT(AX$5,4)),ViteRegolatorieProp,ifl),0)) -> 0 | AY6: =IF(OR($O6,$E6=""),0,IFERROR(IP_PROP($L6,AZ6,BB6,$E6,$G6,$I6,$P6,VALUE(RIGHT(AY$5,4)),ifl),0)) -> 0 | AZ6: =IF(OR($O6,$E6=""),0,IFERROR(FondoAmm_prop($L6,$M6,$I6,$E6,$G6,VALUE(RIGHT(AZ$5,4)),ViteRegolatorieProp,ifl),0)) -> 0 | BA6: =+AY6-AZ6 -> 0 | BB6: =IF(OR($O6,$E6=""),0,IFERROR(QA_PROP($L6,$M6,$I6,$E6,$G6,VALUE(RIGHT(BB$5,4)),ViteRegolatorieProp,ifl),0)) -> 0

Sheet DCUIT
A2: comma 15.4 All. A MTI-3 | C2: ΔCUIT - Immobilizzazioni di terzi
T5: 2020 | U5: 2021 | V5: 2022 | W5: 2023 | AB5: 2020 | AC5: 2021 | AD5: 2022 | AE5: 2023 | AF5: 2020 | AG5: 2021 | AH5: 2022 | AI5: 2023 | AJ5: 2020 | AK5: 2021 | AL5: 2022 | AM5: 2023 | AN5: 2020 | AO5: 2021 | AP5: 2022 | AQ5: 2023 | AR5: 2020 | AS5: 2021 | AT5: 2022 | AU5: 2023 | AV5: 2020 | AW5: 2021 | AX5: 2022 | AY5: 2023 | AZ5: 2020 | BA5: 2021 | BB5: 2022 | BC5: 2023 | BD5: 2020 | BE5: 2021 | BF5: 2022 | BG5: 2023
A6: New_Key_prop | B6: IMN 2020 | C6: IMN 2021 | D6: IMN 2022 | E6: IMN 2023 | F6: AMM 2020 | G6: AMM 2021 | H6: AMM 2022 | I6: AMM 2023 | J6: CFP netto 2020 | K6: CFP netto 2021 | L6: CFP netto 2022 | M6: CFP netto 2023 | N6: AMM CFP 2020 | O6: AMM CFP 2021 | P6: AMM CFP 2022 | Q6: AMM CFP 2023 | T6: ΔCUIT | U6: ΔCUIT | V6: ΔCUIT | W6: ΔCUIT | AB6: CINp | AC6: CINp | AD6: CINp | AE6: CINp | AF6: CINfp,p / CIN | AG6: CINfp,p / CIN | AH6: CINfp,p / CIN | AI6: CINfp,p / CIN | AJ6: Rai | AK6: Rai | AL6: Rai | AM6: Rai | AN6: OFp | AO6: OFp | AP6: OFp | AQ6: OFp | AR6: OFiscp | AS6: OFiscp | AT6: OFiscp | AU6: OFiscp | AV6: AMMp | AW6: AMMp | AX6: AMMp | AY6: AMMp | AZ6: MT | BA6: MT | BB6: MT | BC6: MT | BD6: AC | BE6: AC | BF6: AC | BG6: AC
B7: 0 | C7: 0 | D7: 0 | E7: 0 | F7: 0 | G7: 0 | H7: 0 | I7: 0 | J7: 0 | K7: 0 | L7: 0 | M7: 0 | N7: 0 | O7: 0 | P7: 0 | Q7: 0 | V7: =MAX(0,((AX7+AP7+AT7)-(BB7+BF7))) -> 0 | W7: =MAX(0,((AY7+AQ7+AU7)-(BC7+BG7))) -> 0 | AB7: =+IFERROR(B7*1,0) -> 0 | AC7: =+IFERROR(C7*1,0) -> 0 | AD7: =+IFERROR(D7*1,0) -> 0 | AE7: =+IFERROR(E7*1,0) -> 0 | AF7: =IFERROR(J7/AB7,0) -> 0 | AG7: =IFERROR(K7/AC7,0) -> 0 | AH7: =IFERROR(L7/AD7,0) -> 0 | AI7: =IFERROR(M7/AE7,0) -> 0 | AJ7: =((1+((TT_parametri!$BF$30+TT_parametri!$BF$31+1)*(1+TT_parametri!$BF$27)-1)/(1-TT_parametri!$BF$29))/(1+TT_parametri!$BF$27)-1)*(1-AF7)*AB7 -> 0 | AK7: =((1+((TT_parametri!$BF$30+TT_parametri!$BF$31+1)*(1+TT_parametri!$BF$27)-1)/(1-TT_parametri!$BF$29))/(1+TT_parametri!$BF$27)-1)*(1-AG7)*AC7 -> 0 | AL7: =((1+((TT_parametri!$BF$30+TT_parametri!$BF$31+1)*(1+TT_parametri!$BF$27)-1)/(1-TT_parametri!$BF$29))/(1+TT_parametri!$BF$27)-1)*(1-AH7)*AD7 -> 0 | AM7: =((1+((TT_parametri!$BF$30+TT_parametri!$BF$31+1)*(1+TT_parametri!$BF$27)-1)/(1-TT_parametri!$BF$29))/(1+TT_parametri!$BF$27)-1)*(1-AI7)*AE7 -> 0 | AN7: =MAX(+(TT_parametri!$BF$30+TT_parametri!$BF$31)*(1-AF7)*AB7,0) -> 0 | AO7: =MAX(+(TT_parametri!$BF$30+TT_parametri!$BF$31)*(1-AG7)*AC7,0) -> 0 | AP7: =MAX(+(TT_parametri!$BF$30+TT_parametri!$BF$31)*(1-AH7)*AD7,0) -> 0 | AQ7: =MAX(+(TT_parametri!$BF$30+TT_parametri!$BF$31)*(1-AI7)*AE7,0) -> 0 | AR7: =MAX(0.319*AJ7,0) -> 0 | AS7: =MAX(0.319*AK7,0) -> 0 | AT7: =MAX(0.319*AL7,0) -> 0 | AU7: =MAX(0.319*AM7,0) -> 0 | AV7: =+IFERROR(F7*1,0) -> 0 | AW7: =+IFERROR(G7*1,0) -> 0 | AX7: =+IFERROR(H7*1,0) -> 0 | AY7: =+IFERROR(I7*1,0) -> 0 | BB7: =+IFERROR(VLOOKUP($A7,Corrispettivi_proprietari!$B:$T,14,FALSE),0) -> 0 | BC7: =+IFERROR(VLOOKUP($A7,Corrispettivi_proprietari!$B:$T,15,FALSE),0) -> 0 | BF7: =+IFERROR(VLOOKUP($A7,Corrispettivi_proprietari!$B:$T,17,FALSE),0) -> 0 | BG7: =+IFERROR(VLOOKUP($A7,Corrispettivi_proprietari!$B:$T,18,FALSE),0) -> 0

Sheet Storico_Piano_Tariffario
C2: STORICO PIANO TARIFFARIO
C3: SCHEMI REGOLATORI
I4: Note | J4: UdM | K4: Del 580/2019/R/IDR
J5: UdM | K5: 2016 | N5: 2019 | O5: 2020 | P5: 2021 | Q5: 2022 | R5: 2023 | S5: 2024 | T5: 2025 | U5: 2026 | V5: 2027 | W5: 2028 | X5: 2029 | Y5: 2030 | Z5: 2031 | AA5: 2032 | AB5: 2033 | AC5: 2034 | AD5: 2035 | AE5: 2036 | AF5: 2037 | AG5: 2038 | AH5: 2039 | AI5: 2040 | AJ5: 2041 | AK5: 2042 | AL5: 2043 | AM5: 2044 | AN5: 2045
C6: VRG2018 | J6: euro
C7: Popolazione residente cui aggiungere 0,25xabitanti fluttuanti | J7: n. abitante
J8: SI/NO
C9: Nessuna aggregazione o variazione dei processi tecnici significativa: (NO) oppure Presenza di aggregazioni o variazioni dei processi tecnici significative: (SI) | J9: SI/NO
J10: euro
C11: RABMTI-2 | J11: euro
J12: SI/NO
C13: SCHEMA REGOLATORIO (A) SCHEMA REGOLATORIO DI CONVERGENZA (B) | J13: A/B
C14: y | J14: (0,4-0,8)
C15: SCHEMA REGOLATORIO | J15: (I, II, III, IV, V, VI)
C20: COMPONENTI DI COSTO Opex, Capex , FNInew, ERC
I21: Note | J21: UdM | K21: 2020 | L21: 2021 | M21: 2022 | N21: 2023 | O21: 2024 | P21: 2025 | Q21: 2026 | R21: 2027 | S21: 2028 | T21: 2029 | U21: 2030 | V21: 2031 | W21: 2032 | X21: 2033 | Y21: 2034 | Z21: 2035 | AA21: 2036 | AB21: 2037 | AC21: 2038 | AD21: 2039 | AE21: 2040 | AF21: 2041 | AG21: 2042 | AH21: 2043 | AI21: 2044 | AJ21: 2045 | AK21: 2046 | AL21: 2047 | AM21: 2048 | AN21: 2049 | AO21: 2050 | AP21: 2051 | AQ21: 2052 | AR21: 2053 | AS21: 2054 | AT21: 2055 | AU21: 2056 | AV21: 2057 | AW21: 2058 | AX21: 2059
C22: Opexaend | J22: euro
C23: Opexaal | J23: euro
C24: Opnew,a | J24: euro
C25: OpexaQT | J25: euro
C26: OpexaQC | J26: euro
C27: Opasocial | J27: euro
C28: Opamis | J28: euro
C29: OpaCOVID | J29: euro
C30: Opexa (al netto degli ERC) | J30: euro
C31: AMMa | J31: euro
C32: OFa | J32: euro
C33: OFisca | J33: euro
C34: DCUITaCapex | J34: euro
C35: Capexa (al netto degli ERC) | J35: euro
C36: IPtexp | J36: euro
C37: Capexa | J37: euro
C38: FNInew,a | J38: euro
C42: ERCacapex | J42: euro
C43: ERCaopex | J43: euro
C44: ERCa | J44: euro
C46: FONDO NUOVI INVESTIMENTI
I47: Note | J47: UdM | K47: 2020 | L47: 2021 | M47: 2022 | N47: 2023 | O47: 2024 | P47: 2025 | Q47: 2026 | R47: 2027 | S47: 2028 | T47: 2029 | U47: 2030 | V47: 2031 | W47: 2032 | X47: 2033 | Y47: 2034 | Z47: 2035 | AA47: 2036 | AB47: 2037 | AC47: 2038 | AD47: 2039 | AE47: 2040 | AF47: 2041 | AG47: 2042 | AH47: 2043 | AI47: 2044 | AJ47: 2045 | AK47: 2046 | AL47: 2047 | AM47: 2048 | AN47: 2049 | AO47: 2050 | AP47: 2051 | AQ47: 2052 | AR47: 2053 | AS47: 2054 | AT47: 2055 | AU47: 2056 | AV47: 2057 | AW47: 2058 | AX47: 2059
C48: FNIaFoNI | J48: euro
C49: AMMaFoNI | J49: euro
C50: DCUITaFoNI | J50: euro
C51: DTATOG,ind | J51: euro
C52: DTG,tot | J52: euro
C53: FoNIa | J53: euro
C55: SVILUPPO DEL VRG predisposto dal soggetto competente (include eventuali rimodulazioni)
I56: Note | J56: UdM | K56: 2020 | L56: 2021 | M56: 2022 | N56: 2023 | O56: 2024 | P56: 2025 | Q56: 2026 | R56: 2027 | S56: 2028 | T56: 2029 | U56: 2030 | V56: 2031 | W56: 2032 | X56: 2033 | Y56: 2034 | Z56: 2035 | AA56: 2036 | AB56: 2037 | AC56: 2038 | AD56: 2039 | AE56: 2040 | AF56: 2041 | AG56: 2042 | AH56: 2043 | AI56: 2044 | AJ56: 2045 | AK56: 2046 | AL56: 2047 | AM56: 2048 | AN56: 2049 | AO56: 2050 | AP56: 2051 | AQ56: 2052 | AR56: 2053 | AS56: 2054 | AT56: 2055 | AU56: 2056 | AV56: 2057 | AW56: 2058 | AX56: 2059
C57: Opexa | J57: euro
C58: Capexa | J58: euro
C59: FoNIa | J59: euro
C60: RCaTOT | J60: euro
C61: ERCa | J61: euro
C62: VRGa predisposto dal soggetto competente | J62: euro
C64: SVILUPPO DEL MOLTIPLICATORE TARIFFARIO predisposto dal soggetto competente
I65: Note | J65: UdM | K65: 2020 | L65: 2021 | M65: 2022 | N65: 2023 | O65: 2024 | P65: 2025 | Q65: 2026 | R65: 2027 | S65: 2028 | T65: 2029 | U65: 2030 | V65: 2031 | W65: 2032 | X65: 2033 | Y65: 2034 | Z65: 2035 | AA65: 2036 | AB65: 2037 | AC65: 2038 | AD65: 2039 | AE65: 2040 | AF65: 2041 | AG65: 2042 | AH65: 2043 | AI65: 2044 | AJ65: 2045 | AK65: 2046 | AL65: 2047 | AM65: 2048 | AN65: 2049 | AO65: 2050 | AP65: 2051 | AQ65: 2052 | AR65: 2053 | AS65: 2054 | AT65: 2055 | AU65: 2056 | AV65: 2057 | AW65: 2058 | AX65: 2059
C66: VRGa predisposto dal soggetto competente | J66: euro
C67: Ra-2b | J67: euro
C68: S tarif2019*vscala-2 | J68: euro
C69: Ja predisposto dal soggetto competente | J69: n. (3 cifre decimali)
C71: Rcaappr2020,COVID | J71: euro
C73: SVILUPPO DEL MOLTIPLICATORE TARIFFARIO applicabile (nelle more dell'approvazione ARERA)
J74: UdM | K74: 2020 | L74: 2021 | M74: 2022 | N74: 2023 | O74: 2024 | P74: 2025 | Q74: 2026 | R74: 2027 | S74: 2028 | T74: 2029 | U74: 2030 | V74: 2031 | W74: 2032 | X74: 2033 | Y74: 2034 | Z74: 2035 | AA74: 2036 | AB74: 2037 | AC74: 2038 | AD74: 2039 | AE74: 2040 | AF74: 2041 | AG74: 2042 | AH74: 2043 | AI74: 2044 | AJ74: 2045 | AK74: 2046 | AL74: 2047 | AM74: 2048 | AN74: 2049 | AO74: 2050 | AP74: 2051 | AQ74: 2052 | AR74: 2053 | AS74: 2054 | AT74: 2055 | AU74: 2056 | AV74: 2057 | AW74: 2058 | AX74: 2059
C75: Limite al moltiplicatore tariffario | J75: n. (3 cifre decimali)
C76: VRGa (coerente con J applicabile) | J76: euro
C77: Ja applicabile | J77: n. (3 cifre decimali)
C79: Meccanismi incentivanti per il miglioramento della qualità, controllo sui livelli raggiunti e modalità di copertura dei premi
J80: UdM | K80: 2020 | L80: 2021 | M80: 2022 | N80: 2023 | O80: 2024 | P80: 2025 | Q80: 2026 | R80: 2027 | S80: 2028 | T80: 2029 | U80: 2030 | V80: 2031 | W80: 2032 | X80: 2033 | Y80: 2034 | Z80: 2035 | AA80: 2036 | AB80: 2037 | AC80: 2038 | AD80: 2039 | AE80: 2040 | AF80: 2041 | AG80: 2042 | AH80: 2043 | AI80: 2044 | AJ80: 2045 | AK80: 2046 | AL80: 2047 | AM80: 2048 | AN80: 2049 | AO80: 2050 | AP80: 2051 | AQ80: 2052 | AR80: 2053 | AS80: 2054 | AT80: 2055 | AU80: 2056 | AV80: 2057 | AW80: 2058 | AX80: 2059
C81: Strumento allocativo (€/mc) | J81: €/mc
C82: (1+γOPi,j)*max(0;ΔOpex) | J82: euro
C84: INVESTIMENTI
I85: Note | J85: UdM | K85: 2020 | L85: 2021 | M85: 2022 | N85: 2023 | O85: 2024 | P85: 2025 | Q85: 2026 | R85: 2027 | S85: 2028 | T85: 2029 | U85: 2030 | V85: 2031 | W85: 2032 | X85: 2033 | Y85: 2034 | Z85: 2035 | AA85: 2036 | AB85: 2037 | AC85: 2038 | AD85: 2039 | AE85: 2040 | AF85: 2041 | AG85: 2042 | AH85: 2043 | AI85: 2044 | AJ85: 2045 | AK85: 2046 | AL85: 2047 | AM85: 2048 | AN85: 2049 | AO85: 2050 | AP85: 2051 | AQ85: 2052 | AR85: 2053 | AS85: 2054 | AT85: 2055 | AU85: 2056 | AV85: 2057 | AW85: 2058 | AX85: 2059
C86: Investimenti al lordo dei contributi | J86: euro
C87: Contributi | J87: euro
C88: Investimenti al netto dei contributi | J88: euro
C89: CIN | J89: euro
C90: CINfp | J90: euro
C91: OF/CIN | J91: %
C93: Trasferimento importi dovuti alla contabilità speciale del Commissario Unico (Del. 440/2017/R/idr)
I94: Note | J94: UdM | K94: 2020-2023
C95: Fabbisogno degli investimenti per adeguamento agglomerati oggetto di condanne UE del 19/07/2012 e 10/04/2014 | J95: euro
C96: Fabbisogno di investimenti coperto da tariffa | J96: euro
C97: Fabbisogno di investimenti coperto con risorse regionali o altre fonti pubbliche | J97: euro
C98: Risorse da destinare alla contabilità speciale del Commissario Unico | J98: euro
C99: Parte del VRG destinata alla contabilità speciale del Commissario Unico | J99: euro
C100: Risorse regionali o altre fonti pubbliche destinate alla contabilità speciale del Commissario Unico | J100: euro
C102: VALORE RESIDUO A FINE CONCESSIONE
I103: Note | J103: UdM | K103: Del 580/2019/R/IDR
C104: Ipc,t | J104: euro
C105: FAIP,c,t | J105: euro
C106: CFPc,t | J106: euro
C107: FACFP,c,t | J107: euro
C108: LIC | J108: euro
C109: VR a fine concessione | J109: euro

Sheet IMN_consolidamento
A3: consolidamento immobilizzazioni Include le immobilizzazioni fino ai nuovi investimenti a moneta dell'anno del cespite Il foglio è solo di supporto al calcolo | S3: Sezione di elaborazione dei dati forniti
A5: IDATO | B5: IDGestore | C5: Gestore_Proprietario | D5: N_prop | E5: Fonte | F5: ID_Categoria_Cespite | G5: CategoriaCespite | H5: ID_Immobilizzazione | I5: IMMOBILIZZAZIONE | J5: AnnoCespite | K5: IP | L5: FAIP | M5: CFP | N5: FACP | O5: - | P5: Tipologia di costo sotteso | Q5: Attività | R5: foglio di origine | S5: n_riga
A6: 0 | B6: 0 | C6: Gestore | D6: 0 | E6: IP | F6: 0 | G6: 0 | H6: 0 | I6: 0 | J6: 0 | K6: 0 | L6: 0 | M6: 0 | N6: 0 | R6: Dismissioni | S6: =+ROW(S6)-ROW($S$5) -> 1

Sheet IMN_gestore
A1: q_RAB
D2: IMNGestore
A5: ID categoria cespite | B5: Categoria cespite | C5: ID Immobilizzazione | D5: IMMOBILIZZAZIONE | E5: Anno Cespite | F5: foglio di origine | G5: Tipologia di costo sotteso | H5: Attività | I5: IP | J5: FAIP | K5: CFP | L5: FACFP | N5: VU 2020 | O5: IP 2020 | P5: FAIP 2020 | Q5: IP netto 2020 | R5: AMM 2020 | S5: componente tariffaria AMM 2020 | T5: CFP 2020 | U5: FA CFP 2020 | V5: CFP netto 2020 | W5: AMM CFP 2020 | X5: aa | Y5: VU 2021 | Z5: IP 2021 | AA5: FAIP 2021 | AB5: IP netto 2021 | AC5: AMM 2021 | AD5: componente tariffaria AMM 2021 | AE5: CFP 2021 | AF5: FA CFP 2021 | AG5: CFP netto 2021 | AH5: AMM CFP 2021 | AI5: aaa | AJ5: VU 2022 | AK5: IP 2022 | AL5: FAIP 2022 | AM5: IP netto 2022 | AN5: AMM 2022 | AO5: componente tariffaria AMM 2022 | AP5: CFP 2022 | AQ5: FA CFP 2022 | AR5: CFP netto 2022 | AS5: AMM CFP 2022 | AT5: aaaa | AU5: VU 2023 | AV5: IP 2023 | AW5: FAIP 2023 | AX5: IP netto 2023 | AY5: AMM 2023 | AZ5: componente tariffaria AMM 2023 | BA5: CFP 2023 | BB5: FA CFP 2023 | BC5: CFP netto 2023 | BD5: AMM CFP 2023 | BO5: \
A6: 0 | B6: 0 | C6: 0 | D6: 0 | E6: 0 | F6: Dismissioni | I6: 0 | J6: 0 | K6: 0 | L6: 0 | N6: =IFERROR(INDEX(IF($E6>=2020,vite_regolatorie_new,vite_regolatorie),$A6+1,MATCH(MAX(VALUE(RIGHT($E6,4)),2011)&"-"&VALUE(RIGHT(N$5,4)),anni_new,0)+1),0) -> 2011-2020 | O6: =IF($F6="Dismissioni",IFERROR(DISM(ABS($I6),$A6,$C6,$E6,VALUE(RIGHT(O$5,4)),ifl),0)*-1,IFERROR(IP(ABS($I6),$A6,$C6,$E6,VALUE(RIGHT(O$5,4)),ifl),0)) -> 0 | P6: =IF($F6="Dismissioni",IFERROR(FondoAmm_dism(ABS($I6),ABS($J6),$E6,$A6,$C6,VALUE(RIGHT(P$5,4)),IF($E6>=2020,vite_regolatorie_new,vite_regolatorie),ifl),0)*-1,IFERROR(FondoAmm(ABS($I6),ABS($J6),$E6,$A6,$C6,VALUE(RIGHT(P$5,4)),IF($E6>=2020,vite_regolatorie_new,vite_regolatorie),ifl),0)) -> 0 | Q6: =+O6-P6 -> 0 | R6: =IF($F6="Dismissioni",IFERROR(QA_DISM(ABS($I6),ABS($J6),$E6,$A6,$C6,VALUE(RIGHT(R$5,4)),IF($E6>=2020,vite_regolatorie_new,vite_regolatorie),ifl),0)*-1,IFERROR(QA(ABS($I6),ABS($J6),$E6,$A6,$C6,VALUE(RIGHT(R$5,4)),IF($E6>=2020,vite_regolatorie_new,vite_regolatorie),ifl),0)) -> 0 | S6: =+R6-W6 -> 0 | T6: =IF($F6="Dismissioni",IFERROR(CFP_DISM_A(ABS($K6),$A6,$E6,$C6,VALUE(RIGHT(T$5,4)),ifl)*-1,0),IFERROR(CFP_A(ABS($K6),$A6,$C6,$E6,VALUE(RIGHT(T$5,4)),ifl),0)) -> 0 | U6: =IF($F6="Dismissioni",IFERROR(FACFP_DISM(ABS($K6),ABS($L6),$E6,$A6,$C6,VALUE(RIGHT(U$5,4)),IF($E6>=2020,vite_regolatorie_new,vite_regolatorie),ifl)*-1,0),IFERROR(FACFP(ABS($K6),ABS($L6),$E6,$A6,$C6,VALUE(RIGHT(U$5,4)),IF($E6>=2020,vite_regolatorie_new,vite_regolatorie),ifl),0)) -> 0 | V6: =+T6-U6 -> 0 | W6: =IF($F6="Dismissioni",IFERROR(QA_CFP_DISM(ABS($K6),ABS($L6),$E6,$A6,$C6,VALUE(RIGHT(W$5,4)),IF($E6>=2020,vite_regolatorie_new,vite_regolatorie),ifl)*-1,0),IFERROR(QA_CFP(ABS($K6),ABS($L6),$E6,$C6,$A6,VALUE(RIGHT(W$5,4)),IF($E6>=2020,vite_regolatorie_new,vite_regolatorie),ifl),0)) -> 0 | Y6: =IFERROR(INDEX(IF($E6>=2020,vite_regolatorie_new,vite_regolatorie),$A6+1,MATCH(MAX(VALUE(RIGHT($E6,4)),2011)&"-"&VALUE(RIGHT(Y$5,4)),anni_new,0)+1),0) -> 2011-2021 | Z6: =IF($F6="Dismissioni",IFERROR(DISM(ABS($I6),$A6,$C6,$E6,VALUE(RIGHT(Z$5,4)),ifl),0)*-1,IFERROR(IP(ABS($I6),$A6,$C6,$E6,VALUE(RIGHT(Z$5,4)),ifl),0)) -> 0 | AA6: =IF($F6="Dismissioni",IFERROR(FondoAmm_dism(ABS($I6),ABS($J6),$E6,$A6,$C6,VALUE(RIGHT(AA$5,4)),IF($E6>=2020,vite_regolatorie_new,vite_regolatorie),ifl),0)*-1,IFERROR(FondoAmm(ABS($I6),ABS($J6),$E6,$A6,$C6,VALUE(RIGHT(AA$5,4)),IF($E6>=2020,vite_regolatorie_new,vite_regolatorie),ifl),0)) -> 0 | AB6: =+Z6-AA6 -> 0 | AC6: =IF($F6="Dismissioni",IFERROR(QA_DISM(ABS($I6),ABS($J6),$E6,$A6,$C6,VALUE(RIGHT(AC$5,4)),IF($E6>=2020,vite_regolatorie_new,vite_regolatorie),ifl),0)*-1,IFERROR(QA(ABS($I6),ABS($J6),$E6,$A6,$C6,VALUE(RIGHT(AC$5,4)),IF($E6>=2020,vite_regolatorie_new,vite_regolatorie),ifl),0)) -> 0 | AD6: =+AC6-AH6 -> 0 | AE6: =IF($F6="Dismissioni",IFERROR(CFP_DISM_A(ABS($K6),$A6,$E6,$C6,VALUE(RIGHT(AE$5,4)),ifl)*-1,0),IFERROR(CFP_A(ABS($K6),$A6,$C6,$E6,VALUE(RIGHT(AE$5,4)),ifl),0)) -> 0 | AF6: =IF($F6="Dismissioni",IFERROR(FACFP_DISM(ABS($K6),ABS($L6),$E6,$A6,$C6,VALUE(RIGHT(AF$5,4)),IF($E6>=2020,vite_regolatorie_new,vite_regolatorie),ifl)*-1,0),IFERROR(FACFP(ABS($K6),ABS($L6),$E6,$A6,$C6,VALUE(RIGHT(AF$5,4)),IF($E6>=2020,vite_regolatorie_new,vite_regolatorie),ifl),0)) -> 0 | AG6: =+AE6-AF6 -> 0 | AH6: =IF($F6="Dismissioni",IFERROR(QA_CFP_DISM(ABS($K6),ABS($L6),$E6,$A6,$C6,VALUE(RIGHT(AH$5,4)),IF($E6>=2020,vite_regolatorie_new,vite_regolatorie),ifl)*-1,0),IFERROR(QA_CFP(ABS($K6),ABS($L6),$E6,$C6,$A6,VALUE(RIGHT(AH$5,4)),IF($E6>=2020,vite_regolatorie_new,vite_regolatorie),ifl),0)) -> 0 | AJ6: =IFERROR(INDEX(IF($E6>=2020,vite_regolatorie_new,vite_regolatorie),$A6+1,MATCH(MAX(VALUE(RIGHT($E6,4)),2011)&"-"&VALUE(RIGHT(AJ$5,4)),anni_new,0)+1),0) -> 2011-2022 | AK6: =IF($F6="Dismissioni",IFERROR(DISM(ABS($I6),$A6,$C6,$E6,VALUE(RIGHT(AK$5,4)),ifl),0)*-1,IFERROR(IP(ABS($I6),$A6,$C6,$E6,VALUE(RIGHT(AK$5,4)),ifl),0)) -> 0 | AL6: =IF($F6="Dismissioni",IFERROR(FondoAmm_dism(ABS($I6),ABS($J6),$E6,$A6,$C6,VALUE(RIGHT(AL$5,4)),IF($E6>=2020,vite_regolatorie_new,vite_regolatorie),ifl),0)*-1,IFERROR(FondoAmm(ABS($I6),ABS($J6),$E6,$A6,$C6,VALUE(RIGHT(AL$5,4)),IF($E6>=2020,vite_regolatorie_new,vite_regolatorie),ifl),0)) -> 0 | AM6: =+AK6-AL6 -> 0 | AN6: =IF($F6="Dismissioni",IFERROR(QA_DISM(ABS($I6),ABS($J6),$E6,$A6,$C6,VALUE(RIGHT(AN$5,4)),IF($E6>=2020,vite_regolatorie_new,vite_regolatorie),ifl),0)*-1,IFERROR(QA(ABS($I6),ABS($J6),$E6,$A6,$C6,VALUE(RIGHT(AN$5,4)),IF($E6>=2020,vite_regolatorie_new,vite_regolatorie),ifl),0)) -> 0 | AO6: =+AN6-AS6 -> 0 | AP6: =IF($F6="Dismissioni",IFERROR(CFP_DISM_A(ABS($K6),$A6,$E6,$C6,VALUE(RIGHT(AP$5,4)),ifl)*-1,0),IFERROR(CFP_A(ABS($K6),$A6,$C6,$E6,VALUE(RIGHT(AP$5,4)),ifl),0)) -> 0 | AQ6: =IF($F6="Dismissioni",IFERROR(FACFP_DISM(ABS($K6),ABS($L6),$E6,$A6,$C6,VALUE(RIGHT(AQ$5,4)),IF($E6>=2020,vite_regolatorie_new,vite_regolatorie),ifl)*-1,0),IFERROR(FACFP(ABS($K6),ABS($L6),$E6,$A6,$C6,VALUE(RIGHT(AQ$5,4)),IF($E6>=2020,vite_regolatorie_new,vite_regolatorie),ifl),0)) -> 0 | AR6: =+AP6-AQ6 -> 0 | AS6: =IF($F6="Dismissioni",IFERROR(QA_CFP_DISM(ABS($K6),ABS($L6),$E6,$A6,$C6,VALUE(RIGHT(AS$5,4)),IF($E6>=2020,vite_regolatorie_new,vite_regolatorie),ifl)*-1,0),IFERROR(QA_CFP(ABS($K6),ABS($L6),$E6,$C6,$A6,VALUE(RIGHT(AS$5,4)),IF($E6>=2020,vite_regolatorie_new,vite_regolatorie),ifl),0)) -> 0 | AU6: =IFERROR(INDEX(IF($E6>=2020,vite_regolatorie_new,vite_regolatorie),$A6+1,MATCH(MAX(VALUE(RIGHT($E6,4)),2011)&"-"&VALUE(RIGHT(AU$5,4)),anni_new,0)+1),0) -> 2011-2023 | AV6: =IF($F6="Dismissioni",IFERROR(DISM(ABS($I6),$A6,$C6,$E6,VALUE(RIGHT(AV$5,4)),ifl),0)*-1,IFERROR(IP(ABS($I6),$A6,$C6,$E6,VALUE(RIGHT(AV$5,4)),ifl),0)) -> 0 | AW6: =IF($F6="Dismissioni",IFERROR(FondoAmm_dism(ABS($I6),ABS($J6),$E6,$A6,$C6,VALUE(RIGHT(AW$5,4)),IF($E6>=2020,vite_regolatorie_new,vite_regolatorie),ifl),0)*-1,IFERROR(FondoAmm(ABS($I6),ABS($J6),$E6,$A6,$C6,VALUE(RIGHT(AW$5,4)),IF($E6>=2020,vite_regolatorie_new,vite_regolatorie),ifl),0)) -> 0 | AX6: =+AV6-AW6 -> 0 | AY6: =IF($F6="Dismissioni",IFERROR(QA_DISM(ABS($I6),ABS($J6),$E6,$A6,$C6,VALUE(RIGHT(AY$5,4)),IF($E6>=2020,vite_regolatorie_new,vite_regolatorie),ifl),0)*-1,IFERROR(QA(ABS($I6),ABS($J6),$E6,$A6,$C6,VALUE(RIGHT(AY$5,4)),IF($E6>=2020,vite_regolatorie_new,vite_regolatorie),ifl),0)) -> 0 | AZ6: =+AY6-BD6 -> 0 | BA6: =IF($F6="Dismissioni",IFERROR(CFP_DISM_A(ABS($K6),$A6,$E6,$C6,VALUE(RIGHT(BA$5,4)),ifl)*-1,0),IFERROR(CFP_A(ABS($K6),$A6,$C6,$E6,VALUE(RIGHT(BA$5,4)),ifl),0)) -> 0 | BB6: =IF($F6="Dismissioni",IFERROR(FACFP_DISM(ABS($K6),ABS($L6),$E6,$A6,$C6,VALUE(RIGHT(BB$5,4)),IF($E6>=2020,vite_regolatorie_new,vite_regolatorie),ifl)*-1,0),IFERROR(FACFP(ABS($K6),ABS($L6),$E6,$A6,$C6,VALUE(RIGHT(BB$5,4)),IF($E6>=2020,vite_regolatorie_new,vite_regolatorie),ifl),0)) -> 0 | BC6: =+BA6-BB6 -> 0 | BD6: =IF($F6="Dismissioni",IFERROR(QA_CFP_DISM(ABS($K6),ABS($L6),$E6,$A6,$C6,VALUE(RIGHT(BD$5,4)),IF($E6>=2020,vite_regolatorie_new,vite_regolatorie),ifl)*-1,0),IFERROR(QA_CFP(ABS($K6),ABS($L6),$E6,$C6,$A6,VALUE(RIGHT(BD$5,4)),IF($E6>=2020,vite_regolatorie_new,vite_regolatorie),ifl),0)) -> 0

Sheet IMN_riepilogo
A2: art. 8 e seguenti | B2: IMN - Valore delle immobilizzazioni
B4: Area di riepilogo delle immobilizzazioni del GESTORE | I4: Area di riepilogo delle immobilizzazioni dei PROPRIETARI relativi al gestore
B6: IMN del gestore | I6: IMN dei proprietari
C7: 2020 | D7: 2021 | E7: 2022 | F7: 2023 | J7: 2020 | K7: 2021 | L7: 2022 | M7: 2023
B8: IML | C8: =+TT_riepilogo_IMN!E6 -> 0 | D8: =+TT_riepilogo_IMN!F6 -> 0 | E8: =+TT_riepilogo_IMN!G6 -> 0 | F8: =+TT_riepilogo_IMN!H6 -> 0 | I8: IML | J8: =+TT_riepilogo_IMN!E66 -> 0 | K8: =+TT_riepilogo_IMN!F66 -> 0 | L8: =+TT_riepilogo_IMN!G66 -> 0 | M8: =+TT_riepilogo_IMN!H66 -> 0
B9: FA | C9: =+TT_riepilogo_IMN!E7 -> 0 | D9: =+TT_riepilogo_IMN!F7 -> 0 | E9: =+TT_riepilogo_IMN!G7 -> 0 | F9: =+TT_riepilogo_IMN!H7 -> 0 | I9: FA | J9: =+TT_riepilogo_IMN!E67 -> 0 | K9: =+TT_riepilogo_IMN!F67 -> 0 | L9: =+TT_riepilogo_IMN!G67 -> 0 | M9: =+TT_riepilogo_IMN!H67 -> 0
B10: IMN | C10: =+TT_riepilogo_IMN!E8 -> 0 | D10: =+TT_riepilogo_IMN!F8 -> 0 | E10: =+TT_riepilogo_IMN!G8 -> 0 | F10: =+TT_riepilogo_IMN!H8 -> 0 | I10: IMN | J10: =+TT_riepilogo_IMN!E68 -> 0 | K10: =+TT_riepilogo_IMN!F68 -> 0 | L10: =+TT_riepilogo_IMN!G68 -> 0 | M10: =+TT_riepilogo_IMN!H68 -> 0
B12: Contributi a fondo perduto del gestore | I12: Contributi a fondo perduto dei proprietari
C13: 2020 | D13: 2021 | E13: 2022 | F13: 2023 | J13: 2020 | K13: 2021 | L13: 2022 | M13: 2023
B14: CFP | C14: =+TT_riepilogo_IMN!E10 -> 0 | D14: =+TT_riepilogo_IMN!F10 -> 0 | E14: =+TT_riepilogo_IMN!G10 -> 0 | F14: =+TT_riepilogo_IMN!H10 -> 0 | I14: CFP | J14: =+TT_riepilogo_IMN!E70 -> 0 | K14: =+TT_riepilogo_IMN!F70 -> 0 | L14: =+TT_riepilogo_IMN!G70 -> 0 | M14: =+TT_riepilogo_IMN!H70 -> 0
B15: FAcfp | C15: =+TT_riepilogo_IMN!E11 -> 0 | D15: =+TT_riepilogo_IMN!F11 -> 0 | E15: =+TT_riepilogo_IMN!G11 -> 0 | F15: =+TT_riepilogo_IMN!H11 -> 0 | I15: FAcfp | J15: =+TT_riepilogo_IMN!E71 -> 0 | K15: =+TT_riepilogo_IMN!F71 -> 0 | L15: =+TT_riepilogo_IMN!G71 -> 0 | M15: =+TT_riepilogo_IMN!H71 -> 0
B16: CINfp | C16: =+TT_riepilogo_IMN!E12 -> 0 | D16: =+TT_riepilogo_IMN!F12 -> 0 | E16: =+TT_riepilogo_IMN!G12 -> 0 | F16: =+TT_riepilogo_IMN!H12 -> 0 | I16: CINfp | J16: =+TT_riepilogo_IMN!E72 -> 0 | K16: =+TT_riepilogo_IMN!F72 -> 0 | L16: =+TT_riepilogo_IMN!G72 -> 0 | M16: =+TT_riepilogo_IMN!H72 -> 0
B20: IMN del gestore - nuovi investimenti
C21: 2020 | D21: 2021 | E21: 2022 | F21: 2023
B22: IML | C22: =+TT_riepilogo_IMN!E18 -> 0 | D22: =+TT_riepilogo_IMN!F18 -> 0 | E22: =+TT_riepilogo_IMN!G18 -> 0 | F22: =+TT_riepilogo_IMN!H18 -> 0
B23: FA | C23: =+TT_riepilogo_IMN!E19 -> 0 | D23: =+TT_riepilogo_IMN!F19 -> 0 | E23: =+TT_riepilogo_IMN!G19 -> 0 | F23: =+TT_riepilogo_IMN!H19 -> 0
B24: IMN | C24: =+TT_riepilogo_IMN!E20 -> 0 | D24: =+TT_riepilogo_IMN!F20 -> 0 | E24: =+TT_riepilogo_IMN!G20 -> 0 | F24: =+TT_riepilogo_IMN!H20 -> 0
B26: Contributi a fondo perduto del gestore - nuovi investimenti
C27: 2020 | D27: 2021 | E27: 2022 | F27: 2023
B28: CFP | C28: =+TT_riepilogo_IMN!E22 -> 0 | D28: =+TT_riepilogo_IMN!F22 -> 0 | E28: =+TT_riepilogo_IMN!G22 -> 0 | F28: =+TT_riepilogo_IMN!H22 -> 0
B29: FAcfp | C29: =+TT_riepilogo_IMN!E23 -> 0 | D29: =+TT_riepilogo_IMN!F23 -> 0 | E29: =+TT_riepilogo_IMN!G23 -> 0 | F29: =+TT_riepilogo_IMN!H23 -> 0
B30: CINfp | C30: =+TT_riepilogo_IMN!E24 -> 0 | D30: =+TT_riepilogo_IMN!F24 -> 0 | E30: =+TT_riepilogo_IMN!G24 -> 0 | F30: =+TT_riepilogo_IMN!H24 -> 0
A34: art. 10 MTI-3 | B34: AMM - Ammortamento delle immobilizzazioni | I34: comma 13.11 MTI-3
B36: Area di riepilogo delle immobilizzazioni del GESTORE | I36: Area di riepilogo delle immobilizzazioni dei PROPRIETARI relativi al gestore
B38: AMM del gestore | I38: AMM dei proprietari
C39: 2020 | D39: 2021 | E39: 2022 | F39: 2023 | J39: 2020 | K39: 2021 | L39: 2022 | M39: 2023
B40: AMM | C40: =+TT_riepilogo_IMN!E9 -> 0 | D40: =+TT_riepilogo_IMN!F9 -> 0 | E40: =+TT_riepilogo_IMN!G9 -> 0 | F40: =+TT_riepilogo_IMN!H9 -> 0 | I40: AMM | J40: =+TT_riepilogo_IMN!E69 -> 0 | K40: =+TT_riepilogo_IMN!F69 -> 0 | L40: =+TT_riepilogo_IMN!G69 -> 0 | M40: =+TT_riepilogo_IMN!H69 -> 0
B41: AMMcfp, gestore | C41: =+TT_riepilogo_IMN!E13 -> 0 | D41: =+TT_riepilogo_IMN!F13 -> 0 | E41: =+TT_riepilogo_IMN!G13 -> 0 | F41: =+TT_riepilogo_IMN!H13 -> 0 | I41: AMMcfp,proprietario | J41: =+SUMIF(IMN_Proprietari!$C:$C,"Altra società privata",IMN_Proprietari!$X:$X) -> 0 | K41: =+SUMIF(IMN_Proprietari!$C:$C,"Altra società privata",IMN_Proprietari!$AH:$AH) -> 0 | L41: =+SUMIF(IMN_Proprietari!$C:$C,"Altra società privata",IMN_Proprietari!$AR:$AR) -> 0 | M41: =+SUMIF(IMN_Proprietari!$C:$C,"Altra società privata",IMN_Proprietari!$BB:$BB) -> 0
B43: AMMcfp | C43: =TT_riepilogo_IMN!E13+SUMIF(IMN_Proprietari!$C:$C,"Altra società privata",IMN_Proprietari!$X:$X) -> 0 | D43: =TT_riepilogo_IMN!F13+SUMIF(IMN_Proprietari!$C:$C,"Altra società privata",IMN_Proprietari!$AH:$AH) -> 0 | E43: =TT_riepilogo_IMN!G13+SUMIF(IMN_Proprietari!$C:$C,"Altra società privata",IMN_Proprietari!$AR:$AR) -> 0 | F43: =TT_riepilogo_IMN!H13+SUMIF(IMN_Proprietari!$C:$C,"Altra società privata",IMN_Proprietari!$BB:$BB) -> 0

Sheet Framework_schemi
A2: Titolo 1 MTI-3 - Art. 2 Titolo 2 MTI-3 - Art. 5 | B2: Regolazione tariffaria applicabile Matrice di schemi regolatori
B4: Regolazione tariffaria applicabile
D7: 2020-2023
B8: Informazioni sulla predisposizione tariffaria | D8: =+IF(OR(Input_per_calcoli_finali!K24="",D14="",D15="",D13="",D16=""),"",IF(Input_per_calcoli_finali!K24="Schema regolatorio di convergenza","Schema regolatorio di convergenza",IF(PRODUCT(C13:C16)=0,"Escluso dall'aggiornamento tariffario","Schema regolatorio"))) -> 
B12: Verifica cause di esclusione | D12: 2020-2023
B13: Adempimenti Sblocca Italia | C13: =+IF(D13=TT_Tabelle_Riferimento!I14,1,0) -> 0 | D13: =IF(Input_per_calcoli_finali!K12="","",Input_per_calcoli_finali!K12) -> 
B14: Presenza di un consumo minimo impegnato per la fatturazione delle utenze | C14: =+IF(D14=TT_Tabelle_Riferimento!$E$4,1,0) -> 0 | D14: =IF(Input_per_calcoli_finali!K17="","",Input_per_calcoli_finali!K17) -> 
B15: Adozione Carta dei Servizi | C15: =+IF(D15=TT_Tabelle_Riferimento!$E$3,1,0) -> 0 | D15: =IF(Input_per_calcoli_finali!K16="","",Input_per_calcoli_finali!K16) -> 
B16: Versamento delle componenti perequative a CSEA | C16: =+IF(D16="SI",1,0) -> 0 | D16: =+IF(Input_per_calcoli_finali!K18="","",+Input_per_calcoli_finali!K18) -> 
B22: Matrice di schemi regolatori
G27: AGGREGAZIONI O VARIAZIONI DEI PROCESSI TECNICI SIGNIFICATIVE
C30: Schema I | E30: Schema II | G30: Schema III
C34: Schema IV | E34: Schema V | G34: Schema VI
B44: Posizionamento nella matrice | C44: elemento i,j | D44: Schema | E44: γk | F44: γx | G44: limite di prezzo | H44: % y/y massimo
B45: prima riga, prima colonna | C45: 1-1 | D45: Schema I | E45: 0 | F45: 0 | G45: =1+rpi+(1+E45)*kschema-(1+F45)*xschema -> 1.052 | H45: =+G45-1 -> 0.052
B46: prima riga, seconda colonna | C46: 1-2 | D46: Schema II | E46: 0 | F46: 1 | G46: 1.037 | H46: 0.037
B47: prima riga, terza colonna | C47: 1-3 | D47: Schema III | E47: 0 | F47: -0.5 | G47: 1.0595 | H47: 0.0595
B48: seconda riga, prima colonna | C48: 2-1 | D48: Schema IV | E48: 0.5 | F48: 0 | G48: 1.077 | H48: 0.077
B49: seconda riga, seconda colonna | C49: 2-2 | D49: Schema V | E49: 0.5 | F49: 1 | G49: 1.062 | H49: 0.062
B50: seconda riga, terza colonna | C50: 2-3 | D50: Schema VI | E50: 0.5 | F50: -0.5 | G50: 1.0845 | H50: 0.0845
B57: Parametri per schema regolatorio | C57: 2020-2023
B58: ω | C58: =+TT_parametri!BC36 -> 0.5
B59: rpi | C59: =+TT_parametri!BC37 -> 0.017
B60: K | C60: =+TT_parametri!BC38 -> 0.05
B61: X | C61: =+TT_parametri!BC39 -> 0.015
B62: VRGPM | C62: =+TT_parametri!BC40 -> 149
B65: Identificazione della riga della matrice di schemi | C65: 2020-2023
B66: (∑2020-2023 Ipaexp + CFPaexp ) | C66: =+Input_per_calcoli_finali!K41 -> 0
B67: RAB MTI-2 | C67: =+Input_per_calcoli_finali!G47 -> 0
B68: (∑2020-2023 Ipaexp + CFPaexp ) / RABMTI-2 | C68: =+IFERROR(C66/C67,0) -> 0
B70: riga della matrice | C70: =IF(AND(Input_per_calcoli_finali!M53="Schema regolatorio",C68<=C58),1,IF(AND(Input_per_calcoli_finali!M53="Schema regolatorio",C68>C58),2,"")) -> 
B74: Identificazione della colonna della matrice di schemi | C74: 2020-2023
B75: Aggregazioni o variazioni dei processi tecnici significative | C75: =+IF(integr="nessuna","NO",IF(integr="","","SI")) -> 
B76: VRG2018 | C76: =+Input_per_calcoli_finali!G36 -> 
B77: pop + 0,25popflut | C77: =+Input_per_calcoli_finali!G37 -> 
B78: VRG2018 / pop + 0,25popflut | C78: =+IFERROR(C76/C77,"") -> 
B80: colonna della matrice | C80: =+IF(AND(Input_per_calcoli_finali!M53="Schema regolatorio",C75="SI"),3,IF(AND(Input_per_calcoli_finali!M53="Schema regolatorio",OPMi<=C62),1,IF(AND(Input_per_calcoli_finali!M53="Schema regolatorio",OPMi>C62),2,""))) -> 
B85: Identificazione dello schema della matrice MTI-3 agg. | C85: 2020-2023
B86: selezione dello schema | C86: =IF(Input_per_calcoli_finali!M53="Schema regolatorio",VLOOKUP(C70&"-"&C80,$C$45:$D$50,2,FALSE),IF(mti_3="Escluso dall'aggiornamento tariffario",1,"")) -> 
B87: limite alla crescita annuale del moltiplicatore tariffario | C87: =IFERROR(VLOOKUP(Quad,$D$45:$G$50,4,FALSE),IF(mti_3="Escluso dall'aggiornamento tariffario",1,"")) -> 
C92: 2020-2023
B93: selezione dello schema dati storici (dati storici) | C93: =+Storico_Piano_Tariffario!K15 -> 0
B94: limite alla crescita annuale del moltiplicatore tariffario (dati storici) | C94: =IFERROR(VLOOKUP(" Schema "&C93,$D$45:$G$50,4,FALSE),IF(mti_3="Escluso dall'aggiornamento tariffario",1,"")) -> 

Sheet VRG_Teta
A2: Titolo 2 MTI-3 | B2: Moltiplicatore tariffario e Vincolo riconosciuto ai ricavi del gestore
B4: Sviluppo del VRG
B9: Componenti nel Piano Tariffario | C9: 2020 | D9: 2021 | E9: 2022 | F9: 2023
B10: VRGa | C10: =+SUM(C11:C15) -> 0 | D10: =+SUM(D11:D15) -> 0 | E10: =+SUM(E11:E15) -> 0 | F10: =+SUM(F11:F15) -> 0
B11: Capexa | C11: =+IFERROR(Capex!C10,0) -> 0 | D11: =+IFERROR(Capex!D10,0) -> 0 | E11: =+IFERROR(Capex!E10,0) -> 0 | F11: =+IFERROR(Capex!F10,0) -> 0
B12: FoNIa | C12: =+IFERROR(FoNI!C10,0) -> 0 | D12: =+IFERROR(FoNI!D10,0) -> 0 | E12: =+IFERROR(FoNI!E10,0) -> 0 | F12: =+IFERROR(FoNI!F10,0) -> 0
B13: Opexa | C13: =+IFERROR(Opex!C10,0) -> 0 | D13: =+IFERROR(Opex!D10,0) -> 0 | E13: =+IFERROR(Opex!E10,0) -> 0 | F13: =+IFERROR(Opex!F10,0) -> 0
B14: ERCa | C14: =+IFERROR(ERC!C10,0) -> 0 | D14: =+IFERROR(ERC!D10,0) -> 0 | E14: =+IFERROR(ERC!E10,0) -> 0 | F14: =+IFERROR(ERC!F10,0) -> 0
B15: RcTOTa | C15: =IFERROR('Rc'!C10,0) -> 0 | D15: =IFERROR('Rc'!D10,0) -> 0 | E15: =IFERROR('Rc'!E10,0) -> 0 | F15: =IFERROR('Rc'!F10,0) -> 0
B19: Eventuali detrazioni | C19: 2020 | D19: 2021 | E19: 2022 | F19: 2023
B20: Capexa | E20: =+E40-E11 -> 0 | F20: 0
B21: FoNIa | E21: 0 | F21: 0
B22: Opexa | E22: 0 | F22: 0
B23: ERCa | E23: 0 | F23: 0
B24: RcTOTa | E24: 0 | F24: 0
B28: Componenti post detrazioni | C28: 2022 | D28: 2023 | E28: 2020 | F28: 2021
B29: VRGa | C29: =+SUM(C30:C34) -> 0 | D29: =+SUM(D30:D34) -> 0 | E29: =+SUM(E30:E34) -> 0 | F29: =+SUM(F30:F34) -> 0
B30: Capexa | C30: =+IFERROR(Capex!C10,0) -> 0 | D30: =+IFERROR(Capex!D10,0) -> 0 | E30: =+IFERROR(Capex!E10,0) -> 0 | F30: =+IFERROR(Capex!F10,0) -> 0
B31: FoNIa | C31: =+IFERROR(FoNI!C10,0) -> 0 | D31: =+IFERROR(FoNI!D10,0) -> 0 | E31: =+IFERROR(FoNI!E10,0) -> 0 | F31: =+IFERROR(FoNI!F10,0) -> 0
B32: Opexa | C32: =+IFERROR(Opex!C10,0) -> 0 | D32: =+IFERROR(Opex!D10,0) -> 0 | E32: =+IFERROR(Opex!E10,0) -> 0 | F32: =+IFERROR(Opex!F10,0) -> 0
B33: ERCa | C33: =+IFERROR(ERC!C10,0) -> 0 | D33: =+IFERROR(ERC!D10,0) -> 0 | E33: =+IFERROR(ERC!E10,0) -> 0 | F33: =+IFERROR(ERC!F10,0) -> 0
B34: RcTOTa | C34: =IFERROR('Rc'!C19,0) -> 0 | D34: =IFERROR('Rc'!D19,0) -> 0 | E34: =IFERROR('Rc'!E19,0) -> 0 | F34: =IFERROR('Rc'!F19,0) -> 0
B38: Componenti calcolate | C38: 2020 | D38: 2021 | E38: 2022 | F38: 2023
B39: VRGa | E39: =+SUM(E40:E44) -> 0 | F39: =+SUM(F40:F44) -> 0
B40: Capexa | E40: =+IFERROR(Capex!E29,0) -> 0 | F40: =+IFERROR(Capex!F29,0) -> 0
B41: FoNIa | E41: =+IFERROR(FoNI!E29,0) -> 0 | F41: =+IFERROR(FoNI!F29,0) -> 0
B42: Opexa | E42: =+IFERROR(Opex!E29,0) -> 0 | F42: =+IFERROR(Opex!F29,0) -> 0
B43: ERCa | E43: =+IFERROR(ERC!E29,0) -> 0 | F43: =+IFERROR(ERC!F29,0) -> 0
B44: RcTOTa | E44: =+IFERROR('Rc'!E29,0) -> 0 | F44: =+IFERROR('Rc'!F29,0) -> 0
A49: art. 6 All. A | B49: Moltiplicatore Tariffario J
B51: Sviluppo del Moltiplicatore
C54: 2020 | D54: 2021 | E54: 2022 | F54: 2023
B55: STar2019*Vscala-2 (include vendita all'ingrosso) | C55: =Storico_Piano_Tariffario!K68 -> 0 | D55: =Storico_Piano_Tariffario!L68 -> 0 | E55: =+SUM(Ricavi_bacini_tariffari!N:N)+SUM(Vendita_Servizi_ingrosso!AI:AI)+Ricavi_Coll_Dep!G19+Dati_conto_economico!C23+Dati_conto_economico!C24+Dati_conto_economico!C27+Dati_conto_economico!C28 -> 0 | F55: =SUM(Ricavi_bacini_tariffari!O:O)+SUM(Vendita_Servizi_ingrosso!AJ:AJ)+Ricavi_Coll_Dep!H19+Dati_conto_economico!I23+Dati_conto_economico!I24+Dati_conto_economico!I27+Dati_conto_economico!I28 -> 0
B56: Rba-2 | C56: =Storico_Piano_Tariffario!K67 -> 0 | D56: =Storico_Piano_Tariffario!L67 -> 0 | E56: =+E109+E111 -> 0 | F56: =+F109+F111 -> 0
B60: VRGa calcolato | E60: =+E39 -> 0 | F60: =+F39 -> 0
B61: Ja calcolato | C61: =C68 ->  | D61: =D68 ->  | E61: =+IFERROR(E60/(SUM(E55:E56)),"") ->  | F61: =+IFERROR(F60/(SUM(F55:F56)),"") -> 
B62: Limite al VRGa | C62: =++IFERROR(C63*SUM(C55:C56),"") ->  | D62: =++IFERROR(D63*SUM(D55:D56),"") ->  | E62: =++IFERROR(E63*SUM(E55:E56),"") ->  | F62: =++IFERROR(F63*SUM(F55:F56),"") -> 
B63: Limite al moltiplicatore | C63: =+cap_ds ->  | D63: =+IFERROR(MIN(C63,C61)*cap_ds,"") ->  | E63: =+IFERROR(MIN(D63,D61)*cap,"") ->  | F63: =+IFERROR(MIN(E63,E61)*cap,"") -> 
B64: info predisposizione iniziale | C64: =+IF(C61>C63,"sovracap",IF(AND(C60=0,C61=0,C62=0,C63=0),"",IF(cap_ds="","","nei limiti"))) ->  | D64: =+IF(D61>D63,"sovracap",IF(AND(D60=0,D61=0,D62=0,D63=0),"",IF(cap_ds="","","nei limiti"))) ->  | E64: =+IF(E61>E63,"sovracap",IF(AND(E60=0,E61=0,E62=0,E63=0),"",IF(cap="","","nei limiti"))) ->  | F64: =+IF(F61>F63,"sovracap",IF(AND(F60=0,F61=0,F62=0,F63=0),"",IF(cap="","","nei limiti"))) -> 
B67: VRGa calc post eventuali detrazioni | C67: =+Storico_Piano_Tariffario!K66-'Rc'!C10+'Rc'!C11 -> 0 | D67: =+Storico_Piano_Tariffario!L66-'Rc'!D10+'Rc'!D11 -> 0 | E67: =+E29 -> 0 | F67: =+F29 -> 0
B68: Ja calc post eventuali detrazioni | C68: =+IFERROR(C67/SUM(C55:C56),"") ->  | D68: =+IFERROR(D67/SUM(D55:D56),"") ->  | E68: =+IFERROR(E67/SUM(E55:E56),"") ->  | F68: =+IFERROR(F67/SUM(F55:F56),"") -> 
B69: Limite al VRGa post eventuali detrazioni | C69: =++IFERROR(C70*SUM(C55:C56),"") ->  | D69: =++IFERROR(D70*SUM(D55:D56),"") ->  | E69: =++IFERROR(E70*SUM(E55:E56),"") ->  | F69: =++IFERROR(F70*SUM(F55:F56),"") -> 
B70: Limite al moltiplicatore post eventuali detrazioni | C70: =+cap_ds ->  | D70: =IFERROR(MIN(C70,C68)*cap_ds,"") ->  | E70: =IFERROR(MIN(D70,D68)*cap,"") ->  | F70: =IFERROR(MIN(E70,E68)*cap,"") -> 
B71: info predisposizione intermedia | C71: =+IF(C68>C70,"sovracap",IF(AND(C67=0,C68=0,C69=0,C70=0),"",IF(cap_ds="","","nei limiti"))) ->  | D71: =+IF(D68>D70,"sovracap",IF(AND(D67=0,D68=0,D69=0,D70=0),"",IF(cap_ds="","","nei limiti"))) ->  | E71: =+IF(E68>E70,"sovracap",IF(AND(E67=0,E68=0,E69=0,E70=0),"",IF(cap="","","nei limiti"))) ->  | F71: =+IF(F68>F70,"sovracap",IF(AND(F67=0,F68=0,F69=0,F70=0),"",IF(cap="","","nei limiti"))) -> 
B74: VRGa calc post ulteriori rimodulazioni | C74: =Storico_Piano_Tariffario!K66 -> 0 | D74: =Storico_Piano_Tariffario!L66 -> 0 | E74: =+E10+SUM(Input_per_calcoli_finali!K229:K231) -> 0 | F74: =+F10+SUM(Input_per_calcoli_finali!L229:L231) -> 0
B75: Ja calc post ulteriori rimodulazioni | C75: =Storico_Piano_Tariffario!K69 -> 0 | D75: =Storico_Piano_Tariffario!L69 -> 0 | E75: =+IFERROR(E74/SUM(E55:E56),"") ->  | F75: =+IFERROR(F74/SUM(F55:F56),"") -> 
B76: Limite al VRGa post ulteriori rimodulazioni | C76: =IFERROR(C77*SUM(C55:C56),"") ->  | D76: =IFERROR(D77*SUM(D55:D56),"") ->  | E76: =IFERROR(E77*SUM(E55:E56),"") ->  | F76: =IFERROR(F77*SUM(F55:F56),"") -> 
B77: Limite al moltiplicatore post ulteriori rimodulazioni | C77: =+cap_ds ->  | D77: =+IFERROR(MIN(C77,C75)*cap_ds,"") ->  | E77: =+IFERROR(MIN(D77,D75)*cap,"") ->  | F77: =+IFERROR(MIN(E77,E75)*cap,"") -> 
B78: info predisposizione finale | C78: =+IF(C75>C77,"sovracap",IF(AND(C74=0,C75=0,C76=0,C77=0),"",IF(cap_ds="","","nei limiti"))) ->  | D78: =+IF(D75>D77,"sovracap",IF(AND(D74=0,D75=0,D76=0,D77=0),"",IF(cap_ds="","","nei limiti"))) ->  | E78: =+IF(E75>E77,"sovracap",IF(AND(E74=0,E75=0,E76=0,E77=0),"",IF(cap="","","nei limiti"))) ->  | F78: =+IF(F75>F77,"sovracap",IF(AND(F74=0,F75=0,F76=0,F77=0),"",IF(cap="","","nei limiti"))) -> 
B81: VRGa (calcolo per applicabile) | C81: =Storico_Piano_Tariffario!K76 -> 0 | D81: =Storico_Piano_Tariffario!L76 -> 0 | E81: =+E74-SUM(Input_per_calcoli_finali!K229:K231) -> 0 | F81: =+F74-SUM(Input_per_calcoli_finali!L229:L231) -> 0
B82: Ja (calcolo per applicabile) | C82: =Storico_Piano_Tariffario!K77 -> 0 | D82: =Storico_Piano_Tariffario!L77 -> 0 | E82: =+IFERROR(E81/SUM(E55:E56),"") ->  | F82: =+IFERROR(F81/SUM(F55:F56),"") -> 
B83: Limite al VRGa (calcolo per applicabile) | C83: =IFERROR(C84*SUM(C55:C56),"") ->  | D83: =IFERROR(D84*SUM(D55:D56),"") ->  | E83: =IFERROR(E84*SUM(E55:E56),"") ->  | F83: =IFERROR(F84*SUM(F55:F56),"") -> 
B84: Limite al moltiplicatore (calcolo per applicabile) | C84: =+cap_ds ->  | D84: =+IFERROR(MIN(C84,C82)*cap_ds,"") ->  | E84: =+IFERROR(MIN(D84,D82)*cap,"") ->  | F84: =+IFERROR(MIN(E84,E82)*cap,"") -> 
B85: info predisposizione applicabile | C85: =+IF(C82>C84,"sovracap",IF(AND(C81=0,C82=0,C83=0,C84=0),"",IF(cap_ds="","","nei limiti"))) ->  | D85: =+IF(D82>D84,"sovracap",IF(AND(D81=0,D82=0,D83=0,D84=0),"",IF(cap_ds="","","nei limiti"))) ->  | E85: =+IF(E82>E84,"sovracap",IF(AND(E81=0,E82=0,E83=0,E84=0),"",IF(cap="","","nei limiti"))) ->  | F85: =+IF(F82>F84,"sovracap",IF(AND(F81=0,F82=0,F83=0,F84=0),"",IF(cap="","","nei limiti"))) -> 
A88: All A - definizioni | B88: Rb - Ricavi altre attività idriche
C92: 2020 | D92: 2021 | E92: 2022 | F92: 2023
B93: Vendita di acqua non potabile o ad uso industriale | E93: =+Dati_conto_economico!F17 -> 0 | F93: =+Dati_conto_economico!L17 -> 0
B94: Prestazioni e servizi accessori | E94: =+Dati_conto_economico!F23 -> 0 | F94: =+Dati_conto_economico!L23 -> 0
B95: Vendita di acqua con autobotte | E95: =+Dati_conto_economico!F24 -> 0 | F95: =+Dati_conto_economico!L24 -> 0
B96: Trattamento percolati | E96: =+Dati_conto_economico!F25 -> 0 | F96: =+Dati_conto_economico!L25 -> 0
B97: Trattamento bottini | E97: =+Dati_conto_economico!F26 -> 0 | F97: =+Dati_conto_economico!L26 -> 0
B98: Installazione/manutenzione bocche antincendio | E98: =+Dati_conto_economico!F29 -> 0 | F98: =+Dati_conto_economico!L29 -> 0
B99: Vendita di servizi a terzi | E99: =+Dati_conto_economico!F30 -> 0 | F99: =+Dati_conto_economico!L30 -> 0
B100: Lavori conto terzi | E100: =+Dati_conto_economico!F31 -> 0 | F100: =+Dati_conto_economico!L31 -> 0
B101: Spurgo pozzi neri | E101: =+Dati_conto_economico!F32 -> 0 | F101: =+Dati_conto_economico!L32 -> 0
B102: Rilascio autorizzazioni allo scarico | E102: =+Dati_conto_economico!F33 -> 0 | F102: =+Dati_conto_economico!L33 -> 0
B103: Lottizzazioni | E103: =+Dati_conto_economico!F34 -> 0 | F103: =+Dati_conto_economico!L34 -> 0
B104: Riuso delle acque di depurazione | E104: =+Dati_conto_economico!F35 -> 0 | F104: =+Dati_conto_economico!L35 -> 0
B105: Case dell’acqua | E105: =+Dati_conto_economico!F36 -> 0 | F105: =+Dati_conto_economico!L36 -> 0
B106: Ricavi da altre attività (non inclusi nelle suddette voci) | E106: =+MAX(Dati_conto_economico!F40,0) -> 0 | F106: =+MAX(Dati_conto_economico!L40,0) -> 0
B108: di cui, per "Obiettivi di sostenibilità energetica e ambientale"
B109: Totale Ra-2b2 | E109: =+SUM(Dati_conto_economico!D110:D113) -> 0 | F109: =+SUM(Dati_conto_economico!J110:J113) -> 0
B111: Totale Ra-2b1 | E111: =+SUM(E94:E97)+SUM(E98:E106)+E93-E109 -> 0 | F111: =+SUM(F94:F97)+SUM(F98:F106)+F93-F109 -> 0
A116: All A - definizioni | B116: Cb - Costi altre attività idriche
C120: 2020 | D120: 2021 | E120: 2022 | F120: 2023
B121: CO altre attività idriche | E121: =+Dati_conto_economico!F42-Dati_conto_economico!F65 -> 0 | F121: =+Dati_conto_economico!L42-Dati_conto_economico!L65 -> 0
B122: Accantonamenti e rettifiche in eccesso rispetto all'applicazione di norme tributarie | E122: =+Dati_conto_economico!F74 -> 0 | F122: =+Dati_conto_economico!L74 -> 0
B123: Rettifiche di valori di attività finanziarie | E123: =+Dati_conto_economico!F75 -> 0 | F123: =+Dati_conto_economico!L75 -> 0
B124: Costi connessi all'erogazione di liberalità | E124: =+Dati_conto_economico!F76 -> 0 | F124: =+Dati_conto_economico!L76 -> 0
B125: Costi pubblicitari e di marketing (incluse le imposte connesse) | E125: =+Dati_conto_economico!F77 -> 0 | F125: =+Dati_conto_economico!L77 -> 0
B126: Oneri per sanzioni, penalità, risarcimenti automatici e simili | E126: =+Dati_conto_economico!F78 -> 0 | F126: =+Dati_conto_economico!L78 -> 0
B127: Oneri straordinari | E127: =+Dati_conto_economico!F79 -> 0 | F127: =+Dati_conto_economico!L79 -> 0
B128: Spese processuali in cui la parte è risultata soccombente | E128: =+Dati_conto_economico!F80 -> 0 | F128: =+Dati_conto_economico!L80 -> 0
B129: Perdite su crediti per la sola quota parte eccedente l'utilizzo del fondo | E129: =+Dati_conto_economico!F88 -> 0 | F129: =+Dati_conto_economico!L88 -> 0
B130: Costi di strutturazione dei progetti di finanziamento (non capitalizzati) | E130: =+Dati_conto_economico!F89 -> 0 | F130: =+Dati_conto_economico!L89 -> 0
B131: A2) Variazioni rimanenze di prodotti in corso di lavorazione, semilavorati e finiti | E131: =+Dati_conto_economico!F7 -> 0 | F131: =+Dati_conto_economico!L7 -> 0
B132: A3) Variazioni dei lavori in corso su ordinazione | E132: =+Dati_conto_economico!F8 -> 0 | F132: =+Dati_conto_economico!L8 -> 0
B133: A4) Incrementi di immobilizzazioni per lavori interni (inclusi costi del personale) | E133: =+Dati_conto_economico!F9 -> 0 | F133: =+Dati_conto_economico!L9 -> 0
B134: Rimborsi e indennizzi | E134: =+Dati_conto_economico!F39 -> 0 | F134: =+Dati_conto_economico!L39 -> 0
B135: Costi di realizzazione degli allacciamenti idrici e fognari | E135: =+Dati_conto_economico!F85 -> 0 | F135: =+Dati_conto_economico!L85 -> 0
B137: di cui, per "Obiettivi di sostenibilità energetica e ambientale"
B138: Totale Ca-2b2 | E138: =+SUM(Dati_conto_economico!F110:F113) -> 0 | F138: =+SUM(Dati_conto_economico!L110:L113) -> 0
B140: Totale Ca-2b1 | E140: =(E121-SUM(E122:E134)-E135)-E138 -> 0 | F140: =(F121-SUM(F122:F134)-F135)-F138 -> 0

Sheet Capex
A2: Titolo 3 MTI-3 | B2: Costi delle immobilizzazioni
B4: Sviluppo della componente Capex
B9: Componenti nel Piano Tariffario | C9: 2020 | D9: 2021 | E9: 2022 | F9: 2023
B10: Capex | C10: =SUM(C11:C14) -> 0 | D10: =SUM(D11:D14) -> 0 | E10: =SUM(E11:E14) -> 0 | F10: =SUM(F11:F14) -> 0
B11: OF | C11: =+C70 -> 0 | D11: =+D70 -> 0 | E11: =+E70 -> 0 | F11: =+F70 -> 0
B12: OFisc | C12: =C77 -> 0 | D12: =D77 -> 0 | E12: =E77 -> 0 | F12: =F77 -> 0
B13: AMM | C13: =+C48 -> 0 | D13: =+D48 -> 0 | E13: =+E48 -> 0 | F13: =+F48 -> 0
B14: ΔCUITcapex | C14: =+C135 -> 0 | D14: =+D135 -> 0 | E14: =+E135 -> 0 | F14: =+F135 -> 0
B28: Componenti calcolate | C28: 2020 | D28: 2021 | E28: 2022 | F28: 2023
B29: Capex | E29: =SUM(E30:E33) -> 0 | F29: =SUM(F30:F33) -> 0
B30: OF | E30: =E68 -> 0 | F30: =F68 -> 0
B31: OFisc | E31: =E75 -> 0 | F31: =F75 -> 0
B32: AMM | E32: =E46 -> 0 | F32: =F46 -> 0
B33: ΔCUITcapex | E33: =+E135 -> 0 | F33: =+F135 -> 0
A39: comma 11.1 All. A MTI-3 | B39: OF e OFisc - Oneri finanziari e fiscali
C43: 2020 | D43: 2021 | E43: 2022 | F43: 2023
B44: Incidenza ERC | E44: =Nuovi_Investimenti!D11+Nuovi_Investimenti!D12 -> 0 | F44: =Nuovi_Investimenti!E11+Nuovi_Investimenti!E12 -> 0
B46: AMM (componente calcolata) | E46: =+(TT_riepilogo_IMN!G9-TT_riepilogo_IMN!G45-TT_riepilogo_IMN!G57)*(1-E44) -> 0 | F46: =+(TT_riepilogo_IMN!H9-TT_riepilogo_IMN!H45-TT_riepilogo_IMN!H57)*(1-F44) -> 0
B47: AMM (eventuale detrazione da "Input per calcoli finali") | E47: =Input_per_calcoli_finali!K103 -> 0 | F47: =Input_per_calcoli_finali!L103 -> 0
B48: AMM | C48: =Dati_Anni_precedenti!E22 -> 0 | D48: =Dati_Anni_precedenti!F22 -> 0 | E48: =+E46-E47 -> 0 | F48: =+F46-F47 -> 0 | G48: al netto di quanto riconosciuto nella componente ERCcapex
B51: LICord | E51: =(Nuovi_Investimenti!D4) -> 0 | F51: =(Nuovi_Investimenti!E4) -> 0
B52: LICpos | E52: =(Nuovi_Investimenti!D5) -> 0 | F52: =(Nuovi_Investimenti!E5) -> 0
H55: Parametri finanziari e fiscali
C56: 2020 | D56: 2021 | E56: 2022 | F56: 2023 | H56: Parametro | I56: =+TT_parametri!BC20 -> 2022-2023 | J56: Parametro | K56: =+TT_parametri!BC20 -> 2022-2023
B57: CINfp | C57: =+C117 -> 0 | D57: =+D117 -> 0 | E57: =+E117 -> 0 | F57: =+F117 -> 0 | H57: CS/CnS | I57: =+TT_parametri!BC21 -> 1 | J57: ERP | K57: =+TT_parametri!BC26 -> 0.04
B58: CINfp / (CIN - LICord) | C58: =+IFERROR(C57/(C116-C51),0) -> 0 | D58: =+IFERROR(D57/(D116-D51),0) -> 0 | E58: =+IFERROR(E57/(E116-E51),0) -> 0 | F58: =+IFERROR(F57/(F116-F51),0) -> 0 | H58: risk free rate | I58: =+TT_parametri!BC22 -> 0.0013 | J58: rpi | K58: =+TT_parametri!BC27 -> 0.017
B59: Km | C59: 0.021526 | D59: 0.021526 | E59: =+(I58+I60)*(1-(I57/(1+I57)))+I59*(1-K59)*(I57/(1+I57)) -> 0.01827 | F59: =+(I58+I60)*(1-(I57/(1+I57)))+I59*(1-K59)*(I57/(1+I57)) -> 0.01827 | H59: Kd | I59: =+TT_parametri!BC23 -> 0.024 | J59: tc | K59: =+TT_parametri!BC28 -> 0.24
B60: α | C60: 0.0158 | D60: 0.0158 | E60: =+(1-(I57/(1+I57)))*I61*K57 -> 0.0158 | F60: =+(1-(I57/(1+I57)))*I61*K57 -> 0.0158 | H60: WRP | I60: =+TT_parametri!BC24 -> 0.017 | J60: T | K60: =+TT_parametri!BC29 -> 0.319
B61: SLIC | C61: =+C59+C60 -> 0.037326 | D61: =+D59+D60 -> 0.037326 | E61: 0.024 | F61: 0.024 | H61: β levered | I61: =+TT_parametri!BC25 -> 0.79 | J61: time lag | K61: =+TT_parametri!BC30 -> 0.01
B63: OF (time lag) | E63: =+(TT_riepilogo_IMN!G20-TT_riepilogo_IMN!G24-(TT_riepilogo_IMN!G44-TT_riepilogo_IMN!G48+TT_riepilogo_IMN!G56-TT_riepilogo_IMN!G60))*($K$61) -> 0 | F63: =+(TT_riepilogo_IMN!H20-TT_riepilogo_IMN!H24-(TT_riepilogo_IMN!H44-TT_riepilogo_IMN!H48+TT_riepilogo_IMN!H56-TT_riepilogo_IMN!H60))*($K$61) -> 0
B64: OFimm | E64: =MAX(+(E59+E60)*(1-E58)*(E116-E51),0) -> 0 | F64: =MAX(+(F59+F60)*(1-F58)*(F116-F51),0) -> 0
B65: OFlic, ord | E65: =+E61*E51 -> 0 | F65: =+F61*F51 -> 0
B67: OF, di cui ERC | E67: =+ERC!E79+ERC!E113 -> 0 | F67: =+ERC!F79+ERC!F113 -> 0
B68: OF (componente calcolata) | E68: =+(E63+E64+E65)*(1-E44) -> 0 | F68: =+(F63+F64+F65)*(1-F44) -> 0
B69: OF (eventuale detrazione da "Input per calcoli finali") | E69: =Input_per_calcoli_finali!K107 -> 0 | F69: =Input_per_calcoli_finali!L107 -> 0
B70: OF | C70: =+Dati_Anni_precedenti!E23 -> 0 | D70: =+Dati_Anni_precedenti!F23 -> 0 | E70: =+E68-E69 -> 0 | F70: =+F68-F69 -> 0 | G70: al netto di quanto riconosciuto nella componente ERCcapex
B72: Rai rate | C72: 0.06264074897 | D72: 0.06264074897 | E72: =+(((1+((E59+E60+1)*(1+$K58)-1)/(1-$K60))/(1+$K58))-1) -> 0.05785954486 | F72: =+(((1+((F59+F60+1)*(1+$K58)-1)/(1-$K60))/(1+$K58))-1) -> 0.05785954486
B73: Rai | E73: =+E72*(E116-E57) -> 0 | F73: =+F72*(F116-F57) -> 0
B74: OFisc, di cui ERC | E74: =+ERC!E86+ERC!E120 -> 0 | F74: =+ERC!F86+ERC!F120 -> 0
B75: OFisc (componente calcolata) | E75: =MAX($K59*E73,0)*(1-E44) -> 0 | F75: =MAX($K59*F73,0)*(1-F44) -> 0
B76: OFisc ( (eventuale detrazione da "Input per calcoli finali") | E76: =Input_per_calcoli_finali!K111 -> 0 | F76: =Input_per_calcoli_finali!L111 -> 0
B77: OFisc | C77: =+Dati_Anni_precedenti!E24 -> 0 | D77: =+Dati_Anni_precedenti!F24 -> 0 | E77: =+E75-E76 -> 0 | F77: =+F75-F76 -> 0 | G77: al netto di quanto riconosciuto nella componente ERCcapex
A83: art. 9 All. A MTI-3 | B83: CIN e CINfp - Capitale Investito Netto
C87: 2020 | D87: 2021 | E87: 2022 | F87: 2023
B88: IMN | C88: =(TT_riepilogo_IMN!E8-TT_riepilogo_IMN!E44-TT_riepilogo_IMN!E56) -> 0 | D88: =(TT_riepilogo_IMN!F8-TT_riepilogo_IMN!F44-TT_riepilogo_IMN!F56) -> 0 | E88: =(TT_riepilogo_IMN!G8-TT_riepilogo_IMN!G44-TT_riepilogo_IMN!G56) -> 0 | F88: =(TT_riepilogo_IMN!H8-TT_riepilogo_IMN!H44-TT_riepilogo_IMN!H56) -> 0 | G88: al netto di quanto riconosciuto nella componente ERCcapex
B91: Saldo LIC (ord+POS) | E91: =+E51+E52 -> 0 | F91: =+F51+F52 -> 0
B92: LIC | E92: =+E91 -> 0 | F92: =+F91 -> 0
B95: TFR | E95: =+Altri_dati_eco_fin!E17 -> 0 | F95: =+Altri_dati_eco_fin!F17 -> 0
B96: Fondo di quiescenza | E96: =+Altri_dati_eco_fin!E18 -> 0 | F96: =+Altri_dati_eco_fin!F18 -> 0
B97: Fondo rischi e oneri | E97: =+Altri_dati_eco_fin!E19 -> 0 | F97: =+Altri_dati_eco_fin!F19 -> 0
B98: Fondo sentenza Corte Costituzionale 335/2008 | E98: =+Altri_dati_eco_fin!E24 -> 0 | F98: =+Altri_dati_eco_fin!F24 -> 0
B99: Fondo per il ripristino di beni di terzi | E99: =+Altri_dati_eco_fin!E25 -> 0 | F99: =+Altri_dati_eco_fin!F25 -> 0
B100: Fondo vincolato al finanziamento della spesa per investimenti comma 9.1 lett. f) MTI-3 | E100: =+Altri_dati_eco_fin!E26 -> 0 | F100: =+Altri_dati_eco_fin!F26 -> 0
B101: Fondo per il finanziamento di tariffe sociali o di solidarietà | E101: =+Altri_dati_eco_fin!E27 -> 0 | F101: =+Altri_dati_eco_fin!F27 -> 0
B102: Accantonamenti e rettifiche in eccesso rispetto all'applicazione di norme tributarie | E102: =+-ABS(Dati_conto_economico!C74)-ABS(Dati_conto_economico!F74) -> 0 | F102: =+-ABS(Dati_conto_economico!I74)-ABS(Dati_conto_economico!L74) -> 0
B105: FACC | E105: =+SUM(E95:E102) -> 0 | F105: =+SUM(F95:F102) -> 0
B107: Ricavia,A1 | E107: =+(SUM(Dati_conto_economico!C14:'Dati_conto_economico'!C21)+Dati_conto_economico!C23+Dati_conto_economico!C24+Dati_conto_economico!C27+Dati_conto_economico!C28) -> 0 | F107: =+(SUM(Dati_conto_economico!I14:'Dati_conto_economico'!I21)+Dati_conto_economico!I23+Dati_conto_economico!I24+Dati_conto_economico!I27+Dati_conto_economico!I28) -> 0 | H107: giorni di dilazione:
B108: COa,B6+B7 | E108: =+Dati_conto_economico!C43+SUM(Dati_conto_economico!C47:C58) -> 0 | F108: =+Dati_conto_economico!I43+SUM(Dati_conto_economico!I47:I58) -> 0 | H108: fatture | I108: 90
B109: CCN | E109: =($I$108/365*E107-$I$109/365*E108)*E121 -> 0 | F109: =($I$108/365*F107-$I$109/365*F108)*F121 -> 0 | H109: fornitori | I109: 60
B111: CCN | E111: =+E109 -> 0 | F111: =+F109 -> 0
B114: FoNIanon_inv | E114: =+FoNI!E150 -> 0 | F114: =+FoNI!F150 -> 0
B116: CIN | E116: =+MAX(E88+E111+E92-E105-E114,0) -> 0 | F116: =+MAX(F88+F111+F92-F105-F114,0) -> 0
B117: CINfp | E117: =+(TT_riepilogo_IMN!G12-TT_riepilogo_IMN!G48-TT_riepilogo_IMN!G60) -> 0 | F117: =+(TT_riepilogo_IMN!H12-TT_riepilogo_IMN!H48-TT_riepilogo_IMN!H60) -> 0
C119: 2020 | D119: 2021 | E119: 2022 | F119: 2023
B120: dfl | C120: =+VLOOKUP(C87-2,ifl,C87 - 2010,FALSE) -> 1.011028 | D120: =+VLOOKUP(D87-2,ifl,D87 - 2010,FALSE) -> 1.012035 | E120: =+VLOOKUP(E87-2,ifl,E87 - 2010,FALSE) -> 1.00902 | F120: =+VLOOKUP(F87-2,ifl,F87 - 2010,FALSE) -> 1.004
B121: ∏(1+It) | C121: =+TT_parametri!BJ8 -> 1.020099 | D121: =+TT_parametri!BK8 -> 1.012011 | E121: =+TT_parametri!BL8 -> 1.003002 | F121: =+TT_parametri!BM8 -> 1.002
A127: comma 7.1 All. A MTI-3 | B127: DCUITcapex
C131: 2020 | D131: 2021 | E131: 2022 | F131: 2023
B132: ΔCUIT | E132: =+SUM(DCUIT!V:V) -> 0 | F132: =+SUM(DCUIT!W:W) -> 0
B133: ΔCUITcapex da foglio "Altri dati economico_finanziari" | E133: =+Altri_dati_eco_fin!G64 -> 0 | F133: =+Altri_dati_eco_fin!H64 -> 0
B134: ΔCUITcapex (controllo ammissibilità) | E134: =+IF(SUM(Dati_Anni_precedenti!$E$25:$F$25)>0,"SI","NO") -> NO | F134: =+IF(SUM(Dati_Anni_precedenti!$E$25:$F$25)>0,"SI","NO") -> NO
B135: ΔCUITcapex | C135: =+Dati_Anni_precedenti!E25 -> 0 | D135: =+Dati_Anni_precedenti!F25 -> 0 | E135: =+IF(AND(E133<=E132,E134="SI"),E133,0) -> 0 | F135: =+IF(AND(F133<=F132,F134="SI"),F133,0) -> 0

Sheet FoNI
A2: Titolo 4 MTI-3 | B2: Fondo nuovi investimenti
B4: Sviluppo della componente FoNI
B9: Componenti nel Piano Tariffario | C9: 2020 | D9: 2021 | E9: 2022 | F9: 2023
B10: FoNIa | C10: =+SUM(C11:C15) -> 0 | D10: =+SUM(D11:D14) -> 0 | E10: =+SUM(E11:E15) -> 0 | F10: =+SUM(F11:F15) -> 0
B11: AMMaFoNI | C11: =C95 -> 0 | D11: =D95 -> 0 | E11: =E95 -> 0 | F11: =F95 -> 0
B12: FNIa | C12: =+C81 -> 0 | D12: =+D81 -> 0 | E12: =+E81 -> 0 | F12: =+F81 -> 0
B13: ΔCUITaFoNI | C13: =+C109 -> 0 | D13: =+D109 -> 0 | E13: =+E109 -> 0 | F13: =+F109 -> 0
B14: DTATOG,ind | C14: =C122 -> 0 | D14: =D122 -> 0 | E14: =E122 -> 0 | F14: =F122 -> 0
B15: DTG,tot | C15: =C136 -> 0 | E15: =E136 -> 0 | F15: =F136 -> 0
B28: Componenti calcolate | C28: 2020 | D28: 2021 | E28: 2022 | F28: 2023
B29: FoNIa | E29: =SUM(E30:E34) -> 0 | F29: =SUM(F30:F34) -> 0
B30: AMMaFoNI | E30: =+E92 -> 0 | F30: =+F92 -> 0
B31: FNIa | E31: =+IF(OR(schema="IV",schema="V",schema="VI"),E79,0) -> 0 | F31: =+IF(OR(schema="IV",schema="V",schema="VI"),F79,0) -> 0
B32: ΔCUITaFoNI | E32: =+E107 -> 0 | F32: =+F107 -> 0
B33: DTATOG,ind | E33: =E122 -> 0 | F33: =F122 -> 0
B34: DTG,tot | E34: =E136 -> 0 | F34: =F136 -> 0
A71: comma 15.2 All. A MTI-3 | B71: FNI - Anticipazione per il finanziamento di nuovi investimenti
C75: 2020 | D75: 2021 | E75: 2022 | F75: 2023
B76: Iptexp | C76: =+Dati_Anni_precedenti!E14 -> 0 | D76: =+Dati_Anni_precedenti!F14 -> 0 | E76: ='PdI-riepilogo'!F15-'PdI-riepilogo'!F21 -> 0 | F76: ='PdI-riepilogo'!G15-'PdI-riepilogo'!G21 -> 0
B77: Capexa | C77: =+Capex!C10+ERC!C11 -> 0 | D77: =+Capex!D10+ERC!D11 -> 0 | E77: =+Capex!E10+ERC!E11 -> 0 | F77: =+Capex!F10+ERC!F11 -> 0
B78: ψ [0,4÷0,8] | C78: =Dati_Anni_precedenti!$G$9 -> 0 | D78: =Dati_Anni_precedenti!$G$9 -> 0 | E78: =Input_per_calcoli_finali!$K$49 -> 0 | F78: =Input_per_calcoli_finali!$K$49 -> 0
B79: FNInew,a da formula | E79: =IF(OR(schema="IV",schema="V",schema="VI"),MAX(0,E78*(E76-E77)),0) -> 0 | F79: =IF(OR(schema="IV",schema="V",schema="VI"),MAX(0,F78*(F76-F77)),0) -> 0
B80: FNInew,a rinunciato da soggetto compilante | E80: =Input_per_calcoli_finali!K123 -> 0 | F80: =Input_per_calcoli_finali!L123 -> 0
B81: FNIa | C81: =+Dati_Anni_precedenti!E31 -> 0 | D81: =+Dati_Anni_precedenti!F31 -> 0 | E81: =IF(OR(schema="IV",schema="V",schema="VI"),MAX(0,E79-E80),0) -> 0 | F81: =IF(OR(schema="IV",schema="V",schema="VI"),MAX(0,F79-F80),0) -> 0
A87: comma 15.3 All. A MTI-3 | B87: AMMFoNI - Ammortamento sui contributi a fondo perduto
C91: 2020 | D91: 2021 | E91: 2022 | F91: 2023
B92: AMMaCFP da formula | C92: =TT_riepilogo_IMN!E13+SUMIF(IMN_Proprietari!$C:$C,"Altra società privata",IMN_Proprietari!$X:$X) -> 0 | D92: =TT_riepilogo_IMN!F13+SUMIF(IMN_Proprietari!$C:$C,"Altra società privata",IMN_Proprietari!$AH:$AH) -> 0 | E92: =TT_riepilogo_IMN!G13+SUMIF(IMN_Proprietari!$C:$C,"Altra società privata",IMN_Proprietari!$AR:$AR) -> 0 | F92: =TT_riepilogo_IMN!H13+SUMIF(IMN_Proprietari!$C:$C,"Altra società privata",IMN_Proprietari!$BB:$BB) -> 0
B93: AMMaCFP massimo nel FoNI (post controllo sull'eventuale presenza di FoNInoninv) | C93: =+IF(FoNI!C164="SI",0,C92) -> 0 | D93: =+IF(FoNI!D164="SI",0,D92) -> 0 | E93: =+IF(FoNI!E164="SI",0,E92) -> 0 | F93: =+IF(FoNI!F164="SI",0,F92) -> 0
B94: AMMaFoNI rinunciato da soggetto compilante | E94: =Input_per_calcoli_finali!K127 -> 0 | F94: =Input_per_calcoli_finali!L127 -> 0
B95: AMMaFoNI | C95: =Dati_Anni_precedenti!E29 -> 0 | D95: =Dati_Anni_precedenti!F29 -> 0 | E95: =MAX(0,E93-E94) -> 0 | F95: =MAX(0,F93-F94) -> 0
A101: comma 15.4 All. A MTI-3 | B101: DCUITFoNI - Eccedenza del costo per l’uso delle infrastrutture di terzi
C105: 2020 | D105: 2021 | E105: 2022 | F105: 2023
B106: ΔCUITa da formula | E106: =+Capex!E132-Capex!E14 -> 0 | F106: =+Capex!F132-Capex!F14 -> 0
B107: ΔCUITa massimo nel FoNI (post controllo sull'eventuale presenza di FoNInoninv e Ammortamento finanziario) | E107: =+IF(FoNI!E163="SI",0,E106) -> 0 | F107: =+IF(FoNI!F163="SI",0,F106) -> 0
B108: ΔCUITaFoNI rinunciato dal soggetto compilante | E108: =+Input_per_calcoli_finali!K131 -> 0 | F108: =+Input_per_calcoli_finali!L131 -> 0
B109: ΔCUITaFoNI | C109: =Dati_Anni_precedenti!E30 -> 0 | D109: =Dati_Anni_precedenti!F30 -> 0 | E109: =MAX(0,E107-E108) -> 0 | F109: =MAX(0,F107-F108) -> 0
A115: comma 15.1 All. A MTI-3 | B115: DTATOG,ind - Comma 23.2 TICSI - Vincolo ex-ante
C119: 2020 | D119: 2021 | E119: 2022 | F119: 2023
B120: Componente da allocare a FoNI (indicare SI/NO) | E120: NO | F120: NO
B121: DTATOG,ind (da formula) | E121: =+Ricavi_Coll_Dep!F29 -> 0 | F121: =+Ricavi_Coll_Dep!G29 -> 0
B122: DTATOG,ind | C122: =Dati_Anni_precedenti!E32 -> 0 | D122: =Dati_Anni_precedenti!F32 -> 0 | E122: =+IF(AND(E121>0,E120="SI"),E121,0) -> 0 | F122: =+IF(AND(F121>0,F120="SI"),F121,0) -> 0
A128: comma 15.1 All. A MTI-3 | B128: DTG,tot - Comma 24.2 TICSI - Vincolo ex-post
C132: 2020 | D132: 2021 | E132: 2022 | F132: 2023
B133: Σtarifnew,a*vscalnew,a-2 | E133: =Altri_dati_eco_fin!E55 -> 0 | F133: =Altri_dati_eco_fin!F55 -> 0
B134: Componente da allocare a FoNI (indicare SI/NO) | E134: NO | F134: NO
B135: DTG,tot (da formula) | E135: =(SUM(Ricavi_bacini_tariffari!P:P)+SUM(Vendita_Servizi_ingrosso!AK:AK)+Ricavi_Coll_Dep!F20)-E133 -> 0 | F135: =(SUM(Ricavi_bacini_tariffari!Q:Q)+SUM(Vendita_Servizi_ingrosso!AL:AL)+Ricavi_Coll_Dep!I20)-F133 -> 0
B136: DTG,tot | C136: =Dati_Anni_precedenti!$E$33 -> 0 | E136: =+IF(AND(E135>0,E134="SI",E138="SI"),E135,0) -> 0 | F136: =+IF(AND(F135>0,F134="SI",F138="SI"),F135,0) -> 0
B138: Attiva componente | E138: NO | F138: NO
A141: art. 35 MTI-3 | B141: Controllo sul rispetto del vincolo di destinazione del FoNI
B145: Controllo sull'eventuale presenza di FoNI - MTI-2 aggiormento non speso
C147: 2020 | D147: 2021 | E147: 2022 | F147: 2023
B148: FoNIa-2 dal foglio "Dati anni precedenti" | E148: =+SUM(Dati_Anni_precedenti!E29:E33) -> 0 | F148: =+SUM(Dati_Anni_precedenti!F29:F33) -> 0
B149: FoNIspesa ai sensi del comma 35.3 del MTI-3 | E149: =+Altri_dati_eco_fin!E57 -> 0 | F149: =+Altri_dati_eco_fin!F57 -> 0
B150: FoNInoninv | C150: =+Dati_Anni_precedenti!E79 -> 0 | D150: =+Dati_Anni_precedenti!F79 -> 0 | E150: =+MAX(E148-E149,0) -> 0 | F150: =+MAX(F148-F149,0) -> 0
B151: SFoNInoninv (a moneta dell'anno) | C151: =+MAX(C150*C153,0) -> 0 | D151: =+MAX(C151*TT_parametri!K66+D150*D153,0) -> 0 | E151: =+MAX(D151*TT_parametri!L67+E150*E153,0) -> 0 | F151: =+MAX(E151*TT_parametri!M68+F150*F153,0) -> 0
B153: dfl | C153: =TT_parametri!$J$64 -> 1.011028 | D153: =TT_parametri!$K$65 -> 1.012035 | E153: =TT_parametri!$L$66 -> 1.00902 | F153: =TT_parametri!$M$67 -> 1.004
B155: Verifica FoNIspesa | E155: =+IF(E149<>E148,"Verificare il valore del FoNIspesa","OK") -> OK | F155: =+IF(F149<>F148,"Verificare il valore del FoNIspesa","OK") -> OK
B157: Condizioni di azzeramento delle componenti ΔCUITFoNI e AMMfoni
C159: 2020 | D159: 2021 | E159: 2022 | F159: 2023
B160: Presenza FoNInoninv | E160: =+IF(ROUND(E151,0)=0,"NO","SI") -> NO | F160: =+IF(ROUND(F151,0)=0,"NO","SI") -> NO
B161: AMMORTAMENTO FINANZIARIO | C161: =+pre_af_2018 -> NO | D161: =+pre_af_2019 -> NO | E161: =+pre_af_2020 -> NO | F161: =+pre_af_2021 -> NO
B163: Azzeramento ΔCUITaFoNI | C163: =+IF(OR(C161="SI",C160="SI"),"SI","NO") -> NO | D163: =+IF(OR(D161="SI",D160="SI"),"SI","NO") -> NO | E163: =+IF(OR(E161="SI",E160="SI"),"SI","NO") -> NO | F163: =+IF(OR(F161="SI",F160="SI"),"SI","NO") -> NO
B164: Azzeramento AMMaFoNI | E164: =+IF(AND(E160="SI",E150>E109),"SI","NO") -> NO | F164: =+IF(AND(F160="SI",F150>F109),"SI","NO") -> NO

Sheet Opex
A2: Titolo 5 MTI-3 | B2: Costi operativi
B4: Sviluppo della componente Opex
B9: Componenti nel Piano Tariffario | C9: 2020 | D9: 2021 | E9: 2022 | F9: 2023
B10: Opexa | C10: =+SUM(C11:C13) -> 0 | D10: =+SUM(D11:D13) -> 0 | E10: =+SUM(E11:E13) -> 0 | F10: =+SUM(F11:F13) -> 0
B11: Opexend | C11: =+C55 -> 0 | D11: =+D55 -> 0 | E11: =+E55 -> 0 | F11: =+F55 -> 0
B12: Opexal | C12: =+C68 -> 0 | D12: =+D68 -> 0 | E12: =+E68 -> 0 | F12: =+F68 -> 0
B13: Opextel | C13: =+C220 -> 0 | D13: =+D220 -> 0 | E13: =+E220 -> 0 | F13: =+F220 -> 0
B28: Componenti calcolate | C28: 2020 | D28: 2021 | E28: 2022 | F28: 2023
B29: Opexa | E29: =+SUM(E30:E32) -> 0 | F29: =+SUM(F30:F32) -> 0
B30: Opexend | E30: =+E53 -> 0 | F30: =+F53 -> 0
B31: Opexal | E31: =+E66 -> 0 | F31: =+F66 -> 0
B32: Opextel | E32: =+E220 -> 0 | F32: =+F220 -> 0
A38: art. 17 MTI-3 | B38: Opexend - Costi endogeni
C42: 2020 | D42: 2021 | E42: 2022 | F42: 2023
B43: Classe (i)
B44: Cluster (j)
B45: γOP
B46: Opexend 2016
B47: Coeff 2016
B48: ΔOpex
B49: ∏(1+It) | C49: =+TT_parametri!BJ$8 -> 1.020099 | D49: =+TT_parametri!BK$9 -> 1.021119099 | E49: =+TT_parametri!BL$10 -> 1.023161337 | F49: =+TT_parametri!BM$11 -> 1.023161337
B50: (1+γOPi,j)*max(0;ΔOpex) | C50: =Storico_Piano_Tariffario!K82 -> 0 | D50: =Storico_Piano_Tariffario!L82 -> 0 | E50: =+D50 -> 0 | F50: =+E50 -> 0
B51: Opexend al lordo degli ERCend | C51: =+IFERROR((Dati_Anni_precedenti!$E84)*C49-C50,"") -> 0 | D51: =+IFERROR((Dati_Anni_precedenti!$E84)*D49-D50,"") -> 0 | E51: =+IFERROR((Dati_Anni_precedenti!$E84)*E49-E50,"") -> 0 | F51: =+IFERROR((Dati_Anni_precedenti!$E84)*F49-F50,"") -> 0
B53: Opexend da formula | C53: =+IFERROR(C51-ERC!C176,0) -> 0 | D53: =+IFERROR(D51-ERC!D176,0) -> 0 | E53: =+IFERROR(E51-ERC!E176,0) -> 0 | F53: =+IFERROR(F51-ERC!F176,0) -> 0 | G53: al netto degli ERCend
B54: Opexend (eventuale detrazione da "Input per calcoli finali") | E54: =Input_per_calcoli_finali!K143 -> 0 | F54: =Input_per_calcoli_finali!L143 -> 0
B55: Opexend al netto degli ERCend | C55: =+Dati_Anni_precedenti!E50 -> 0 | D55: =+Dati_Anni_precedenti!F50 -> 0 | E55: =+IFERROR(E53-E54,0) -> 0 | F55: =+IFERROR(F53-F54,0) -> 0
A61: art. 19 MTI-3 | B61: Opexal - Costi aggiornabili
C65: 2020 | D65: 2021 | E65: 2022 | F65: 2023
B66: Opexala da formula | C66: =+C88+C101+C120+C152+C136 -> 0 | D66: =+D88+D101+D120+D152+D136 -> 0 | E66: =+E88+E101+E120+E152+E136 -> 0 | F66: =+F88+F101+F120+F152+F136 -> 0
B67: Opexala (eventuale detrazione da "Input per calcoli finali") | E67: =+Input_per_calcoli_finali!K147 -> 0 | F67: =+Input_per_calcoli_finali!L147 -> 0
B68: Opexala | C68: =Storico_Piano_Tariffario!K23 -> 0 | D68: =Storico_Piano_Tariffario!L23 -> 0 | E68: =+IFERROR(E66-E67,0) -> 0 | F68: =+IFERROR(F66-F67,0) -> 0
A74: art. 20 MTI-3 | B74: Coee - Costi di energia elettrica
C78: 2020 | D78: 2021 | E78: 2022 | F78: 2023
B79: COeff,a-2EE | E79: =+SUM(Dati_conto_economico!C47:C48,Dati_conto_economico!F47:F48) -> 0 | F79: =+SUM(Dati_conto_economico!I47:I48,Dati_conto_economico!L47:L48) -> 0
B80: COmedio,a-2EE | C80: =+TT_parametri!$AV36 -> 0.1473 | D80: =+TT_parametri!$AV37 -> 0.1597 | E80: =+TT_parametri!$AV38 -> 0.1543 | F80: =+TT_parametri!$AV39 -> 0.1618
B81: kWh a-2 | C81: =+Dati_Anni_precedenti!E88 -> 0 | D81: =+Dati_tecnici!G3 -> 0 | E81: =+Dati_tecnici!E3 -> 0 | F81: =+Dati_tecnici!F3 -> 0
B82: Δrisparmio | E82: =+IFERROR(((SUM(Dati_Anni_precedenti!E100:F100,C81:D81)/4)-E81)*MIN(E79/E81,E80*1.1),0) -> 0 | F82: =+IFERROR(((SUM(Dati_Anni_precedenti!F100,C81:E81)/4)-F81)*MIN(F79/F81,F80*1.1),0) -> 0
B83: γEE | E83: =+IF(E82<0,0,0.25) -> 0.25 | F83: =+IF(F82<0,0,0.25) -> 0.25
B84: ∏(1+It) | C84: =+TT_parametri!BJ8 -> 1.020099 | D84: =+TT_parametri!BK8 -> 1.012011 | E84: =+TT_parametri!BL8 -> 1.003002 | F84: =+TT_parametri!BM8 -> 1.002
B85: Limite comma 20.3 MTI-3 | E85: =0.25*((MIN(E79,E80*E81*1.1)+E83*E82)*E84) -> 0 | F85: =0.25*((MIN(F79,F80*F81*1.1)+F83*F82)*F84) -> 0
B86: OPexp,aEE (importo massimo riconoscibile) | E86: =MIN(VALUE(Altri_dati_eco_fin!G84),E85) -> 0 | F86: =MIN(VALUE(Altri_dati_eco_fin!H84),F85) -> 0
B87: COEE ai sensi del comma 20.1 MTI-3 | E87: =+(MIN(E79,E80*E81*1.1)+E83*E82)*E84 -> 0 | F87: =+(MIN(F79,F80*F81*1.1)+F83*F82)*F84 -> 0
B88: COEE | C88: =+Dati_Anni_precedenti!E40 -> 0 | D88: =+Dati_Anni_precedenti!F40 -> 0 | E88: =+E87+E86 -> 0 | F88: =+F87+F86 -> 0
A94: art. 21 MTI-3 | B94: Cows - Costi all'ingrosso
C98: 2020 | D98: 2021 | E98: 2022 | F98: 2023
B101: COws | C101: =Dati_Anni_precedenti!E41 -> 0 | D101: =Dati_Anni_precedenti!F41 -> 0 | E101: =+SUM(Acquisto_Servizi_ingrosso!K:K) -> 0 | F101: =+SUM(Acquisto_Servizi_ingrosso!AB:AB) -> 0
A107: art. 22 MTI-3 | B107: COΔfanghi - Oneri aggiuntivi per lo smaltimento dei fanghi di depurazione
C111: 2020 | D111: 2021 | E111: 2022 | F111: 2023
B112: Coeffettivo,2017fanghi | C112: =+Dati_Anni_precedenti!$F$101 -> 0 | D112: =+Dati_Anni_precedenti!$F$101 -> 0 | E112: =+Dati_Anni_precedenti!$F$101 -> 0 | F112: =+Dati_Anni_precedenti!$F$101 -> 0
B113: Coeffettivo,a-2fanghi | E113: =+SUM(Dati_conto_economico!C53:C54,Dati_conto_economico!F53:F54,Dati_conto_economico!C91,Dati_conto_economico!F91) -> 0 | F113: =+SUM(Dati_conto_economico!I53:I54,Dati_conto_economico!L53:L54,Dati_conto_economico!I91,Dati_conto_economico!L91) -> 0
B114: F | C114: 0.02 | D114: 0.02 | E114: 0.02 | F114: 0.02
B115: ∏(1+It) | C115: =+TT_parametri!BJ$8 -> 1.020099 | D115: =+TT_parametri!BK$8 -> 1.012011 | E115: =+TT_parametri!BL$8 -> 1.003002 | F115: =+TT_parametri!BM$8 -> 1.002
B117: COΔfanghi (rispetto condizionalità) | E117: =+IF(Altri_dati_eco_fin!$F$74="SI","SI","NO") -> NO | F117: =+IF(Altri_dati_eco_fin!$F$74="SI","SI","NO") -> NO
B120: COΔfanghi | C120: =Dati_Anni_precedenti!E42 -> 0 | D120: =Dati_Anni_precedenti!F42 -> 0 | E120: =+IFERROR(IF(E117="SI",E112*E115*MAX(((E113/E112)-E114)-1,0),0),0) -> 0 | F120: =+IFERROR(IF(F117="SI",F112*F115*MAX(((F113/F112)-F114)-1,0),0),0) -> 0
A126: comma 19.1 MTI-3 | B126: MT, AC - Mutui e Altri corrispettivi
C130: 2020 | D130: 2021 | E130: 2022 | F130: 2023
B131: MT | C131: =Dati_Anni_precedenti!E43 -> 0 | D131: =Dati_Anni_precedenti!F43 -> 0 | E131: =+SUM(Corrispettivi_proprietari!O:O) -> 0 | F131: =+SUM(Corrispettivi_proprietari!P:P) -> 0
B132: AC | C132: =Dati_Anni_precedenti!E44 -> 0 | D132: =Dati_Anni_precedenti!F44 -> 0 | E132: =+SUM(Corrispettivi_proprietari!R:R) -> 0 | F132: =+SUM(Corrispettivi_proprietari!S:S) -> 0
B136: MT + AC | C136: =+C131+C132 -> 0 | D136: =+D131+D132 -> 0 | E136: =+E131+E132 -> 0 | F136: =+F131+F132 -> 0
A142: comma 23.1 MTI-3 | B142: Coaltri - Altri costi
C146: 2020 | D146: 2021 | E146: 2022 | F146: 2023
B147: COATOa | C147: =+C175 -> 0 | D147: =+D175 -> 0 | E147: =+E175 -> 0 | F147: =+F175 -> 0
B148: COARERAa | C148: =+C189 -> 0 | D148: =+D189 -> 0 | E148: =+E189 -> 0 | F148: =+F189 -> 0
B149: COmora | C149: =+Opex!C306 -> 0 | D149: =+Opex!D306 -> 0 | E149: =+Opex!E306 -> 0 | F149: =+Opex!F306 -> 0
B150: COdila | C150: =$C$321 -> 0
B151: COresa | C151: =C203 -> 0 | D151: =D203 -> 0 | E151: =+E203 -> 0 | F151: =+F203 -> 0
B152: COaltria | C152: =SUM(C147:C151) -> 0 | D152: =+SUM(D147:D149,D151) -> 0 | E152: =+SUM(E147:E149,E151) -> 0 | F152: =+SUM(F147:F149,F151) -> 0
A158: comma 23.2 MTI-3 | B158: CoATO - Costi dell'ATO
B162: COmedio,2013ATO | C162: =+TT_parametri!$AV$45 -> 1.01
B163: popATO di competenza del gestore | C163: =IF(popolazione_ato<>0,popolazione_ato,MAX(Dati_tecnici!E12,Dati_tecnici!E20,Dati_tecnici!E26)) -> 0
B164: COmedio,2013ATO * pop2013*z | C164: =+C162*C163*2 -> 0
C167: 2020 | D167: 2021 | E167: 2022 | F167: 2023
B168: COa-2ATO | E168: =+Dati_conto_economico!C83+Dati_conto_economico!F83 -> 0 | F168: =+Dati_conto_economico!I83+Dati_conto_economico!L83 -> 0
L169: SI | M169: Accoglimento Istanza per soggetto competente
B170: Produttoria(1+It) 2013 - anno a | C170: =+TT_parametri!BJ13 -> 1.052995443 | D170: =+TT_parametri!BK14 -> 1.054048438 | E170: =+TT_parametri!BL15 -> 1.056156535 | F170: =+TT_parametri!BM16 -> 1.056156535
B171: Produttoria(1+It) mobile di 2 anni | C171: =+TT_parametri!BJ8 -> 1.020099 | D171: =+TT_parametri!BK8 -> 1.012011 | E171: =+TT_parametri!BL8 -> 1.003002 | F171: =+TT_parametri!BM8 -> 1.002
B175: COATOa | C175: =Dati_Anni_precedenti!E45 -> 0 | D175: =Dati_Anni_precedenti!F45 -> 0 | E175: =MIN(E168*E171,$C$164*E170) -> 0 | F175: =MIN(F168*F171,$C$164*F170) -> 0
A181: comma 23.4 MTI-3 | B181: CoARERA - Costi dell'Autorità
C185: 2020 | D185: 2021 | E185: 2022 | F185: 2023
B186: Ricavia-2A1+A5 | E186: =+Dati_conto_economico!C5+Dati_conto_economico!C11 -> 0 | F186: =+Dati_conto_economico!I5+Dati_conto_economico!I11 -> 0
B187: quota‰ | C187: =+TT_parametri!$BC$50 -> 0.00027 | D187: =+TT_parametri!$BC$51 -> 0.00027 | E187: =+TT_parametri!$BC$50 -> 0.00027 | F187: =+TT_parametri!$BC$50 -> 0.00027
B189: COaARERA | C189: =Dati_Anni_precedenti!E46 -> 0 | D189: =Dati_Anni_precedenti!F46 -> 0 | E189: =+E186*E187 -> 0 | F189: =+F186*F187 -> 0
A195: comma 23.1 MTI-3 | B195: Cores - Oneri locali
C199: 2020 | D199: 2021 | E199: 2022 | F199: 2023
B200: Oneri locali a-2 (esclusi ERC) | E200: =+SUM(Dati_conto_economico!E97:F102) -> 0 | F200: =SUM(Dati_conto_economico!K97:L102) -> 0
B201: contrib in c/e a-2 | E201: =+Dati_conto_economico!C38+Dati_conto_economico!F38 -> 0 | F201: =+Dati_conto_economico!I38+Dati_conto_economico!L38 -> 0
B203: COares | C203: =Dati_Anni_precedenti!E48 -> 0 | D203: =Dati_Anni_precedenti!F48 -> 0 | E203: =+E200-E201 -> 0 | F203: =+F200-F201 -> 0
A209: art. 18 MTI-3 | B209: Opexatel - Costi operativi associati a specifiche finalità
C213: 2020 | D213: 2021 | E213: 2022 | F213: 2023
B214: OPnew | C214: =C232 -> 0 | D214: =D232 -> 0 | E214: =E232 -> 0 | F214: =F232 -> 0
B215: OpexQT | C215: =C245 -> 0 | D215: =D245 -> 0 | E215: =E245 -> 0 | F215: =F245 -> 0
B216: OpexQC | C216: =C259 -> 0 | D216: =D259 -> 0 | E216: =E259 -> 0 | F216: =F259 -> 0
B217: Opsocial | C217: =C272 -> 0 | D217: =D272 -> 0 | E217: =E272 -> 0 | F217: =F272 -> 0
B218: Opmis | C218: =C285 -> 0 | D218: =D285 -> 0 | E218: =E285 -> 0 | F218: =F285 -> 0
B219: OpCOVID | C219: =+Dati_Anni_precedenti!E39 -> 0
B220: Opextel | C220: =+SUM(C214:C219) -> 0 | D220: =+SUM(D214:D218) -> 0 | E220: =+SUM(E214:E218) -> 0 | F220: =+SUM(F214:F218) -> 0
A226: commi da 18.1 a 18.7 MTI-3 | B226: Opnew,a - Costi per cambiamenti sistematici
C230: 2020 | D230: 2021 | E230: 2022 | F230: 2023
B231: Opnew,a da foglio "Input per calcoli finali" | E231: =Input_per_calcoli_finali!K30 -> 0 | F231: =Input_per_calcoli_finali!L30 -> 0
B232: Opnew,a | C232: =+Dati_Anni_precedenti!E34 -> 0 | D232: =+Dati_Anni_precedenti!F34 -> 0 | E232: =+IF(OR(TRIM(schema)="III",TRIM(schema)="VI"),E231,0) -> 0 | F232: =+IF(OR(TRIM(schema)="III",TRIM(schema)="VI"),F231,0) -> 0
A238: comma 18.8 MTI-3 | B238: OpexQT - Costi per gli adeguamenti agli standard di qualità tecnica
C242: 2020 | D242: 2021 | E242: 2022 | F242: 2023
B245: OpexQT (al netto della componente ERCQT) | C245: =+Dati_Anni_precedenti!E35 -> 0 | D245: =+Dati_Anni_precedenti!F35 -> 0 | E245: =+D245 -> 0 | F245: =+E245 -> 0
A251: comma 18.9 MTI-3 | B251: OpexaQC - Costi per gli adeguamenti standard qualità Carta Servizi e eventuali oneri aggiuntivi
C255: 2020 | D255: 2021 | E255: 2022 | F255: 2023
B257: OpexaQC lett. a) co. 18.9 MTI-3 | E257: =+Dati_Anni_precedenti!$F$36 -> 0 | F257: =+Dati_Anni_precedenti!$F$36 -> 0
B258: OpexaQC lett. b) co. 18.9 MTI-3 | E258: =Altri_dati_eco_fin!G77 -> 0 | F258: =Altri_dati_eco_fin!H77 -> 0
B259: OpexaQC | C259: =Dati_Anni_precedenti!E36 -> 0 | D259: =Dati_Anni_precedenti!F36 -> 0 | E259: =+E257+E258 -> 0 | F259: =+F257+F258 -> 0
A265: comma 18.10 MTI-3 | B265: Opsocial
C269: 2020 | D269: 2021 | E269: 2022 | F269: 2023
B270: Opasocial per il mantenimento o l'introduzione di eventuali agevolazioni migliorative | E270: =Altri_dati_eco_fin!G79 -> 0 | F270: =Altri_dati_eco_fin!H79 -> 0
B271: Opasocial comma 7.3 REMSI | E271: =Altri_dati_eco_fin!G80 -> 0 | F271: =Altri_dati_eco_fin!H80 -> 0
B272: Opsocial | C272: =Dati_Anni_precedenti!E37 -> 0 | D272: =Dati_Anni_precedenti!F37 -> 0 | E272: =+E270+E271 -> 0 | F272: =+F270+F271 -> 0
A278: comma 18.11 MTI-3 | B278: Opmis
C282: 2020 | D282: 2021 | E282: 2022 | F282: 2023
B283: Opmis - comma 18.11 MTI-3 | E283: =Altri_dati_eco_fin!G81 -> 0 | F283: =Altri_dati_eco_fin!H81 -> 0
B284: Opmis - comma 18.11 MTI-3 - incentivi all'utenza | E284: =Altri_dati_eco_fin!G82 -> 0 | F284: =Altri_dati_eco_fin!H82 -> 0
B285: Opmis | C285: =Dati_Anni_precedenti!E38 -> 0 | D285: =Dati_Anni_precedenti!F38 -> 0 | E285: =+E283+E284 -> 0 | F285: =+F283+F284 -> 0
A291: art. 28 MTI-3 | B291: Comor - Costi della morosità
B294: Trattamento dei costi di morosità
C296: 2020 | D296: 2021 | E296: 2022 | F296: 2023 | K296: +IVA 10% | L296: =1+0.1 -> 1.1
B297: fatturato componenti perequative (a-2) | E297: =+SUM(Altri_dati_eco_fin!E41:E45) -> 0 | F297: =+SUM(Altri_dati_eco_fin!F41:F45) -> 0 | K297: Area Geogr | L297: =+IFERROR(VLOOKUP(VALUE(idato),TT_Comuni_ATO!N2:O99,2,FALSE),0) -> 0
B298: fatturato componenti perequative da sommare (SI/NO) | E298: SI | F298: SI
B299: fatturatoa-2 | E299: =+(SUM(Dati_conto_economico!C14:'Dati_conto_economico'!C21)+(Dati_conto_economico!C23+Dati_conto_economico!C24+Dati_conto_economico!C27+Dati_conto_economico!C28)+IF(E298="SI",E297,0))*$L$296 -> 0 | F299: =+(SUM(Dati_conto_economico!I14:'Dati_conto_economico'!I21)+(Dati_conto_economico!I23+Dati_conto_economico!I24+Dati_conto_economico!I27+Dati_conto_economico!I28)+IF(F298="SI",F297,0))*$L$296 -> 0
B300: Unpaid Ratio [UR] reale | E300: =Altri_dati_eco_fin!E31 -> 0 | F300: =Altri_dati_eco_fin!F31 -> 0
B301: Unpaid Ratio [UR] art. 28 all. A | C301: =IFERROR(VLOOKUP($L297,TT_parametri!$AU$50:$AV$52,2,FALSE),0) -> 0 | D301: =IFERROR(VLOOKUP($L297,TT_parametri!$AU$50:$AV$52,2,FALSE),0) -> 0 | E301: =IFERROR(VLOOKUP($L297,TT_parametri!$AU$50:$AV$52,2,FALSE),0) -> 0 | F301: =IFERROR(VLOOKUP($L297,TT_parametri!$AU$50:$AV$52,2,FALSE),0) -> 0
B302: Unpaid Ratio [UR] indicato | E302: =+Input_per_calcoli_finali!K66 -> 0 | F302: =+Input_per_calcoli_finali!K66 -> 0
B306: COamor | C306: =+Dati_Anni_precedenti!E47 -> 0 | D306: =+Dati_Anni_precedenti!F47 -> 0 | E306: =MAX(E299*IF(E302="",E301,MIN(E302,E301)),0) -> 0 | F306: =MAX(F299*IF(F302="",F301,MIN(F302,F301)),0) -> 0
A312: art. 28 MTI-3 | B312: Codil - Effetti delle dilazioni di pagamento
B315: Effetto delle dilazioni di pagamento
C317: 2020 | D317: 2021 | E317: 2022 | F317: 2023 | K317: +IVA 10% | L317: =1+0.1 -> 1.1
B318: fatturatoa-2 | K318: Verifica schema | L318: =+IF(Input_per_calcoli_finali!K24="Matrice di schemi regolatori",IF(OR(schema="I",schema="II",schema="III"),0.3%,0.6%),0%) -> 0
B319: Percentuale al fatturato anno a-2
B320: Percentuale massima applicabile
B321: COadil | C321: =+Dati_Anni_precedenti!E78 -> 0
A325: art. 36 MTI-3 | B325: Modalità di copertura di premi - strumento allocativo
B329: Meccanismi incentivanti per il miglioramento della qualità, controllo sui livelli raggiunti e modalità di copertura dei premi
C331: 2020 | D331: 2021 | E331: 2022 | F331: 2023
B332: Strumento allocativo (€/mc) | C332: =Storico_Piano_Tariffario!K81 -> 0 | D332: =Storico_Piano_Tariffario!L81 -> 0 | E332: =+IFERROR(E333/E334,"") ->  | F332: =+IFERROR(F333/F334,"") -> 
B333: (1+γOPi,j)*max(0;ΔOpex) | C333: =Storico_Piano_Tariffario!K82 -> 0 | D333: =Storico_Piano_Tariffario!L82 -> 0 | E333: =Opex!E50 -> 0 | F333: =Opex!F50 -> 0
B334: Volumi | E334: =+IFERROR(E341,"") -> 0 | F334: =+IFERROR(F341,"") -> 0
B336: Totale Volumi
B337: Acquedotto | E337: =+SUMIF(Struttura_corrispettivi!$Z:$Z,"Acquedotto",Struttura_corrispettivi!P:P) -> 0 | F337: =+SUMIF(Struttura_corrispettivi!$Z:$Z,"Acquedotto",Struttura_corrispettivi!Q:Q) -> 0
B338: Fognatura | E338: =+SUMIF(Struttura_corrispettivi!$Z:$Z,"Fognatura",Struttura_corrispettivi!P:P) -> 0 | F338: =+SUMIF(Struttura_corrispettivi!$Z:$Z,"Fognatura",Struttura_corrispettivi!Q:Q) -> 0
B339: Depurazione | E339: =+SUMIF(Struttura_corrispettivi!$Z:$Z,"Depurazione",Struttura_corrispettivi!P:P) -> 0 | F339: =+SUMIF(Struttura_corrispettivi!$Z:$Z,"Depurazione",Struttura_corrispettivi!Q:Q) -> 0
B340: Utenze di cui al Titolo 4 (TICSI) | E340: =+SUM(Ricavi_Coll_Dep!H11,Ricavi_Coll_Dep!H12) -> 0 | F340: =+SUM(Ricavi_Coll_Dep!I11,Ricavi_Coll_Dep!I12) -> 0
B341: Volumi per modalità di copertura premi | E341: =+SUM(E337:E340) -> 0 | F341: =+SUM(F337:F340) -> 0

Sheet ERC
A2: Titolo 6 MTI-3 | B2: Costi ambientali e della risorsa
B4: Sviluppo della componente ERC
B9: Componenti nel Piano Tariffario | C9: 2020 | D9: 2021 | E9: 2022 | F9: 2023
B10: ERC | C10: =+C11+C12 -> 0 | D10: =+D11+D12 -> 0 | E10: =+E11+E12 -> 0 | F10: =+F11+F12 -> 0
B11: ERCcapex | C11: =+C51 -> 0 | D11: =+D51 -> 0 | E11: =+E51 -> 0 | F11: =+F51 -> 0
B12: ERCopex | C12: =+C137 -> 0 | D12: =+D137 -> 0 | E12: =+E137 -> 0 | F12: =+F137 -> 0
B28: Componenti calcolate | C28: 2020 | D28: 2021 | E28: 2022 | F28: 2023
B29: ERC | E29: =+E30+E31 -> 0 | F29: =+F30+F31 -> 0
B30: ERCcapex | E30: =E49 -> 0 | F30: =F49 -> 0
B31: ERCopex | E31: =E135 -> 0 | F31: =F135 -> 0
B41: Sviluppo della componente ERCcapex
C45: 2020 | D45: 2021 | E45: 2022 | F45: 2023
B46: ENVcapex | C46: =Dati_Anni_precedenti!E51 -> 0 | D46: =Dati_Anni_precedenti!F51 -> 0 | E46: =+E64+E79+E86 -> 0 | F46: =+F64+F79+F86 -> 0
B47: REScapex | C47: =Dati_Anni_precedenti!E52 -> 0 | D47: =Dati_Anni_precedenti!F52 -> 0 | E47: =+E99+E113+E120 -> 0 | F47: =+F99+F113+F120 -> 0
B49: ERCcapex da calcolo | E49: =+E46+E47 -> 0 | F49: =+F46+F47 -> 0
B50: ERCcapex (eventuale detrazione da "Input per calcoli finali") | E50: =+Input_per_calcoli_finali!K159 -> 0 | F50: =+Input_per_calcoli_finali!L159 -> 0
B51: ERCcapex | C51: =+C46+C47 -> 0 | D51: =+D46+D47 -> 0 | E51: =+E49-E50 -> 0 | F51: =+F49-F50 -> 0
A55: art. 25 All. A MTI-3 | B55: Envcapex
C59: 2020 | D59: 2021 | E59: 2022 | F59: 2023
B62: Incidenza ENV | E62: =+Nuovi_Investimenti!D11 -> 0 | F62: =+Nuovi_Investimenti!E11 -> 0
B64: AMMenv | E64: =+TT_riepilogo_IMN!G45+(TT_riepilogo_IMN!G9-TT_riepilogo_IMN!G45-TT_riepilogo_IMN!G57)*E62 -> 0 | F64: =+TT_riepilogo_IMN!H45+(TT_riepilogo_IMN!H9-TT_riepilogo_IMN!H45-TT_riepilogo_IMN!H57)*F62 -> 0
B67: Km | C67: =Capex!$C$59 -> 0.021526 | D67: =Capex!$D$59 -> 0.021526 | E67: =Capex!$E$59 -> 0.01827 | F67: =Capex!$F$59 -> 0.01827
B68: α | C68: =Capex!$C$60 -> 0.0158 | D68: =Capex!$D$60 -> 0.0158 | E68: =Capex!$E$60 -> 0.0158 | F68: =Capex!$F$60 -> 0.0158
B70: CINenv | C70: =+MAX(TT_riepilogo_IMN!E44,0) -> 0 | D70: =+MAX(TT_riepilogo_IMN!F44,0) -> 0 | E70: =+MAX(TT_riepilogo_IMN!G44,0) -> 0 | F70: =+MAX(TT_riepilogo_IMN!H44,0) -> 0
B71: CINfp,env | C71: =+MAX(TT_riepilogo_IMN!E48,0) -> 0 | D71: =+MAX(TT_riepilogo_IMN!F48,0) -> 0 | E71: =+MAX(TT_riepilogo_IMN!G48,0) -> 0 | F71: =+MAX(TT_riepilogo_IMN!H48,0) -> 0
B72: CINfp / (CIN) env | C72: =+IFERROR(C71/C70,0) -> 0 | D72: =+IFERROR(D71/D70,0) -> 0 | E72: =+IFERROR(E71/E70,0) -> 0 | F72: =+IFERROR(F71/F70,0) -> 0
B74: OFenv (time lag) | C74: =Capex!$K$61*(C70-C71) -> 0 | D74: =Capex!$K$61*(D70-D71) -> 0 | E74: =Capex!$K$61*(E70-E71) -> 0 | F74: =Capex!$K$61*(F70-F71) -> 0
B75: OFenv (escluso time lag) | C75: =+(C67+C68)*(1-C72)*C70 -> 0 | D75: =+(D67+D68)*(1-D72)*D70 -> 0 | E75: =+(E67+E68)*(1-E72)*E70 -> 0 | F75: =+(F67+F68)*(1-F72)*F70 -> 0
B79: OFenv | E79: =+E74+E75+(Capex!E68/(1-Capex!E44))*ERC!E62 -> 0 | F79: =+F74+F75+(Capex!F68/(1-Capex!F44))*ERC!F62 -> 0
B81: Rai rate | C81: =Capex!$C$72 -> 0.06264074897 | D81: =Capex!$D$72 -> 0.06264074897 | E81: =Capex!$E$72 -> 0.05785954486 | F81: =Capex!$F$72 -> 0.05785954486
B82: Raienv | C82: =+(C70-C71)*C81 -> 0 | D82: =+(D70-D71)*D81 -> 0 | E82: =+(E70-E71)*E81 -> 0 | F82: =+(F70-F71)*F81 -> 0
B86: OFiscenv | E86: =+MAX(Capex!$K$59*E82,0)+(Capex!E75/(1-Capex!E44))*ERC!E62 -> 0 | F86: =+MAX(Capex!$K$59*F82,0)+(Capex!F75/(1-Capex!F44))*ERC!F62 -> 0
A90: art. 25 All. A MTI-3 | B90: Rescapex
C94: 2020 | D94: 2021 | E94: 2022 | F94: 2023
B97: Incidenza Res | E97: =+Nuovi_Investimenti!D12 -> 0 | F97: =+Nuovi_Investimenti!E12 -> 0
B99: AMMres | E99: =+TT_riepilogo_IMN!G57+(TT_riepilogo_IMN!G9-TT_riepilogo_IMN!G45-TT_riepilogo_IMN!G57)*E97 -> 0 | F99: =+TT_riepilogo_IMN!H57+(TT_riepilogo_IMN!H9-TT_riepilogo_IMN!H45-TT_riepilogo_IMN!H57)*F97 -> 0
B101: Km | C101: =Capex!$C$59 -> 0.021526 | D101: =Capex!$D$59 -> 0.021526 | E101: =Capex!$E$59 -> 0.01827 | F101: =Capex!$F$59 -> 0.01827
B102: α | C102: =Capex!$C$60 -> 0.0158 | D102: =Capex!$D$60 -> 0.0158 | E102: =Capex!$E$60 -> 0.0158 | F102: =Capex!$F$60 -> 0.0158
B104: CINres | C104: =+MAX(TT_riepilogo_IMN!E56,0) -> 0 | D104: =+MAX(TT_riepilogo_IMN!F56,0) -> 0 | E104: =+MAX(TT_riepilogo_IMN!G56,0) -> 0 | F104: =+MAX(TT_riepilogo_IMN!H56,0) -> 0
B105: CINfp,res | C105: =+MAX(TT_riepilogo_IMN!E60,0) -> 0 | D105: =+MAX(TT_riepilogo_IMN!F60,0) -> 0 | E105: =+MAX(TT_riepilogo_IMN!G60,0) -> 0 | F105: =+MAX(TT_riepilogo_IMN!H60,0) -> 0
B106: CINfp / (CIN) res | C106: =+IFERROR(C105/C104,0) -> 0 | D106: =+IFERROR(D105/D104,0) -> 0 | E106: =+IFERROR(E105/E104,0) -> 0 | F106: =+IFERROR(F105/F104,0) -> 0
B108: OFres (time lag) | C108: =Capex!$K$61*(C104-C105) -> 0 | D108: =Capex!$K$61*(D104-D105) -> 0 | E108: =Capex!$K$61*(E104-E105) -> 0 | F108: =Capex!$K$61*(F104-F105) -> 0
B109: OFres (escluso time lag) | C109: =+(C67+C68)*(1-C106)*C104 -> 0 | D109: =+(D67+D68)*(1-D106)*D104 -> 0 | E109: =+(E67+E68)*(1-E106)*E104 -> 0 | F109: =+(F67+F68)*(1-F106)*F104 -> 0
B113: OFres | E113: =+E108+E109+(Capex!E68/(1-Capex!E44))*ERC!E97 -> 0 | F113: =+F108+F109+(Capex!F68/(1-Capex!F44))*ERC!F97 -> 0
B115: Rai rate | C115: =Capex!$C$72 -> 0.06264074897 | D115: =Capex!$D$72 -> 0.06264074897 | E115: =Capex!$E$72 -> 0.05785954486 | F115: =Capex!$F$72 -> 0.05785954486
B116: Raires | C116: =+(C104-C105)*C81 -> 0 | D116: =+(D104-D105)*D81 -> 0 | E116: =+(E104-E105)*E81 -> 0 | F116: =+(F104-F105)*F81 -> 0
B120: OFiscres | E120: =+MAX(Capex!$K$59*E116,0)+(Capex!E75/(1-Capex!E44))*ERC!E97 -> 0 | F120: =+MAX(Capex!$K$59*F116,0)+(Capex!F75/(1-Capex!F44))*ERC!F97 -> 0
B127: Sviluppo della componente ERCopex
C130: 2020 | D130: 2021 | E130: 2022 | F130: 2023
B131: ERCend | C131: =+C176 -> 0 | D131: =+D176 -> 0 | E131: =+E176 -> 0 | F131: =+F176 -> 0
B132: ERCal | C132: =+C157 -> 0 | D132: =+D157 -> 0 | E132: =+E157 -> 0 | F132: =+F157 -> 0
B133: ERCtel | C133: =+C190 -> 0 | D133: =+D190 -> 0 | E133: =+E190 -> 0 | F133: =+F190 -> 0
B135: ERCopex da calcolo | E135: =+SUM(E131:E133) -> 0 | F135: =+SUM(F131:F133) -> 0
B136: ERCopex (eventuale detrazione da "Input per calcoli finali") | E136: =+Input_per_calcoli_finali!K163 -> 0 | F136: =+Input_per_calcoli_finali!L163 -> 0
B137: ERCopex | C137: =+SUM(C131:C133) -> 0 | D137: =+SUM(D131:D133) -> 0 | E137: =+E135-E136 -> 0 | F137: =+F135-F136 -> 0
A143: art. 26 All. A MTI-3 | B143: ERCal - ERC aggiornabili
B147: Valori da bilancio dell'anno a-2 | C147: 2020 | D147: 2021 | E147: 2022 | F147: 2023
B148: Canoni di derivaz/sottens idrica (quota ERC) | E148: =+Dati_conto_economico!D97 -> 0 | F148: =+Dati_conto_economico!J97 -> 0
B149: contributi per consorzi di bonifica | E149: =+Dati_conto_economico!D98 -> 0 | F149: =+Dati_conto_economico!J98 -> 0
B150: Comunità Montane (quota ERC) | E150: =+Dati_conto_economico!D99 -> 0 | F150: =+Dati_conto_economico!J99 -> 0
B151: canoni per restituzione acque | E151: =+Dati_conto_economico!D100 -> 0 | F151: =+Dati_conto_economico!J100 -> 0
B152: oneri per la gestione di aree di salvaguardia | E152: =+Dati_conto_economico!D101 -> 0 | F152: =+Dati_conto_economico!J101 -> 0
B155: ERCaal da formula
B156: ERCaal (detrazione)
B157: ERCaal | C157: =Dati_Anni_precedenti!E54 -> 0 | D157: =Dati_Anni_precedenti!F54 -> 0 | E157: =+SUM(E148:E152) -> 0 | F157: =+SUM(F148:F152) -> 0
A161: art. 26 All. A MTI-3 | B161: ERCend - ERC endogeni
B165: Valori da bilancio dell'anno a-2 | C165: 2020 | D165: 2021 | E165: 2022 | F165: 2023
B166: B6) Per materie prime, sussidiarie, di consumo e merci | E166: =+Dati_conto_economico!D43 -> 0 | F166: =+Dati_conto_economico!J43 -> 0
B167: B7) Altri servizi da altre imprese del gruppo | E167: =+Dati_conto_economico!D57 -> 0 | F167: =+Dati_conto_economico!J57 -> 0
B168: B7) Altri servizi da altre imprese | E168: =+Dati_conto_economico!D58 -> 0 | F168: =+Dati_conto_economico!J58 -> 0
B169: B8) Per godimento beni di terzi | E169: =+Dati_conto_economico!D59 -> 0 | F169: =+Dati_conto_economico!J59 -> 0
B170: B9) Per il personale | E170: =+Dati_conto_economico!D62 -> 0 | F170: =+Dati_conto_economico!J62 -> 0
B171: B14) Oneri diversi di gestione | E171: =+Dati_conto_economico!D72-SUM(E148:E152) -> 0 | F171: =+Dati_conto_economico!J72-SUM(F148:F152) -> 0
B172: ∏(1+It) | C172: =TT_parametri!BJ8 -> 1.020099 | D172: =TT_parametri!BK8 -> 1.012011 | E172: =TT_parametri!BL8 -> 1.003002 | F172: =TT_parametri!BM8 -> 1.002
B176: ERCaend | C176: =Dati_Anni_precedenti!E53 -> 0 | D176: =Dati_Anni_precedenti!F53 -> 0 | E176: =++SUM(E166:E171)*E172 -> 0 | F176: =++SUM(F166:F171)*F172 -> 0
A180: art. 26 All. A MTI-3 | B180: ERCtel - specifiche finalità
C184: 2020 | D184: 2021 | E184: 2022 | F184: 2023
B185: ERCQT 2019 previsionale
B186: ERCQT 2019 consuntivo (da foglio "PdI-riepilogo")
B187: ERCa QT | C187: =Dati_Anni_precedenti!E55 -> 0 | D187: =Dati_Anni_precedenti!F55 -> 0 | E187: =+D187 -> 0 | F187: 0
B190: ERCa tel | C190: =+C187 -> 0 | D190: =+D187 -> 0 | E190: =+E187 -> 0 | F190: =+F187 -> 0

Sheet Rc
A2: Titolo 7 MTI-3 | B2: Sostenibilità finanziaria efficiente
B4: Sviluppo della componente Rc
B9: Componenti nel Piano Tariffario | C9: 2020 | D9: 2021 | E9: 2022 | F9: 2023
B10: RcTOTa | C10: =+C12 -> 0 | D10: =+D12 -> 0 | E10: =+E12 -> 0 | F10: =+F12 -> 0
B11: RcTOTa calcolato (include inflazione) | C11: =+C19 -> 0 | D11: =+D19 -> 0 | E11: =+E19 -> 0 | F11: =+F19 -> 0
B12: RcTOTa da input per calcoli finali | C12: =++IFERROR(Input_per_calcoli_finali!I219,0) -> 0 | D12: =++IFERROR(Input_per_calcoli_finali!J219,0) -> 0 | E12: =++IFERROR(Input_per_calcoli_finali!K219,0) -> 0 | F12: =++IFERROR(Input_per_calcoli_finali!L219,0) -> 0
B18: Componenti post detrazioni | C18: 2020 | D18: 2021 | E18: 2022 | F18: 2023
B19: RcTOTa | C19: =+SUM(C20:C24) -> 0 | D19: =+SUM(D20:D24) -> 0 | E19: =+SUM(E20:E24)+SUM(E304:E305)*(+TT_parametri!BL$8) -> 0 | F19: =+SUM(F20:F24)+SUM(F304:F305)*(+TT_parametri!BM$8) -> 0 | G19: Prima della eventuale ulteriore riallocazione dei conguagli
B20: Rcvol | C20: =(C59) -> 0 | D20: =(D59) -> 0 | E20: =(E59)*(+TT_parametri!BL$8) -> 0 | F20: =(F59)*(+TT_parametri!BM$8) -> 0
B21: RcEE | C21: =(C85) -> 0 | D21: =(D85) -> 0 | E21: =(E85)*(+TT_parametri!BL$8) -> 0 | F21: =(F85)*(+TT_parametri!BM$8) -> 0
B22: RcWS | C22: =(C106) -> 0 | D22: =(D106) -> 0 | E22: =(E106)*(+TT_parametri!BL$8) -> 0 | F22: =(F106)*(+TT_parametri!BM$8) -> 0
B23: RcERC | C23: =(C127) -> 0 | D23: =(D127) -> 0 | E23: =(E127)*(+TT_parametri!BL$8) -> 0 | F23: =(F127)*(+TT_parametri!BM$8) -> 0
B24: RcALTRO | C24: =(C162) -> 0 | D24: =(D162) -> 0 | E24: =(E162)*(+TT_parametri!BL$8) -> 0 | F24: =(F162)*(+TT_parametri!BM$8) -> 0
B28: Componenti calcolate | C28: 2020 | D28: 2021 | E28: 2022 | F28: 2023
B29: RcTOTa | E29: =+SUM(E30:E34)+SUM(E304:E305)*(+TT_parametri!BL$8) -> 0 | F29: =+SUM(F30:F34)+SUM(F304:F305)*(+TT_parametri!BM$8) -> 0
B30: Rcvol | E30: =(E57)*(+TT_parametri!BL$8) -> 0 | F30: =(F57)*(+TT_parametri!BM$8) -> 0
B31: RcEE | E31: =(E83)*(+TT_parametri!BL$8) -> 0 | F31: =(F83)*(+TT_parametri!BM$8) -> 0
B32: RcWS | E32: =(E104)*(+TT_parametri!BL$8) -> 0 | F32: =(F104)*(+TT_parametri!BM$8) -> 0
B33: RcERC | E33: =(E125)*(+TT_parametri!BL$8) -> 0 | F33: =(F125)*(+TT_parametri!BM$8) -> 0
B34: RcALTRO | E34: =(E160)*(+TT_parametri!BL$8) -> 0 | F34: =(F160)*(+TT_parametri!BM$8) -> 0
A40: comma 27.1 MTI-3 | B40: RCvol - recupero scostamento tariffe e volumi
C44: 2020 | D44: 2021 | E44: 2022 | F44: 2023 | K44: minuendo | M44: sottraendo
B45: Ja-2 ai fini del calcolo dei conguagli | E45: =+IF(Dati_Anni_precedenti!E6="",Dati_Anni_precedenti!E5,Dati_Anni_precedenti!E6) -> 0 | F45: =+IF(Dati_Anni_precedenti!F6="",Dati_Anni_precedenti!F5,Dati_Anni_precedenti!F6) -> 0 | J45: a = 2020 | K45: J2018*tarif2015*vscal2016 | L45: - | M45: tarif2018*vscal2018
B46: tarif2019*vscala-4 | E46: =+SUM(Dati_Anni_precedenti!E17:E19) -> 0 | F46: =+SUM(Dati_Anni_precedenti!F17:F19) -> 0 | J46: a = 2021 | K46: J2019*tarif2015*vscal2017 | L46: - | M46: tarif2019*vscal2019
B47: Ja-2*tarif2019vscala-4 (minuendo, include dettaglio, ingrosso, ind) | E47: =+E45*E46 -> 0 | F47: =+F45*F46 -> 0 | J47: a = 2022 | K47: J2020*tarif2019*vscal2018 | L47: - | M47: tarif2020*vscal2020
B48: (tarifa-2vscala-2) (sottraendo, include dettaglio, ingrosso, ind) | E48: =SUM(Ricavi_bacini_tariffari!P:P)+SUM(Vendita_Servizi_ingrosso!AK:AK)+Ricavi_Coll_Dep!F27 -> 0 | F48: =SUM(Ricavi_bacini_tariffari!Q:Q)+SUM(Vendita_Servizi_ingrosso!AL:AL)+Ricavi_Coll_Dep!G27 -> 0 | J48: a = 2023 | K48: J2021*tarif2019*vscal2019 | L48: - | M48: tarif2021*vscal2021
B49: Rcvol (per dettaglio, ingrosso, ind) | E49: =IF(E62="manca il dato di input",0,E47-E48) -> 0 | F49: =IF(F62="manca il dato di input",0,F47-F48) -> 0
B51: Componente da allocare a FoNI (informazione raccolta nel foglio "FoNI") | E51: =+FoNI!E120 -> NO | F51: =+FoNI!F120 -> NO
B52: DTATOG,ind | E52: =IF(FoNI!E121>0,IF(E51="NO",-FoNI!E121,0),-FoNI!E121) -> 0 | F52: =IF(FoNI!F121>0,IF(F51="NO",-FoNI!F121,0),-FoNI!F121) -> 0
B54: Componente da allocare a FoNI (informazione raccolta nel foglio "FoNI") | E54: =+FoNI!E134 -> NO | F54: =+FoNI!F134 -> NO
B55: DTG,tot | E55: =IF(FoNI!E135>0,IF(E54="NO",-FoNI!E135,0),-FoNI!E135) -> 0 | F55: =IF(FoNI!F135>0,IF(F54="NO",-FoNI!F135,0),-FoNI!F135) -> 0
B57: Rcvol da calcolo | E57: =IF(E62="manca il dato di input",0,E47-E48) -> 0 | F57: =IF(F62="manca il dato di input",0,F47-F48) -> 0
B58: Rcvol (eventuale detrazione da "Input per calcoli finali") | E58: =Input_per_calcoli_finali!K175 -> 0 | F58: =Input_per_calcoli_finali!L175 -> 0
B59: Rcvola | C59: =+Dati_Anni_precedenti!E56 -> 0 | D59: =+Dati_Anni_precedenti!F56 -> 0 | E59: =+E57-E58 -> 0 | F59: =+F57-F58 -> 0
B62: controllo dati anni precedenti | E62: =+IF(Dati_Anni_precedenti!E16=0,"manca il dato di input", "ok") -> manca il dato di input | F62: =+IF(Dati_Anni_precedenti!F16=0,"manca il dato di input", "ok") -> manca il dato di input
A70: comma 27.1 MTI-3 | B70: RCEE - recupero scostamento costi di energia elettrica
C74: 2020 | D74: 2021 | E74: 2022 | F74: 2023
B75: COeff,a-2EE | E75: =+SUM(Dati_conto_economico!C47:C48,Dati_conto_economico!F47:F48) -> 0 | F75: =+SUM(Dati_conto_economico!I47:I48,Dati_conto_economico!L47:L48) -> 0
B76: COmedio,a-2EE | E76: =TT_parametri!$AV$38 -> 0.1543 | F76: =TT_parametri!$AV$39 -> 0.1618
B77: kWh a-2 | C77: =+Dati_Anni_precedenti!E88 -> 0 | D77: =+Dati_Anni_precedenti!F88 -> 0 | E77: =Dati_tecnici!E3 -> 0 | F77: =Dati_tecnici!F3 -> 0
B78: COmedio,a-2EE * kWha-2*1,1 | E78: =+E76*E77*1.1 -> 0 | F78: =+F76*F77*1.1 -> 0
B79: Δrisparmio | E79: =+IFERROR(((SUM(Dati_Anni_precedenti!E100,Dati_Anni_precedenti!F100,$C77,Dati_tecnici!G3)/4)-E77)*MIN(E75/E77,E76*1.1),0) -> 0 | F79: =+IFERROR(((SUM(Dati_Anni_precedenti!F100,C77,Dati_tecnici!G3,E77)/4)-F77)*MIN(F75/F77,F76*1.1),0) -> 0
B80: γEE | E80: =+IF(E79<0,0,0.25) -> 0.25 | F80: =+IF(F79<0,0,0.25) -> 0.25
B81: COEEa-2 | E81: =Dati_Anni_precedenti!E40 -> 0 | F81: =Dati_Anni_precedenti!F40 -> 0
B83: RcEE da calcolo | E83: =IF(E88="manca il dato di input",0,(MIN(E75,E78)+E79*E80)-E81) -> 0 | F83: =IF(F88="manca il dato di input",0,(MIN(F75,F78)+F79*F80)-F81) -> 0
B84: RcEE (eventuale detrazione da "Input per calcoli finali") | E84: =+Input_per_calcoli_finali!K179 -> 0 | F84: =+Input_per_calcoli_finali!L179 -> 0
B85: RcEEa | C85: =+Dati_Anni_precedenti!E57 -> 0 | D85: =+Dati_Anni_precedenti!F57 -> 0 | E85: =+E83-E84 -> 0 | F85: =+F83-F84 -> 0
B88: controllo dati anni precedenti | E88: =+IF(OR(E77=0,Dati_Anni_precedenti!E40=""),"manca il dato di input", "ok") -> manca il dato di input | F88: =+IF(OR(F77=0,Dati_Anni_precedenti!F40=""),"manca il dato di input", "ok") -> manca il dato di input
A96: comma 27.1 MTI-3 | B96: RCws - recupero scostamento costi all'ingrosso
C100: 2020 | D100: 2021 | E100: 2022 | F100: 2023
B101: Cows,jeff,a-2 | E101: =+SUMIFS(Acquisto_Servizi_ingrosso!V:V,Acquisto_Servizi_ingrosso!AP:AP,1) -> 0 | F101: =+SUMIFS(Acquisto_Servizi_ingrosso!AM:AM,Acquisto_Servizi_ingrosso!AQ:AQ,1) -> 0
B102: Cows,ja-2 | E102: =+Dati_Anni_precedenti!E41 -> 0 | F102: =+Dati_Anni_precedenti!F41 -> 0
B104: Rcws da calcolo | E104: =+E101-E102 -> 0 | F104: =+F101-F102 -> 0
B105: Rcws (eventuale detrazione da "Input per calcoli finali") | E105: =+Input_per_calcoli_finali!K183 -> 0 | F105: =+Input_per_calcoli_finali!L183 -> 0
B106: Rcwsa | C106: =+Dati_Anni_precedenti!E58 -> 0 | D106: =+Dati_Anni_precedenti!F58 -> 0 | E106: =+E104-E105 -> 0 | F106: =+F104-F105 -> 0
A115: comma 27.1 MTI-3 | B115: RCERC - recupero scostamento componente ERC
C119: 2020 | D119: 2021 | E119: 2022 | F119: 2023
B120: ERCala-2 effettivo | E120: =+SUM(Dati_conto_economico!D97:D102) -> 0 | F120: =+SUM(Dati_conto_economico!J97:J102) -> 0
B121: ERCala-2 | E121: =+Dati_Anni_precedenti!E54 -> 0 | F121: =+Dati_Anni_precedenti!F54 -> 0
B122: ERCtela-2 effettivo | E122: =+'PdI-riepilogo'!D39+'PdI-riepilogo'!E39 -> 0 | F122: =+'PdI-riepilogo'!G39+'PdI-riepilogo'!H39 -> 0
B123: ERCtela-2 | E123: =Dati_Anni_precedenti!E55 -> 0 | F123: =Dati_Anni_precedenti!F55 -> 0
B125: RcERC da calcolo | E125: =+E120-E121+MIN(E122-E123,0) -> 0 | F125: =+F120-F121+MIN(F122-F123,0) -> 0
B126: RcERC (eventuale detrazione da "Input per calcoli finali") | E126: =+Input_per_calcoli_finali!K187 -> 0 | F126: =+Input_per_calcoli_finali!L187 -> 0
B127: RcERCa | C127: =+Dati_Anni_precedenti!E59 -> 0 | D127: =+Dati_Anni_precedenti!F59 -> 0 | E127: =+E125-E126 -> 0 | F127: =+F125-F126 -> 0
A136: comma 27.1 MTI-3 | B136: RCALTRO - recupero altri scostamenti
C140: 2020 | D140: 2021 | E140: 2022 | F140: 2023
B141: RcaAttiv b | C141: =C184 -> 0 | D141: =D184 -> 0 | E141: =E184 -> 0 | F141: =F184 -> 0
B142: Rcares | C142: =C199 -> 0 | D142: =D199 -> 0 | E142: =E199 -> 0 | F142: =F199 -> 0
B143: RcaARERA | C143: =C215 -> 0 | D143: =D215 -> 0 | E143: =E215 -> 0 | F143: =F215 -> 0
B144: Costo forniture all’ingrosso transfrontaliere | C144: =+Dati_Anni_precedenti!E63 -> 0 | D144: =+Dati_Anni_precedenti!F63 -> 0 | E144: =+Altri_dati_eco_fin!E51 -> 0 | F144: =+Altri_dati_eco_fin!F51 -> 0
B145: RcIP (valori a moneta a-2, include eventuale FoNInoninv) | C145: =+Dati_Anni_precedenti!E64 -> 0 | D145: =+Dati_Anni_precedenti!F64 -> 0 | E145: =-Altri_dati_eco_fin!E56 -> 0 | F145: =-Altri_dati_eco_fin!F56+SUM(Conferma_investimenti_2019!AY:AY) -> 0
B146: Costi per variazioni sistemiche / eventi eccezionali | C146: =+Dati_Anni_precedenti!E65 -> 0 | D146: =+Dati_Anni_precedenti!F65 -> 0 | E146: =+Altri_dati_eco_fin!E49 -> 0 | F146: =+Altri_dati_eco_fin!F49 -> 0
B147: Rimb335a | C147: =+Dati_Anni_precedenti!E66 -> 0 | D147: =+Dati_Anni_precedenti!F66 -> 0 | E147: =+Altri_dati_eco_fin!E52 -> 0 | F147: =+Altri_dati_eco_fin!F52 -> 0
B148: Rcaappr | C148: =+Dati_Anni_precedenti!E67 -> 0 | D148: =+Dati_Anni_precedenti!F67 -> 0 | E148: =Input_per_calcoli_finali!K76+Input_per_calcoli_finali!K77 -> 0 | F148: =Input_per_calcoli_finali!L76+Input_per_calcoli_finali!L77 -> 0
B149: DOpCOVID | E149: =$E$292 -> 0
B150: DOpexQC | C150: =C231 -> 0 | D150: =D231 -> 0 | E150: =E231 -> 0 | F150: =F231 -> 0
B151: DOpexQT | C151: =C247 -> 0 | D151: =D247 -> 0 | E151: =E247 -> 0 | F151: =F247 -> 0
B152: DOpsocial | C152: =+C264 -> 0 | D152: =+D264 -> 0 | E152: =+E264 -> 0 | F152: =+F264 -> 0
B153: DOpmis | E153: =E278 -> 0 | F153: =F278 -> 0
B154: Recupero volumi 2019 | D154: =$D$320 -> 0 | F154: =+F320 -> 0
B155: Recupero energia elettrica 2019 | D155: =+D341 -> 0 | F155: =+F341 -> 0
B156: Rinvio di quota parte degli oneri ammissibili a riconoscimento tariffario nel 2020 | C156: =+Dati_Anni_precedenti!E74/(+TT_parametri!BJ$8) -> 0
B157: Rcappr2020,COVID | D157: =+Dati_Anni_precedenti!F75/(+TT_parametri!BK$8) -> 0 | E157: =Altri_dati_eco_fin!G60/(TT_parametri!BL$8) -> 0 | F157: =Altri_dati_eco_fin!H60/(TT_parametri!BM$8) -> 0
B160: RcaAltro da calcolo | E160: =+SUM(E141:E153,E157) -> 0 | F160: =+SUM(F141:F148,F150:F155,F157) -> 0
B161: RcaAltro (eventuale detrazione da "Input per calcoli finali") | E161: =+Input_per_calcoli_finali!K191 -> 0 | F161: =+Input_per_calcoli_finali!L191 -> 0
B162: RcaAltro | C162: =+SUM(C141:C144,C145:C148,C150:C152,C156) -> 0 | D162: =+SUM(D141:D148,D150:D152,D154:D155,D157) -> 0 | E162: =+E160-E161 -> 0 | F162: =+F160-F161 -> 0
B170: RCattività b
C174: 2020 | D174: 2021 | E174: 2022 | F174: 2023
B175: %b | E175: 0.5 | F175: 0.5
B176: Rb1a-2 | E176: =+VRG_Teta!E111 -> 0 | F176: =+VRG_Teta!F111 -> 0
B177: Cb1a-2 | E177: =+VRG_Teta!E140 -> 0 | F177: =+VRG_Teta!F140 -> 0
B179: γb | E179: 0.5 | F179: 0.5
B180: Rb2a-2 | E180: =VRG_Teta!E109 -> 0 | F180: =VRG_Teta!F109 -> 0
B181: Cb2a-2 | E181: =VRG_Teta!E138 -> 0 | F181: =VRG_Teta!F138 -> 0
B182: RcaAttiv b1 | E182: =+IF((E176+E180-E177-E181)>0,E175*(E176-E177),0) -> 0 | F182: =+IF((F176+F180-F177-F181)>0,F175*(F176-F177),0) -> 0
B183: RcaAttiv b2 | E183: =+IF((E176+E180-E177-E181)>0,(E175*(1+E179))*(E180-E181),0) -> 0 | F183: =+IF((F176+F180-F177-F181)>0,(F175*(1+F179))*(F180-F181),0) -> 0
B184: RcaAttiv b | C184: =+Dati_Anni_precedenti!E60 -> 0 | D184: =+Dati_Anni_precedenti!F60 -> 0 | E184: =+IF((E176+E180-E177-E181)>0,E175*(E176-E177)+(E175*(1+E179))*(E180-E181),0) -> 0 | F184: =+IF((F176+F180-F177-F181)>0,F175*(F176-F177)+(F175*(1+F179))*(F180-F181),0) -> 0
B192: RCres
C196: 2020 | D196: 2021 | E196: 2022 | F196: 2023
B197: Oneri locali a-2 | E197: =+SUM(Dati_conto_economico!E97:E102)+SUM(Dati_conto_economico!F97:F102) -> 0 | F197: =SUM(Dati_conto_economico!K97:K102)+SUM(Dati_conto_economico!L97:L102) -> 0
B198: COresa-2 (al lordo dei contributi) | E198: =Dati_Anni_precedenti!E48+Dati_Anni_precedenti!E49 -> 0 | F198: =Dati_Anni_precedenti!F48+Dati_Anni_precedenti!F49 -> 0
B199: Rcares | C199: =Dati_Anni_precedenti!E61 -> 0 | D199: =Dati_Anni_precedenti!F61 -> 0 | E199: =+E197-E198 -> 0 | F199: =+F197-F198 -> 0
B208: RCARERA - Recupero COARERA
C212: 2020 | D212: 2021 | E212: 2022 | F212: 2023
B213: COa-2ARERA,effettivo | E213: =+Altri_dati_eco_fin!E48 -> 0 | F213: =+Altri_dati_eco_fin!F48 -> 0
B214: COa-2ARERA | E214: =+Dati_Anni_precedenti!E46 -> 0 | F214: =+Dati_Anni_precedenti!F46 -> 0
B215: RcaARERA | C215: =Dati_Anni_precedenti!E62 -> 0 | D215: =Dati_Anni_precedenti!F62 -> 0 | E215: =+E213-E214 -> 0 | F215: =+F213-F214 -> 0
B224: DOpexQC - Recupero (a vantaggio utenza) OpexQC
C228: 2020 | D228: 2021 | E228: 2022 | F228: 2023
B229: OpexQC effettivamente sostenuti dal gestore | E229: =Altri_dati_eco_fin!E68+Altri_dati_eco_fin!E69 -> 0 | F229: =Altri_dati_eco_fin!F68+Altri_dati_eco_fin!F69 -> 0
B230: Opexa-2QC | E230: =Dati_Anni_precedenti!E36 -> 0 | F230: =Dati_Anni_precedenti!F36 -> 0
B231: DOpexQC | C231: =Dati_Anni_precedenti!E68 -> 0 | D231: =Dati_Anni_precedenti!F68 -> 0 | E231: =+MIN(E229-E230,0) -> 0 | F231: =+MIN(F229-F230,0) -> 0
B240: DOpexQT - Recupero (a vantaggio utenza) OpexQT
C244: 2020 | D244: 2021 | E244: 2022 | F244: 2023
B245: OpexQT effettivamente sostenuti dal gestore | E245: ='PdI-riepilogo'!F39 -> 0 | F245: ='PdI-riepilogo'!I39 -> 0
B246: Opexa-2QT | E246: =Dati_Anni_precedenti!E35 -> 0 | F246: =Dati_Anni_precedenti!F35 -> 0
B247: DOpexQT | C247: =Dati_Anni_precedenti!E69 -> 0 | D247: =Dati_Anni_precedenti!F69 -> 0 | E247: =+MIN(E245-E246,0) -> 0 | F247: =+MIN(F245-F246,0) -> 0
B256: DOpsocial - Recupero Opsocial
C260: 2020 | D260: 2021 | E260: 2022 | F260: 2023
B261: Opsocial effettivamente sostenuti dal gestore | E261: =Altri_dati_eco_fin!E70+Altri_dati_eco_fin!E71 -> 0 | F261: =Altri_dati_eco_fin!F70+Altri_dati_eco_fin!F71 -> 0
B262: Opsocial - scostamento da destinare all'emergenza COVID (comma 27.1 MTI-3)
B263: Opsocial in tariffa | E263: =+Dati_Anni_precedenti!E37 -> 0 | F263: =+Dati_Anni_precedenti!F37 -> 0
B264: DOpsocial | C264: =Dati_Anni_precedenti!E70 -> 0 | D264: =Dati_Anni_precedenti!F70 -> 0 | E264: =+E261-E263 -> 0 | F264: =+F261-F263 -> 0
B271: DOpmis - Recupero (a vantaggio utenza) Opmis
C275: 2020 | D275: 2021 | E275: 2022 | F275: 2023
B276: Opmis effettivamente sostenuti dal gestore | E276: =Altri_dati_eco_fin!E72 -> 0 | F276: =Altri_dati_eco_fin!F72 -> 0
B277: Opmis in tariffa | E277: =Dati_Anni_precedenti!E38 -> 0 | F277: =Dati_Anni_precedenti!F38 -> 0
B278: DOpmis | E278: =+E276-E277 -> 0 | F278: =+F276-F277 -> 0
B285: DOpcovid - Recupero Opcovid
C289: 2020 | D289: 2021 | E289: 2022 | F289: 2023
B290: Opcovid effettivamente sostenuti dal gestore | E290: =Altri_dati_eco_fin!E73 -> 0
B291: Opcovid in tariffa | E291: =Dati_Anni_precedenti!$E$39 -> 0
B292: DOpcovid | E292: =+E290-E291 -> 0
B299: Altre regole per i conguagli - art. 27-bis MTI-3
C303: 2020 | D303: 2021 | E303: 2022 | F303: 2023
B304: RCARC - comma 27-bis.1 MTI-3 | E304: =Altri_dati_eco_fin!E53 -> 0 | F304: =Altri_dati_eco_fin!F53 -> 0
B305: Fattore correttivo del Cong - comma 27-bis.2 MTI-3 | E305: =Altri_dati_eco_fin!E54 -> 0 | F305: =Altri_dati_eco_fin!F54 -> 0
B313: Integrazioni componenti a conguaglio: recupero volumi
C317: 2020 | D317: 2021 | E317: 2022 | F317: 2023
B318: minuendoa-2
B319: sottraendoa-2
B320: Recupero volumi 2019 | D320: =Dati_Anni_precedenti!$F$72 -> 0 | F320: =+IF(F323="manca il dato di input",0,F318-F319) -> 0
B323: controllo dati anni precedenti | F323: =+IF(AND(F318=0,F319=0),"OK",IF(OR(F318=0,F319=0),"manca il dato di input", "ok")) -> OK
B330: Integrazioni componenti a conguaglio: recupero energia elettrica
C334: 2020 | D334: 2021 | E334: 2022 | F334: 2023
B335: Coee,consuntivo 2019 | F335: =+Dati_tecnici!G5 -> 0 | J335: anno | K335: costo medio EE per calcolo COEE | L335: u.d.m.
B336: Kwhconsuntivo 2019 | F336: =+Dati_tecnici!G3 -> 0 | J336: 580/2019 | K336: =TT_parametri!$AV$37 -> 0.1597 | L336: =+TT_parametri!AW31 -> €/KWh
B337: minuendoa-2 | F337: =+MIN(F335,F336*K337*1.1) -> 0 | J337: 2019 | K337: =TT_parametri!$AV$37 -> 0.1597 | L337: =+TT_parametri!AW32 -> €/KWh
B338: Coee,preconsuntivo 2019 | F338: =+SUM(Dati_Anni_precedenti!F89:F92) -> 0
B339: Kwhpreconsuntivo 2019 | F339: =Dati_Anni_precedenti!$F$88 -> 0
B340: sottraendoa-2 | F340: =+MIN(F338,F339*K336*1.1) -> 0
B341: Recupero energia elettrica 2019 | D341: =Dati_Anni_precedenti!$F$73 -> 0 | F341: =+IF(F344="manca il dato di input",0,F337-F340) -> 0
B344: controllo dati anni precedenti | F344: =+IF(AND(F337=0,F340=0),"OK",IF(OR(F337=0,F340=0),"manca il dato di input", "ok")) -> OK

Sheet Schema di convergenza
A2: Titolo 8 MTI-3 | B2: Meccanismi di convergenza
B4: Scelta delle casistiche ai sensi del comma 31.6 MTI-3
C8: 2020 | D8: 2021 | E8: 2022 | F8: 2023
B9: Tipologia di schema adottato da foglio "Input per calcoli finali" | C9: =+IF(var="","",var) -> 
B10: Determinazione del parametro α da foglio "Input per calcoli finali" | C10: =+IF(incid="","",Input_per_calcoli_finali!F25&": "&incid) -> 
B12: Numero delle gestioni integrate | C12: =+COUNTIF(Info_eventuali_aggregazioni!P:P,"Schema regolatorio di convergenza") -> 0 | D12: =+C12 -> 0 | E12: 0 | F12: 0
B13: Popolazione residente delle gestioni integrate | C13: =+SUMIF(Info_eventuali_aggregazioni!P:P,"Schema regolatorio di convergenza",Info_eventuali_aggregazioni!O:O) -> 0 | D13: 0 | E13: 0 | F13: 0
B15: Eventuale istanza ai sensi del comma 31.10 MTI-3 | C15: NO
B17: J | C17: =+IFERROR(1+(C18*C19),"Non applicabile") -> 1.05 | D17: =+IFERROR(1+(D18*D19),"Non applicabile") -> 1.04 | E17: =+IFERROR(1+(E18*E19),"Non applicabile") -> 1.03 | F17: =+IFERROR(1+(F18*F19),"Non applicabile") -> 1.02
B18: Fattore di aggregazione α | C18: =+IF(RIGHT($C9,2)<>"c)",IF(RIGHT($C10,2)="SI",1.5,1),"Non applicabile") -> 1 | D18: =+IF(RIGHT($C9,2)<>"c)",IF(RIGHT($C10,2)="SI",1.5,1),"Non applicabile") -> 1 | E18: =+IF(RIGHT($C9,2)<>"c)",IF(RIGHT($C10,2)="SI",1.5,1),"Non applicabile") -> 1 | F18: =+IF(RIGHT($C9,2)<>"c)",IF(RIGHT($C10,2)="SI",1.5,1),"Non applicabile") -> 1
B19: Fattore di incremento Y | C19: =+IF(RIGHT($C9,2)<>"c)",+IF($C$15="SI",0%,5%),"Non applicabile") -> 0.05 | D19: =+IF(RIGHT($C9,2)<>"c)",+IF($C$15="SI",0%,4%),"Non applicabile") -> 0.04 | E19: =+IF(RIGHT($C9,2)<>"c)",+IF($C$15="SI",7%,3%),"Non applicabile") -> 0.03 | F19: =+IF(RIGHT($C9,2)<>"c)",+IF($C$15="SI",7%,2%),"Non applicabile") -> 0.02
B21: COSTOT | C21: =+IF(Dati_Anni_precedenti!$G$11<>"Schema di convergenza","",54140134.9879651) ->  | D21: =+IF(Dati_Anni_precedenti!$G$11<>"Schema di convergenza","",54140134.9879651) ->  | E21: =+IF(Dati_Anni_precedenti!$G$11<>"Schema di convergenza","",54140134.9879651) ->  | F21: =+IF(Dati_Anni_precedenti!$G$11<>"Schema di convergenza","",54140134.9879651) -> 
B22: Ricavi tariffari delle gestioni integrate | E22: =++SUMIF(Ricavi_bacini_tariffari!C:C,"Bacino tariffario schema di convergenza",Ricavi_bacini_tariffari!N:N) -> 0 | F22: =+SUMIF(Ricavi_bacini_tariffari!C:C,"Bacino tariffario schema di convergenza",Ricavi_bacini_tariffari!O:O) -> 0
B23: In caso di "Schema di convergenza" indicare un unico bacino tariffario scrivendo "Bacino tariffario schema di convergenza" nel foglio "Elenco Bacini Tariffari" e compilare conseguentemente i successivi fogli dei ricavi. La compilazione delle celle C22 e D22 è manuale.
B24: VRGconv | C24: =+IF(RIGHT($C9,2)="c)",C25+C26+C27,"Non applicabile") -> Non applicabile | D24: =+IF(RIGHT($C9,2)="c)",D25+D26+D27,"Non applicabile") -> Non applicabile | E24: =+IF(RIGHT($C9,2)="c)",E25+E26+E27,"Non applicabile") -> Non applicabile | F24: =+IF(RIGHT($C9,2)="c)",F25+F26+F27,"Non applicabile") -> Non applicabile
B25: Capexconv | C25: =+IF(RIGHT($C9,2)="c)",0.16*C26*C13,"Non applicabile") -> Non applicabile | D25: =+IF(RIGHT($C9,2)="c)",0.16*D26*D13,"Non applicabile") -> Non applicabile | E25: =+IF(RIGHT($C9,2)="c)",0.16*E26*E13,"Non applicabile") -> Non applicabile | F25: =+IF(RIGHT($C9,2)="c)",0.16*F26*F13,"Non applicabile") -> Non applicabile
B26: Opexconv | C26: =+IF(RIGHT($C9,2)="c)",74*1.1*C13,"Non applicabile") -> Non applicabile | D26: =+IF(RIGHT($C9,2)="c)",74*1.1*D13,"Non applicabile") -> Non applicabile | E26: =+IF(RIGHT($C9,2)="c)",74*1.1*E13,"Non applicabile") -> Non applicabile | F26: =+IF(RIGHT($C9,2)="c)",74*1.1*F13,"Non applicabile") -> Non applicabile
B27: Rcappr2020,COVID | H27: ATTENZIONE: la somma deve essere nulla
B28: Inserire manualmente il valore Rcappr2020,COVID
B32: OPM (€/abitante) | C32: =+VRG_PM -> 149 | D32: =+VRG_PM -> 149 | E32: =+VRG_PM -> 149 | F32: =+VRG_PM -> 149

Sheet Input_per_calcoli_finali
M1: =+M53 -> 
P2: Sono presenti errori
P3: =+M241<>"Compilazione conclusa!" -> TRUE
G4: Compilare - secondo l'ordine proposto - tutti i campi. Utilizzare lo zero, quando è richiesto di "compilare tutti i campi", in luogo della cella vuota
G6: Area info | I6: Area di input per i soggetti competenti | M6: Area suggerimenti
I8: Sezione "verifica cause di esclusione dall'aggiornamento tariffario"
G11: info | K11: Dati MTI-3 agg.
F12: Adempimenti sblocca Italia | G12: Compilare il campo in colonna K--> | M12: =+IF(K12="","<-- Iniziare da qui la compilazione",IF(OR(K12="conforme",K12="non conforme"),"OK, continuare la compilazione","Compilare correttamente il campo")) -> <-- Iniziare da qui la compilazione
F13: Tipo affidamento | G13: Assicurarsi di aver correttamente fornito tali informazioni nel foglio dati tecnici | K13: =+IF(AND(Dati_tecnici!E32<>"",LEFT(M12,2)="OK"),Dati_tecnici!E32,"") ->  | M13: =++IF(LEFT(M12,2)="OK",+IF(OR(K13="Affidamento del SII",K13="Aziende speciali, gestioni in economia",K13="Gestioni in economia comuni montani autorizzati da AATO",K13="Gestioni salvaguardate",K13="Gestioni tutelate, concessioni esistenti"),"OK, continuare la compilazione","Compilare il campo"),"") -> 
F14: Data inizio affidamento | K14: =+IF(OR(K13="",Dati_tecnici!E33=""),"",Dati_tecnici!E33) ->  | M14: =++IF(AND(LEFT(M13,2)="OK",K13="Affidamento del SII"),+IF(LEN(K14)=5,"OK, continuare la compilazione","Compilare correttamente il campo. Formato data: gg/mm/aaaa"),IF(K13="","","OK, compilare o continuare la compilazione (formato gg/mm/aaaa)")) -> 
F15: Data fine affidamento | K15: =+IF(OR(Dati_tecnici!E34="",K14=""),"",Dati_tecnici!E34) ->  | M15: =++IF(AND(LEFT(M14,2)="OK",K13="Affidamento del SII"),+IF(LEN(K15)=5,"OK, continuare la compilazione","Compilare correttamente il campo. Formato data: gg/mm/aaaa"),IF(AND(LEFT(M14,2)="OK",K13="Affidamento del SII",K15=""),"Compilare il campo",IF(LEFT(M14,2)="OK","OK, compilare o continuare la compilazione (formato gg/mm/aaaa)",""))) -> 
F16: Presenza Carta dei servizi | K16: =+IF(OR(Dati_tecnici!E35="",K15=""),"",Dati_tecnici!E35) ->  | M16: =++IF(LEFT(M15,2)="OK",+IF(OR(K16="SI",K16="NO"),"OK, continuare la compilazione","Compilare correttamente il campo"),"") -> 
F17: Presenza di un consumo minimo impegnato per la fatturazione delle utenze | K17: =+IF(OR(Dati_tecnici!E36="",K16=""),"",Dati_tecnici!E36) ->  | M17: =++IF(LEFT(M16,2)="OK",+IF(OR(K17="SI",K17="NO"),"OK, continuare la compilazione","Compilare correttamente il campo"),"") -> 
F18: Versamento delle componenti perequative a CSEA | K18: =+IF(OR(Dati_tecnici!E37="",K17=""),"",Dati_tecnici!E37) ->  | M18: =++IF(LEFT(M17,2)="OK",+IF(OR(K18="SI",K18="NO"),"OK, continuare la compilazione","Compilare correttamente il campo"),"") -> 
I21: Sezione "Interventi sullo schema regolatorio" e Oneri aggiuntivi
G23: info | K23: Dati MTI-3 agg.
F24: Regolazione tariffaria applicabile | G24: Compilare i campi in colonna K--> | M24: =+IF(AND(K24="Matrice di schemi regolatori",LEFT(M18,2)="OK"),"OK, continuare la compilazione",IF(AND(LEFT(M18,2)="OK",K24<>""),"Schema regolatorio di convergenza",IF(AND(LEFT(M18,2)="OK",K24=""),"<--- Continuare da qui la compilazione",""))) -> 
F25: Avvio dei processi di aggregazione del gestore unico d'ambito | M25: =+IF(AND(LEFT(M24,2)<>"OK",LEFT(M24,2)<>"<-"),IF(K25<>"","OK, continuare la compilazione",IF(AND(LEFT(M24,2)<>"OK",K24="Schema regolatorio di convergenza"),"<--- Continuare da qui la compilazione",IF(M24="","","OK, continuare la compilazione (il campo non va compilato)"))),"") -> 
F26: Eventuale tipologia di Schema di convergenza | M26: =+IF(OR(K24<>"Schema regolatorio di convergenza",LEFT(M25,4)="<---"),"",IF(AND(K24="Schema regolatorio di convergenza",LEFT(M25,2)="OK",var=""),"<--- Continuare da qui la compilazione",IF(AND(K24="Schema regolatorio di convergenza",LEFT(M25,2)="OK",var<>""),"OK, compilazione completata!",""))) -> 
F27: Aggregazioni o variazioni dei processi tecnici significative (comma 5.1) | M27: =+IF(LEFT(M24,2)<>"OK","",IF(AND(LEFT(M24,2)="OK",integr=""),"<--- Continuare da qui la compilazione","OK, continuare la compilazione")) -> 
F30: Opnew,a | G30: non compilabile | I30: =+Dati_Anni_precedenti!E34 -> 0 | J30: =+Dati_Anni_precedenti!F34 -> 0 | K30: =+K31*IF(OR(RIGHT($M$31,1)=")",LEFT($M$27,2)<>"OK",$M$31=""),0,1)+K32*IF(OR(RIGHT($M$32,1)=")",LEFT($M$27,2)<>"OK",$M$32=""),0,1)+K33*IF(OR(RIGHT($M$33,1)=")",LEFT($M$27,2)<>"OK",$M$33=""),0,1) -> 0 | L30: =+L31*IF(OR(RIGHT($M$31,1)=")",LEFT($M$27,2)<>"OK",$M$31=""),0,1)+L32*IF(OR(RIGHT($M$32,1)=")",LEFT($M$27,2)<>"OK",$M$32=""),0,1)+L33*IF(OR(RIGHT($M$33,1)=")",LEFT($M$27,2)<>"OK",$M$33=""),0,1) -> 0
F31: di cui per "Integrazione di gestioni significative" comma 18.3 sub a) | M31: =+IF(AND(LEFT(M27,2)="OK",OR(integr="integrazione territorio",integr="entrambi"),OR(K31="",L31="")),"<--- Continuare da qui la compilazione (compilare tutti i campi)",IF(AND(LEFT(M27,2)="OK",integr<>"integrazione territorio",integr<>"entrambi"),"OK, continuare la compilazione (il campo non va compilato)",IF(AND(K31<>"",L31<>"",LEFT(M27,2)="OK"),"OK, continuare la compilazione",""))) -> 
F32: di cui per "Integrazione di gestioni d'ambito con corrdo informativo completo in ATO diversi" comma 18.3 sub b) | M32: =+IF(AND(LEFT(M27,2)="OK",LEFT(M31,2)="OK",OR(integr="integrazione territorio",integr="entrambi"),OR(K32="",L32="")),"<--- Continuare da qui la compilazione (compilare tutti i campi)",IF(AND(LEFT(M27,2)="OK",LEFT(M31,2)="OK",integr<>"integrazione territorio",integr<>"entrambi"),"OK, continuare la compilazione (il campo non va compilato)",IF(AND(K32<>"",L32<>"",LEFT(M31,2)="OK"),"OK, continuare la compilazione",""))) -> 
F33: di cui per "Presenza di nuovi processi tecnici gestiti" comma 18.3 sub c) | M33: =+IF(AND(LEFT(M27,2)="OK",LEFT(M32,2)="OK",OR(integr="integrazione processi tecnici",integr="entrambi"),OR(K33="",L33="")),"<--- Continuare da qui la compilazione (compilare tutti i campi)",IF(AND(LEFT(M27,2)="OK",LEFT(M32,2)="OK",integr<>"integrazione processi tecnici",integr<>"entrambi"),"OK, continuare la compilazione (il campo non va compilato)",IF(AND(K33<>"",L33<>"",LEFT(M32,2)="OK"),"OK, continuare la compilazione",""))) -> 
F36: VRG2018 (per confronto con VRGPM) | G36: =IF(K36="",IF(Storico_Piano_Tariffario!K6="","",Storico_Piano_Tariffario!K6),K36) -> 
F37: pop + 0,25 popflut | G37: =IF(K37="",IF(Storico_Piano_Tariffario!K7="","",Storico_Piano_Tariffario!K7),K37) ->  | M37: =+IF(AND(LEFT(M33,2)="OK",P26=""),IF(G38="compilare correttamente i campi","Attenzione: compilare i campi necessari", "OK, continuare la compilazione"),IF(P26<>"","OK, continuare la compilazione","")) -> 
F38: VRGPM,i | G38: =+IFERROR(K36/K37,IFERROR(G36/G37,IF(LEFT(M33,2)="OK","Compilare correttamente i campi",""))) ->  | K38: non compilabile
F41: ∑Iptexp + CFPexp 2020-2023 | G41: non compilabile | K41: =+SUM(I42:L42) -> 0
F42: Sviluppo Iptexp + CFPexp MTI-3 | I42: =Dati_Anni_precedenti!E12 -> 0 | J42: =Dati_Anni_precedenti!F12 -> 0 | K42: ='PdI-riepilogo'!F15 -> 0 | L42: ='PdI-riepilogo'!G15 -> 0 | M42: =+IF(LEFT(M37,2)="OK",IF(OR(I42="",J42="",K42="",L42=""),"Attenzione: compilare tutti i campi","OK, continuare la compilazione"),"") -> 
F43: Sviluppo contributi relativi agli Iptexp MTI-3 | I43: =Dati_Anni_precedenti!E13 -> 0 | J43: =Dati_Anni_precedenti!F13 -> 0 | K43: ='PdI-riepilogo'!F21 -> 0 | L43: ='PdI-riepilogo'!G21 -> 0 | M43: =+IF(LEFT(M42,2)="OK",IF(OR(I43="",J43="",K43="",L43=""),"Attenzione: compilare tutti i campi","OK, continuare la compilazione"),"") -> 
F47: RAB MTI-2 | G47: =+IF(K47="",Storico_Piano_Tariffario!K11,K47) -> 0 | M47: =+IF(LEFT(M43,2)="OK",IF(G48<>"","OK, continuare la compilazione",IF(mti_3<>"schema regolatorio","OK, continuare la compilazione","Inserire valore RAB o controllare dati anni precedenti")),"") -> 
G48: =+IF(mti_3<>"schema regolatorio","",IFERROR(IFERROR(K41/K47,K41/G47),"")) -> 
F49: ψ (0,4-0,8) | G49: Compilare i campi delle righe 47 e 49 in colonna K--> | M49: =+IF(AND(mti_3<>"schema regolatorio",LEFT(M43,2)="OK"),"OK, continuare la compilazione",IF(LEFT(M47,2)="OK",+IF(G47=0,"Inserire valore RAB MTI-2 (cella I48)",IF(G48<=omega,"OK, continuare la compilazione (psi non necessario)",IF(AND(G48>omega,K49=""),"<--- Continuare da qui la compilazione",IF(OR(K49<0.4,K49>0.8),"Attenzione: compilare correttamente i dati","OK, continuare la compilazione")))),"")) -> 
F50: Ammortamento finanziario ammissibile ai sensi del comma 10.7 lettera a) | G50: non compilabile | K50: =+iAF -> 0
F53: output | G53: Tipo di elaborazione tariffaria: | M53: =+IF(LEFT(M49,2)="OK",mti_3,"") -> 
F54: output | G54: Eventuale schema regolatorio | M54: =IF(M53="schema regolatorio",schema,IF(schema="","","verificare coerenza dati inseriti")) -> 
I57: Sezione "Trattamento costi di morosità - Unpaid ratio"
G59: info | I59: 2020 | J59: 2021 | K59: 2022 | L59: 2023
M60: =+IF(LEFT(M49,2)="OK",+IF(OR(K60<0,L60<0,I60<0,J60<0),"Attenzione: valori fuori dominio",IF(OR(K60="",L60="",I60="",J60=""),"OK, compilare o continuare la compilazione","OK, continuare la compilazione")),"") -> 
M62: =+IF(LEFT(M60,2)="OK",+IF(AND(K62=""),"OK, compilare o continuare la compilazione",IF(AND(K62<>""),IF(OR(K62<K64,K62>100),"Attenzione: valori fuori dominio","OK, continuare la compilazione"),"Attenzione: compilare correttamente tutti i campi")),"") -> 
F64: Comor - art. 28 All. A - valore di zona | G64: non compilabile | I64: =+Opex!C301 -> 0 | J64: =+I64 -> 0 | K64: =+Opex!E301 -> 0 | L64: =+Opex!F301 -> 0
F65: Comor - art. 28 All. A - valore effettivo del gestore | I65: =+Opex!C300 -> 0 | J65: =+I65 -> 0 | K65: =+Opex!E300 -> 0 | L65: =+Opex!F300 -> 0
F66: Comor - Unpaid ratio indicato dal soggetto competente (% compatibile con "costo massimo riconosciuto" come da comma 28.2 all. A) | G66: Compilare il campo in colonna K--> (valori in %) | M66: =+IF(LEFT(M49,2)="OK","OK, compilare o continuare la compilazione",IF(LEFT(M49,2)="","",IF(AND(K66<K64,K66>=MIN(K65:K65),K66<>"",I66<I64,I66>=MIN(I65:J65),I66<>""),"OK, continuare la compilazione","Attenzione: compilare correttamente tutti i campi (diversi da 0, inferiori a quelli di zona, superiori a quelli del gestore)"))) -> 
I73: Sezione "Sviluppo temporale dei conguagli MTI e MTI-2 rinviati al futuro"
I75: 2020 | J75: 2021 | K75: 2022 | L75: 2023
F76: importo conguagli periodi tariffari precedenti (deliberati dall'Autorità) rinviati al futuro (valori a moneta 2015) | G76: verificare l'effettiva esistenza di importi residui da allocare in MTI-3 agg. | M76: =+IF(OR(LEFT(M66,2)="OK"),IF(AND(I76="",J76="",I76="",J76=""),"OK, compilare o proseguire la compilazione",IF(OR(K76="",L76="",I76="",J76=""),"<--- Continuare da qui la compilazione","OK, continuare la compilazione")),"") -> 
F77: importo conguagli MTI-2 agg. (deliberati dall'Autorità) rinviati al futuro (valori a moneta 2019) | G77: =+Dati_Anni_precedenti!G97 -> 0 | I77: =+Dati_Anni_precedenti!E67/TT_parametri!BJ$8 -> 0 | J77: =+Dati_Anni_precedenti!F67/TT_parametri!BK$8 -> 0 | M77: =+IF(LEFT(M76,2)="OK",IF(SUM(I77:L77)>G77,"compilazione non ammissibile","OK compilare o proseguire la compilazione"),"") -> 
G78: area di controllo | I78: =+I77 -> 0 | J78: =+J77 -> 0 | K78: =+K77 -> 0 | L78: =+IF(SUM($I$77:$L$77)>$G$77,"verificare la compilazione",L77) -> 0 | M78: =+IF(OR(LEFT(M77,2)="OK"),IF(G78=0,"OK, ricontrollare dati storici o proseguire la compilazione (eventuali compilazioni non avranno impatti)",IF(OR(K78="",L78="",I78="",J78=""),"<--- Continuare da qui la compilazione",IF(AND(I78<>"",J78<>"",I78>=0,J78>=0),"OK, continuare la compilazione","Attenzione: compilare correttamente i campi"))),"") -> 
I85: Elaborazioni Iniziali
I87: 2020 | J87: 2021 | K87: 2022 | L87: 2023
F88: VRGa calcolato | G88: non compilabile | K88: =+IF($M$49<>"",VRG_Teta!E60,"") ->  | L88: =+IF($M$49<>"",VRG_Teta!F60,"") ->  | M88: =+IF(LEFT($M$77,2)="OK",IF(AND(K92="nei limiti",L92="nei limiti"),"OK, proseguire se necessario la compilazione","ATTENZIONE: proposta sovracap per almeno un'annualità"),"") -> 
F89: ϑa calcolato | G89: non compilabile | K89: =+IF($M$49<>"",VRG_Teta!E61,"") ->  | L89: =+IF($M$49<>"",VRG_Teta!F61,"") -> 
F90: VRGa al cap | G90: non compilabile | K90: =+IF($M$49<>"",VRG_Teta!E62,"") ->  | L90: =+IF($M$49<>"",VRG_Teta!F62,"") -> 
F91: ϑa massimo applicabile | G91: non compilabile | K91: =+IF($M$49<>"",VRG_Teta!E63,"") ->  | L91: =+IF($M$49<>"",VRG_Teta!F63,"") -> 
F92: info predisposizione | G92: non compilabile | K92: =+IF($M$49<>"",VRG_Teta!E64,"") ->  | L92: =+IF($M$49<>"",VRG_Teta!F64,"") -> 
I98: Sezione "Interventi sulle componenti del Capex"
I100: 2020 | J100: 2021 | K100: 2022 | L100: 2023
F101: AMM calcolato | G101: non compilabile | K101: =+Capex!E32 -> 0 | L101: =+Capex!F32 -> 0
F102: Detrazione della componente AMM | K102: 0 | L102: 0 | M102: =+IF(LEFT(M78,2)="OK",+IF(OR(K101-K102<0,L101-L102<0),"Attenzione: valori fuori dominio",IF(AND(K102="",L102=""),"<--- Continuare da qui la compilazione (compilare tutti i campi)","OK, continuare la compilazione")),"") -> 
K103: =+IFERROR(IF(K101-K102<0,0,K102),0) -> 0 | L103: =+IFERROR(IF(L101-L102<0,0,L102),0) -> 0
F105: OF calcolato | G105: non compilabile | K105: =Capex!E30 -> 0 | L105: =Capex!F30 -> 0
F106: Detrazione della componente OF | K106: 0 | L106: 0 | M106: =+IF(LEFT(M102,2)="OK",+IF(OR(K105-K106<0,L105-L106<0),"Attenzione: valori fuori dominio",IF(AND(K106="",L106=""),"<--- Continuare da qui la compilazione (compilare tutti i campi)","OK, continuare la compilazione")),"") -> 
K107: =+IFERROR(IF(K105-K106<0,0,K106),0) -> 0 | L107: =+IFERROR(IF(L105-L106<0,0,L106),0) -> 0
F109: OFisc calcolato | G109: non compilabile | K109: =Capex!E31 -> 0 | L109: =Capex!F31 -> 0
F110: Detrazione della componente OFisc | K110: 0 | L110: 0 | M110: =+IF(LEFT(M106,2)="OK",+IF(OR(K109-K110<0,L109-L110<0),"Attenzione: valori fuori dominio",IF(AND(K110="",L110=""),"<--- Continuare da qui la compilazione (compilare tutti i campi)","OK, continuare la compilazione")),"") -> 
K111: =+IFERROR(IF(K109-K110<0,0,K110),0) -> 0 | L111: =+IFERROR(IF(L109-L110<0,0,L110),0) -> 0
I118: Sezione "Interventi sulle componenti del FoNI"
I120: 2020 | J120: 2021 | K120: 2022 | L120: 2023
F121: FNI calcolato | G121: non compilabile | K121: =+FoNI!E79 -> 0 | L121: =+FoNI!F79 -> 0
F122: Detrazione della componente FNI | K122: 0 | L122: 0 | M122: =+IF(LEFT(M110,2)="OK",+IF(OR(K122<0,L122<0,K122>K121,L122>L121),"Attenzione: valori fuori dominio",IF(AND(K122="",L122=""),"<--- Continuare da qui la compilazione (compilare tutti i campi)","OK, continuare la compilazione")),"") -> 
K123: =+IFERROR(IF(K121-K122<0,0,K122),0) -> 0 | L123: =+IFERROR(IF(L121-L122<0,0,L122),0) -> 0
F125: AMMcfp calcolato | G125: non compilabile | K125: =+FoNI!E93 -> 0 | L125: =+FoNI!F93 -> 0
F126: Detrazione della componente AMMcfp | K126: 0 | L126: 0 | M126: =+IF(LEFT(M122,2)="OK",+IF(OR(K126<0,L126<0,K126>K125,L126>L125),"Attenzione: valori fuori dominio",IF(AND(K126="",L126=""),"<--- Continuare da qui la compilazione (compilare tutti i campi)","OK, continuare la compilazione")),"") -> 
K127: =+IFERROR(IF(K125-K126<0,0,K126),0) -> 0 | L127: =+IFERROR(IF(L125-L126<0,0,L126),0) -> 0
F129: DCUIT massimo nel FoNI | G129: non compilabile | K129: =+FoNI!E107 -> 0 | L129: =+FoNI!F107 -> 0 | M129: =+IF(LEFT($M$90,2)="OK","OK, continuare la compilazione","") -> 
F130: Detrazione della componente DCUIT | K130: 0 | L130: 0 | M130: =+IF(LEFT(M126,2)="OK",+IF(OR(K130<0,L130<0,K130>K129,L130>L129),"Attenzione: valori fuori dominio",IF(AND(K130="",L130=""),"<--- Continuare da qui la compilazione (compilare tutti i campi)","OK, continuare la compilazione")),"") -> 
K131: =+IFERROR(IF(K129-K130<0,0,K130),0) -> 0 | L131: =+IFERROR(IF(L129-L130<0,0,L130),0) -> 0
I138: Sezione "Interventi sulle componenti dell'Opex"
I140: 2020 | J140: 2021 | K140: 2022 | L140: 2023
F141: Opexend calcolato | G141: non compilabile | K141: =+Opex!E30 -> 0 | L141: =+Opex!F30 -> 0
F142: Detrazione della componente Opexend | K142: 0 | L142: 0 | M142: =+IF(LEFT(M130,2)="OK",+IF(OR(K141-K142<0,L141-L142<0),"Attenzione: valori fuori dominio",IF(AND(K142="",L142=""),"<--- Continuare da qui la compilazione (compilare tutti i campi)","OK, continuare la compilazione")),"") -> 
K143: =+IFERROR(IF(K141-K142<0,0,K142),0) -> 0 | L143: =+IFERROR(IF(L141-L142<0,0,L142),0) -> 0
F145: Opexal calcolato | G145: non compilabile | K145: =+Opex!E31 -> 0 | L145: =+Opex!F31 -> 0
F146: Detrazione della componente Opexal | K146: 0 | L146: 0 | M146: =+IF(LEFT(M142,2)="OK",+IF(OR(K145-K146<0,L145-L146<0),"Attenzione: valori fuori dominio",IF(AND(K146="",L146=""),"<--- Continuare da qui la compilazione (compilare tutti i campi)","OK, continuare la compilazione")),"") -> 
K147: =+IFERROR(IF(K145-K146<0,0,K146),0) -> 0 | L147: =+IFERROR(IF(L145-L146<0,0,L146),0) -> 0
I154: Sezione "Interventi sulle componenti dell'ERC"
I156: 2020 | J156: 2021 | K156: 2022 | L156: 2023
F157: ERCcapex calcolato | G157: non compilabile | K157: =ERC!E30 -> 0 | L157: =ERC!F30 -> 0
F158: Detrazione della componente ERCcapex | K158: 0 | L158: 0 | M158: =+IF(LEFT(M146,2)="OK",+IF(OR(K157-K158<0,L157-L158<0),"Attenzione: valori fuori dominio",IF(AND(K158="",L158=""),"<--- Continuare da qui la compilazione (compilare tutti i campi)","OK, continuare la compilazione")),"") -> 
K159: =+IFERROR(IF(K157-K158<0,0,K158),0) -> 0 | L159: =+IFERROR(IF(L157-L158<0,0,L158),0) -> 0
F161: ERCopex calcolato | G161: non compilabile | K161: =ERC!E31 -> 0 | L161: =ERC!F31 -> 0
F162: Detrazione della componente ERCopex | K162: 0 | L162: 0 | M162: =+IF(LEFT(M158,2)="OK",+IF(OR(K161-K162<0,L161-L162<0),"Attenzione: valori fuori dominio",IF(AND(K162="",L162=""),"<--- Continuare da qui la compilazione (compilare tutti i campi)","OK, continuare la compilazione")),"") -> 
K163: =+IFERROR(IF(K161-K162<0,0,K162),0) -> 0 | L163: =+IFERROR(IF(L161-L162<0,0,L162),0) -> 0
I170: Sezione "Interventi sulle componenti dell'RC"
I172: 2020 | J172: 2021 | K172: 2022 | L172: 2023
F173: RCvol calcolato | G173: non compilabile | K173: ='Rc'!E30 -> 0 | L173: ='Rc'!F30 -> 0
F174: Detrazione della componente Rcvol | K174: 0 | L174: 0 | M174: =+IF(LEFT(M162,2)="OK",+IF(OR(K174<0,L174<0,),"Attenzione: valori fuori dominio",IF(AND(K174="",L174=""),"<--- Continuare da qui la compilazione (compilare tutti i campi)","OK, continuare la compilazione")),"") -> 
K175: =+IFERROR(IF(K173-K174<0,0,K174),0) -> 0 | L175: =+IFERROR(IF(L173-L174<0,0,L174),0) -> 0
F177: RCEE calcolato | G177: non compilabile | K177: ='Rc'!E31 -> 0 | L177: ='Rc'!F31 -> 0
F178: Detrazione della componente RcEE | K178: 0 | L178: 0 | M178: =+IF(LEFT(M174,2)="OK",+IF(OR(K178<0,L178<0),"Attenzione: valori fuori dominio",IF(AND(K178="",L178=""),"<--- Continuare da qui la compilazione (compilare tutti i campi)","OK, continuare la compilazione")),"") -> 
K179: =+IFERROR(IF(K177-K178<0,0,K178),0) -> 0 | L179: =+IFERROR(IF(L177-L178<0,0,L178),0) -> 0
F181: RCws calcolato | G181: non compilabile | K181: ='Rc'!E32 -> 0 | L181: ='Rc'!F32 -> 0
F182: Detrazione della componente RCws | K182: 0 | L182: 0 | M182: =+IF(LEFT(M178,2)="OK",+IF(OR(K182<0,L182<0),"Attenzione: valori fuori dominio",IF(AND(K182="",L182=""),"<--- Continuare da qui la compilazione (compilare tutti i campi)","OK, continuare la compilazione")),"") -> 
K183: =+IFERROR(IF(K181-K182<0,0,K182),0) -> 0 | L183: =+IFERROR(IF(L181-L182<0,0,L182),0) -> 0
F185: RCERC calcolato | G185: non compilabile | K185: ='Rc'!E33 -> 0 | L185: ='Rc'!F33 -> 0
F186: Detrazione della componente RCERC | K186: 0 | L186: 0 | M186: =+IF(LEFT(M182,2)="OK",+IF(OR(K186<0,L186<0),"Attenzione: valori fuori dominio",IF(AND(K186="",L186=""),"<--- Continuare da qui la compilazione (compilare tutti i campi)","OK, continuare la compilazione")),"") -> 
K187: =+IFERROR(IF(K185-K186<0,0,K186),0) -> 0 | L187: =+IFERROR(IF(L185-L186<0,0,L186),0) -> 0
F189: RCALTRO calcolato | G189: non compilabile | K189: ='Rc'!E34 -> 0 | L189: ='Rc'!F34 -> 0
F190: Detrazione della componente RCALTRO | K190: 0 | L190: 0 | M190: =+IF(LEFT(M186,2)="OK",+IF(OR(K190<0,L190<0),"Attenzione: valori fuori dominio",IF(AND(K190="",L190=""),"<--- Continuare da qui la compilazione (compilare tutti i campi)","OK, continuare la compilazione")),"") -> 
K191: =+IFERROR(IF(K189-K190<0,0,K190),0) -> 0 | L191: =+IFERROR(IF(L189-L190<0,0,L190),0) -> 0
I198: Elaborazioni Intermedie
I200: 2020 | J200: 2021 | K200: 2022 | L200: 2023
F201: VRGa calcolato | G201: non compilabile | I201: =+IF(mti_3<>"",VRG_Teta!C67,"") ->  | J201: =+IF(mti_3<>"",VRG_Teta!D67,"") ->  | K201: =+IF(mti_3<>"",VRG_Teta!E67,"") ->  | L201: =+IF(mti_3<>"",VRG_Teta!F67,"") ->  | M201: =+IF(M130<>"",IF(AND(K205="nei limiti",L205="nei limiti",I205="nei limiti",J205="nei limiti"),"OK, proseguire se necessario la compilazione","ATTENZIONE: proposta sovracap per almeno un'annualità"),"") -> 
F202: ϑa calcolato | G202: non compilabile | I202: =+IF(mti_3<>"",VRG_Teta!C68,"") ->  | J202: =+IF(mti_3<>"",VRG_Teta!D68,"") ->  | K202: =+IF(mti_3<>"",VRG_Teta!E68,"") ->  | L202: =+IF(mti_3<>"",VRG_Teta!F68,"") -> 
F203: VRGa al cap | G203: non compilabile | I203: =+IF(mti_3<>"",VRG_Teta!C69,"") ->  | J203: =+IF(mti_3<>"",VRG_Teta!D69,"") ->  | K203: =+IF(mti_3<>"",VRG_Teta!E69,"") ->  | L203: =+IF(mti_3<>"",VRG_Teta!F69,"") -> 
F204: ϑa massimo applicabile | G204: non compilabile | I204: =+IF(mti_3<>"",VRG_Teta!C70,"") ->  | J204: =+IF(mti_3<>"",VRG_Teta!D70,"") ->  | K204: =+IF(mti_3<>"",VRG_Teta!E70,"") ->  | L204: =+IF(mti_3<>"",VRG_Teta!F70,"") -> 
F205: info predisposizione | G205: non compilabile | I205: =+IF(mti_3<>"",VRG_Teta!C71,"") ->  | J205: =+IF(mti_3<>"",VRG_Teta!D71,"") ->  | K205: =+IF(mti_3<>"",VRG_Teta!E71,"") ->  | L205: =+IF(mti_3<>"",VRG_Teta!F71,"") -> 
I212: Sezione "Ulteriori interventi sul VRG"
I214: 2020 | J214: 2021 | K214: 2022 | L214: 2023
F215: RCTOT MTI-3 calcolati (include inflazione) | G215: non compilabile | I215: ='Rc'!C11 -> 0 | J215: ='Rc'!D11 -> 0 | K215: ='Rc'!E11 -> 0 | L215: ='Rc'!F11 -> 0
G216: non compilabile | K216: =+IF(ISERR(MAX(K90-K88,0)),0,MAX(K90-K88,0)) -> 0 | L216: =+IF(ISERR(MAX(L90-L88,0)),0,MAX(L90-L88,0)) -> 0
F217: Sviluppo richiesto dei conguagli MTI-3 | G217: non compilabile | M217: =+IF(LEFT(M190,2)="OK",IF(AND(I217>=0,J217>=0,K217>=0,L217>=0),"OK, continuare la compilazione","OK, riallocare conguagli oppure continuare la compilazione"),"") -> 
F218: eventuale rinuncia a conguagli RC MTI-3 | K218: 0 | M218: =+IF(AND(LEFT(M217,2)="OK",ISNUMBER(K218)=TRUE,K218>0,K218<SUM(I215:L215)),"OK, continuare la compilazione",IF(LEFT(M217,2)="OK",IF(OR(ISNUMBER(K218)=FALSE,K218<0,ABS(K218)>ABS(SUM(I213:L213))),"Attenzione, compilare correttamente il campo","OK, continuare la compilazione"),"")) -> 
F219: RCTOT MTI-3 | G219: non compilabile | I219: =Dati_Anni_precedenti!E76 -> 0 | J219: =Dati_Anni_precedenti!F76 -> 0 | K219: =+IF(K217="",K215,K217) -> 0 | L219: =+IF(L217="",L215,L217) -> 0
F220: RC MTI-3 post 2023 | G220: non compilabile | K220: =+IF(LEFT(M218,2)="OK",IF(SUM(I215:L215)-(SUM(I219:L219)+K218)<0,IF(SUM(I215:L215)<0,IF(SUM(I215:L215)-(SUM(I219:L219)+K218)<0,"Attenzione, ricontrollare gli addendi",SUM(I215:L215)-(SUM(I219:L219)+K218)),"Attenzione, ricontrollare gli addendi"),SUM(I215:L215)-(SUM(I219:L219)+K218)),"") ->  | M220: =+IF(OR(K220="Attenzione, ricontrollare gli addendi",K220=""),"","OK, continuare la compilazione") -> 
I227: Sezione "Rimodulazioni"
F229: Rimodulazioni relative alla componente Capex | G229: non compilabile | M229: =+IF(LEFT(M220,2)="OK","OK, compilare tutti i campi o continuare la compilazione","") -> 
F230: Rimodulazioni relative alla componente Opex | G230: non compilabile | M230: =+IF(LEFT(M229,2)="OK","OK, compilare tutti i campi o continuare la compilazione","") -> 
F231: Rimodulazioni relative alla componente ERC | G231: non compilabile | M231: =+IF(LEFT(M230,2)="OK","OK, compilare tutti i campi o continuare la compilazione","") -> 
I238: Elaborazioni finali
I240: 2020 | J240: 2021 | K240: 2022 | L240: 2023
F241: VRGa calcolato | G241: non compilabile | I241: =Storico_Piano_Tariffario!K66 -> 0 | J241: =Storico_Piano_Tariffario!L66 -> 0 | K241: =+IF($M$220<>"",VRG_Teta!E74,"") ->  | L241: =+IF($M$220<>"",VRG_Teta!F74,"") ->  | M241: =+IF(M220="","",IF(AND(K245="nei limiti",L245="nei limiti",I245="nei limiti",J245="nei limiti"),"Compilazione conclusa!",IF(OR(K245<>"nei limiti",L245<>"nei limiti",I245<>"nei limiti",J245<>"nei limiti"),"ATTENZIONE: proposta sovracap per almeno un'annualità",""))) -> 
F242: ϑa calcolato | G242: non compilabile | I242: =Storico_Piano_Tariffario!K69 -> 0 | J242: =Storico_Piano_Tariffario!L69 -> 0 | K242: =+IF($M$220<>"",VRG_Teta!E75,"") ->  | L242: =+IF($M$220<>"",VRG_Teta!F75,"") -> 
F243: VRGa al cap | G243: non compilabile | I243: =Storico_Piano_Tariffario!K76 -> 0 | J243: =Storico_Piano_Tariffario!L76 -> 0 | K243: =+IF($M$220<>"",VRG_Teta!E76,"") ->  | L243: =+IF($M$220<>"",VRG_Teta!F76,"") -> 
F244: ϑa massimo applicabile | G244: non compilabile | I244: =Storico_Piano_Tariffario!K77 -> 0 | J244: =Storico_Piano_Tariffario!L77 -> 0 | K244: =+IF($M$220<>"",VRG_Teta!E84,"") ->  | L244: =+IF($M$220<>"",VRG_Teta!F84,"") -> 
F245: info predisposizione | G245: non compilabile | I245: =+IF($M$220<>"",VRG_Teta!C78,"") ->  | J245: =+IF($M$220<>"",VRG_Teta!D78,"") ->  | K245: =+IF($M$220<>"",VRG_Teta!E85,"") ->  | L245: =+IF($M$220<>"",VRG_Teta!F85,"") -> 

Sheet VRG_ult_spec
J2: sono presenti errori | K2: mancata compilazione | L2: errore compilazione
A3: Sezione | B3: Voce | C3: 2020 | D3: 2021 | E3: 2022 | F3: 2023 | G3: 2020-2023 | J3: =+OR(K3:L3) -> TRUE | K3: =+OR(R:T) -> TRUE | L3: =+OR(W:Y) -> FALSE | R3: controlli di compilazione
A4: Delibera Autorità | B4: Delibera
A5: Delibera Autorità | B5: J deliberato | C5: =+MIN(VRG_Teta!C75,VRG_Teta!C82) -> 0 | D5: =+MIN(VRG_Teta!D75,VRG_Teta!D82) -> 0 | E5: =+MIN(VRG_Teta!E75,VRG_Teta!E82) -> 0 | F5: =+MIN(VRG_Teta!F75,VRG_Teta!F82) -> 0 | P5: =+OR(C5="",C5=0) -> TRUE | Q5: =+OR(D5="",D5=0) -> TRUE | R5: =+OR(E5="",E5=0) -> TRUE | S5: =+OR(F5="",F5=0) -> TRUE | U5: =+C5<0 -> FALSE | V5: FALSE | W5: FALSE | X5: FALSE
A6: Delibera Autorità | B6: J medio | U6: FALSE | V6: FALSE | W6: FALSE | X6: FALSE
A7: Delibera Autorità | B7: RC post | G7: =+IFERROR(VALUE(Input_per_calcoli_finali!K220),0) -> 0 | T7: =+G7="" -> FALSE
A8: Schema regolatorio | B8: (∑2020-2023 Ipaexp + CFPaexp ) | G8: =+Piano_Tariffario!M10 -> 0 | T8: =+G8="" -> FALSE
A9: Schema regolatorio | B9: ψ | G9: =Piano_Tariffario!$M$14 -> 
A10: Schema regolatorio | B10: RAB MTI-2 | G10: =+Input_per_calcoli_finali!G47 -> 0 | T10: =+G10="" -> FALSE | Y10: =+G10<0 -> FALSE
A11: Schema regolatorio | B11: Schema regolatorio | G11: =+Piano_Tariffario!M15 ->  | T11: =+G11="" -> TRUE
A12: Totale investimenti pianificati | B12: Iptexp + CFPexp | C12: =+Piano_Tariffario!K86 -> 0 | D12: =+Piano_Tariffario!L86 -> 0 | E12: =+Piano_Tariffario!M86 -> 0 | F12: =+Piano_Tariffario!N86 -> 0 | P12: =+C12="" -> FALSE | Q12: =+D12="" -> FALSE | R12: =+E12="" -> FALSE | S12: =+F12="" -> FALSE
A13: Totale investimenti pianificati | B13: CFPexp | C13: =+Piano_Tariffario!K87 -> 0 | D13: =+Piano_Tariffario!L87 -> 0 | E13: =+Piano_Tariffario!M87 -> 0 | F13: =+Piano_Tariffario!N87 -> 0
A14: Totale investimenti pianificati | B14: Iptexp | C14: =+Piano_Tariffario!K88 -> 0 | D14: =+Piano_Tariffario!L88 -> 0 | E14: =+Piano_Tariffario!M88 -> 0 | F14: =+Piano_Tariffario!N88 -> 0
A15: Moltiplicatore | B15: VRG approvato | C15: =+Piano_Tariffario!K66 -> 0 | D15: =+Piano_Tariffario!L66 -> 0 | E15: =+Piano_Tariffario!M66 -> 0 | F15: =+Piano_Tariffario!N66 -> 0 | P15: =+OR(C15="",C15=0) -> TRUE | Q15: TRUE | R15: TRUE | S15: TRUE | U15: =+C15<0 -> FALSE | V15: FALSE | W15: =+E15<0 -> FALSE | X15: FALSE
A16: Moltiplicatore | B16: ∑tarif2019 * vscala-2 | C16: =+Piano_Tariffario!K68 -> 0 | D16: =+Piano_Tariffario!L68 -> 0 | E16: =+Piano_Tariffario!M68 -> 0 | F16: =+Piano_Tariffario!N68 -> 0 | P16: TRUE | Q16: TRUE | R16: TRUE | S16: TRUE | U16: FALSE | V16: FALSE | W16: FALSE | X16: FALSE
A17: Moltiplicatore | B17: di cui: Ricavi ws | C17: =Dati_Anni_precedenti!E17 -> 0 | D17: =Dati_Anni_precedenti!F17 -> 0 | E17: =+SUM(Vendita_Servizi_ingrosso!AJ:AJ) -> 0 | F17: =+SUM(Vendita_Servizi_ingrosso!AL:AL) -> 0 | U17: FALSE | V17: FALSE | W17: FALSE | X17: FALSE
A18: Moltiplicatore | B18: di cui: tarif*scal | C18: =Dati_Anni_precedenti!E18 -> 0 | D18: =Dati_Anni_precedenti!F18 -> 0 | E18: =+SUM(Ricavi_bacini_tariffari!N:N) -> 0 | F18: =+SUM(Ricavi_bacini_tariffari!O:O) -> 0 | U18: FALSE | V18: FALSE | W18: FALSE | X18: FALSE
A19: Moltiplicatore | B19: di cui: tarifindnew,2019vscalindnew,a-2 | C19: =Dati_Anni_precedenti!E19 -> 0 | D19: =Dati_Anni_precedenti!F19 -> 0 | E19: =+Ricavi_Coll_Dep!G19 -> 0 | F19: =+Ricavi_Coll_Dep!H19 -> 0 | U19: FALSE | V19: FALSE | W19: FALSE | X19: FALSE
A20: Moltiplicatore | B20: Rba-2 | C20: =+Piano_Tariffario!K67 -> 0 | D20: =+Piano_Tariffario!L67 -> 0 | E20: =+Piano_Tariffario!M67 -> 0 | F20: =+Piano_Tariffario!N67 -> 0 | P20: =+C20="" -> FALSE | Q20: =+D20="" -> FALSE | R20: =+E20="" -> FALSE | S20: =+F20="" -> FALSE | U20: FALSE | V20: FALSE | W20: FALSE | X20: FALSE
A21: Moltiplicatore | B21: Cba-2 | C21: =+Dati_Anni_precedenti!E21 -> 0 | D21: =+Dati_Anni_precedenti!F21 -> 0 | E21: =+VRG_Teta!E140+VRG_Teta!E138 -> 0 | F21: =+VRG_Teta!F140+VRG_Teta!F138 -> 0 | P21: FALSE | Q21: FALSE | R21: FALSE | S21: FALSE | U21: FALSE | V21: FALSE | W21: FALSE | X21: FALSE
A22: Costi delle immobilizzazioni | B22: AMM | C22: =+Piano_Tariffario!K31 -> 0 | D22: =+Piano_Tariffario!L31 -> 0 | E22: =+Piano_Tariffario!M31 -> 0 | F22: =+Piano_Tariffario!N31 -> 0 | P22: FALSE | Q22: FALSE | R22: FALSE | S22: FALSE
A23: Costi delle immobilizzazioni | B23: OF | C23: =+Piano_Tariffario!K32 -> 0 | D23: =+Piano_Tariffario!L32 -> 0 | E23: =+Piano_Tariffario!M32 -> 0 | F23: =+Piano_Tariffario!N32 -> 0 | P23: FALSE | Q23: FALSE | R23: FALSE | S23: FALSE
A24: Costi delle immobilizzazioni | B24: OFisc | C24: =+Piano_Tariffario!K33 -> 0 | D24: =+Piano_Tariffario!L33 -> 0 | E24: =+Piano_Tariffario!M33 -> 0 | F24: =+Piano_Tariffario!N33 -> 0 | P24: FALSE | Q24: FALSE | R24: FALSE | S24: FALSE
A25: Costi delle immobilizzazioni | B25: ΔCUITcapex | C25: =+Piano_Tariffario!K34 -> 0 | D25: =+Piano_Tariffario!L34 -> 0 | E25: =+Piano_Tariffario!M34 -> 0 | F25: =+Piano_Tariffario!N34 -> 0 | P25: FALSE | Q25: FALSE | R25: FALSE | S25: FALSE | U25: =+C25<0 -> FALSE | V25: FALSE | W25: =+E25<0 -> FALSE | X25: FALSE
A26: Immobilizzazioni | B26: IML | C26: =+TT_riepilogo_IMN!E6 -> 0 | D26: =+TT_riepilogo_IMN!F6 -> 0 | E26: =+TT_riepilogo_IMN!G6 -> 0 | F26: =+TT_riepilogo_IMN!H6 -> 0 | P26: FALSE | Q26: FALSE | R26: FALSE | S26: FALSE | U26: FALSE | V26: FALSE | W26: FALSE | X26: FALSE
A27: Immobilizzazioni | B27: IMN | C27: =+TT_riepilogo_IMN!E8 -> 0 | D27: =+TT_riepilogo_IMN!F8 -> 0 | E27: =+TT_riepilogo_IMN!G8 -> 0 | F27: =+TT_riepilogo_IMN!H8 -> 0 | P27: FALSE | Q27: FALSE | R27: FALSE | S27: FALSE | U27: FALSE | V27: FALSE | W27: FALSE | X27: FALSE
A28: Immobilizzazioni | B28: FA | C28: =+TT_riepilogo_IMN!E7 -> 0 | D28: =+TT_riepilogo_IMN!F7 -> 0 | E28: =+TT_riepilogo_IMN!G7 -> 0 | F28: =+TT_riepilogo_IMN!H7 -> 0 | P28: FALSE | Q28: FALSE | R28: FALSE | S28: FALSE | U28: FALSE | V28: FALSE | W28: FALSE | X28: FALSE
A29: Fondo Nuovi Investimenti | B29: AMMfoni | C29: =+Piano_Tariffario!K49 -> 0 | D29: =+Piano_Tariffario!L49 -> 0 | E29: =+Piano_Tariffario!M49 -> 0 | F29: =+Piano_Tariffario!N49 -> 0 | P29: FALSE | Q29: FALSE | R29: FALSE | S29: FALSE | U29: FALSE | V29: FALSE | W29: FALSE | X29: FALSE
A30: Fondo Nuovi Investimenti | B30: ΔCUITfoni | C30: =+Piano_Tariffario!K50 -> 0 | D30: =+Piano_Tariffario!L50 -> 0 | E30: =+Piano_Tariffario!M50 -> 0 | F30: =+Piano_Tariffario!N50 -> 0 | P30: FALSE | Q30: FALSE | R30: FALSE | S30: FALSE | U30: FALSE | V30: FALSE | W30: FALSE | X30: FALSE
A31: Fondo Nuovi Investimenti | B31: FNIfoni | C31: =+Piano_Tariffario!K48 -> 0 | D31: =+Piano_Tariffario!L48 -> 0 | E31: =+Piano_Tariffario!M48 -> 0 | F31: =+Piano_Tariffario!N48 -> 0 | P31: FALSE | Q31: FALSE | R31: FALSE | S31: FALSE | U31: FALSE | V31: FALSE | W31: FALSE | X31: FALSE
A32: Fondo Nuovi Investimenti | B32: DTATOG,ind | C32: =+Piano_Tariffario!K51 -> 0 | D32: =+Piano_Tariffario!L51 -> 0 | E32: =+Piano_Tariffario!M51 -> 0 | F32: =+Piano_Tariffario!N51 -> 0
A33: Fondo Nuovi Investimenti | B33: DTG,tot | C33: =+Piano_Tariffario!K52 -> 0 | D33: =+Piano_Tariffario!L52 -> 0 | E33: =+Piano_Tariffario!M52 -> 0 | F33: =+Piano_Tariffario!N52 -> 0
A34: Costi Operativi | B34: Opnew,a | C34: =+Opex!C214 -> 0 | D34: =+Opex!D214 -> 0 | E34: =+Opex!E214 -> 0 | F34: =+Opex!F214 -> 0 | U34: =+C34<0 -> FALSE | V34: =+D34<0 -> FALSE | W34: =+E34<0 -> FALSE | X34: =+F34<0 -> FALSE
A35: Costi Operativi | B35: OpexQT | C35: =+Opex!C215 -> 0 | D35: =+Opex!D215 -> 0 | E35: =+Opex!E215 -> 0 | F35: =+Opex!F215 -> 0
A36: Costi Operativi | B36: Opexqc | C36: =+Opex!C216 -> 0 | D36: =+Opex!D216 -> 0 | E36: =+Opex!E216 -> 0 | F36: =+Opex!F216 -> 0 | U36: =+C36<0 -> FALSE | V36: =+D36<0 -> FALSE | W36: =+E36<0 -> FALSE | X36: =+F36<0 -> FALSE
A37: Costi Operativi | B37: Opsocial | C37: =+Opex!C217 -> 0 | D37: =+Opex!D217 -> 0 | E37: =+Opex!E217 -> 0 | F37: =+Opex!F217 -> 0
A38: Costi Operativi | B38: Opmis | C38: =+Opex!C218 -> 0 | D38: =+Opex!D218 -> 0 | E38: =+Opex!E218 -> 0 | F38: =+Opex!F218 -> 0
A39: Costi Operativi | B39: OpCOVID | C39: =+Opex!C219 -> 0
A40: Costi Operativi | B40: COee | C40: =Opex!C88 -> 0 | D40: =Opex!D88 -> 0 | E40: =Opex!E88 -> 0 | F40: =Opex!F88 -> 0 | P40: =+C40="" -> FALSE | Q40: =+D40="" -> FALSE | R40: =+E40="" -> FALSE | S40: =+F40="" -> FALSE | U40: =+C40<0 -> FALSE | V40: FALSE | W40: =+E40<0 -> FALSE | X40: FALSE
A41: Costi Operativi | B41: COee, di cui OPexpEE | E41: =Opex!E86 -> 0 | F41: =Opex!F86 -> 0
A42: Costi Operativi | B42: Cows | C42: =Opex!C101 -> 0 | D42: =Opex!D101 -> 0 | E42: =Opex!E101 -> 0 | F42: =Opex!F101 -> 0 | P42: FALSE | Q42: FALSE | R42: FALSE | S42: FALSE | U42: FALSE | V42: FALSE | W42: FALSE | X42: FALSE
A43: Costi Operativi | B43: CoΔfanghi | C43: =Opex!C120 -> 0 | D43: =Opex!D120 -> 0 | E43: =Opex!E120 -> 0 | F43: =Opex!F120 -> 0 | P43: FALSE | Q43: FALSE | R43: FALSE | S43: FALSE | U43: FALSE | V43: FALSE | W43: FALSE | X43: FALSE
A44: Costi Operativi | B44: MT | C44: =Opex!C131 -> 0 | D44: =Opex!D131 -> 0 | E44: =Opex!E131 -> 0 | F44: =Opex!F131 -> 0 | P44: FALSE | Q44: FALSE | R44: FALSE | S44: FALSE | U44: FALSE | V44: FALSE | W44: FALSE | X44: FALSE
A45: Costi Operativi | B45: AC | C45: =Opex!C132 -> 0 | D45: =Opex!D132 -> 0 | E45: =Opex!E132 -> 0 | F45: =Opex!F132 -> 0 | P45: FALSE | Q45: FALSE | R45: FALSE | S45: FALSE | U45: FALSE | V45: FALSE | W45: FALSE | X45: FALSE
A46: Costi Operativi | B46: COato | C46: =Opex!C147 -> 0 | D46: =Opex!D147 -> 0 | E46: =Opex!E147 -> 0 | F46: =Opex!F147 -> 0 | P46: FALSE | Q46: FALSE | R46: FALSE | S46: FALSE | U46: FALSE | V46: FALSE | W46: FALSE | X46: FALSE
A47: Costi Operativi | B47: COARERA | C47: =Opex!C148 -> 0 | D47: =Opex!D148 -> 0 | E47: =Opex!E148 -> 0 | F47: =Opex!F148 -> 0 | P47: FALSE | Q47: FALSE | R47: FALSE | S47: FALSE | U47: FALSE | V47: FALSE | W47: FALSE | X47: FALSE
A48: Costi Operativi | B48: COmor | C48: =Opex!C149 -> 0 | D48: =Opex!D149 -> 0 | E48: =Opex!E149 -> 0 | F48: =Opex!F149 -> 0 | P48: FALSE | Q48: FALSE | R48: FALSE | S48: FALSE | U48: FALSE | V48: FALSE | W48: FALSE | X48: FALSE
A49: Costi Operativi | B49: COdil | C49: =Opex!C150 -> 0
A50: Costi Operativi | B50: COres | C50: =Opex!C151 -> 0 | D50: =Opex!D151 -> 0 | E50: =Opex!E151 -> 0 | F50: =Opex!F151 -> 0 | P50: FALSE | Q50: FALSE | R50: FALSE | S50: FALSE
A51: Costi Operativi | B51: Contributi c/e | C51: =Opex!C201 -> 0 | D51: =Opex!D201 -> 0 | E51: =Opex!E201 -> 0 | F51: =Opex!F201 -> 0 | P51: FALSE | Q51: FALSE | R51: FALSE | S51: FALSE | U51: =+C51<0 -> FALSE | V51: FALSE | W51: FALSE | X51: FALSE
A52: Costi Operativi | B52: Opexend | C52: =+Opex!C11 -> 0 | D52: =+Opex!D11 -> 0 | E52: =+Opex!E11 -> 0 | F52: =+Opex!F11 -> 0 | P52: FALSE | Q52: FALSE | R52: FALSE | S52: FALSE | U52: FALSE | V52: FALSE | W52: FALSE | X52: FALSE
A53: Costi ambientali e della risorsa | B53: ENVcapex | C53: =ERC!C46 -> 0 | D53: =ERC!D46 -> 0 | E53: =ERC!E46 -> 0 | F53: =ERC!F46 -> 0
A54: Costi ambientali e della risorsa | B54: REScapex | C54: =ERC!C47 -> 0 | D54: =ERC!D47 -> 0 | E54: =ERC!E47 -> 0 | F54: =ERC!F47 -> 0
A55: Costi ambientali e della risorsa | B55: ERCend | C55: =ERC!C131 -> 0 | D55: =ERC!D131 -> 0 | E55: =ERC!E131 -> 0 | F55: =ERC!F131 -> 0 | P55: =+C55="" -> FALSE | Q55: FALSE | R55: =+E55="" -> FALSE | S55: =+F55="" -> FALSE
A56: Costi ambientali e della risorsa | B56: ERCal | C56: =ERC!C132 -> 0 | D56: =ERC!D132 -> 0 | E56: =ERC!E132 -> 0 | F56: =ERC!F132 -> 0 | P56: FALSE | Q56: FALSE | R56: =+E56="" -> FALSE | S56: =+F56="" -> FALSE
A57: Costi ambientali e della risorsa | B57: ERCtel | C57: =ERC!C133 -> 0 | D57: =ERC!D133 -> 0 | E57: =ERC!E133 -> 0 | F57: =ERC!F133 -> 0 | P57: FALSE | Q57: FALSE
A58: Sezione Conguagli (include inflazione) | B58: RcVOL | C58: ='Rc'!C20 -> 0 | D58: ='Rc'!D20 -> 0 | E58: ='Rc'!E20 -> 0 | F58: ='Rc'!F20 -> 0
A59: Sezione Conguagli (include inflazione) | B59: RcEE | C59: ='Rc'!C21 -> 0 | D59: ='Rc'!D21 -> 0 | E59: ='Rc'!E21 -> 0 | F59: ='Rc'!F21 -> 0
A60: Sezione Conguagli (include inflazione) | B60: RcWS | C60: ='Rc'!C22 -> 0 | D60: ='Rc'!D22 -> 0 | E60: ='Rc'!E22 -> 0 | F60: ='Rc'!F22 -> 0
A61: Sezione Conguagli (include inflazione) | B61: RcERCa | C61: ='Rc'!C23 -> 0 | D61: ='Rc'!D23 -> 0 | E61: ='Rc'!E23 -> 0 | F61: ='Rc'!F23 -> 0
A62: Sezione Conguagli (include inflazione) | B62: RcaAttiv b | C62: =+'Rc'!C141*(1) -> 0 | D62: =+'Rc'!D141*(1) -> 0 | E62: =+'Rc'!E141*(TT_parametri!BL$8) -> 0 | F62: =+'Rc'!F141*(TT_parametri!BM$8) -> 0
A63: Sezione Conguagli (include inflazione) | B63: RcaAttiv b1 | E63: ='Rc'!E182*(TT_parametri!BL$8) -> 0 | F63: ='Rc'!F182*(TT_parametri!BM$8) -> 0
A64: Sezione Conguagli (include inflazione) | B64: RcaAttiv b2 | E64: ='Rc'!E183*(TT_parametri!BL$8) -> 0 | F64: ='Rc'!F183*(TT_parametri!BM$8) -> 0
A65: Sezione Conguagli (include inflazione) | B65: Rcares | C65: =+'Rc'!C142*(1) -> 0 | D65: =+'Rc'!D142*(1) -> 0 | E65: =+'Rc'!E142*(TT_parametri!BL$8) -> 0 | F65: =+'Rc'!F142*(TT_parametri!BM$8) -> 0
A66: Sezione Conguagli (include inflazione) | B66: RcaARERA | C66: =+'Rc'!C143*(1) -> 0 | D66: =+'Rc'!D143*(1) -> 0 | E66: =+'Rc'!E143*(TT_parametri!BL$8) -> 0 | F66: =+'Rc'!F143*(TT_parametri!BM$8) -> 0
A67: Sezione Conguagli (include inflazione) | B67: Costo forniture all’ingrosso transfrontaliere | C67: =+'Rc'!C144*(1) -> 0 | D67: =+'Rc'!D144*(1) -> 0 | E67: =+'Rc'!E144*(TT_parametri!BL$8) -> 0 | F67: =+'Rc'!F144*(TT_parametri!BM$8) -> 0
A68: Sezione Conguagli (include inflazione) | B68: RcIP (valori a moneta a-2, include eventuale FoNInoninv) | D68: =+'Rc'!D145*(1) -> 0 | F68: =+'Rc'!F145*(TT_parametri!BM$8) -> 0
A69: Sezione Conguagli (include inflazione) | B69: Costi per variazioni sistemiche / eventi eccezionali | C69: =+'Rc'!C146*(1) -> 0 | D69: =+'Rc'!D146*(1) -> 0 | E69: =+'Rc'!E146*(TT_parametri!BL$8) -> 0 | F69: =+'Rc'!F146*(TT_parametri!BM$8) -> 0
A70: Sezione Conguagli (include inflazione) | B70: Rimb335a | C70: =+'Rc'!C147*(1) -> 0 | D70: =+'Rc'!D147*(1) -> 0 | E70: =+'Rc'!E147*(TT_parametri!BL$8) -> 0 | F70: =+'Rc'!F147*(TT_parametri!BM$8) -> 0
A71: Sezione Conguagli (include inflazione) | B71: Rcaappr | C71: =+'Rc'!C148*(1) -> 0 | D71: =+'Rc'!D148*(1) -> 0 | E71: =+'Rc'!E148*(TT_parametri!BL$8) -> 0 | F71: =+'Rc'!F148*(TT_parametri!BM$8) -> 0
A72: Sezione Conguagli (include inflazione) | B72: DOpexQC | C72: =+'Rc'!C150*(1) -> 0 | D72: =+'Rc'!D150*(1) -> 0 | E72: =+'Rc'!E150*(TT_parametri!BL$8) -> 0 | F72: =+'Rc'!F150*(TT_parametri!BM$8) -> 0
A73: Sezione Conguagli (include inflazione) | B73: DOpexQT | C73: =+'Rc'!C151*(1) -> 0 | D73: =+'Rc'!D151*(1) -> 0 | E73: =+'Rc'!E151*(TT_parametri!BL$8) -> 0 | F73: =+'Rc'!F151*(TT_parametri!BM$8) -> 0
A74: Sezione Conguagli (include inflazione) | B74: DOpsocial | C74: =+'Rc'!C152*(1) -> 0 | D74: =+'Rc'!D152*(1) -> 0 | E74: =+'Rc'!E152*(TT_parametri!BL$8) -> 0 | F74: =+'Rc'!F152*(TT_parametri!BM$8) -> 0
A75: Sezione Conguagli (include inflazione) | B75: DOpmis | E75: ='Rc'!E278*(TT_parametri!BL$8) -> 0 | F75: ='Rc'!F278*(TT_parametri!BM$8) -> 0
A76: Sezione Conguagli (include inflazione) | B76: DOpcovid | E76: ='Rc'!E292*(TT_parametri!BL$8) -> 0
A77: Sezione Conguagli (include inflazione) | B77: RcARC | E77: ='Rc'!E304*(TT_parametri!BL$8) -> 0 | F77: ='Rc'!F304*(TT_parametri!BM$8) -> 0
A78: Sezione Conguagli (include inflazione) | B78: Fattore correttivo del Cong | E78: ='Rc'!E305*(TT_parametri!BL$8) -> 0 | F78: ='Rc'!F305*(TT_parametri!BM$8) -> 0
A79: Sezione Conguagli (include inflazione) | B79: Recupero volumi 2019 | D79: ='Rc'!D154*(1) -> 0 | F79: ='Rc'!F154*(TT_parametri!BM$8) -> 0
A80: Sezione Conguagli (include inflazione) | B80: Recupero energia elettrica 2019 | D80: ='Rc'!D155*(1) -> 0 | F80: ='Rc'!F155*(TT_parametri!BM$8) -> 0
A81: Sezione Conguagli (include inflazione) | B81: Rinvio di quota parte degli oneri ammissibili a riconoscimento tariffario nel 2020 | C81: =Altri_dati_eco_fin!E60 -> 0
A82: Sezione Conguagli (include inflazione) | B82: Rcappr2020,COVID | D82: =Altri_dati_eco_fin!F60 -> 0 | E82: =Altri_dati_eco_fin!G60 -> 0 | F82: =Altri_dati_eco_fin!H60 -> 0
A83: Sezione Conguagli (include inflazione) | B83: Rctot | C83: =+Piano_Tariffario!K60 -> 0 | D83: =+Piano_Tariffario!L60 -> 0 | E83: =+Piano_Tariffario!M60 -> 0 | F83: =+Piano_Tariffario!N60 -> 0 | P83: =+C83="" -> FALSE | Q83: FALSE | R83: FALSE | S83: FALSE
A84: Ammortamento finanziario MTI | B84: AF MTI-3 | C84: =+pre_af_2018 -> NO | D84: =+pre_af_2019 -> NO | E84: =+pre_af_2020 -> NO | F84: =+pre_af_2021 -> NO | P84: FALSE | Q84: FALSE | R84: FALSE | S84: FALSE

Sheet Piano_Tariffario
C2: PIANO TARIFFARIO
C3: SCHEMI REGOLATORI
I4: Note | J4: UdM | K4: Del 580/2019/R/IDR | M4: Del 639/2021/R/IDR
J5: UdM | K5: =Storico_Piano_Tariffario!K5 -> 2016 | L5: 2019 | M5: 2016 | O5: 2020 | P5: 2021 | Q5: 2022 | R5: 2023 | S5: 2024 | T5: 2025 | U5: 2026 | V5: 2027 | W5: 2028 | X5: 2029 | Y5: 2030 | Z5: 2031 | AA5: 2032 | AB5: 2033 | AC5: 2034 | AD5: 2035 | AE5: 2036 | AF5: 2037 | AG5: 2038 | AH5: 2039 | AI5: 2040 | AJ5: 2041 | AK5: 2042 | AL5: 2043 | AM5: 2044 | AN5: 2045
C6: VRG2018 | J6: euro | K6: =Storico_Piano_Tariffario!K6 -> 0 | M6: =IF(Input_per_calcoli_finali!M53<>"Schema regolatorio","",Framework_schemi!$C$76) -> 
C7: Popolazione residente cui aggiungere 0,25xabitanti fluttuanti | J7: n. abitante | K7: =Storico_Piano_Tariffario!K7 -> 0 | M7: =IF(Input_per_calcoli_finali!M53<>"Schema regolatorio","",Framework_schemi!$C$77) -> 
J8: SI/NO | K8: =Storico_Piano_Tariffario!K8 -> 0 | M8: =+IFERROR(IF((M6/M7)<=149,"SI","NO"),"") -> 
C9: Nessuna aggregazione o variazione dei processi tecnici significativa: (NO) oppure Presenza di aggregazioni o variazioni dei processi tecnici significative: (SI) | J9: SI/NO | K9: =Storico_Piano_Tariffario!K9 -> 0 | M9: =IF(Input_per_calcoli_finali!M53<>"Schema regolatorio","",Framework_schemi!C75) -> 
J10: euro | K10: =Storico_Piano_Tariffario!K10 -> 0 | M10: =Framework_schemi!$C$66 -> 0
C11: RABMTI-2 | J11: euro | K11: =Storico_Piano_Tariffario!K11 -> 0 | M11: =+Framework_schemi!C67 -> 0
J12: SI/NO | K12: =Storico_Piano_Tariffario!K12 -> 0 | M12: =+IF(Framework_schemi!C70="","",IF(Framework_schemi!C70=1,"SI","NO")) -> 
C13: SCHEMA REGOLATORIO (A) SCHEMA REGOLATORIO DI CONVERGENZA (B) | J13: A/B | K13: =Storico_Piano_Tariffario!K13 -> 0 | M13: =+IF(mti_3="","",mti_3) -> 
C14: y | J14: (0,4-0,8) | K14: =Storico_Piano_Tariffario!K14 -> 0 | M14: =+IF(Input_per_calcoli_finali!M53<>"Schema regolatorio","",Input_per_calcoli_finali!$K$49) -> 
C15: SCHEMA REGOLATORIO | J15: (I, II, III, IV, V, VI) | K15: =Storico_Piano_Tariffario!K15 -> 0 | M15: =+IF(Input_per_calcoli_finali!M53<>"Schema regolatorio","",IF(OR(schema="I",schema="II",schema="III",schema="IV",schema="V",schema="VI"),schema,"")) -> 
C20: COMPONENTI DI COSTO Opex, Capex , FNInew, ERC
I21: Note | J21: UdM | K21: ANNO 2020 | L21: ANNO 2021 | M21: ANNO 2022 | N21: ANNO 2023 | O21: ANNO 2024 | P21: ANNO 2025 | Q21: ANNO 2026 | R21: ANNO 2027 | S21: ANNO 2028 | T21: ANNO 2029 | U21: ANNO 2030 | V21: ANNO 2031 | W21: ANNO 2032 | X21: ANNO 2033 | Y21: ANNO 2034 | Z21: ANNO 2035 | AA21: ANNO 2036 | AB21: ANNO 2037 | AC21: ANNO 2038 | AD21: ANNO 2039 | AE21: ANNO 2040 | AF21: ANNO 2041 | AG21: ANNO 2042 | AH21: ANNO 2043 | AI21: ANNO 2044 | AJ21: ANNO 2045 | AK21: ANNO 2046 | AL21: ANNO 2047 | AM21: ANNO 2048 | AN21: ANNO 2049 | AO21: ANNO 2050 | AP21: ANNO 2051 | AQ21: ANNO 2052 | AR21: ANNO 2053 | AS21: ANNO 2054 | AT21: ANNO 2055 | AU21: ANNO 2056 | AV21: ANNO 2057 | AW21: ANNO 2058 | AX21: ANNO 2059
C22: Opexaend | J22: euro | K22: =Opex!C11 -> 0 | L22: =Opex!D11 -> 0 | M22: =Opex!E11 -> 0 | N22: =Opex!F11 -> 0
C23: Opexaal | J23: euro | K23: =Opex!C12 -> 0 | L23: =Opex!D12 -> 0 | M23: =Opex!E12 -> 0 | N23: =Opex!F12 -> 0
C24: Opnew,a | J24: euro | K24: =Opex!C214 -> 0 | L24: =Opex!D214 -> 0 | M24: =Opex!E214 -> 0 | N24: =Opex!F214 -> 0
C25: OpexaQT | J25: euro | K25: =Opex!C215 -> 0 | L25: =Opex!D215 -> 0 | M25: =Opex!E215 -> 0 | N25: =Opex!F215 -> 0
C26: OpexaQC | J26: euro | K26: =Opex!C216 -> 0 | L26: =Opex!D216 -> 0 | M26: =Opex!E216 -> 0 | N26: =Opex!F216 -> 0
C27: Opasocial | J27: euro | K27: =Opex!C217 -> 0 | L27: =Opex!D217 -> 0 | M27: =Opex!E217 -> 0 | N27: =Opex!F217 -> 0
C28: Opamis | J28: euro | K28: =Opex!C218 -> 0 | L28: =Opex!D218 -> 0 | M28: =Opex!E218 -> 0 | N28: =Opex!F218 -> 0
C29: OpaCOVID | J29: euro | K29: =Opex!C219 -> 0
C30: Opexa (al netto degli ERC) | J30: euro | K30: =+SUM(K22:K29) -> 0 | L30: =+SUM(L22:L28) -> 0 | M30: =+SUM(M22:M28) -> 0 | N30: =+SUM(N22:N28) -> 0
C31: AMMa | J31: euro | K31: =+Capex!C13 -> 0 | L31: =+Capex!D13 -> 0 | M31: =+Capex!E13 -> 0 | N31: =+Capex!F13 -> 0
C32: OFa | J32: euro | K32: =+Capex!C11 -> 0 | L32: =+Capex!D11 -> 0 | M32: =+Capex!E11 -> 0 | N32: =+Capex!F11 -> 0
C33: OFisca | J33: euro | K33: =+Capex!C12 -> 0 | L33: =+Capex!D12 -> 0 | M33: =+Capex!E12 -> 0 | N33: =+Capex!F12 -> 0
C34: DCUITaCapex | J34: euro | K34: =+Capex!C14 -> 0 | L34: =+Capex!D14 -> 0 | M34: =+Capex!E14 -> 0 | N34: =+Capex!F14 -> 0
C35: Capexa (al netto degli ERC) | J35: euro | K35: =SUM(K31:K34) -> 0 | L35: =SUM(L31:L34) -> 0 | M35: =SUM(M31:M34) -> 0 | N35: =SUM(N31:N34) -> 0
C36: IPtexp | J36: euro | K36: =FoNI!C76 -> 0 | L36: =FoNI!D76 -> 0 | M36: =FoNI!E76 -> 0 | N36: =FoNI!F76 -> 0
C37: Capexa | J37: euro | K37: =FoNI!C77 -> 0 | L37: =FoNI!D77 -> 0 | M37: =FoNI!E77 -> 0 | N37: =FoNI!F77 -> 0
C38: FNInew,a | J38: euro | K38: =+FoNI!C12 -> 0 | L38: =+FoNI!D12 -> 0 | M38: =+FoNI!E12 -> 0 | N38: =+FoNI!F12 -> 0
C42: ERCacapex | J42: euro | K42: =ERC!C11 -> 0 | L42: =ERC!D11 -> 0 | M42: =ERC!E11 -> 0 | N42: =ERC!F11 -> 0
C43: ERCaopex | J43: euro | K43: =ERC!C12 -> 0 | L43: =ERC!D12 -> 0 | M43: =ERC!E12 -> 0 | N43: =ERC!F12 -> 0
C44: ERCa | J44: euro | K44: =+K42+K43 -> 0 | L44: =+L42+L43 -> 0 | M44: =+M42+M43 -> 0 | N44: =+N42+N43 -> 0
C46: FONDO NUOVI INVESTIMENTI
I47: Note | J47: UdM | K47: ANNO 2020 | L47: ANNO 2021 | M47: ANNO 2022 | N47: ANNO 2023 | O47: ANNO 2024 | P47: ANNO 2025 | Q47: ANNO 2026 | R47: ANNO 2027 | S47: ANNO 2028 | T47: ANNO 2029 | U47: ANNO 2030 | V47: ANNO 2031 | W47: ANNO 2032 | X47: ANNO 2033 | Y47: ANNO 2034 | Z47: ANNO 2035 | AA47: ANNO 2036 | AB47: ANNO 2037 | AC47: ANNO 2038 | AD47: ANNO 2039 | AE47: ANNO 2040 | AF47: ANNO 2041 | AG47: ANNO 2042 | AH47: ANNO 2043 | AI47: ANNO 2044 | AJ47: ANNO 2045 | AK47: ANNO 2046 | AL47: ANNO 2047 | AM47: ANNO 2048 | AN47: ANNO 2049 | AO47: ANNO 2050 | AP47: ANNO 2051 | AQ47: ANNO 2052 | AR47: ANNO 2053 | AS47: ANNO 2054 | AT47: ANNO 2055 | AU47: ANNO 2056 | AV47: ANNO 2057 | AW47: ANNO 2058 | AX47: ANNO 2059
C48: FNIaFoNI | J48: euro | K48: =+FoNI!C12 -> 0 | L48: =+FoNI!D12 -> 0 | M48: =+FoNI!E12 -> 0 | N48: =+FoNI!F12 -> 0
C49: AMMaFoNI | J49: euro | K49: =+FoNI!C11 -> 0 | L49: =+FoNI!D11 -> 0 | M49: =+FoNI!E11 -> 0 | N49: =+FoNI!F11 -> 0
C50: DCUITaFoNI | J50: euro | K50: =+FoNI!C13 -> 0 | L50: =+FoNI!D13 -> 0 | M50: =+FoNI!E13 -> 0 | N50: =+FoNI!F13 -> 0
C51: DTATOG,ind | J51: euro | K51: =+FoNI!C14 -> 0 | L51: =+FoNI!D14 -> 0 | M51: =+FoNI!E14 -> 0 | N51: =+FoNI!F14 -> 0
C52: DTG,tot | J52: euro | K52: =+FoNI!C15 -> 0 | M52: =+FoNI!E15 -> 0 | N52: =+FoNI!F15 -> 0
C53: FoNIa | J53: euro | K53: =+SUM(K48:K52) -> 0 | L53: =+SUM(L48:L51) -> 0 | M53: =+SUM(M48:M52) -> 0 | N53: =+SUM(N48:N52) -> 0
C55: SVILUPPO DEL VRG predisposto dal soggetto competente (include eventuali rimodulazioni)
I56: Note | J56: UdM | K56: ANNO 2020 | L56: ANNO 2021 | M56: ANNO 2022 | N56: ANNO 2023 | O56: ANNO 2024 | P56: ANNO 2025 | Q56: ANNO 2026 | R56: ANNO 2027 | S56: ANNO 2028 | T56: ANNO 2029 | U56: ANNO 2030 | V56: ANNO 2031 | W56: ANNO 2032 | X56: ANNO 2033 | Y56: ANNO 2034 | Z56: ANNO 2035 | AA56: ANNO 2036 | AB56: ANNO 2037 | AC56: ANNO 2038 | AD56: ANNO 2039 | AE56: ANNO 2040 | AF56: ANNO 2041 | AG56: ANNO 2042 | AH56: ANNO 2043 | AI56: ANNO 2044 | AJ56: ANNO 2045 | AK56: ANNO 2046 | AL56: ANNO 2047 | AM56: ANNO 2048 | AN56: ANNO 2049 | AO56: ANNO 2050 | AP56: ANNO 2051 | AQ56: ANNO 2052 | AR56: ANNO 2053 | AS56: ANNO 2054 | AT56: ANNO 2055 | AU56: ANNO 2056 | AV56: ANNO 2057 | AW56: ANNO 2058 | AX56: ANNO 2059
C57: Opexa | J57: euro | K57: =+K30+Input_per_calcoli_finali!I230 -> 0 | L57: =+L30+Input_per_calcoli_finali!J230 -> 0 | M57: =+M30+Input_per_calcoli_finali!K230 -> 0 | N57: =+N30+Input_per_calcoli_finali!L230 -> 0
C58: Capexa | J58: euro | K58: =+K35+Input_per_calcoli_finali!I229 -> 0 | L58: =+L35+Input_per_calcoli_finali!J229 -> 0 | M58: =+M35+Input_per_calcoli_finali!K229 -> 0 | N58: =+N35+Input_per_calcoli_finali!L229 -> 0
C59: FoNIa | J59: euro | K59: =+K53 -> 0 | L59: =+L53 -> 0 | M59: =+M53 -> 0 | N59: =+N53 -> 0
C60: RCaTOT | J60: euro | K60: =+'Rc'!C10 -> 0 | L60: =+'Rc'!D10 -> 0 | M60: =+'Rc'!E10 -> 0 | N60: =+'Rc'!F10 -> 0
C61: ERCa | J61: euro | K61: =+K44+Input_per_calcoli_finali!I231 -> 0 | L61: =+L44+Input_per_calcoli_finali!J231 -> 0 | M61: =+M44+Input_per_calcoli_finali!K231 -> 0 | N61: =+N44+Input_per_calcoli_finali!L231 -> 0
C62: VRGa predisposto dal soggetto competente | J62: euro | K62: =+SUM(K57:K61) -> 0 | L62: =+SUM(L57:L61) -> 0 | M62: =+SUM(M57:M61) -> 0 | N62: =+SUM(N57:N61) -> 0
C64: SVILUPPO DEL MOLTIPLICATORE TARIFFARIO predisposto dal soggetto competente
I65: Note | J65: UdM | K65: ANNO 2020 | L65: ANNO 2021 | M65: ANNO 2022 | N65: ANNO 2023 | O65: ANNO 2024 | P65: ANNO 2025 | Q65: ANNO 2026 | R65: ANNO 2027 | S65: ANNO 2028 | T65: ANNO 2029 | U65: ANNO 2030 | V65: ANNO 2031 | W65: ANNO 2032 | X65: ANNO 2033 | Y65: ANNO 2034 | Z65: ANNO 2035 | AA65: ANNO 2036 | AB65: ANNO 2037 | AC65: ANNO 2038 | AD65: ANNO 2039 | AE65: ANNO 2040 | AF65: ANNO 2041 | AG65: ANNO 2042 | AH65: ANNO 2043 | AI65: ANNO 2044 | AJ65: ANNO 2045 | AK65: ANNO 2046 | AL65: ANNO 2047 | AM65: ANNO 2048 | AN65: ANNO 2049 | AO65: ANNO 2050 | AP65: ANNO 2051 | AQ65: ANNO 2052 | AR65: ANNO 2053 | AS65: ANNO 2054 | AT65: ANNO 2055 | AU65: ANNO 2056 | AV65: ANNO 2057 | AW65: ANNO 2058 | AX65: ANNO 2059
C66: VRGa predisposto dal soggetto competente | J66: euro | K66: =+K62 -> 0 | L66: =+L62 -> 0 | M66: =+M62 -> 0 | N66: =+N62 -> 0
C67: Ra-2b | J67: euro | K67: =+VRG_Teta!C56 -> 0 | L67: =+VRG_Teta!D56 -> 0 | M67: =+VRG_Teta!E56 -> 0 | N67: =+VRG_Teta!F56 -> 0
C68: S tarif2019*vscala-2 | J68: euro | K68: =+VRG_Teta!C55 -> 0 | L68: =+VRG_Teta!D55 -> 0 | M68: =+VRG_Teta!E55 -> 0 | N68: =+VRG_Teta!F55 -> 0
C69: Ja predisposto dal soggetto competente | J69: n. (3 cifre decimali) | K69: =+VRG_Teta!C75 -> 0 | L69: =+VRG_Teta!D75 -> 0 | M69: =+VRG_Teta!E75 ->  | N69: =+VRG_Teta!F75 -> 
C71: Rcaappr2020,COVID | J71: euro | K71: =-Altri_dati_eco_fin!E60 -> 0
C73: SVILUPPO DEL MOLTIPLICATORE TARIFFARIO applicabile (nelle more dell'approvazione ARERA)
J74: UdM | K74: ANNO 2020 | L74: ANNO 2021 | M74: ANNO 2022 | N74: ANNO 2023 | O74: ANNO 2024 | P74: ANNO 2025 | Q74: ANNO 2026 | R74: ANNO 2027 | S74: ANNO 2028 | T74: ANNO 2029 | U74: ANNO 2030 | V74: ANNO 2031 | W74: ANNO 2032 | X74: ANNO 2033 | Y74: ANNO 2034 | Z74: ANNO 2035 | AA74: ANNO 2036 | AB74: ANNO 2037 | AC74: ANNO 2038 | AD74: ANNO 2039 | AE74: ANNO 2040 | AF74: ANNO 2041 | AG74: ANNO 2042 | AH74: ANNO 2043 | AI74: ANNO 2044 | AJ74: ANNO 2045 | AK74: ANNO 2046 | AL74: ANNO 2047 | AM74: ANNO 2048 | AN74: ANNO 2049 | AO74: ANNO 2050 | AP74: ANNO 2051 | AQ74: ANNO 2052 | AR74: ANNO 2053 | AS74: ANNO 2054 | AT74: ANNO 2055 | AU74: ANNO 2056 | AV74: ANNO 2057 | AW74: ANNO 2058 | AX74: ANNO 2059
C75: Limite al moltiplicatore tariffario | J75: n. (3 cifre decimali) | K75: =+VRG_Teta!C84 ->  | L75: =+VRG_Teta!D84 ->  | M75: =+VRG_Teta!E84 ->  | N75: =+VRG_Teta!F84 -> 
C76: VRGa (coerente con J applicabile) | J76: euro | K76: =++MIN(VRG_Teta!C81,VRG_Teta!C83) -> 0 | L76: =++MIN(VRG_Teta!D81,VRG_Teta!D83) -> 0 | M76: =++MIN(VRG_Teta!E81,VRG_Teta!E83) -> 0 | N76: =++MIN(VRG_Teta!F81,VRG_Teta!F83) -> 0
C77: Ja applicabile | J77: n. (3 cifre decimali) | K77: =+IFERROR(IF(mti_3="escluso dall'aggiornamento",1,MIN(VRG_Teta!C82,+VRG_Teta!C84)),"") ->  | L77: =+IFERROR(IF(mti_3="escluso dall'aggiornamento",1,MIN(VRG_Teta!D82,+VRG_Teta!D84)),"") ->  | M77: =+IFERROR(IF(mti_3="escluso dall'aggiornamento",1,MIN(VRG_Teta!E82,+VRG_Teta!E84)),"") ->  | N77: =+IFERROR(IF(mti_3="escluso dall'aggiornamento",1,MIN(VRG_Teta!F82,+VRG_Teta!F84)),"") -> 
C79: Meccanismi incentivanti per il miglioramento della qualità, controllo sui livelli raggiunti e modalità di copertura dei premi
J80: UdM | K80: ANNO 2020 | L80: ANNO 2021 | M80: ANNO 2022 | N80: ANNO 2023 | O80: ANNO 2024 | P80: ANNO 2025 | Q80: ANNO 2026 | R80: ANNO 2027 | S80: ANNO 2028 | T80: ANNO 2029 | U80: ANNO 2030 | V80: ANNO 2031 | W80: ANNO 2032 | X80: ANNO 2033 | Y80: ANNO 2034 | Z80: ANNO 2035 | AA80: ANNO 2036 | AB80: ANNO 2037 | AC80: ANNO 2038 | AD80: ANNO 2039 | AE80: ANNO 2040 | AF80: ANNO 2041 | AG80: ANNO 2042 | AH80: ANNO 2043 | AI80: ANNO 2044 | AJ80: ANNO 2045 | AK80: ANNO 2046 | AL80: ANNO 2047 | AM80: ANNO 2048 | AN80: ANNO 2049 | AO80: ANNO 2050 | AP80: ANNO 2051 | AQ80: ANNO 2052 | AR80: ANNO 2053 | AS80: ANNO 2054 | AT80: ANNO 2055 | AU80: ANNO 2056 | AV80: ANNO 2057 | AW80: ANNO 2058 | AX80: ANNO 2059
C81: Strumento allocativo (€/mc) | J81: €/mc | K81: =Storico_Piano_Tariffario!K81 -> 0 | L81: =Storico_Piano_Tariffario!L81 -> 0 | M81: =Opex!E332 ->  | N81: =Opex!F332 -> 
C82: (1+γOPi,j)*max(0;ΔOpex) | J82: euro | K82: =Storico_Piano_Tariffario!K82 -> 0 | L82: =Storico_Piano_Tariffario!L82 -> 0 | M82: =Opex!E333 -> 0 | N82: =Opex!F333 -> 0
C84: INVESTIMENTI
I85: Note | J85: UdM | K85: ANNO 2020 | L85: ANNO 2021 | M85: ANNO 2022 | N85: ANNO 2023 | O85: ANNO 2024 | P85: ANNO 2025 | Q85: ANNO 2026 | R85: ANNO 2027 | S85: ANNO 2028 | T85: ANNO 2029 | U85: ANNO 2030 | V85: ANNO 2031 | W85: ANNO 2032 | X85: ANNO 2033 | Y85: ANNO 2034 | Z85: ANNO 2035 | AA85: ANNO 2036 | AB85: ANNO 2037 | AC85: ANNO 2038 | AD85: ANNO 2039 | AE85: ANNO 2040 | AF85: ANNO 2041 | AG85: ANNO 2042 | AH85: ANNO 2043 | AI85: ANNO 2044 | AJ85: ANNO 2045 | AK85: ANNO 2046 | AL85: ANNO 2047 | AM85: ANNO 2048 | AN85: ANNO 2049 | AO85: ANNO 2050 | AP85: ANNO 2051 | AQ85: ANNO 2052 | AR85: ANNO 2053 | AS85: ANNO 2054 | AT85: ANNO 2055 | AU85: ANNO 2056 | AV85: ANNO 2057 | AW85: ANNO 2058 | AX85: ANNO 2059
C86: Investimenti al lordo dei contributi | J86: euro | K86: =Storico_Piano_Tariffario!K86 -> 0 | L86: =Storico_Piano_Tariffario!L86 -> 0 | M86: =+Input_per_calcoli_finali!K42 -> 0 | N86: =+Input_per_calcoli_finali!L42 -> 0
C87: Contributi | J87: euro | K87: =Storico_Piano_Tariffario!K87 -> 0 | L87: =Storico_Piano_Tariffario!L87 -> 0 | M87: =+Input_per_calcoli_finali!K43 -> 0 | N87: =+Input_per_calcoli_finali!L43 -> 0
C88: Investimenti al netto dei contributi | J88: euro | K88: =Storico_Piano_Tariffario!K88 -> 0 | L88: =Storico_Piano_Tariffario!L88 -> 0 | M88: =+M86-M87 -> 0 | N88: =+N86-N87 -> 0
C89: CIN | J89: euro | K89: =Storico_Piano_Tariffario!K89 -> 0 | L89: =Storico_Piano_Tariffario!L89 -> 0 | M89: =+Capex!E116+ERC!E70+ERC!E104 -> 0 | N89: =+Capex!F116+ERC!F70+ERC!F104 -> 0
C90: CINfp | J90: euro | K90: =Storico_Piano_Tariffario!K90 -> 0 | L90: =Storico_Piano_Tariffario!L90 -> 0 | M90: =+Capex!E117+ERC!E71+ERC!E105 -> 0 | N90: =+Capex!F117+ERC!F71+ERC!F105 -> 0
C91: OF/CIN | J91: % | K91: =Storico_Piano_Tariffario!K91 -> 0 | L91: =Storico_Piano_Tariffario!L91 -> 0 | M91: =+IFERROR((M32+ERC!E79+ERC!E113)/M89,0) -> 0 | N91: =+IFERROR((N32+ERC!F79+ERC!F113)/N89,0) -> 0
C93: Trasferimento importi dovuti alla contabilità speciale del Commissario Unico (Del. 440/2017/R/idr)
I94: Note | J94: UdM | K94: 2020-2023
C95: Fabbisogno degli investimenti per adeguamento agglomerati oggetto di condanne UE del 19/07/2012 e 10/04/2014 | J95: euro | K95: ='PdI-riepilogo'!D53 -> 0
C96: Fabbisogno di investimenti coperto da tariffa | J96: euro | K96: ='PdI-riepilogo'!D54 -> 0
C97: Fabbisogno di investimenti coperto con risorse regionali o altre fonti pubbliche | J97: euro | K97: ='PdI-riepilogo'!D55 -> 0
C98: Risorse da destinare alla contabilità speciale del Commissario Unico | J98: euro | K98: =+K99+K100 -> 0
C99: Parte del VRG destinata alla contabilità speciale del Commissario Unico | J99: euro | K99: ='PdI-riepilogo'!D56 -> 0
C100: Risorse regionali o altre fonti pubbliche destinate alla contabilità speciale del Commissario Unico | J100: euro | K100: ='PdI-riepilogo'!D57 -> 0
C102: VALORE RESIDUO A FINE CONCESSIONE
I103: Note | J103: UdM | K103: Del 639/2021/R/IDR
C104: Ipc,t | J104: euro
C105: FAIP,c,t | J105: euro
C106: CFPc,t | J106: euro
C107: FACFP,c,t | J107: euro
C108: LIC | J108: euro
C109: VR a fine concessione | J109: euro

Sheet Conto_Economico
B1: CONTO ECONOMICO
B2: Voce_Conto_Economico | C2: UdM | D2: ANNO 2020 | E2: ANNO 2021 | F2: ANNO 2022 | G2: ANNO 2023 | H2: ANNO 2024 | I2: ANNO 2025 | J2: ANNO 2026 | K2: ANNO 2027 | L2: ANNO 2028 | M2: ANNO 2029 | N2: ANNO 2030 | O2: ANNO 2031 | P2: ANNO 2032 | Q2: ANNO 2033 | R2: ANNO 2034 | S2: ANNO 2035 | T2: ANNO 2036 | U2: ANNO 2037 | V2: ANNO 2038 | W2: ANNO 2039 | X2: ANNO 2040 | Y2: ANNO 2041 | Z2: ANNO 2042 | AA2: ANNO 2043 | AB2: ANNO 2044 | AC2: ANNO 2045 | AD2: ANNO 2046 | AE2: ANNO 2047 | AF2: ANNO 2048 | AG2: ANNO 2049 | AH2: ANNO 2050 | AI2: ANNO 2051 | AJ2: ANNO 2052 | AK2: ANNO 2053 | AL2: ANNO 2054 | AM2: ANNO 2055 | AN2: ANNO 2056 | AO2: ANNO 2057 | AP2: ANNO 2058 | AQ2: ANNO 2059
B3: Ricavi da tariffe | C3: euro
B4: Contributi di allacciamento | C4: euro
B5: Altri ricavi SII | C5: euro
B6: Ricavi da Altre Attività Idriche | C6: euro
B7: Totale Ricavi | C7: euro
B8: Costi Operativi (al netto del costo del personale) | C8: euro
B9: Costo del personale | C9: euro
B10: Totale Costi | C10: euro
B11: MOL | C11: euro
B12: Ammortamenti | C12: euro
B13: Reddito Operativo | C13: euro
B14: Interessi passivi | C14: euro
B15: Risultato ante imposte | C15: euro
B16: IRES | C16: euro
B17: IRAP | C17: euro
B18: Totale imposte | C18: euro
B19: Risultato di esercizio | C19: euro

Sheet Rendiconto_Finanziario
B1: RENDICONTO FINANZIARIO
B2: Voce_Rendiconto_Finanziario | C2: UdM | D2: ANNO 2020 | E2: ANNO 2021 | F2: ANNO 2022 | G2: ANNO 2023 | H2: ANNO 2024 | I2: ANNO 2025 | J2: ANNO 2026 | K2: ANNO 2027 | L2: ANNO 2028 | M2: ANNO 2029 | N2: ANNO 2030 | O2: ANNO 2031 | P2: ANNO 2032 | Q2: ANNO 2033 | R2: ANNO 2034 | S2: ANNO 2035 | T2: ANNO 2036 | U2: ANNO 2037 | V2: ANNO 2038 | W2: ANNO 2039 | X2: ANNO 2040 | Y2: ANNO 2041 | Z2: ANNO 2042 | AA2: ANNO 2043 | AB2: ANNO 2044 | AC2: ANNO 2045 | AD2: ANNO 2046 | AE2: ANNO 2047 | AF2: ANNO 2048 | AG2: ANNO 2049 | AH2: ANNO 2050 | AI2: ANNO 2051 | AJ2: ANNO 2052 | AK2: ANNO 2053 | AL2: ANNO 2054 | AM2: ANNO 2055 | AN2: ANNO 2056 | AO2: ANNO 2057 | AP2: ANNO 2058 | AQ2: ANNO 2059
B3: Ricavi da Tariffa SII (al netto del FONI) | C3: euro
B4: Contributi di allacciamento | C4: euro
B5: Altri ricavi SII | C5: euro
B6: Ricavi da Altre Attività Idriche | C6: euro
B7: RICAVI OPERATIVI | C7: euro
B8: Costi operativi | C8: euro
B9: COSTI OPERATIVI MONETARI | C9: euro
B10: Imposte | C10: euro
B11: IMPOSTE | C11: euro
B12: FLUSSI DI CASSA ECONOMICO | C12: euro
B13: Variazioni circolante commerciale | C13: euro
B14: Variazione credito IVA | C14: euro
B15: Variazione debito IVA | C15: euro
B16: FLUSSI DI CASSA OPERATIVO | C16: euro
B17: Investimenti con utilizzo del FoNI | C17: euro
B18: Altri investimenti | C18: euro
B19: FLUSSO DI CASSA ANTE FONTI FINANZIAMENTO | C19: euro
B20: FoNI | C20: euro
B21: Eventuale anticipazione da CSEA | C21: euro
B22: Erogazione debito finanziario a breve | C22: euro
B23: Erogazione debito finanziario medio - lungo termine | C23: euro
B24: Erogazione contributi pubblici | C24: euro
B25: Apporto capitale sociale | C25: euro
B26: FLUSSO DI CASSA DISPONIBILE PER RIMBORSI | C26: euro
B27: Rimborso quota capitale per finanziamenti pregressi | C27: euro
B28: Rimborso quota interessi per finanziamenti pregressi | C28: euro
B29: Rimborso quota capitale per nuovi finanziamenti | C29: euro
B30: Rimborso quota interessi per nuovi finanziamenti | C30: euro
B31: Eventuale restituzione a CSEA | C31: euro
B32: TOTALE SERVIZIO DEL DEBITO | C32: euro
B33: FLUSSO DI CASSA DISPONIBILE POST SERVIZIO DEL DEBITO | C33: euro
B34: Valore residuo a fine concessione | C34: euro
B35: Stock di debito non rimborsato a fine affidamento (capitale + interessi) | C35: euro
B38: INDICATORI DI REDDITIVITA' E LIQUIDITA'
B39: Indicatore | C39: Udm
B40: TIR unlevered | C40: %
B41: TIR levered | C41: %
B42: ADSCR | C42: n.
B43: DSCR minimo | C43: n.
B44: LLCR | C44: n.

Sheet Stato_Patrimoniale
A1: STATO PATRIMONIALE
B4: ANNO 2020 | C4: ANNO 2021 | D4: ANNO 2022 | E4: ANNO 2023 | F4: ANNO 2024 | G4: ANNO 2025 | H4: ANNO 2026 | I4: ANNO 2027 | J4: ANNO 2028 | K4: ANNO 2029 | L4: ANNO 2030 | M4: ANNO 2031 | N4: ANNO 2032 | O4: ANNO 2033 | P4: ANNO 2034 | Q4: ANNO 2035 | R4: ANNO 2036 | S4: ANNO 2037 | T4: ANNO 2038 | U4: ANNO 2039 | V4: ANNO 2040 | W4: ANNO 2041 | X4: ANNO 2042 | Y4: ANNO 2043 | Z4: ANNO 2044 | AA4: ANNO 2045 | AB4: ANNO 2046 | AC4: ANNO 2047 | AD4: ANNO 2048 | AE4: ANNO 2049 | AF4: ANNO 2050 | AG4: ANNO 2051 | AH4: ANNO 2052 | AI4: ANNO 2053 | AJ4: ANNO 2054 | AK4: ANNO 2055 | AL4: ANNO 2056 | AM4: ANNO 2057 | AN4: ANNO 2058 | AO4: ANNO 2059
A5: ATTIVO
A6: A) Crediti verso soci per versamenti ancora dovuti
A7: B) Immobilizzazioni, con separata indicazione di quelle concesse in locazione finanziaria
A8: I - Immobilizzazioni immateriali
A9: II - Immobilizzazioni materiali
A10: III - Immobilizzazioni finanziarie
A11: C) Attivo circolante
A12: I - Rimanenze
A13: II - Crediti
A14: III - Attività finanziarie che non costituiscono immobilizzazioni
A15: IV - Disponibilità liquide
A16: D) Ratei e risconti
A18: PASSIVO
A19: A) Patrimonio netto
A20: I - Capitale
A21: II - Riserva da soprapprezzo delle azioni
A22: III - Riserve di rivalutazione
A23: IV - Riserva legale
A24: V - Riserve statutarie
A25: VI - Altre riserve
A26: VII - Riserva per operazioni di copertura dei flussi finanziari attesi
A27: VIII - Utile (perdita) portato a nuovo
A28: IX - Utile (perdita) dell'esercizio
A29: X - Riserva negativa per azioni proprie in portafoglio
A30: B) Fondi per rischi e oneri
A31: C) Trattamento di fine rapporto di lavoro subordinato
A32: D) Debiti
A33: 1) obbligazioni
A34: 2) obbligazioni convertibili
A35: 3) debiti verso soci per finanziamenti
A36: 4) debiti verso banche
A37: 5) debiti verso altri finanziatori
A38: 6) acconti
A39: 7) debiti verso fornitori
A40: 8) debiti rappresentati da titoli di credito
A41: 9) debiti verso imprese controllate
A42: 10) debiti verso imprese collegate
A43: 11) debiti verso controllanti
A44: 11-bis) debiti verso imprese sottoposte al controllo delle controllanti
A45: 12) debiti tributari
A46: 13) debiti verso istituti di previdenza e di sicurezza sociale
A47: 14) altri debiti
A48: E) Ratei e risconti
A50: Dividend Payout Ratio

Sheet TT_Gestori
A6: Area elenco gestori in Anagrafica Operatori | C6: aggiornata 12/01/2022
A7: IDARERA | B7: P. IVA | C7: Denominazione / Ragione Sociale | D7: =+A7 -> IDARERA
A8: 29392 | B8: 01417600614 | C8: COMUNE DI BELLONA | D8: =+A8 -> 29392
A9: 22734 | B9: 00891180655 | C9: comune di roccagloriosa | D9: =+A9 -> 22734
A10: 19742 | B10: 00586120982 | C10: COMUNE DI CIVIDATE CAMUNO | D10: 19742
A11: 21431 | B11: 00221640642 | C11: COMUNE DI MONTEFALCIONE | D11: 21431
A12: 23952 | B12: 01820400644 | C12: COMUNE DI PIETRADEFUSI | D12: 23952
A13: 17134 | B13: 01181950211 | C13: Comunità Comprensoriale Valle Isarco | D13: 17134
A14: 23698 | B14: 00286650502 | C14: Comune di Terricciola | D14: 23698
A15: 17523 | B15: 00666400213 | C15: Società cooperativa acquedotto Laion/Villa | D15: 17523
A16: 28050 | B16: 00455580613 | C16: Comune di Teverola | D16: 28050
A17: 12341 | B17: 03988240960 | C17: BRIANZACQUE SRL | D17: 12341
A18: 28777 | B18: 00330820838 | C18: comune di nizza di sicilia | D18: 28777
A19: 28025 | B19: 00134970805 | C19: COMUNE DI OPPIDO MAMERTINA | D19: 28025
A20: 24603 | B20: 00278200795 | C20: Comune di Serra San Bruno | D20: 24603
A21: 22728 | B21: 00174260893 | C21: COMUNE DI PACHINO | D21: 22728
A22: 22245 | B22: 00417550787 | C22: COMUNE DI MANGONE | D22: 22245
A23: 29125 | B23: 00353840796 | C23: COMUNE DI SORIANO CALABRO | D23: 29125
A24: 28725 | B24: 00455290023 | C24: COMUNE DI CARCOFORO | D24: 28725
A25: 27858 | B25: 00423160787 | C25: Comune di Firmo | D25: 27858
A26: 26300 | B26: 00097460521 | C26: Comune di Poggibonsi | D26: 26300
A27: 13708 | B27: 00460490063 | C27: Comune Costa Vescovato | D27: 13708
A28: 28994 | B28: 01903810610 | C28: Comune di Valle di Maddaloni | D28: 28994
A29: 28208 | B29: 00230740847 | C29: comune di sambuca di sicilia | D29: 28208
A30: 1211 | B30: 00584970982 | C30: COMUNE DI VEZZA D'OGLIO | D30: 1211
A31: 17410 | B31: 01140550219 | C31: Comune di Rodengo | D31: 17410
A32: 28472 | B32: 00266660901 | C32: COMUNE DI CHEREMULE | D32: 28472
A33: 30195 | B33: 01657500649 | C33: Comune di Frigento | D33: 30195
A34: 20010 | B34: 01399810017 | C34: COMUNE DI VALLO TORINESE | D34: 20010
A35: 20096 | B35: 00532480654 | C35: comune di padula | D35: 20096
A36: 201 | B36: 00149110223 | C36: COMUNE DI BESENELLO | D36: 201
A37: 259 | B37: 00291090876 | C37: COMUNE DI CASTIGLIONE DI SICILIA | D37: 259
A38: 25938 | B38: 01083431005 | C38: Comune di Morlupo | D38: 25938
A39: 28027 | B39: 00008010803 | C39: COMUNE DI CINQUEFRONDI | D39: 28027
A40: 28499 | B40: 00596290825 | C40: COMUNE DI BAGHERIA | D40: 28499
A41: 29589 | B41: 00284260643 | C41: COMUNE DI SCAMPITELLA | D41: 29589
A42: 37081 | B42: 03938880139 | C42: COMUNE CAMPIONE D'ITALIA | D42: 37081
A43: 28618 | B43: 01262970617 | C43: COMUNE DI VAIRANO PATENORA | D43: 28618
A44: 28129 | B44: 01174860781 | C44: COMUNE DI FALCONARA ALBANESE | D44: 28129
A45: 29546 | B45: 00392720785 | C45: comune di cellara | D45: 29546
A46: 5720 | B46: 02093350516 | C46: ENTE ACQUE UMBRE-TOSCANE | D46: 5720
A47: 27849 | B47: 01040920785 | C47: COMUNE SAN PIETRO IN GUARANO | D47: 27849
A48: 14562 | B48: 00170690705 | C48: COMUNE DI FERRAZZANO | D48: 14562
A49: 6618 | B49: 00062150941 | C49: COMUNE DI PESCOPENNATARO | D49: 6618
A50: 33936 | B50: 01959080787 | C50: COMUNE DI MANDATORICCIO | D50: 33936
A51: 28887 | B51: 00627950652 | C51: Comune di Felitto | D51: 28887
A52: 24581 | B52: 00465190833 | C52: COMUNE DI GALLODORO | D52: 24581
A53: 30657 | B53: 00357670710 | C53: COMUNE DI LESINA | D53: 30657
A54: 13627 | B54: 02921240871 | C54: SO.GEA | D54: 13627
A55: 21373 | B55: 82002010658 | C55: COMUNE DI ROMAGNANO AL MONTE | D55: 21373
A56: 20836 | B56: 00269760625 | C56: COMUNE DI SASSINORO | D56: 20836
A57: 10626 | B57: 02645680162 | C57: ABM NEXT SRL | D57: 10626
A58: 7608 | B58: 04201250877 | C58: SERVIZI IDRICI ETNEI S.P.A | D58: 7608
A59: 26637 | B59: 00732840830 | C59: COMUNE DI SAN MARCO D'ALUNZIO | D59: 26637
A60: 13908 | B60: 00675230247 | C60: MEDIO CHIAMPO SPA | D60: 13908
A61: 17435 | B61: 00884620212 | C61: Comune di San Martino in Badia | D61: 17435
A62: 25337 | B62: 01005490618 | C62: COMUNE DI PIANA DI MONTE VERNA | D62: 25337
A63: 29296 | B63: 00251040804 | C63: Comune di Giffone | D63: 29296
A64: 33069 | B64: 00599710134 | C64: COMUNE DI BRIENNO | D64: 33069
A65: 24565 | B65: 02354850220 | C65: COMUNE DI PREDAIA | D65: 24565
A66: 22017 | B66: 00054410709 | C66: COMUNE DI RIPABOTTONI | D66: 22017
A67: 27930 | B67: 01593030610 | C67: COMUNE DI CAIANELLO | D67: 27930
A68: 29364 | B68: 00404880783 | C68: COMUNE DI ORSOMARSO | D68: 29364
A69: 28897 | B69: 01026790616 | C69: COMUNE DI BAIA E LATINA | D69: 28897
A70: 27835 | B70: 01210220834 | C70: COMUNE DI MISTRETTA | D70: 27835
A71: 21468 | B71: 00345000715 | C71: Consorzio per la Bonifica della Capitanata | D71: 21468
A72: 23888 | B72: 00447200619 | C72: COMUNE DI PIETRAMELARA | D72: 23888
A73: 17268 | B73: 00125740076 | C73: COMUNE DI CHALLAND SAINT ANSELME | D73: =+A73 -> 17268
A74: 24557 | B74: 00725430805 | C74: Comune di Rosarno | D74: 24557
A75: 5657 | B75: 01452870619 | C75: COMUNE DI MIGNANO MONTE LUNGO | D75: 5657
A76: 27748 | B76: 00609230826 | C76: Comune di Altofonte | D76: 27748
A77: 28028 | B77: 00709140800 | C77: COMUNE DI SCILLA | D77: 28028
A78: 26270 | B78: 00127640472 | C78: COMUNE DI PIEVE A NIEVOLE | D78: 26270
A79: 17432 | B79: 00127760213 | C79: Comune di Montagna | D79: 17432
A80: 31548 | B80: 00185610664 | C80: COMUNE DI MORINO | D80: 31548
A81: 22131 | B81: 00222840704 | C81: COMUNE DI SAN GIULIANO DEL SANNIO | D81: 22131
A82: 25979 | B82: 02823100165 | C82: COMUNE DI AMBIVERE | D82: 25979
A83: 14323 | B83: 00278660642 | C83: COMUNE DI CHIUSANO DI SAN DOMENICO | D83: 14323
A84: 27983 | B84: 00146680616 | C84: COMUNE DI SAN PRISCO | D84: 27983
A85: 27953 | B85: 00320090798 | C85: Comune di Chiaravalle Centrale | D85: 27953
A86: 21649 | B86: 00539480046 | C86: COMUNE DI VIOLA | D86: 21649
A87: 17696 | B87: 00406670216 | C87: Comune di Andriano | D87: 17696
A88: 23098 | B88: 00723620985 | C88: COMUNE DI PASPARDO | D88: 23098
A89: 25365 | B89: 02401890229 | C89: COMUNE DI PRIMIERO SAN MARTINO DI CASTROZZA | D89: 25365
A90: 26913 | B90: 00290910223 | C90: COMUNE DI SAGRON MIS | D90: 26913
A91: 23855 | B91: 00204900666 | C91: Comune di Canistro | D91: 23855
A92: 32215 | B92: 00536230717 | C92: COMUNE DI TORREMAGGIORE | D92: 32215
A93: 22175 | B93: 00056600943 | C93: COMUNE DI BELMONTE DEL SANNIO | D93: 22175
A94: 29768 | B94: 00281080648 | C94: Comune di Bonito | D94: 29768
A95: 22757 | B95: 00559800123 | C95: COMUNE DI CASALZUIGNO | D95: 22757
A96: 37366 | B96: 05762250875 | C96: BLUE SRLS | D96: 37366
A97: 28074 | B97: 00296580798 | C97: COMUNE SAN PIETRO APOSTOLO | D97: 28074
A98: 22936 | B98: 00283850691 | C98: COMUNE DI MONTEFERRANTE | D98: 22936
A99: 30176 | B99: 00144310836 | C99: comune di alcara li fusi | D99: 30176
A100: 21733 | B100: 00508900636 | C100: Comune di Pozzuoli | D100: 21733
A101: 21804 | B101: 00108010117 | C101: Comune di Maissana | D101: 21804
A102: 14368 | B102: 00101870079 | C102: Comune di Pollein | D102: 14368
A103: 79 | B103: 00124130220 | C103: COMUNE DI CAVALESE | D103: 79
A104: 183 | B104: 00100510213 | C104: COMUNE DI PARCINES | D104: 183
A105: 245 | B105: 00110390226 | C105: COMUNE DI AVIO | D105: 245
A106: 23943 | B106: 00297790644 | C106: Comune di Parolise | D106: 23943
A107: 28342 | B107: 00405200783 | C107: COMUNE DI GRIMALDI | D107: 28342
A108: 13656 | B108: 00304790538 | C108: ACQUEDOTTO DEL FIORA SPA | D108: 13656
A109: 14199 | B109: 00266100221 | C109: Comune di Bocenago | D109: 14199
A110: 9229 | B110: 02504010345 | C110: EMILIAMBIENTE | D110: 9229
A111: 25017 | B111: 00298150798 | C111: COMUNE DI FABRIZIA | D111: 25017
A112: 15242 | B112: 00441540127 | C112: COMUNE DI CASTELLO CABIAGLIO | D112: 15242
A113: 27116 | B113: 13883061007 | C113: NOVITO ACQUE SRL | D113: 27116
A114: 24572 | B114: 00327070793 | C114: COMUNE DI ZUNGRI | D114: 24572
A115: 28125 | B115: 00281220640 | C115: COMUNE DI ARIANO IRPINO | D115: 28125
A116: 25997 | B116: 01214260166 | C116: COMUNE DI AVERARA | D116: 25997
A117: 21565 | B117: 00249250085 | C117: comune di caravonica | D117: 21565
A118: 25857 | B118: 02667970822 | C118: Comune di Caltavuturo | D118: 25857
A119: 29731 | B119: 00086220944 | C119: COMUNE DI CASTEL DEL GIUDICE | D119: 29731
A120: 30598 | B120: 01421240480 | C120: COMUNE DI REGGELLO | D120: 30598
A121: 15035 | B121: 01767320565 | C121: TALETE S.P.A. | D121: 15035
A122: 28181 | B122: 00394310833 | C122: COMUNE DI ALI' TERME | D122: 28181
A123: 22711 | B123: 00340950096 | C123: COMUNE DI ALBISOLA SUPERIORE | D123: 22711
A124: 28283 | B124: 00297960791 | C124: COMUNE DI TIRIOLO | D124: 28283
A125: 14105 | B125: 02641830829 | C125: Acquedotto Consortile Biviere | D125: 14105
A126: 24856 | B126: 00621360825 | C126: COMUNE DI CERDA | D126: 24856
A127: 27937 | B127: 00299100834 | C127: COMUNE DI TAORMINA | D127: 27937
A128: 29335 | B128: 00401810783 | C128: comune di Sangineto | D128: 29335
A129: 24597 | B129: 00346700792 | C129: COMUNE DI MILETO | D129: 24597
A130: 28128 | B130: 01044730651 | C130: COMUNE DI LAURINO | D130: 28128
A131: 28362 | B131: 00203910641 | C131: Comune di Senerchia | D131: 28362
A132: 14956 | B132: 00108130071 | C132: COMUNE DI NUS | D132: 14956
A133: 16949 | B133: 00347080228 | C133: COMUNE DI BIENO | D133: 16949
A134: 28858 | B134: 00936740802 | C134: Comune di Africo | D134: 28858
A135: 1417 | B135: 01579450220 | C135: AIR AZIENDA INTERCOMUNALE ROTALIANA S.P.A. SOCIETÀ BENEFIT | D135: 1417
A136: 14894 | B136: 02147150227 | C136: COMUNE DI LEDRO | D136: 14894
A137: 28936 | B137: 00390090785 | C137: COMUNE DI BONIFATI | D137: =+A137 -> 28936
A138: 25884 | B138: 00216010561 | C138: COMUNE DI LUBRIANO | D138: 25884
A139: 188 | B139: 00148360662 | C139: COMUNE DI BARETE | D139: 188
A140: 779 | B140: 00807660212 | C140: COMUNE DI SLUDERNO | D140: 779
A141: 15984 | B141: 00555080217 | C141: COMUNE DI EGNA | D141: 15984
A142: 17097 | B142: 01295940215 | C142: Comune di Senale - San Felice | D142: 17097
A143: 17229 | B143: 00342270212 | C143: Comune di Valle Aurina | D143: 17229
A144: 22957 | B144: 00161500913 | C144: COMUNE DI MODOLO | D144: 22957
A145: 24760 | B145: 00615010253 | C145: Consorzio Acquedotto Vicinia di Cojana | D145: 24760
A146: 17415 | B146: 01260810211 | C146: Comune di Brennero | D146: 17415
A147: 27913 | B147: 00437760614 | C147: Comune Capriati a Volturno | D147: 27913
A148: 23878 | B148: 00672650165 | C148: COMUNE DI LENNA | D148: 23878
A149: 16977 | B149: 03479980876 | C149: S.ED.A. S.R.L. SOCIETA' EDUZIONE ACQUE | D149: 16977
A150: 19994 | B150: 00273580126 | C150: COMUNE DI GEMONIO | D150: 19994
A151: 26006 | B151: 02145981003 | C151: COMUNE DI PERCILE | D151: 26006
A152: 14458 | B152: 00341780120 | C152: comune di lozza | D152: 14458
A153: 384 | B153: 00685130163 | C153: COMUNE DI MAPELLO | D153: 384
A154: 29774 | B154: 01024090167 | C154: COMUNE DI CARVICO | D154: 29774
A155: 8092 | B155: 03079180364 | C155: SORGEAQUA S.R.L. | D155: 8092
A156: 14854 | B156: 01704570611 | C156: COMUNE DI CALVI RISORTA | D156: 14854
A157: 14420 | B157: 00225330703 | C157: COMUNE DI TORELLA DEL SANNIO | D157: 14420
A158: 24596 | B158: 00363920794 | C158: COMUNE DI MONTEROSSO CALABRO | D158: 24596
A159: 22754 | B159: 01107430033 | C159: COMUNE DI TRASQUERA | D159: 22754
A160: 29488 | B160: 00588520619 | C160: COMUNE DI VALLE AGRICOLA | D160: 29488
A161: 1439 | B161: 00111860193 | C161: PADANIA ACQUE S.P.A. | D161: 1439
A162: 17235 | B162: 00271100224 | C162: COMUNE DI ALBIANO | D162: 17235
A163: 17878 | B163: 00105450076 | C163: COMUNE DI CHATILLON | D163: 17878
A164: 30232 | B164: 01222670224 | C164: COMUNE DI GARNIGA TERME | D164: 30232
A165: 13659 | B165: 00723600987 | C165: Comune di Ceto | D165: 13659
A166: 21599 | B166: 00208720086 | C166: COMUNE DI BAJARDO | D166: 21599
A167: 15111 | B167: 00520110131 | C167: COMUNE DI TURATE | D167: 15111
A168: 25916 | B168: 00248730566 | C168: Comune di Villa san Giovanni in Tuscia | D168: 25916
A169: 17527 | B169: 00661610212 | C169: Comune di Laion - Gemeinde Lajen | D169: 17527
A170: 28063 | B170: 01607300785 | C170: comune di Santa Caterina Albanese | D170: 28063
A171: 28107 | B171: 01702630615 | C171: COMUNE DI PORTICO DI CASERTA | D171: 28107
A172: 21428 | B172: 00268840642 | C172: COMUNE DI FORINO | D172: 21428
A173: 22775 | B173: 00336110093 | C173: COMUNE DI CALIZZANO | D173: 22775
A174: 28117 | B174: 00982870610 | C174: COMUNE DI CELLOLE | D174: 28117
A175: 28520 | B175: 00341640787 | C175: COMUNE DI FUSCALDO | D175: 28520
A176: 25866 | B176: 02145971004 | C176: Comune di Anticoli Corrado | D176: 25866
A177: 25887 | B177: 00212280564 | C177: COMUNE DI BASSANO ROMANO | D177: 25887
A178: 19892 | B178: 00246350086 | C178: COMUNE DI MONTEGROSSO PIAN LATTE | D178: 19892
A179: 14424 | B179: 00112200829 | C179: Ente Acquedotti Siciliani in liquidazione coatta amministrativa | D179: 14424
A180: 21576 | B180: 00254630080 | C180: COMUNE DI BORGOMARO | D180: 21576
A181: 25118 | B181: 00379280092 | C181: COMUNE DI CASTELVECCHIO DI ROCCA BARBENA | D181: 25118
A182: 13591 | B182: 00561660127 | C182: COMUNE DI BESANO | D182: 13591
A183: 22919 | B183: 00237220900 | C183: COMUNE DI ANELA | D183: 22919
A184: 19746 | B184: 00550530984 | C184: COMUNE DI DARFO BOARIO TERME | D184: 19746
A185: 28623 | B185: 00158240838 | C185: COMUNE DI TERME VIGLIATORE | D185: 28623
A186: 21563 | B186: 01567890080 | C186: RIVIERACQUA SOCIETA' CONSORTILE PER AZIONI | D186: 21563
A187: 12836 | B187: 00139710701 | C187: COMUNE DI MIRABELLO SANNITICO | D187: 12836
A188: 28371 | B188: 00409460789 | C188: COMUNE DI LONGOBARDI | D188: 28371
A189: 29127 | B189: 01270860610 | C189: Comune di Roccamonfina | D189: 29127
A190: 21642 | B190: 00432060135 | C190: Comune di CERNOBBIO | D190: 21642
A191: 19775 | B191: 00245240643 | C191: Comune di Baiano | D191: 19775
A192: 19891 | B192: 00689040137 | C192: Comune di Peglio | D192: 19891
A193: 17400 | B193: 00415160076 | C193: COMUNE DI VALTOURNENCHE | D193: 17400
A194: 17412 | B194: 00346660210 | C194: Consorzio per acqua potabile | D194: 17412
A195: 16955 | B195: 00308910223 | C195: COMUNE DI TENNO | D195: 16955
A196: 28663 | B196: 00337960793 | C196: COMUNE DI SAN CALOGERO | D196: 28663
A197: 23843 | B197: 00200660918 | C197: COMUNE DI TERTENIA | D197: 23843
A198: 1301 | B198: 00159240225 | C198: COMUNE DI OSSANA | D198: 1301
A199: 13991 | B199: 01068620663 | C199: COMUNE DI CALASCIO (AQ) | D199: 13991
A200: 26688 | B200: 00122530801 | C200: CONSORZIO INTERCOMUNALE ACQUEDOTTO VINA | D200: 26688
A201: 22171 | B201: 00723560983 | C201: COMUNE DI ESINE | D201: =+A201 -> 22171
A202: 17123 | B202: 01100140217 | C202: Comune di Barbiano | D202: 17123
A203: 36086 | B203: 03937840878 | C203: Geomar di Musumeci Maria Pia | D203: 36086
A204: 14630 | B204: 00270970221 | C204: COMUNE DI GIUSTINO | D204: 14630
A205: 22899 | B205: 00218950640 | C205: COMUNE DI CALITRI | D205: 22899
... 2095 more rows

Sheet TT_Comuni_ATO
A1: REGIONE | B1: Comune | C1: Comune_Prov | D1: Ente_Ambito | E1: ID_ATO | F1: ID_ATO | G1: PROVINCIA | H1: PROV | I1: Istat_Comune | J1: Comune | L1: ATO | M1: ID_ATO | N1: ID_ATO | O1: N/C/S | Q1: ID_Ente_Ambito | R1: Ente_Ambito | V1: ID_ATO | X1: Comune_Prov | Y1: Istat_Comune | Z1: REGIONE | AA1: PROVINCIA | AB1: PROV | AC1: Comune | AD1: Ente_Ambito | AE1: ID_ATO | AF1: ID_ATO
A2: Abruzzo | B2: Abbateggio | C2: Abbateggio (PE) | D2: Ente Regionale per il Servizio Idrico Integrato | E2: 1304 | F2: 1304 | G2: Pescara | H2: PE | I2: 068001 | J2: Abbateggio | L2: ATO 1 - VERBANO-CUSIO-OSSOLA E PIANURA NOVARESE | M2: 101 | N2: 101 | O2: N | Q2: 19855 | R2: Consiglio di Bacino Brenta
A3: Abruzzo | B3: Acciano | C3: Acciano (AQ) | D3: Ente Regionale per il Servizio Idrico Integrato | E3: 1301 | F3: 1301 | G3: L'Aquila | H3: AQ | I3: 066001 | J3: Acciano | L3: ATO 2 - BIELLESE, VERCELLESE, CASALESE | M3: 102 | N3: 102 | O3: N | Q3: 19857 | R3: ATO 1 Verbano Cusio Ossola e Pianura Novarese
A4: Abruzzo | B4: Aielli | C4: Aielli (AQ) | D4: Ente Regionale per il Servizio Idrico Integrato | E4: 1302 | F4: 1302 | G4: L'Aquila | H4: AQ | I4: 066002 | J4: Aielli | L4: ATO 3 - TORINO | M4: 103 | N4: 103 | O4: N | Q4: 19858 | R4: Consiglio di Bacino Valle del Chiampo
A5: Abruzzo | B5: Alanno | C5: Alanno (PE) | D5: Ente Regionale per il Servizio Idrico Integrato | E5: 1304 | F5: 1304 | G5: Pescara | H5: PE | I5: 068002 | J5: Alanno | L5: ATO 4 - CUNEO | M5: 104 | N5: 104 | O5: N | Q5: 19859 | R5: Consiglio di Bacino Veronese
A6: Abruzzo | B6: Alba Adriatica | C6: Alba Adriatica (TE) | D6: Ente Regionale per il Servizio Idrico Integrato | E6: 1305 | F6: 1305 | G6: Teramo | H6: TE | I6: 067001 | J6: Alba Adriatica | L6: ATO 5 - ASTIGIANO, MONFERRATO | M6: 105 | N6: 105 | O6: N | Q6: 19860 | R6: UFFICIO D'AMBITO DELLA PROVINCIA DI SONDRIO
A7: Abruzzo | B7: Alfedena | C7: Alfedena (AQ) | D7: Ente Regionale per il Servizio Idrico Integrato | E7: 1303 | F7: 1303 | G7: L'Aquila | H7: AQ | I7: 066003 | J7: Alfedena | L7: ATO 6 - ALESSANDRIA | M7: 106 | N7: 106 | O7: N | Q7: 19862 | R7: UFFICIO DI AMBITO DELLA PROVINCIA DI MANTOVA
A8: Abruzzo | B8: Altino | C8: Altino (CH) | D8: Ente Regionale per il Servizio Idrico Integrato | E8: 1306 | F8: 1306 | G8: Chieti | H8: CH | I8: 069001 | J8: Altino | L8: ATO VALLE D'AOSTA | M8: 201 | N8: 201 | O8: N | Q8: 19864 | R8: Consiglio di Bacino "Dolomiti Bellunesi"
A9: Abruzzo | B9: Ancarano | C9: Ancarano (TE) | D9: Ente Regionale per il Servizio Idrico Integrato | E9: 1305 | F9: 1305 | G9: Teramo | H9: TE | I9: 067002 | J9: Ancarano | L9: ATO BG - BERGAMO | M9: 301 | N9: 301 | O9: N | Q9: 19865 | R9: Consiglio di Bacino Polesine
A10: Abruzzo | B10: Anversa degli Abruzzi | C10: Anversa degli Abruzzi (AQ) | D10: Ente Regionale per il Servizio Idrico Integrato | E10: 1303 | F10: 1303 | G10: L'Aquila | H10: AQ | I10: 066004 | J10: Anversa degli Abruzzi | L10: ATO BS - BRESCIA | M10: 302 | N10: 302 | O10: N | Q10: 19867 | R10: Ufficio d'Ambito Territoriale Ottimale della Provincia di Varese
A11: Abruzzo | B11: Archi | C11: Archi (CH) | D11: Ente Regionale per il Servizio Idrico Integrato | E11: 1306 | F11: 1306 | G11: Chieti | H11: CH | I11: 069002 | J11: Archi | L11: ATO CO - COMO | M11: 304 | N11: 304 | O11: N | Q11: 19869 | R11: Consiglio di Bacino Bacchiglione
A12: Abruzzo | B12: Ari | C12: Ari (CH) | D12: Ente Regionale per il Servizio Idrico Integrato | E12: 1306 | F12: 1306 | G12: Chieti | H12: CH | I12: 069003 | J12: Ari | L12: ATO CR - CREMONA | M12: 305 | N12: 305 | O12: N | Q12: 19872 | R12: Consiglio di Bacino "Veneto Orientale"
A13: Abruzzo | B13: Arielli | C13: Arielli (CH) | D13: Ente Regionale per il Servizio Idrico Integrato | E13: 1306 | F13: 1306 | G13: Chieti | H13: CH | I13: 069004 | J13: Arielli | L13: ATO LC - LECCO | M13: 306 | N13: 306 | O13: N | Q13: 19873 | R13: A.T.O. - Ovest - Provincia di Imperia
A14: Abruzzo | B14: Arsita | C14: Arsita (TE) | D14: Ente Regionale per il Servizio Idrico Integrato | E14: 1304 | F14: 1304 | G14: Teramo | H14: TE | I14: 067003 | J14: Arsita | L14: ATO LO - LODI | M14: 307 | N14: 307 | O14: N | Q14: 19880 | R14: UFFICIO D'AMBITO DI LODI
A15: Abruzzo | B15: Ateleta | C15: Ateleta (AQ) | D15: Ente Regionale per il Servizio Idrico Integrato | E15: 1303 | F15: 1303 | G15: L'Aquila | H15: AQ | I15: 066005 | J15: Ateleta | L15: ATO MI - Città Metropolitana di Milano | M15: 308 | N15: 308 | O15: N | Q15: 19881 | R15: UFFICIO D'AMBITO DELLA PROVINCIA DI CREMONA
A16: Abruzzo | B16: Atessa | C16: Atessa (CH) | D16: Ente Regionale per il Servizio Idrico Integrato | E16: 1306 | F16: 1306 | G16: Chieti | H16: CH | I16: 069005 | J16: Atessa | L16: ATO MN - MANTOVA | M16: 309 | N16: 309 | O16: N | Q16: 19882 | R16: Autorità Idrica Pugliese
A17: Abruzzo | B17: Atri | C17: Atri (TE) | D17: Ente Regionale per il Servizio Idrico Integrato | E17: 1304 | F17: 1304 | G17: Teramo | H17: TE | I17: 067004 | J17: Atri | L17: ATO PV - PAVIA | M17: 310 | N17: 310 | O17: N | Q17: 19883 | R17: ENTE D'AMBITO TERRITORIALE OTTIMALE n4 "LAZIO MERIDIONALE-LATINA"
A18: Abruzzo | B18: Avezzano | C18: Avezzano (AQ) | D18: Ente Regionale per il Servizio Idrico Integrato | E18: 1302 | F18: 1302 | G18: L'Aquila | H18: AQ | I18: 066006 | J18: Avezzano | L18: ATO SO - SONDRIO | M18: 311 | N18: 311 | O18: N | Q18: 19884 | R18: ATO 2 Biellese, Vercellese e Casalese
A19: Abruzzo | B19: Balsorano | C19: Balsorano (AQ) | D19: Ente Regionale per il Servizio Idrico Integrato | E19: 1302 | F19: 1302 | G19: L'Aquila | H19: AQ | I19: 066007 | J19: Balsorano | L19: ATO VA - VARESE | M19: 312 | N19: 312 | O19: N | Q19: 19885 | R19: Ufficio d'ambito di Lecco
A20: Abruzzo | B20: Barete | C20: Barete (AQ) | D20: Ente Regionale per il Servizio Idrico Integrato | E20: 1301 | F20: 1301 | G20: L'Aquila | H20: AQ | I20: 066008 | J20: Barete | L20: ATO MB - MONZA E DELLA BRIANZA | M20: 313 | N20: 313 | O20: N | Q20: 19886 | R20: Assemblea di Ambito territoriale ottimale n. 2 Marche Centro - Ancona
A21: Abruzzo | B21: Barisciano | C21: Barisciano (AQ) | D21: Ente Regionale per il Servizio Idrico Integrato | E21: 1301 | F21: 1301 | G21: L'Aquila | H21: AQ | I21: 066009 | J21: Barisciano | L21: ATO NL - TRENTO | M21: 401 | N21: 401 | O21: N | Q21: 19888 | R21: Consiglio di Bacino Laguna di Venezia
A22: Abruzzo | B22: Barrea | C22: Barrea (AQ) | D22: Ente Regionale per il Servizio Idrico Integrato | E22: 1303 | F22: 1303 | G22: L'Aquila | H22: AQ | I22: 066010 | J22: Barrea | L22: ATO BOLZANO | M22: 402 | N22: 402 | O22: N | Q22: 19898 | R22: Ambito Territoriale Ottimale 2 Lazio Centrale - Roma
A23: Abruzzo | B23: Basciano | C23: Basciano (TE) | D23: Ente Regionale per il Servizio Idrico Integrato | E23: 1305 | F23: 1305 | G23: Teramo | H23: TE | I23: 067005 | J23: Basciano | L23: ATO PUSTERIA | M23: 403 | N23: 403 | O23: N | Q23: 19900 | R23: UFFICIO D'AMBITO DI BERGAMO
A24: Abruzzo | B24: Bellante | C24: Bellante (TE) | D24: Ente Regionale per il Servizio Idrico Integrato | E24: 1305 | F24: 1305 | G24: Teramo | H24: TE | I24: 067006 | J24: Bellante | L24: ATO VAL VENOSTA | M24: 404 | N24: 404 | O24: N | Q24: 19901 | R24: Ente di governo d'Ambito n.4 Cuneese per i Servizi Idrici
A25: Abruzzo | B25: Bisegna | C25: Bisegna (AQ) | D25: Ente Regionale per il Servizio Idrico Integrato | E25: 1302 | F25: 1302 | G25: L'Aquila | H25: AQ | I25: 066011 | J25: Bisegna | L25: ATO VALLE ISARCO | M25: 405 | N25: 405 | O25: N | Q25: 19905 | R25: Ente di Governo d'Ambito Ottimale n.6 “Alessandrino”
A26: Abruzzo | B26: Bisenti | C26: Bisenti (TE) | D26: Ente Regionale per il Servizio Idrico Integrato | E26: 1304 | F26: 1304 | G26: Teramo | H26: TE | I26: 067007 | J26: Bisenti | L26: ATO AV - ALTO VENETO | M26: 501 | N26: 501 | O26: N | Q26: 19912 | R26: Autorità di Ambito Territoriale Ottimale n. 4 MARCHE Centro Sud - Fermano e Maceratese
A27: Abruzzo | B27: Bolognano | C27: Bolognano (PE) | D27: Ente Regionale per il Servizio Idrico Integrato | E27: 1304 | F27: 1304 | G27: Pescara | H27: PE | I27: 068003 | J27: Bolognano | L27: ATO B - BACCHIGLIONE | M27: 502 | N27: 502 | O27: N | Q27: 19913 | R27: Azienda Speciale "Ufficio d'Ambito Territoriale Ottimale della Provincia di Pavia"
A28: Abruzzo | B28: Bomba | C28: Bomba (CH) | D28: Ente Regionale per il Servizio Idrico Integrato | E28: 1306 | F28: 1306 | G28: Chieti | H28: CH | I28: 069006 | J28: Bomba | L28: ATO BR - BRENTA | M28: 503 | N28: 503 | O28: N | Q28: 19914 | R28: Assemblea di Ambito Territoriale Ottimale n. 3 Marche Centro - Macerata
A29: Abruzzo | B29: Borrello | C29: Borrello (CH) | D29: Ente Regionale per il Servizio Idrico Integrato | E29: 1306 | F29: 1306 | G29: Chieti | H29: CH | I29: 069007 | J29: Borrello | L29: ATO LV - LAGUNA DI VENEZIA | M29: 504 | N29: 504 | O29: N | Q29: 19916 | R29: Assemblea di Ambito Territoriale Ottimale n. 5 MARCHE SUD - ASCOLI PICENO E FERMO
A30: Abruzzo | B30: Brittoli | C30: Brittoli (PE) | D30: Ente Regionale per il Servizio Idrico Integrato | E30: 1304 | F30: 1304 | G30: Pescara | H30: PE | I30: 068004 | J30: Brittoli | L30: ATO P - POLESINE | M30: 505 | N30: 505 | O30: N | Q30: 19918 | R30: Ufficio d'Ambito di Brescia
A31: Abruzzo | B31: Bucchianico | C31: Bucchianico (CH) | D31: Ente Regionale per il Servizio Idrico Integrato | E31: 1304 | F31: 1304 | G31: Chieti | H31: CH | I31: 069008 | J31: Bucchianico | L31: ATO V - VERONA | M31: 506 | N31: 506 | O31: N | Q31: 19920 | R31: Autorità d'ambito n. 3 Torinese
A32: Abruzzo | B32: Bugnara | C32: Bugnara (AQ) | D32: Ente Regionale per il Servizio Idrico Integrato | E32: 1303 | F32: 1303 | G32: L'Aquila | H32: AQ | I32: 066012 | J32: Bugnara | L32: ATO VC - VALLE DEL CHIAMPO | M32: 507 | N32: 507 | O32: N | Q32: 19926 | R32: CITTA' METROPOLITANA DI GENOVA ENTE DI GOVERNO D'AMBITO CENTRO EST
A33: Abruzzo | B33: Bussi sul Tirino | C33: Bussi sul Tirino (PE) | D33: Ente Regionale per il Servizio Idrico Integrato | E33: 1304 | F33: 1304 | G33: Pescara | H33: PE | I33: 068005 | J33: Bussi sul Tirino | L33: ATO VO - VENETO ORIENTALE | M33: 508 | N33: 508 | O33: N | Q33: 19928 | R33: Ufficio d'Ambito della Città Metropolitana di Milano
A34: Abruzzo | B34: Cagnano Amiterno | C34: Cagnano Amiterno (AQ) | D34: Ente Regionale per il Servizio Idrico Integrato | E34: 1301 | F34: 1301 | G34: L'Aquila | H34: AQ | I34: 066013 | J34: Cagnano Amiterno | L34: ATO Friuli-Venezia Giulia | M34: 605 | N34: 605 | O34: N | Q34: 19929 | R34: Ufficio d'Ambito di Como
A35: Abruzzo | B35: Calascio | C35: Calascio (AQ) | D35: Ente Regionale per il Servizio Idrico Integrato | E35: 1301 | F35: 1301 | G35: L'Aquila | H35: AQ | I35: 066014 | J35: Calascio | L35: ATO Centro-Est (GENOVA) | M35: 701 | N35: 701 | O35: N | Q35: 19931 | R35: ENTE DI GOVERNO DELL'AMBITO DELLA SARDEGNA
A36: Abruzzo | B36: Campli | C36: Campli (TE) | D36: Ente Regionale per il Servizio Idrico Integrato | E36: 1305 | F36: 1305 | G36: Teramo | H36: TE | I36: 067008 | J36: Campli | L36: ATO Ovest (IMPERIA) | M36: 702 | N36: 702 | O36: N | Q36: 19934 | R36: Assemblea di Ambito territoriale ottimale n.1 Marche Nord Pesaro e Urbino
A37: Abruzzo | B37: Campo di Giove | C37: Campo di Giove (AQ) | D37: Ente Regionale per il Servizio Idrico Integrato | E37: 1303 | F37: 1303 | G37: L'Aquila | H37: AQ | I37: 066015 | J37: Campo di Giove | L37: ATO Est (LA SPEZIA) | M37: 703 | N37: 703 | O37: N | Q37: 19938 | R37: Ufficio d'ambito della Provincia di Monza Brianza
A38: Abruzzo | B38: Campotosto | C38: Campotosto (AQ) | D38: Ente Regionale per il Servizio Idrico Integrato | E38: 1301 | F38: 1301 | G38: L'Aquila | H38: AQ | I38: 066016 | J38: Campotosto | L38: ATO Centro-Ovest 1 (SAVONA) | M38: 705 | N38: 705 | O38: N | Q38: 19941 | R38: CONSORZIO AMBITO TERRITORIALE OTTIMALE 6 CALTANISSETTA in liquidazione
A39: Abruzzo | B39: Canistro | C39: Canistro (AQ) | D39: Ente Regionale per il Servizio Idrico Integrato | E39: 1302 | F39: 1302 | G39: L'Aquila | H39: AQ | I39: 066017 | J39: Canistro | L39: ATO Centro-Ovest 2 (SAVONA) | M39: 706 | N39: 706 | O39: N | Q39: 19947 | R39: Ente di Governo dell'Ambito n. 5 Astigiano Monferrato
A40: Abruzzo | B40: Canosa Sannita | C40: Canosa Sannita (CH) | D40: Ente Regionale per il Servizio Idrico Integrato | E40: 1306 | F40: 1306 | G40: Chieti | H40: CH | I40: 069010 | J40: Canosa Sannita | L40: ATO 1 - PIACENZA | M40: 801 | N40: 801 | O40: N | Q40: 19964 | R40: Autorità Idrica Toscana
A41: Abruzzo | B41: Cansano | C41: Cansano (AQ) | D41: Ente Regionale per il Servizio Idrico Integrato | E41: 1303 | F41: 1303 | G41: L'Aquila | H41: AQ | I41: 066018 | J41: Cansano | L41: ATO 2 - PARMA | M41: 802 | N41: 802 | O41: N | Q41: 19984 | R41: Autorità d'Ambito Territoriale Ottimale 5 Lazio Meridionale - Frosinone
A42: Abruzzo | B42: Canzano | C42: Canzano (TE) | D42: Ente Regionale per il Servizio Idrico Integrato | E42: 1305 | F42: 1305 | G42: Teramo | H42: TE | I42: 067009 | J42: Canzano | L42: ATO 3 - REGGIO NELL'EMILIA | M42: 803 | N42: 803 | O42: N | Q42: 19992 | R42: ENTE DI GOVERNO DELL'A.T.O. N° 1 LAZIO NORD - VITERBO
A43: Abruzzo | B43: Capestrano | C43: Capestrano (AQ) | D43: Ente Regionale per il Servizio Idrico Integrato | E43: 1301 | F43: 1301 | G43: L'Aquila | H43: AQ | I43: 066019 | J43: Capestrano | L43: ATO 4 - MODENA | M43: 804 | N43: 804 | O43: N | Q43: 19997 | R43: AGENZIA TERRITORIALE DELL'EMILIA ROMAGNA PER I SERVIZI IDRICI E I RIFIUTI
A44: Abruzzo | B44: Capistrello | C44: Capistrello (AQ) | D44: Ente Regionale per il Servizio Idrico Integrato | E44: 1302 | F44: 1302 | G44: L'Aquila | H44: AQ | I44: 066020 | J44: Capistrello | L44: ATO 5 - BOLOGNA | M44: 805 | N44: 805 | O44: N | Q44: 20007 | R44: Regione Molise
A45: Abruzzo | B45: Capitignano | C45: Capitignano (AQ) | D45: Ente Regionale per il Servizio Idrico Integrato | E45: 1301 | F45: 1301 | G45: L'Aquila | H45: AQ | I45: 066021 | J45: Capitignano | L45: ATO 6 - FERRARA | M45: 806 | N45: 806 | O45: N | Q45: 20011 | R45: Consorzio dei Comuni della Valle d'Aosta Bacino Imbrifero Montano
A46: Abruzzo | B46: Caporciano | C46: Caporciano (AQ) | D46: Ente Regionale per il Servizio Idrico Integrato | E46: 1301 | F46: 1301 | G46: L'Aquila | H46: AQ | I46: 066022 | J46: Caporciano | L46: ATO 7 - RAVENNA | M46: 807 | N46: 807 | O46: N | Q46: 20129 | R46: ATO EST: PROVINCIA DELLA SPEZIA
A47: Abruzzo | B47: Cappadocia | C47: Cappadocia (AQ) | D47: Ente Regionale per il Servizio Idrico Integrato | E47: 1302 | F47: 1302 | G47: L'Aquila | H47: AQ | I47: 066023 | J47: Cappadocia | L47: ATO 8 - FORLI'-CESENA | M47: 808 | N47: 808 | O47: N | Q47: 20426 | R47: Provincia di Savona - Ente di Governo degli Ambiti ATO Centro Ovest 1 e Centro Ovest 2
A48: Abruzzo | B48: Cappelle sul Tavo | C48: Cappelle sul Tavo (PE) | D48: Ente Regionale per il Servizio Idrico Integrato | E48: 1304 | F48: 1304 | G48: Pescara | H48: PE | I48: 068006 | J48: Cappelle sul Tavo | L48: ATO 9 - RIMINI | M48: 809 | N48: 809 | O48: N | Q48: 20492 | R48: Autorità dell'Ambito Territoriale Ottimale n.3 Lazio Centrale - Rieti
A49: Abruzzo | B49: Caramanico Terme | C49: Caramanico Terme (PE) | D49: Ente Regionale per il Servizio Idrico Integrato | E49: 1304 | F49: 1304 | G49: Pescara | H49: PE | I49: 068007 | J49: Caramanico Terme | L49: ATO 1 - TOSCANA NORD | M49: 901 | N49: 901 | O49: C | Q49: 25403 | R49: Ente di Governo per i Rifiuti e le Risorse Idriche della Basilicata
A50: Abruzzo | B50: Carapelle Calvisio | C50: Carapelle Calvisio (AQ) | D50: Ente Regionale per il Servizio Idrico Integrato | E50: 1301 | F50: 1301 | G50: L'Aquila | H50: AQ | I50: 066024 | J50: Carapelle Calvisio | L50: ATO 2 - BASSO VALDARNO (PISA) | M50: 902 | N50: 902 | O50: C | Q50: 26079 | R50: Assemblea Territoriale Idrica AG9 - Agrigento
A51: Abruzzo | B51: Carpineto della Nora | C51: Carpineto della Nora (PE) | D51: Ente Regionale per il Servizio Idrico Integrato | E51: 1304 | F51: 1304 | G51: Pescara | H51: PE | I51: 068008 | J51: Carpineto della Nora | L51: ATO 3 - MEDIO VALDARNO (FIRENZE) | M51: 903 | N51: 903 | O51: C | Q51: 27256 | R51: Autorità Umbra Rifiuti Idrico
A52: Abruzzo | B52: Carpineto Sinello | C52: Carpineto Sinello (CH) | D52: Ente Regionale per il Servizio Idrico Integrato | E52: 1306 | F52: 1306 | G52: Chieti | H52: CH | I52: 069011 | J52: Carpineto Sinello | L52: ATO 4 - ALTO VALDARNO (AREZZO) | M52: 904 | N52: 904 | O52: C | Q52: 27302 | R52: Ente Regionale per il Servizio Idrico Integrato
A53: Abruzzo | B53: Carsoli | C53: Carsoli (AQ) | D53: Ente Regionale per il Servizio Idrico Integrato | E53: 1302 | F53: 1302 | G53: L'Aquila | H53: AQ | I53: 066025 | J53: Carsoli | L53: ATO 5 - TOSCANA COSTA | M53: 905 | N53: 905 | O53: C | Q53: 27432 | R53: ASSEMBLEA TERRITORIALE IDRICA PALERMO
A54: Abruzzo | B54: Carunchio | C54: Carunchio (CH) | D54: Ente Regionale per il Servizio Idrico Integrato | E54: 1306 | F54: 1306 | G54: Chieti | H54: CH | I54: 069012 | J54: Carunchio | L54: ATO 6 - OMBRONE (GROSSETO) | M54: 906 | N54: 906 | O54: C | Q54: 27828 | R54: Assemblea Territoriale Idrica Catania
A55: Abruzzo | B55: Casacanditella | C55: Casacanditella (CH) | D55: Ente Regionale per il Servizio Idrico Integrato | E55: 1306 | F55: 1306 | G55: Chieti | H55: CH | I55: 069013 | J55: Casacanditella | L55: ATI 1 e 2 - Ambito 1 e Ambito 2 | M55: 1001 | N55: 1001 | O55: C | Q55: 28124 | R55: Autorità Idrica della Calabria
A56: Abruzzo | B56: Casalanguida | C56: Casalanguida (CH) | D56: Ente Regionale per il Servizio Idrico Integrato | E56: 1306 | F56: 1306 | G56: Chieti | H56: CH | I56: 069014 | J56: Casalanguida | L56: ATI 3 - Ambito 3 | M56: 1002 | N56: 1002 | O56: C | Q56: 28178 | R56: assemblea territoriale idrica di messina
A57: Abruzzo | B57: Casalbordino | C57: Casalbordino (CH) | D57: Ente Regionale per il Servizio Idrico Integrato | E57: 1306 | F57: 1306 | G57: Chieti | H57: CH | I57: 069015 | J57: Casalbordino | L57: ATI 4 - Ambito 4 | M57: 1003 | N57: 1003 | O57: C | Q57: 28469 | R57: Ente Idrico Campano
A58: Abruzzo | B58: Casalincontrada | C58: Casalincontrada (CH) | D58: Ente Regionale per il Servizio Idrico Integrato | E58: 1304 | F58: 1304 | G58: Chieti | H58: CH | I58: 069016 | J58: Casalincontrada | L58: ATO 1 - MARCHE NORD PESARO E URBINO | M58: 1101 | N58: 1101 | O58: C | Q58: 28577 | R58: Assemblea territoriale idrica di Trapani
A59: Abruzzo | B59: Casoli | C59: Casoli (CH) | D59: Ente Regionale per il Servizio Idrico Integrato | E59: 1306 | F59: 1306 | G59: Chieti | H59: CH | I59: 069017 | J59: Casoli | L59: ATO 2 - MARCHE CENTRO ANCONA | M59: 1102 | N59: 1102 | O59: C | Q59: 29854 | R59: ASSEMBLEA TERRITORIALE IDRICA DI RAGUSA
A60: Abruzzo | B60: Castel Castagna | C60: Castel Castagna (TE) | D60: Ente Regionale per il Servizio Idrico Integrato | E60: 1305 | F60: 1305 | G60: Teramo | H60: TE | I60: 067010 | J60: Castel Castagna | L60: ATO 3 - MARCHE CENTRO MACERATA | M60: 1103 | N60: 1103 | O60: C | Q60: 30527 | R60: AUTORITA' UNICA PER I SERVIZI IDRICI E I RIFIUTI
A61: Abruzzo | B61: Castel del Monte | C61: Castel del Monte (AQ) | D61: Ente Regionale per il Servizio Idrico Integrato | E61: 1301 | F61: 1301 | G61: L'Aquila | H61: AQ | I61: 066026 | J61: Castel del Monte | L61: ATO 4 - MARCHE SUD ALTO PICENO MACERATESE | M61: 1104 | N61: 1104 | O61: C | Q61: 35319 | R61: Assemblea Territoriale Idrica di Siracusa
A62: Abruzzo | B62: Castel di Ieri | C62: Castel di Ieri (AQ) | D62: Ente Regionale per il Servizio Idrico Integrato | E62: 1303 | F62: 1303 | G62: L'Aquila | H62: AQ | I62: 066027 | J62: Castel di Ieri | L62: ATO 5 - MARCHE SUD ASCOLI PICENO | M62: 1105 | N62: 1105 | O62: C | Q62: 35572 | R62: ATI DI ENNA
A63: Abruzzo | B63: Castel di Sangro | C63: Castel di Sangro (AQ) | D63: Ente Regionale per il Servizio Idrico Integrato | E63: 1303 | F63: 1303 | G63: L'Aquila | H63: AQ | I63: 066028 | J63: Castel di Sangro | L63: ATO 1 - LAZIO NORD VITERBO | M63: 1201 | N63: 1201 | O63: C | Q63: 37580 | R63: A.T.I. ASSEMBLEA TERRITORIALE IDRICA ATO CALTANISSETTA
A64: Abruzzo | B64: Castel Frentano | C64: Castel Frentano (CH) | D64: Ente Regionale per il Servizio Idrico Integrato | E64: 1306 | F64: 1306 | G64: Chieti | H64: CH | I64: 069018 | J64: Castel Frentano | L64: ATO 2 - LAZIO CENTRALE ROMA | M64: 1202 | N64: 1202 | O64: C
A65: Abruzzo | B65: Castelguidone | C65: Castelguidone (CH) | D65: Ente Regionale per il Servizio Idrico Integrato | E65: 1306 | F65: 1306 | G65: Chieti | H65: CH | I65: 069019 | J65: Castelguidone | L65: ATO 3 - LAZIO CENTRALE RIETI | M65: 1203 | N65: 1203 | O65: C
A66: Abruzzo | B66: Castellafiume | C66: Castellafiume (AQ) | D66: Ente Regionale per il Servizio Idrico Integrato | E66: 1302 | F66: 1302 | G66: L'Aquila | H66: AQ | I66: 066029 | J66: Castellafiume | L66: ATO 4 - LAZIO MERIDIONALE LATINA | M66: 1204 | N66: 1204 | O66: C
A67: Abruzzo | B67: Castellalto | C67: Castellalto (TE) | D67: Ente Regionale per il Servizio Idrico Integrato | E67: 1305 | F67: 1305 | G67: Teramo | H67: TE | I67: 067011 | J67: Castellalto | L67: ATO 5 - LAZIO MERIDIONALE FROSINONE | M67: 1205 | N67: 1205 | O67: C
A68: Abruzzo | B68: Castelli | C68: Castelli (TE) | D68: Ente Regionale per il Servizio Idrico Integrato | E68: 1305 | F68: 1305 | G68: Teramo | H68: TE | I68: 067012 | J68: Castelli | L68: ATO 1 - AQUILANO | M68: 1301 | N68: 1301 | O68: S
A69: Abruzzo | B69: Castelvecchio Calvisio | C69: Castelvecchio Calvisio (AQ) | D69: Ente Regionale per il Servizio Idrico Integrato | E69: 1301 | F69: 1301 | G69: L'Aquila | H69: AQ | I69: 066030 | J69: Castelvecchio Calvisio | L69: ATO 2 - MARSICANO | M69: 1302 | N69: 1302 | O69: S
A70: Abruzzo | B70: Castelvecchio Subequo | C70: Castelvecchio Subequo (AQ) | D70: Ente Regionale per il Servizio Idrico Integrato | E70: 1303 | F70: 1303 | G70: L'Aquila | H70: AQ | I70: 066031 | J70: Castelvecchio Subequo | L70: ATO 3 - PELIGNO ALTO SANGRO | M70: 1303 | N70: 1303 | O70: S
A71: Abruzzo | B71: Castiglione a Casauria | C71: Castiglione a Casauria (PE) | D71: Ente Regionale per il Servizio Idrico Integrato | E71: 1304 | F71: 1304 | G71: Pescara | H71: PE | I71: 068009 | J71: Castiglione a Casauria | L71: ATO 4 - PESCARA | M71: 1304 | N71: 1304 | O71: S
A72: Abruzzo | B72: Castiglione Messer Marino | C72: Castiglione Messer Marino (CH) | D72: Ente Regionale per il Servizio Idrico Integrato | E72: 1306 | F72: 1306 | G72: Chieti | H72: CH | I72: 069020 | J72: Castiglione Messer Marino | L72: ATO 5 - TERAMO | M72: 1305 | N72: 1305 | O72: S
A73: Abruzzo | B73: Castiglione Messer Raimondo | C73: Castiglione Messer Raimondo (TE) | D73: Ente Regionale per il Servizio Idrico Integrato | E73: 1304 | F73: 1304 | G73: Teramo | H73: TE | I73: 067013 | J73: Castiglione Messer Raimondo | L73: ATO 6 - CHIETI | M73: 1306 | N73: 1306 | O73: S
A74: Abruzzo | B74: Castilenti | C74: Castilenti (TE) | D74: Ente Regionale per il Servizio Idrico Integrato | E74: 1304 | F74: 1304 | G74: Teramo | H74: TE | I74: 067014 | J74: Castilenti | L74: ATO MOLISE | M74: 1401 | N74: 1401 | O74: S
A75: Abruzzo | B75: Catignano | C75: Catignano (PE) | D75: Ente Regionale per il Servizio Idrico Integrato | E75: 1304 | F75: 1304 | G75: Pescara | H75: PE | I75: 068010 | J75: Catignano | L75: AMBITO DISTRETTUALE CALORE IRPINO | M75: 1501 | N75: 1501 | O75: S
A76: Abruzzo | B76: Celano | C76: Celano (AQ) | D76: Ente Regionale per il Servizio Idrico Integrato | E76: 1302 | F76: 1302 | G76: L'Aquila | H76: AQ | I76: 066032 | J76: Celano | L76: AMBITO DISTRETTUALE NAPOLI | M76: 1502 | N76: 1502 | O76: S
A77: Abruzzo | B77: Celenza sul Trigno | C77: Celenza sul Trigno (CH) | D77: Ente Regionale per il Servizio Idrico Integrato | E77: 1306 | F77: 1306 | G77: Chieti | H77: CH | I77: 069021 | J77: Celenza sul Trigno | L77: AMBITO DISTRETTUALE SELE | M77: 1503 | N77: 1503 | O77: S
A78: Abruzzo | B78: Cellino Attanasio | C78: Cellino Attanasio (TE) | D78: Ente Regionale per il Servizio Idrico Integrato | E78: 1305 | F78: 1305 | G78: Teramo | H78: TE | I78: 067015 | J78: Cellino Attanasio | L78: AMBITO DISTRETTUALE SARNESE-VESUVIANO | M78: 1504 | N78: 1504 | O78: S
A79: Abruzzo | B79: Cepagatti | C79: Cepagatti (PE) | D79: Ente Regionale per il Servizio Idrico Integrato | E79: 1304 | F79: 1304 | G79: Pescara | H79: PE | I79: 068011 | J79: Cepagatti | L79: AMBITO DISTRETTUALE CASERTA - TERRA DI LAVORO | M79: 1505 | N79: 1505 | O79: S
A80: Abruzzo | B80: Cerchio | C80: Cerchio (AQ) | D80: Ente Regionale per il Servizio Idrico Integrato | E80: 1302 | F80: 1302 | G80: L'Aquila | H80: AQ | I80: 066033 | J80: Cerchio | L80: ATO PUGLIA | M80: 1601 | N80: 1601 | O80: S
A81: Abruzzo | B81: Cermignano | C81: Cermignano (TE) | D81: Ente Regionale per il Servizio Idrico Integrato | E81: 1305 | F81: 1305 | G81: Teramo | H81: TE | I81: 067016 | J81: Cermignano | L81: ATO BASILICATA | M81: 1701 | N81: 1701 | O81: S
A82: Abruzzo | B82: Chieti | C82: Chieti (CH) | D82: Ente Regionale per il Servizio Idrico Integrato | E82: 1304 | F82: 1304 | G82: Chieti | H82: CH | I82: 069022 | J82: Chieti | L82: ATO UNICO REGIONE CALABRIA | M82: 1806 | N82: 1806 | O82: S
A83: Abruzzo | B83: Città Sant'Angelo | C83: Città Sant'Angelo (PE) | D83: Ente Regionale per il Servizio Idrico Integrato | E83: 1304 | F83: 1304 | G83: Pescara | H83: PE | I83: 068012 | J83: Città Sant'Angelo | L83: ATO 1 - PALERMO | M83: 1901 | N83: 1901 | O83: S
A84: Abruzzo | B84: Civita d'Antino | C84: Civita d'Antino (AQ) | D84: Ente Regionale per il Servizio Idrico Integrato | E84: 1302 | F84: 1302 | G84: L'Aquila | H84: AQ | I84: 066034 | J84: Civita d'Antino | L84: ATO 2 - CATANIA | M84: 1902 | N84: 1902 | O84: S
A85: Abruzzo | B85: Civitaluparella | C85: Civitaluparella (CH) | D85: Ente Regionale per il Servizio Idrico Integrato | E85: 1306 | F85: 1306 | G85: Chieti | H85: CH | I85: 069023 | J85: Civitaluparella | L85: ATO 3 - MESSINA | M85: 1903 | N85: 1903 | O85: S
A86: Abruzzo | B86: Civitaquana | C86: Civitaquana (PE) | D86: Ente Regionale per il Servizio Idrico Integrato | E86: 1304 | F86: 1304 | G86: Pescara | H86: PE | I86: 068013 | J86: Civitaquana | L86: ATO 4 - RAGUSA | M86: 1904 | N86: 1904 | O86: S
A87: Abruzzo | B87: Civitella Alfedena | C87: Civitella Alfedena (AQ) | D87: Ente Regionale per il Servizio Idrico Integrato | E87: 1303 | F87: 1303 | G87: L'Aquila | H87: AQ | I87: 066035 | J87: Civitella Alfedena | L87: ATO 5 - ENNA | M87: 1905 | N87: 1905 | O87: S
A88: Abruzzo | B88: Civitella Casanova | C88: Civitella Casanova (PE) | D88: Ente Regionale per il Servizio Idrico Integrato | E88: 1304 | F88: 1304 | G88: Pescara | H88: PE | I88: 068014 | J88: Civitella Casanova | L88: ATO 6 - CALTANISSETTA | M88: 1906 | N88: 1906 | O88: S
A89: Abruzzo | B89: Civitella del Tronto | C89: Civitella del Tronto (TE) | D89: Ente Regionale per il Servizio Idrico Integrato | E89: 1305 | F89: 1305 | G89: Teramo | H89: TE | I89: 067017 | J89: Civitella del Tronto | L89: ATO 7 - TRAPANI | M89: 1907 | N89: 1907 | O89: S
A90: Abruzzo | B90: Civitella Messer Raimondo | C90: Civitella Messer Raimondo (CH) | D90: Ente Regionale per il Servizio Idrico Integrato | E90: 1306 | F90: 1306 | G90: Chieti | H90: CH | I90: 069024 | J90: Civitella Messer Raimondo | L90: ATO 8 - SIRACUSA | M90: 1908 | N90: 1908 | O90: S
A91: Abruzzo | B91: Civitella Roveto | C91: Civitella Roveto (AQ) | D91: Ente Regionale per il Servizio Idrico Integrato | E91: 1302 | F91: 1302 | G91: L'Aquila | H91: AQ | I91: 066036 | J91: Civitella Roveto | L91: ATO 9 - AGRIGENTO | M91: 1909 | N91: 1909 | O91: S
A92: Abruzzo | B92: Cocullo | C92: Cocullo (AQ) | D92: Ente Regionale per il Servizio Idrico Integrato | E92: 1303 | F92: 1303 | G92: L'Aquila | H92: AQ | I92: 066037 | J92: Cocullo | L92: ATO SARDEGNA | M92: 2001 | N92: 2001 | O92: S
A93: Abruzzo | B93: Collarmele | C93: Collarmele (AQ) | D93: Ente Regionale per il Servizio Idrico Integrato | E93: 1302 | F93: 1302 | G93: L'Aquila | H93: AQ | I93: 066038 | J93: Collarmele
A94: Abruzzo | B94: Collecorvino | C94: Collecorvino (PE) | D94: Ente Regionale per il Servizio Idrico Integrato | E94: 1304 | F94: 1304 | G94: Pescara | H94: PE | I94: 068015 | J94: Collecorvino
A95: Abruzzo | B95: Colledara | C95: Colledara (TE) | D95: Ente Regionale per il Servizio Idrico Integrato | E95: 1305 | F95: 1305 | G95: Teramo | H95: TE | I95: 067018 | J95: Colledara
A96: Abruzzo | B96: Colledimacine | C96: Colledimacine (CH) | D96: Ente Regionale per il Servizio Idrico Integrato | E96: 1306 | F96: 1306 | G96: Chieti | H96: CH | I96: 069025 | J96: Colledimacine
A97: Abruzzo | B97: Colledimezzo | C97: Colledimezzo (CH) | D97: Ente Regionale per il Servizio Idrico Integrato | E97: 1306 | F97: 1306 | G97: Chieti | H97: CH | I97: 069026 | J97: Colledimezzo
A98: Abruzzo | B98: Collelongo | C98: Collelongo (AQ) | D98: Ente Regionale per il Servizio Idrico Integrato | E98: 1302 | F98: 1302 | G98: L'Aquila | H98: AQ | I98: 066039 | J98: Collelongo
A99: Abruzzo | B99: Collepietro | C99: Collepietro (AQ) | D99: Ente Regionale per il Servizio Idrico Integrato | E99: 1301 | F99: 1301 | G99: L'Aquila | H99: AQ | I99: 066040 | J99: Collepietro
A100: Abruzzo | B100: Colonnella | C100: Colonnella (TE) | D100: Ente Regionale per il Servizio Idrico Integrato | E100: 1305 | F100: 1305 | G100: Teramo | H100: TE | I100: 067019 | J100: Colonnella
A101: Abruzzo | B101: Controguerra | C101: Controguerra (TE) | D101: Ente Regionale per il Servizio Idrico Integrato | E101: 1305 | F101: 1305 | G101: Teramo | H101: TE | I101: 067020 | J101: Controguerra
A102: Abruzzo | B102: Corfinio | C102: Corfinio (AQ) | D102: Ente Regionale per il Servizio Idrico Integrato | E102: 1303 | F102: 1303 | G102: L'Aquila | H102: AQ | I102: 066041 | J102: Corfinio
A103: Abruzzo | B103: Corropoli | C103: Corropoli (TE) | D103: Ente Regionale per il Servizio Idrico Integrato | E103: 1305 | F103: 1305 | G103: Teramo | H103: TE | I103: 067021 | J103: Corropoli
